Workbook

Sheet 第一批劳务协同单位
B1: 劳务协同单位名单
A2: 序号 | B2: 劳务分类 | C2: 序号 | D2: 劳务协同单位名称 | E2: 上报单位
A3: 1 | B3: 临 建 工 程 | C3: 1 | D3: 山东省建设建工集团劳务有限公司 | E3: 鲁桥建设
A4: 2 | C4: 2 | D4: 山东寿光科达钢结构工程有限公司 | E4: 鲁桥建设
A5: 3 | C5: 3 | D5: 江阴市华厦建设工程有限公司 | E5: 市政公司
A6: 4 | B6: 隧 道 工 程 | C6: 1 | D6: 山东晋金盾构建设工程有限公司 | E6: 桥隧工程公司
A7: 5 | C7: 2 | D7: 福建东肪建筑工程劳务有限公司 | E7: 桥隧工程公司
A8: 6 | C8: 3 | D8: 泰安市泰山爆破有限公司 | E8: 桥隧工程公司
A9: 7 | B9: 桩 基 工 程 | C9: 1 | D9: 河南汇福路桥工程有限公司 | E9: 公路桥梁
A10: 8 | C10: 2 | D10: 山东德远路桥工程有限公司 | E10: 铁路公司
A11: 9 | C11: 3 | D11: 山东盛大路桥工程有限公司 | E11: 公路桥梁
A12: 10 | C12: 4 | D12: 山东鲁泰基础工程有限公司 | E12: 桥隧工程公司
A13: 11 | C13: 5 | D13: 济南超华建筑工程有限公司 | E13: 桥隧工程公司
A14: 12 | C14: 6 | D14: 河北建设勘察设计院有限公司 | E14: 青岛建设
A15: 13 | B15: 交 安 工 程 | C15: 1 | D15: 济南长鑫交通设施工程有限公司 | E15: 交通工程公司
A16: 14 | C16: 2 | D16: 山东嵩兴建筑劳务有限公司 | E16: 鲁桥建设
A17: 15 | C17: 3 | D17: 徐州顺安公路工程养护有限公司 | E17: 交通工程公司
A18: 16 | C18: 4 | D18: 济南汇聚路桥工程有限公司 | E18: 鲁桥建设
A19: 17 | C19: 5 | D19: 济宁市兖州区亚威通泰公用设施有限公司 | E19: 交通工程公司
A20: 18 | B20: 路 基 工 程 | C20: 1 | D20: 四川海鲁川建设工程有限公司 | E20: 鲁桥建设
A21: 19 | C21: 2 | D21: 攀枝花开云公路工程有限公司 | E21: 鲁桥建设
A22: 20 | C22: 3 | D22: 山东德正公路工程有限公司 | E22: 公路桥梁
A23: 21 | C23: 4 | D23: 四川亿路顺路桥建设工程有限公司 | E23: 鲁桥建设
A24: 22 | C24: 5 | D24: 四川乐山市嘉凌建设有限公司 | E24: 公路桥梁
A25: 23 | C25: 6 | D25: 新泰市万泰路桥工程有限公司 | E25: 桥隧工程公司
A26: 24 | C26: 7 | D26: 山东舜龙市政工程有限公司 | E26: 鲁桥建设
A27: 25 | C27: 8 | D27: 济宁市华兴路桥工程有限责任公司 | E27: 鲁桥建设
A28: 26 | C28: 9 | D28: 泰安现友路桥工程有限公司 | E28: 海外公司
A29: 27 | B29: 路 面 工 程 | C29: 1 | D29: 齐河龙亭路业有限公司 | E29: 青岛建设
A30: 28 | C30: 2 | D30: 江苏颐荣建设工程有限公司 | E30: 市政公司
A31: 29 | C31: 3 | D31: 山东金路交通实业有限公司 | E31: 公路桥梁
A32: 30 | C32: 4 | D32: 安徽筑煌建筑工程有限公司 | E32: 路面公司
A33: 31 | C33: 5 | D33: 山东合鑫路桥工程有限公司 | E33: 公路桥梁
A34: 32 | C34: 6 | D34: 定陶县通源路桥工程有限公司 | E34: 路面公司
A35: 33 | B35: 养 护 工 程 | C35: 1 | D35: 宜昌砼富公路养护有限公司 | E35: 养护公司
A36: 34 | C36: 2 | D36: 盐城市宏泰交通工程有限公司 | E36: 养护公司
A37: 35 | C37: 3 | D37: 四川匹克生态景观工程有限公司 | E37: 养护公司
A38: 36 | C38: 4 | D38: 德州黄河建业工程有限责任公司 | E38: 养护公司
A39: 37 | C39: 5 | D39: 山东中安建设工程有限公司 | E39: 养护公司
A40: 38 | B40: 建 筑 工 程 | C40: 1 | D40: 山东宇青建筑劳务有限公司 | E40: 建筑公司
A41: 39 | C41: 2 | D41: 济南康业建设工程有限公司 | E41: 建筑公司
A42: 40 | C42: 3 | D42: 山东东煌建筑工程有限公司 | E42: 建筑公司
A43: 41 | C43: 4 | D43: 山东群雄建设工程有限公司 | E43: 齐鲁建设
A44: 42 | C44: 5 | D44: 江苏溧阳建设集团有限公司 | E44: 齐鲁建设
A45: 43 | B45: 桥 梁 工 程 | C45: 1 | D45: 菏泽英建路桥工程有限公司 | E45: 青岛公司
A46: 44 | C46: 2 | D46: 山东鲁达路桥工程有限公司 | E46: 港航公司
A47: 45 | C47: 3 | D47: 滕州市硕通劳务有限公司 | E47: 鲁桥建设
A48: 46 | C48: 4 | D48: 沂南县天宇建设工程有限公司 | E48: 港航公司
A49: 47 | C49: 5 | D49: 山东墨棠建筑工程股份有限公司 | E49: 鲁桥建设
A50: 48 | C50: 6 | D50: 东阿和平建筑劳务有限公司 | E50: 公路桥梁
A51: 49 | C51: 7 | D51: 江苏东海星泰建设工程有限公司 | E51: 鲁桥建设
A52: 50 | C52: 8 | D52: 巨野鼎筑路桥工程有限公司 | E52: 桥隧工程公司
A53: 51 | C53: 9 | D53: 山东鲁昱路桥工程有限公司 | E53: 海外公司
A54: 52 | C54: 10 | D54: 河南省精中建设有限公司 | E54: 公路桥梁
A55: 53 | C55: 11 | D55: 临沂市裕润工程有限公司 | E55: 鲁桥建设

Sheet 临建工程劳务单位名册
A1: 山东高速路桥集团股份有限公司2019~20年劳务单位信用评价统计汇总表
A2: 序号 | B2: 劳务单位名称 | C2: 注册地址 | D2: 法定代表人 | E2: 注册资本（万元） | F2: 营业执照（统一社会信用代码） | G2: 资质类别、等级，编号 | H2: 安全许可证编号 | I2: 所属项目 | J2: 工程分包内容 | K2: 项目联系人 | L2: 联系人电话 | M2: 证件网上核对人 | N2: 信用等级 | O2: 上报单位
A3: 1 | B3: 滕州市硕通劳务有限公司 | C3: 滕州市奎文小区2-1-301 | D3: 张玉清 | E3: 1000 | F3: 91370481076953983F | G3: 钢筋作业分包劳务分包贰级 | H3: （鲁）JZ安许证字〔2016〕0404321 | I3: 京台五标二分部 | J3: 场站建设工程 | K3: 张玉清 | L3: 15866238066 | M3: 周丰禄 | N3: A | O3: 鲁桥建设
A4: 2 | B4: 山东恒远路桥工程有限公司 | C4: 菏泽市丹阳办事处何楼社区菏建数码大厦09007室 | D4: 周磊 | E4: 3000 | F4: 91371702764825643E | G4: 公路工程施工总承包叁级 证书编号：D337032751 | H4: （鲁）JZ安许证字【2013】18091-02 | I4: 京雄高速SG4标段 | J4: 京雄高速SG4标临建工程包件4等与此相关的一切劳务作业 梁板预制区场地硬化、场内道路、轨道基础、底盘基础、存梁区基础等与此有关的劳务工作 | K4: 马李军 | L4: 13954001551 | M4: 朱祥坤 | N4: A | O4: 鲁桥建设
A5: 3 | B5: 巨野鼎筑路桥工程有限公司 | C5: 菏泽市巨野县麒麟大道 | D5: 陈彭飞 | E5: 1000 | F5: 91371724326217947M | G5: 建筑业施工劳务不分等级：D337197520 | H5: （鲁）JZ安许证字〔2019〕170890 | I5: 济微高速济宁段 | J5: 临建工程 | K5: 陈彭飞 | L5: 18253086669 | M5: 刘继文 | N5: A | O5: 公路桥梁
A6: 4 | B6: 安徽筑煌建筑工程有限公司 | C6: 安徽合肥市庐阳区濉溪路9号富荣大厦709室 | D6: 时洪兵 | E6: 伍佰 | F6: 91340100MA2NMWY212 | G6: 施工劳务不分等级 D334122069 | H6: (皖)JZ安许证号【2018】007352-2-1 | I6: 路面公司文莱项目、长深高速高青至广饶段路面工程 | J6: 拌合站建设 | K6: 时洪兵 | L6: 13814617192 | M6: 时寅辉 | N6: B | O6: 路桥集团
A7: 5 | B7: 山东亚盟建筑安装工程有限公司 | C7: 山东省枣庄市山亭区府前东路翼龙紫锦花园19号 | D7: 杨乃祥 | E7: 5000 | F7: 91370406MA3M6Q1M29 | G7: 建筑业市政公用工程施工总承包二级D237044840 | H7: （鲁）JZ安许证字〔2018〕040525 | I7: 京台五标二分部 | J7: 场站建设工程 | K7: 杨乃祥 | L7: 18769233899 | M7: 周丰禄 | N7: B | O7: 鲁桥建设
A8: 6 | B8: 滕州市长兴市政工程有限公司 | C8: 滕州市善国北路 | D8: 吴开敬 | E8: 2000 | F8: 91370481664426637W | G8: 市政公用工程施工总承包贰级D237044874 | H8: (鲁)JZ安许证字[2008] 040018 | I8: 京台五标三分部 | J8: 场站建设工程 | K8: 刘磊 | L8: 15265825678 | M8: 韩园园 | N8: B | O8: 鲁桥建设
A9: 7 | B9: 山东寿光科达钢结构工程有限公司 | C9: 寿光市稻田镇芳林院村东北角 | D9: 董纪国 | E9: 8600 | F9: 91370783676848810K | G9: 钢结构工程专业承包三级 | H9: （鲁）JZ安许证字〔2019〕071225 | I9: 京台五标二分部 | J9: 钢结构大棚安装 | K9: 董纪国 | L9: 13881421777 | M9: 周丰禄 | N9: B | O9: 鲁桥建设
C10: 寿光市稻田镇芳林院村东北角 | D10: 董纪国 | E10: 8600 | F10: 91370783676848810K | G10: D337189684 | H10: （鲁）JZ安许证字【2019】071225-01 | I10: 莱泰四标 | J10: 钢结构大棚、板房 | K10: 董纪国 | L10: 13805369777 | M10: 宋劲松 | N10: B | O10: 路桥集团
A11: 8 | B11: 临沂市裕润工程有限公司 | C11: 山东省临沂市蒙阴县云蒙湖生态区管理委员会彭刘大村 | D11: 石少军 | E11: 2000 | F11: 91371328493481905P | G11: 施工劳务 | H11: （鲁）JZ安许证字【2018】140817-02 | I11: 京雄高速SG4标段 | J11: 京雄高速SG4标临建工程砼拌和站（含料仓）场地基础及硬化、场内道路等与此有关的劳务工作。 | K11: 石少军 | L11: 13953362062 | M11: 朱祥坤 | N11: B | O11: 鲁桥建设
A12: 9 | B12: 山东大地公路工程有限公司 | C12: 山东省临沂市沂水县道托镇后官庄村 | D12: 李青蓉 | E12: 4000 | F12: 91371323590323570N | G12: 建筑业公路工程施工总承包二级D237073614 | H12: （鲁）JZ安许证字（2015）180974 | I12: 京台五标一分部 | J12: 场站建设 | K12: 王强 | L12: 18668931134 | M12: 邴召建 | N12: B | O12: 鲁桥建设
A13: 10 | B13: 邹城市誉华建筑安装工程有限公司 | C13: 邹城市市场监督管理局 | D13: 孟凡东 | E13: 4000 | F13: 913708831661504129 | G13: D237080540建筑业建筑工程施工总承包二级 | H13: （鲁）JZ安许证字〔2005〕080156 | I13: 京台四标 | J13: 临建 | K13: 李军帅 | L13: 15306443666 | M13: 屈庆勋 | N13: B | O13: 路桥集团
A14: 11 | B14: 威海双铭建筑工程有限公司 | C14: 山东省威海市乳山市温州路东区内规划街北 | D14: 宋晓芳 | E14: 800 | F14: 91371083MA3N82DH4 | G14: D337010581 | H14: （鲁）JZ安许证字【2019】0701023120 | I14: 莱泰四标 | J14: 钢结构大棚 | K14: 刘晓东 | L14: 13563136765 | M14: 宋劲松 | N14: B | O14: 路桥集团
A15: 12 | B15: 齐河龙亭路业有限公司 | C15: 齐河县经济开发区金石大街 | D15: 黄传亭 | E15: 1000 | F15: 91371425771019180P | G15: 市政公用工程施工总承包叁级D337173436 | H15: （鲁）JZ安许证[2018] 130747-02 | I15: 临枣高速至枣木高速路面工程项目 | J15: 临建 | K15: 杨同东 | L15: 15253463899 | M15: 齐海建 | N15: B | O15: 路桥集团
A16: 13 | B16: 四川路顺众安建筑工程有限公司 | C16: 四川省攀枝花市仁和区攀枝花大道南段1049号2栋2单元8号 | D16: 刘新秀 | E16: 1200 | F16: 91510400MA64832Y4T | G16: 建筑工程施工总承包叁级D351875179 | H16: （川）JZ安许证字〔2019〕002044 | I16: 国道204拓宽改造项目 | J16: 临建 | K16: 江少场 | L16: 13791751122 | M16: 丛磊 | N16: B | O16: 鲁桥建设
A17: 14 | B17: 安徽昌庐建设工程有限公司 | C17: 安徽省合肥市瑶海区隆岗新村西10幢502 | D17: 孙丰刚 | E17: 1000 | F17: 91340102MA2RLEA36Q | G17: 施工劳务不分等级 证书编号：D334154901 | H17: （皖）JZ安许证字【2018】009677-2-2 | I17: 京雄高速SG4标段 | J17: 京雄高速SG4标临建工程场站临建土方施工作业，项目部、生活区、钢筋场、仓库场地硬化、板房基础、场内道路、围墙等与此有关的劳务工作。 | K17: 孙丰刚 | L17: 15314107678 | M17: 朱祥坤 | N17: B | O17: 鲁桥建设
A18: 15 | B18: 山东中铁路桥工程有限公司 | C18: 济南市槐荫区南辛庄街225号 | D18: 王胜波 | E18: 1700 | F18: 91370000774152120T | G18: 建筑工程施工总承包叁级、公路工程施工总承包叁级、施工劳务不分等级 D337087727 | H18: 【鲁】JZ安许证[2015] 010908-01 | I18: 枣菏项目 | J18: 钢栈桥 | K18: 俞光印 | L18: 0534-8958555 | M18: 李阳 | N18: B | O18: 公路桥梁
C19: 济南市槐荫区南辛庄街225号 | D19: 王胜波 | E19: 1700 | F19: 91370000771452120T | G19: 公路、建筑工程施工总承包叁级D337087727 | H19: （鲁）JZ安许证[2015] 010908-01 | I19: 河南焦作黄河大桥 | J19: 施工便桥平台搭设及拆除 | K19: 张鹏 | L19: 13869897222 | M19: 吴文波 | N19: B | O19: 路桥集团
A20: 16 | B20: 威海泓强建筑劳务有限公司 | C20: 山东省威海市经济技术开发区凤林蓝山小镇附1-24 | D20: 田述强 | E20: 1000 | F20: 91371000MA3QJ52J15 | G20: 施工劳务不分等级 | H20: （鲁）JZ安许证字【2019】100938-02 | I20: 京雄高速SG4标段 | J20: 京雄高速SG4标主线施工便道土方施工作业、场站临建土方施工作业。 | K20: 田述强 | L20: 13721924777 | M20: 朱祥坤 | N20: B | O20: 鲁桥建设
A21: 17 | B21: 山东宝赋劳务服务有限公司 | C21: 山东省临沂市河东区九曲街道 | D21: 庞树龙 | E21: 618 | F21: 91371312MA3FBC8935 | G21: 施工劳务 | H21: （鲁）JZ安许证字〔2019〕141075 | I21: 临沂项目 | J21: 临建 | K21: 王宗彦 | L21: 15163983444 | M21: 栾志民 | N21: B | O21: 齐鲁建设
A22: 18 | B22: 山东莱芜上游建安有限公司 | C22: 济南市莱芜雪野旅游区吕组泉村 | D22: 刘振宇 | E22: 2000 | F22: 91371200169533443Q | G22: 市政公用工程施工总承包叁级、D337026301 | H22: （鲁）JZ安许证字【2012】120244-01 | I22: 成宜路面 | J22: 1、2号水稳拌和站临建工程施工 | K22: 金刚强 | L22: 13540555527 | M22: 李霞 | N22: B | O22: 公路桥梁
A23: 19 | B23: 江阴市华厦建设工程有限公司 | C23: 江阴市澄江西路182号 | D23: 徐登福 | E23: 10050 | F23: 91320281142231023K | G23: 市政公用工程施工总承叁级，D332106229 | H23: （苏）JZ安许证[2005] 020154-1 | I23: 江西抚州 | J23: 包含钢平台钢栈桥的桩基，钢管桩，贝雷片，型钢等主体结构搭设等工作 | K23: 何军健 | L23: 15150190505 | M23: 李德义 | N23: B | O23: 路桥集团
A24: 20 | B24: 山东鼎亚建筑工程有限公司 | C24: 山东省菏泽市牡丹区牡丹北路新菏小区7排6号 | D24: 刘俞辛 | E24: 2000 | F24: 91371702MA3CLQ9G78 | G24: 市政公用工程施工总承包叁级 | H24: （鲁）JZ安许证字【2018】170677- | I24: 京雄高速SG4标段 | J24: 京雄高速SG4标场站主要场内道路硬化、厂区外侧围墙砌筑等与此有关的劳务工作。 | K24: 马全成 | L24: 17615508066 | M24: 朱祥坤 | N24: B | O24: 鲁桥建设
A25: 21 | B25: 山东基磊建筑工程有限公司 | C25: 汶上县次丘镇栓庄村利民街南038号 | D25: 马宗立 | E25: 5000 | F25: 91370830584538436Q | G25: 市政公用工程施工总承包叁级：D337060839 | H25: （鲁）JZ安许证[2016] 080811-01 | I25: 济微高速济宁段 | J25: 临建工程 | K25: 马宗立 | L25: 13355136555 | M25: 刘继文 | N25: B | O25: 公路桥梁
A26: 22 | B26: 汶上县联发建筑安装有限公司 | C26: 山东省济宁市汶上县寅寺镇后林楼村村西首 | D26: 何锡明 | E26: 5000 | F26: 913708307823178964 | G26: D337022311 建筑工程施工总承包叁级 市政公用工程施工总承包叁级 | H26: （鲁）JZ安许证字（2015）080768 | I26: 泰安港东平港区老湖作业区项目部 | J26: 临建 | K26: 杜海涛 | L26: 13721916522 | M26: 李振 | N26: B | O26: 路桥集团
A27: 23 | B27: 贵州泰天建设工程有限公司 | C27: 贵州毕节市七星关区洪山街道办 | D27: 杨大年 | E27: 5000 | F27: 91371300MA3QH3C89M | G27: 房屋建筑施工总承包壹级D352023420 | H27: (黔)JZ安证许字【2018】000084-02 | I27: 临沂项目 | J27: 临建 | K27: 顾廷柱 | L27: 13563963789 | M27: 栾志民 | N27: B | O27: 齐鲁建设
A28: 24 | B28: 临沂金盟建筑安装有限公司 | C28: 临沂高新技术开发区西朱隆村 | D28: 顾文海 | E28: 4006 | F28: 913713005728637849 | G28: 建筑工程施工总承包叁级D337107024 | H28: (鲁）JZ安许证字【2013】140538-02 | I28: 临沂项目 | J28: 临建 | K28: 高振强 | L28: 15762076666 | M28: 栾志民 | N28: B | O28: 齐鲁建设
A29: 25 | B29: 山东程达建设工程有限公司 | C29: 兰山区半程镇驻地西哨村 | D29: 陈恒波 | E29: 10017 | F29: 913713005578669441 | G29: 建筑工程施工总承包贰级D237105161 | H29: (鲁）JZ安许证字【2015】140627-01 | I29: 临沂项目 | J29: 临建 | K29: 凌浩 | L29: 18769968567 | M29: 栾志民 | N29: B | O29: 齐鲁建设
A30: 26 | B30: 济南英雄山建筑安装有限公司 | C30: 济南市中区英雄山路 | D30: 郭登峰 | E30: 6098.75 | F30: 9137010026435593X8 | G30: 建筑工程施工总承包贰级D237023092 | H30: (鲁）JZ安许证字【2014】010025-02 | I30: 临沂项目 | J30: 临建 | K30: 郭登峰 | L30: 18560131692 | M30: 栾志民 | N30: B | O30: 齐鲁建设
A31: 27 | B31: 四川新冶建设工程有限公司 | C31: 成都市锦江区东四横街8号1栋2单元6层609号 | D31: 张继凤 | E31: 1000 | F31: 91510100MA61TNKM7Q | G31: 模板脚手架专业承包不分等级、施工劳务不分等级 | H31: （川）JZ安许证字【2016】000642 | I31: 省道103线青神至五通桥段公路工程（乐山段）PPP项目 | J31: 包含项目部和K23+300砼拌和站（含二分部驻地）板房及隔料墙砖砌、场地硬化、砂浆抹面、花砖及地砖铺贴、石膏板吊顶、围墙栅栏安装、人工撒播草籽及种树、排水沟盖板安装、拌合站基础硬化等与此有关的劳务工作。 | K31: 李永明 | L31: 18963402688 | M31: 李申伟 | N31: B | O31: 鲁桥建设
A32: 28 | B32: 山东东煌建筑工程有限公司 | C32: 济南市历城区华山街道宋刘庄 | D32: 黄兴栋 | E32: 2000 | F32: 91370112307101340J | G32: 施工劳务不分等级，D337148598 | H32: （鲁）JZ安许证字【2017】011895 | I32: 京沪二标/新台项目 | J32: 桩基（新建段），临建场地硬化/涵洞工程 | K32: 黄兴栋 | L32: 15688869285 | M32: 简晓辉 | N32: B | O32: 公路桥梁
A33: 29 | B33: 临沂弘一建筑工程有限公司 | C33: 山东省临沂市临沭县兴大西街与光明南路交汇处 | D33: 李江 | E33: 4000 | F33: 91371329067375106K | G33: 建筑工程施工总承包叁级 | H33: (鲁）JZ安许证字【2016】140684-02 | I33: 临沂项目 | J33: 临建 | K33: 徐建国 | L33: 0539-8507555 | M33: 栾志民 | N33: B | O33: 齐鲁建设
A34: 30 | B34: 山东泰银建设有限公司 | C34: 山东省泰安市肥城市仪阳镇济兖路东仪过路北100米 | D34: 刘光明 | E34: 20000 | F34: 91370983166607080H | G34: 市政公用工程施工总承包贰级 D237120177 | H34: (鲁)JZ安许证字[2005] 090041 | I34: G205九华南路快速化改造工程大茆立交项目 | J34: 场地硬化、项目部水管安装、电路布设、排水、砌筑花坛、砂浆抹面、铺设地板砖、安装围挡等劳务工作。 | K34: 张钦峰 | L34: 13225445555 | M34: 陈帆 | N34: B | O34: 路桥集团
A35: 31 | B35: 枣庄舜扬建设有限公司 | C35: 市中区解放南路183号 | D35: 任鹏 | E35: 1000 | F35: 913704005860857253 | G35: 市政公用工程施工总承包叁级D337093135 | H35: (鲁)JZ安许证字[2015] 04-0030 | I35: 京台五标一分部 | J35: 场站建设 | K35: 蔡尧尧 | L35: 18663279003 | M35: 邴召建 | N35: C | O35: 鲁桥建设
A36: 32 | B36: 山东宏远电力科技 有限公司 | C36: 山东省威海市乳山市经济开发区惠州路7号 | D36: 韩红 | E36: 6600 | F36: 913710835804402208 | G36: 电力工程施工总承包叁级D337125666 | H36: (鲁)JZ安许证号【2017】 100697-01 | I36: 路面公司文莱项目 | J36: 315KVA 变压器安装施工 | K36: 马涛 | L36: 18906309338 | M36: 唐友权 | N36: C | O36: 路桥集团
A37: 33 | B37: 威海市源通建设工程有限公司 | C37: 山东省威海市经济技术开发区泊于镇夏庄村 | D37: 赵志勇 | E37: 600 | F37: 913710020829841531 | G37: 市政公用工程施工总承包叁级D337122128 | H37: （鲁）JZ安许证字（2019）100773 | I37: 楚大项目 | J37: 便道挖方、填方，硬化及附属工程施工 | K37: 车建光 | L37: 13361199788 | M37: 陈成伟 | N37: C | O37: 鲁桥建设
A38: 34 | B38: 四川海合建筑工程有限公司 | C38: 四川省乐山市井研县 | D38: 张秀娟 | E38: 1000 | F38: 91511124MA65PTM59Y | G38: 施工劳务不分等级：D351661205 | H38: （川）JZ安许证[2017] 005123 | I38: 成宜项目 | J38: 临建工程 | K38: 刘深德 | L38: 15265453808 | M38: 杨超越 | N38: C | O38: 公路桥梁
A39: 35 | B39: 承峻建设集团有限公司 | C39: 山东省济南市天桥区明湖西路777号明湖广场3号楼909室 | D39: 孙明国 | E39: 10306 | F39: 913701055537471203 | G39: 建筑业建筑工程施工总承包三级D337137606 | H39: （鲁）JZ安许证字〔2015〕011594 | I39: 京台二标 | J39: 场站土建 | K39: 李猛 | L39: 17861040188 | M39: 刘铭磬 | N39: C | O39: 路桥集团
A40: 36 | B40: 宜宾奋力建筑有限公司 | C40: 四川省宜宾市叙州区柏溪街道少娥街南段蓝天花园7幢1层6号 | D40: 丛俊达 | E40: 1000 | F40: 91511521MA66AX6T3R | G40: 模板脚手架专业承包不分等级；施工劳务施工劳务不分等级 | H40: （川）JZ安许证字[2020]001800 | I40: 宜宾快速路 | J40: 临建工程 | K40: 王微 | L40: 13869025517 | M40: 王巍 | N40: C | O40: 公路桥梁
A41: 37 | B41: 四川勇德建筑劳务有限公司 | C41: 成都市武侯区龙爪小区逸都路20号 | D41: 李孝兵 | E41: 1000 | F41: 91510100572277638X | G41: 模板脚手架专业承包不分等级 D351573358 | H41: （川）JZ安许证字【2012】000560 | I41: 资阳项目 | J41: 临建工程 | K41: 余会 | L41: 18681622960 | M41: 熊桓 | N41: C | O41: 鲁桥建设
A42: 38 | B42: 临沂市丰业工程股份有限公司 | C42: 平邑县石都大道赛博大酒店对过 | D42: 高悦云 | E42: 13632 | F42: 913713007915108311 | G42: 建筑工程施工总承包叁级；D337094275 | H42: （鲁）JZ安许证字〔2009〕140388 | I42: 新台项目 | J42: 临建工程 | K42: 王卫东 | L42: 13280578518 | M42: 王少文 | N42: D | O42: 公路桥梁

Sheet 路基劳务单位名册
A1: 山东高速路桥集团股份有限公司2019~20年劳务单位信用评价统计汇总表
A2: 序号 | B2: 劳务单位名称 | C2: 注册地址 | D2: 法定代表人 | E2: 注册资本（万元） | F2: 营业执照（统一社会信用代码） | G2: 资质类别/等级，编号 | H2: 安全许可证编号 | I2: 所属项目 | J2: 工程分包内容 | K2: 项目联系人 | L2: 联系人电话 | M2: 证件网上核对人 | N2: 信用等级 | O2: 上报单位
A3: 1 | B3: 滕州市硕通劳务有限公司 | C3: 滕州市奎文小区2-1-301 | D3: 张玉清 | E3: 1000 | F3: 91370481076953983F | G3: 钢筋作业分包劳务分包贰级 | H3: （鲁）JZ安许证字 〔2016〕0404321 | I3: 京台五标二分部 | J3: 土方挖运工程 | K3: 张玉清 | L3: 15866238066 | M3: 周丰禄 | N3: A | O3: 鲁桥建设
A4: 2 | B4: 泰安市意达建设工程有限公司 | C4: 泰安市万达广场8号商务办公楼20层2007户 | D4: 何海亮 | E4: 727 | F4: 91370902595223421G | G4: 建筑业建筑工程施工总承包三级 | H4: （鲁）JZ安许证字 〔2019〕090813 | I4: 长深高速高青至广饶段工程 | J4: 路基土石方工程 | K4: 叶朋 | L4: 18739436369 | M4: 范伟 | N4: A | O4: 路桥集团
A5: 3 | B5: 四川亿路顺路桥建设工程有限公司 | C5: 四川省攀枝花市东区机场路118号12-3号 | D5: 邢家令 | E5: 1200 | F5: 91510400MA65JQTF4B | G5: 公路工程施工总承包叁级D351805009 | H5: （川）JZ安许证字[2018]007915 | I5: 国道204拓宽改造项目 | J5: 路基施工 | K5: 苑伟 | L5: 15808101767 | M5: 丛磊 | N5: A | O5: 鲁桥建设
A6: 4 | B6: 四川海鲁川建设工程有限公司 | C6: 四川省攀枝花市东区机场路118号12-3号 | D6: 于业鹏 | E6: 1200 | F6: 91510400MA67Q6NU4J | G6: 市政公用工程施工总承包叁级D351787780 | H6: (川)JZ安许证字（2018）007296 | I6: 国道204拓宽改造项目/胶州湾高速营海口周边道路综合提升工程 | J6: 路基翻挖碾压、路基挖方、挖除原路面、路基换填、桥台台背回填、 | K6: 于业鹏 | L6: 18661866567‬ | M6: 丛磊 | N6: A | O6: 鲁桥建设
A7: 5 | B7: 四川乐山市嘉凌建设有限公司 | C7: 四川省乐山市市中区凌云路118号 | D7: 姚洪元 | E7: 5189 | F7: 91511100207051358R | G7: 公路工程施工总承包叁级；D351409957 | H7: (川)JZ安许证字[2005]000699 | I7: 成宜项目 | J7: 路基土石方、盖板涵台背回填工程 | K7: 姚洪 | L7: 18228315888 | M7: 杨超越 | N7: A | O7: 公路桥梁
A8: 6 | B8: 江苏长德建设有限公司 | C8: 昆山市玉山镇水秀路1207-28号601室 | D8: 孙琳清 | E8: 5000 | F8: 91320583746202039G | G8: 施工劳务不分等级、水利水电工程施工总承包叁级、市政公用工程施工总承包叁级D332080324 | H8: （苏）JZ安许证字 【2005】050687-1 | I8: 资阳项目 | J8: 路基土石方及综合管廊明挖段工程 | K8: 周良德 | L8: 18051827666 | M8: 熊桓 | N8: A | O8: 鲁桥建设
A9: 7 | B9: 山东金中建设集团有限公司(原临沂昌耀建设有限公司) | C9: 山东省临沂市临沭县育新街19号办公楼9层 | D9: 范宝泽 | E9: 5000 | F9: 913713007731838142 | G9: 公路工程施工总承包叁级D337129680 | H9: （鲁）JZ安许证字 〔2020〕140780 | I9: 巨单项目 | J9: 护坡、排水沟预制件 | K9: 郑加宁 | L9: 18905391797 | M9: 裴天宇 | N9: A | O9: 路桥集团
A10: 8 | B10: 泰安现友路桥工程有限公司 | C10: 山东省泰安市东平县东平街道银山街南白吉河西名仕佳苑4幢101商铺 | D10: 王延俊 | E10: 3500 | F10: 913709234939856286 | G10: 施工劳务不分等级 D337187744 | H10: (鲁)JZ安许证字 〔2019〕090832 | I10: 京台二标 | J10: 路基土石方工程施工 | K10: 王延俊 | L10: 18053418438 | M10: 刘铭磬 | N10: A | O10: 路桥集团
A11: 9 | B11: 聊城市公路工程总公司 | C11: 聊城市东昌西路38号 | D11: 刘德峰 | E11: 55078 | F11: 9137150016786146XY | G11: 公路工程施工总承包壹级D137015239 | H11: （鲁）JZ安许证字[2006]180450 | I11: 京台五标三分部 | J11: 路基土石方工程 | K11: 白光军 | L11: 13869526015 | M11: 韩园园 | N11: A | O11: 鲁桥建设
A12: 10 | B12: 福建永丰建设工程有限公司 | C12: 上杭县临城镇北环路中段（晟达花园A栋2层2号） | D12: 林锦红 | E12: 1000 | F12: 913508237845180774 | G12: 市政公用工程施工总承包三级D335018973 | H12: (闽)JZ安许证字[2006]000200 | I12: 武平PPP项目 | J12: 路基工程、涵洞工程、附属工程 | K12: 刘善卫 | L12: 13850654016 | M12: 吴庆龙 | N12: A | O12: 路桥集团
A13: 11 | B13: 江苏基恒建设有限公司 | C13: 昆山市周市镇陆杨友谊北路50号1号楼 | D13: 韩雨桐 | E13: 2000 | F13: 91320583780671410M | G13: 水利水电工程施工总承包叁级、市政公用工程施工总承包叁级D332045520 | H13: （苏）JZ安许证字 【2008】140011 | I13: 资阳项目 | J13: 路基土石方及综合管廊明挖段工程 | K13: 洪金龙 | L13: 18501577717 | M13: 熊桓 | N13: A | O13: 鲁桥建设
A14: 12 | B14: 江西省路桥隧道工程有限公司 | C14: 江西省南昌市南昌县小蓝经济技术开发区迎宾大道476号 | D14: 熊冬仔 | E14: 50518 | F14: 91360000733924622N | G14: 公路路基工程专业承包D136074358 | H14: (赣)JZ安许证字[2005]120046 | I14: 京台五标一分部 | J14: 路基土石方 | K14: 曾菊生 | L14: 13879618568 | M14: 邴召建 | N14: A | O14: 鲁桥建设
A15: 13 | B15: 济南鑫进岩土工程有限公司 | C15: 山东省济南市槐荫区槐荫南街8号槐荫市场一区133号 | D15: 万建玲 | E15: 780 | F15: 91370104MA3MPFE41L | G15: 施工劳务不分等级D337175964 | H15: （鲁）JZ安许证字 〔2019〕012313 | I15: 潍日高速公路潍坊连接线\京台二标 | J15: 路基土石方 | K15: 裴强 | L15: 13705364851 | M15: 赵永杰 | N15: A | O15: 路桥集团
A16: 14 | B16: 山东润豪建设工程有限公司 | C16: 济南市市中区英雄山路221号 | D16: 李吉敏 | E16: 2000 | F16: 913701035625065563 | G16: 证书编号： D237023728 地基基础工程专业承包贰级 | H16: （鲁）JZ安许证字 【2013】011259-02 | I16: 济南至泰安高速公路/京台四标 | J16: 加固土桩/路基工程 | K16: 邢建堂/陈孝俭 | L16: 13256189588/13964079718 | M16: 屈庆勋/苏子龙 | N16: A | O16: 路桥集团
A17: 15 | B17: 定陶县通源路桥工程有限公司 | C17: 定陶县青年南路A段154号(水务局院内) | D17: 何有军 | E17: 1005 | F17: 913717277710484326 | G17: 建筑业企业资质、公路工程施工总承包三级 、D337068763 | H17: （鲁）JZ安许证字 〔2016〕180962-02 | I17: 国高青兰线泰安到东阿界第一合同段二分部\省道315线蜂场至尼勒克段公路工程第FN-1标段 | J17: 路基工程 | K17: 王锦林 | L17: 13287811838 | M17: 刘顶顶 | N17: A | O17: 路桥集团
A18: 16 | B18: 山东德正公路工程有限公司 | C18: 山东省济南市历下区文化东路 | D18: 赵雪红 | E18: 1000 | F18: 91370102684670100F | G18: 建筑工程施工总承包叁级；D337155336 | H18: （鲁）JZ安许证字 ﹝2018﹞012070-01 | I18: 文莱项目四合同 | J18: 路基土石方施工 | K18: 赵吉海 | L18: 13734426567 | M18: 王艳娇 | N18: A | O18: 路桥集团
C19: 山东省济南市历下区 | D19: 赵雪红 | E19: 1000 | F19: 91370102684670100F | G19: 建筑工程施工总承包叁级，市政公用工程施工总承包叁级；证书编号：D337155336 | H19: (鲁）JZ安许证字[2018]012070 | I19: 京台三标/330项目/济微高速济宁段 | J19: 路基工程/软基工程 | K19: 周铜/武剑峰/刘庆民 | L19: 18863882009/18663237168 | M19: 张新伟 | N19: A | O19: 公路桥梁
A20: 17 | B20: 沧州金地市政工程有限公司 | C20: 海兴县海政路西段道南 | D20: 褚俊忠 | E20: 4000 | F20: 9113092457284142XY | G20: 市政公用工程施工总承包贰级 D213111089 | H20: (冀)JZ安许证字 〔2011〕005170-1/2 | I20: 京台二标 | J20: 路基土石方工程施工 | K20: 崔建新 | L20: 15550252378 | M20: 刘铭磬 | N20: A | O20: 路桥集团
A21: 18 | B21: 福建省福清市龙金建筑劳务有限公司 | C21: 福建省福州市福清市高山镇岑下村后地72号 | D21: 刘存金 | E21: 1000 | F21: 91350181MA34A1PB2L | G21: 施工劳务不分等级D335109220 | H21: (闽)JZ安许证字[2018]FQ0061 | I21: 武平PPP项目 | J21: 路基工程、涵洞工程、附属工程 | K21: 刘常仁 | L21: 13859565508 | M21: 吴庆龙 | N21: A | O21: 路桥集团
A22: 19 | B22: 山东兴源市政园林工程有限公司 | C22: 临朐县新华路西首138号 | D22: 李玉卫 | E22: 2000 | F22: 91370724724256108 | G22: 市政公用工程施工总承包叁级 D33709775 | H22: 鲁JZ安许证字 ﹝2014﹞07-0070 | I22: 文莱项目五合同 | J22: 路基土石方施工 | K22: 张效升 | L22: 13964639979 | M22: 王艳娇 | N22: A | O22: 路桥集团
A23: 20 | B23: 山东枣建建设集团有限公司 | C23: 山东省枣庄市市中区文化西路 | D23: 刘皓 | E23: 30000 | F23: 91510100MA61TNKM7Q | G23: D351526790 | H23: （鲁）JZ安许证字[2005}040001-02 | I23: 京沪改扩建 | J23: 路基土石方 | K23: 王奔 | L23: 13287749999 | M23: 董新星 | N23: A | O23: 路桥集团
A24: 21 | B24: 山东名泰市政工程有限公司 | C24: 山东省济南市槐荫区经十路28988号乐梦中心1号楼2001室 | D24: 霍胜雨 | E24: 2000 | F24: 913701043068300157 | G24: 施工劳务不分等级D337144902 | H24: (鲁)JZ安许证字 〔2015〕011666-01 | I24: 京台二标\潍日高速公路潍坊连接线 | J24: 路基土石方工程施工 | K24: 尚佳伟 | L24: 18753736666 | M24: 刘铭磬 | N24: A | O24: 路桥集团
A25: 22 | B25: 济宁市华兴路桥工程有限责任公司 | C25: 济宁市太白中路75号（五交化商场4楼） | D25: 扈东青 | E25: 4000 | F25: 913708115965589528 | G25: 市政公用工程施工总承包贰级；D237035830 | H25: （鲁）JZ安许证字 〔2019〕081284 | I25: 新台项目/枣菏项目 | J25: 路基土石方及涵洞工程/J型防护（锚杆格梁护坡) | K25: 于涛/王利占 | L25: 13953735555/0537-2346555 | M25: 王少文/李阳 | N25: A | O25: 公路桥梁
C26: 济宁市太白中路75号 | D26: 扈东青/于涛 | E26: 4000 | F26: 913708115965589000 | G26: 市政公用工程施工总承包贰级D237035830 | H26: （鲁）JZ安许证字 〔2014〕08-0060 | I26: 京台五标三分部/京台五标一分部 | J26: 路基土石方工程 | K26: 于雷 | L26: 15854715555 | M26: 韩园园/邴召建 | N26: A | O26: 鲁桥建设
A27: 23 | B27: 福建汕鑫建设工程有限公司 | C27: 福建省福州保税港区加工贸易区监管大楼附属楼2层207室475区间（福清市新厝镇新江路9号）（自贸试验区内） | D27: 张国谅 | E27: 6600 | F27: 91350100MA32CN9185 | G27: 施工劳务不分等级、D235153053 | H27: （闽）JZ安许证字 【2019】FZ0205 | I27: 漳浦县公路建设改造工程 | J27: 前亭线路基土石方（K5+068.5-K6+626.1） | K27: 张国谅 | L27: 13960926624 | M27: 果加民 | N27: A | O27: 路桥集团
A28: 24 | B28: 山东鲁达路桥工程有限公司 | C28: 山东省菏泽市巨野县麒麟大道 | D28: 陈成银 | E28: 1000 | F28: 91371724349089829A | G28: 施工劳务不分等级D337157452 | H28: （鲁）JZ安许证字[2017]170537 | I28: 济微高速济宁段/京台三/新台项目 | J28: 路基工程/防护排水 | K28: 陈成银/陈彭飞 | L28: 18253086669/18253086669 | M28: 刘继文/王少文 | N28: A | O28: 公路桥梁
A29: 25 | B29: 江苏兆宝路桥劳务有限公司 | C29: 镇江市润州区长江路293号朗香园11幢第2层203室 | D29: 朱先国 | E29: 1000 | F29: 91321183MA1XTFA01E | G29: 施工劳务不分等级；D332237442 | H29: (苏)JZ安许证字[2019]002804 | I29: 新台项目/济微高速济宁段 | J29: 路基土石方及涵洞工程 | K29: 朱先国 | L29: 15996806038 | M29: 王少文/刘继文 | N29: A | O29: 公路桥梁
A30: 26 | B30: 山东鸿林工程技术有限公司 | C30: 济南高新区舜风路齐鲁文化创意基地15号楼 | D30: 彭广伟 | E30: 1050 | F30: 91370000749885111L | G30: 市政总承包叁级 D337097915 | H30: （鲁）JZ安许证字 〔2018〕012109 | I30: 枣菏项目 | J30: 绿化工程 | K30: 孙志成 | L30: 15376688628 | M30: 李阳 | N30: A | O30: 公路桥梁
A31: 27 | B31: 山东罗麦市政工程有限公司 | C31: 山东省济宁市任城区中德广场E座1717房间 | D31: 李启彬 | E31: 1200 | F31: 91370800MA3ELP2R11 | G31: 建筑业市政公用工程施工总承包三级：D337192554 | H31: (鲁)JZ安许证字 〔2019〕081232-02 | I31: 济微高速济宁段 | J31: 路基工程 | K31: 李启斌 | L31: 15506370637 | M31: 刘继文 | N31: B | O31: 公路桥梁
C32: 济宁市任城区市场监督管理局 | D32: 李启彬 | E32: 6000 | F32: 91370800MA3ELP2R11 | G32: D337192554 建筑业建筑工程施工总承包三级 | H32: （鲁）JZ安许证字 〔2019〕081232 | I32: 京台四标 | J32: K549+380-K552+432段落内路基土石方工程，作业范围按劳务情况具体以承包人划定的实际工作范围为准；内容为路基土石方工程施工及完成该项施工所需的一切附属性工作。 | K32: 李启彬 | L32: 15506370637 | M32: 屈庆勋 | N32: B | O32: 路桥集团
A33: 28 | B33: 济南鹏飞路桥养护有限公司 | C33: 山东省济南市市中区玉函路35号 | D33: 彭绍江 | E33: 500 | F33: 913701035822 021000 | G33: 公路路面工程专业承包叁级 D336123131 | H33: （鲁）JZ安许证字 【2017】05310003 | I33: 济青改扩建六标 | J33: 路基防护、路基路面排水工程 | K33: 彭绍江 | L33: 18853176969 | M33: 邱继旭 | N33: B | O33: 鲁桥建设
A34: 29 | B34: 山东鹤伴市政工程有限公司 | C34: 山东省滨州市邹平县西董街道办事处宿舍区二栋 | D34: 娄复明 | E34: 1300 | F34: 91371626MA3C6PFJ56 | G34: 市政公用工程施工总承包叁级 D337002456 | H34: （鲁）JZ安许证字 〔2020〕160725 | I34: 济青改扩建六标 | J34: 路基土方 | K34: 娄复明 | L34: 13854300328 | M34: 赵越 | N34: B | O34: 鲁桥建设
A35: 30 | B35: 山东子一建筑工程有限公司 | C35: 山东省济南市历城区荷花路街道付家庄村 | D35: 张强 | E35: 501 | F35: 91370112307121480U | G35: 建筑业地基基础工程专业承包三级、D337188998 | H35: （鲁）JZ安许证字 〔2020〕012795 | I35: 济青改扩建六标 | J35: 施工便道 | K35: 张强 | L35: 18553185555 | M35: 闫胜国 | N35: B | O35: 鲁桥建设
A36: 31 | B36: 三山爆破工程有限公司 | C36: 山东省烟台市芝罘区北大街53号 | D36: 李和利 | E36: 5012 | F36: 9137060072495028XB | G36: 爆破贰级；3700001300274 | H36: （鲁）JZ安许证字 【2005】060268-01 | I36: 莱泰四标 | J36: 路基土石方 | K36: 王珂 | L36: 18663857346 | M36: 宋劲松 | N36: B | O36: 路桥集团
A37: 32 | B37: 河南华润精创建设工程有限公司 | C37: 沁阳市紫陵镇窑头村 | D37: 王迎伏 | E37: 1200 | F37: 91410882337194883C | G37: 建筑工程施工总承包叁级、D341058718 | H37: （豫）JZ安许证字 【2016】070893-02 | I37: 泸黄项目/京台三标 | J37: 路基工程 | K37: 郜建民 | L37: 18909313102 | M37: 李霞/张新伟 | N37: B | O37: 公路桥梁
A38: 33 | B38: 新泰市万泰路桥工程有限公司 | C38: =VLOOKUP($B38,[1]劳务单位汇总表!$C$4:$AD$58,3,0) -> 新泰市市场监督管理局 | D38: =VLOOKUP($B38,[1]劳务单位汇总表!$C$4:$AD$58,15,0) -> 李超 | E38: =VLOOKUP($B38,[1]劳务单位汇总表!$C$4:$AD$58,11,0) -> 500 | F38: =VLOOKUP($B38,[1]劳务单位汇总表!$C$4:$AD$58,2,0) -> 9137098232850910X1 | G38: =VLOOKUP($B38,[1]劳务单位汇总表!$C$4:$AD$58,8,0)&VLOOKUP($B38,[1]劳务单位汇总表!$C$4:$AD$58,7,0) -> D33720039建筑业施工劳务不分等级 | H38: （鲁）JZ安许证字 〔2019〕090812 | I38: 京台四标/京沪/文莱五/新台\国高青兰线泰安到东阿界第一合同段二分部 | J38: 路基工程\防护排水工程 | K38: 李超/李宗柱 | L38: 15163837866/18754821377 | M38: 屈庆勋/董新星/王艳娇/刘杰 | N38: B | O38: 路桥集团
A39: 34 | B39: 山东安泰工程有限公司 | C39: 临沂市金雀山一路155号 | D39: 任艺晨 | E39: 5560 | F39: 913713006139933326 | G39: 水利水电工程施工总承包贰级、公路路基工程专业承包贰级、公路路面工程专业承包贰级DW237104669 | H39: （鲁）JZ安许证字 【2017】180243-02 | I39: 资阳项目 | J39: 路基土石方及综合管廊明挖段工程 | K39: 孙杰 | L39: 15689579961 | M39: 熊桓 | N39: B | O39: 鲁桥建设
C40: 山东省临沂市金雀山一路155号 | D40: 任艺晨 | E40: 5560 | F40: 913713006139933326 4-1 | G40: 公路路基工程专业承包贰级；DW237104669 | H40: （鲁）JZ安许证字 【2017】180243-02 | I40: 新台项目 | J40: 路基土石方及涵洞工程 | K40: 董先国 | L40: 18350997872 | M40: 王少文 | N40: B | O40: 公路桥梁
A41: 35 | B41: 新疆融盛达建筑工程有限公司 | C41: 新疆乌鲁木齐市乌鲁木齐县水西沟镇庙尔沟村南溪南路101号 | D41: 丁淑兰 | E41: 1000 | F41: 91650121693413157L | G41: 建筑工程施工总承包叁级 | H41: (新)JZ安许证字[2018]004386 | I41: 省道315线蜂场至尼勒克段公路工程第FN-1标段 | J41: 土石方工程 | K41: 胡晓慧 | L41: 13609921023 | M41: 纪永恒 | N41: B | O41: 路桥集团
A42: 36 | B42: 滕州市第四建筑安装工程有限公司 | C42: 滕州市龙泉路与青啤大道交汇处东路北、花卉市场东侧 | D42: 赵峰 | E42: 3114.6 | F42: 913704811699122400 | G42: 建筑业建筑工程施工总承包二级;建筑业建筑装修装饰工程专业承包二级D237022726 | H42: (鲁）JZ安许证字[2005]040019 | I42: 京台五标二分部 | J42: 土方挖运工程 | K42: 梁辉 | L42: 18663066189 | M42: 周丰禄 | N42: B | O42: 鲁桥建设
A43: 37 | B43: 泗洪县交通工程处 | C43: 泗洪县泗州西大街40号 | D43: 陈刚 | E43: 1419 | F43: 91321324839890168C | G43: 公路工程施工总承包叁级 公路路面工程专业承包叁级 公路路基工程专业承包叁级D332013688 | H43: （苏）JZ安许证[2005]170103-1 | I43: 330项目 | J43: 路基工程9标 | K43: 孙奎 | L43: 15161231528 | M43: 施晓东 | N43: B | O43: 公路桥梁
A44: 38 | B44: 江苏宝隆建设工程有限公司 | C44: 连云港市赣榆区柘汪镇临港产业区 | D44: 瞿波 | E44: 5016 | F44: 91320707672523680L | G44: 市政公用工程施工总承包贰级，D232095023 | H44: (苏)JZ安许证字[2009]070002-6 | I44: 长深高速高青至广饶段工程 | J44: 路基土石方工程 | K44: 瞿波 | L44: 17751682092 | M44: 范伟 | N44: B | O44: 路桥集团
A45: 39 | B45: 山东恒正建设集团有限公司 | C45: 费县城东工业园玉泉路 | D45: 王发强 | E45: 5118 | F45: 913713257687477000 | G45: 建筑业建筑工程施工总承包二级 、建筑业建筑装修装饰工程专业承包二级 建筑业市政公用工程施工总承包二级 | H45: （鲁）JZ安许证字 〔2005〕180077 | I45: 鲁南高铁LQTJ-3标项目 | J45: 基床表层、基底清理、附属土方、附属石方、过轨管、路基间横向排水、盲沟、盲沟检查井、集水井、小型构件运输、电缆槽电缆槽盖板、路基护肩、路基H型钢立柱、声屏障、防护栅栏刺丝滚笼、桥下金属防护栅栏、接触网基础绿化槽、空心砖安装、限高防护架、混凝土防撞护栏、路基防护栅栏等施工内容。 | K45: 吴兆勇 | L45: 15853778886 | M45: 何华 | N45: B | O45: 路桥集团
A46: 40 | B46: 宜昌城堡建设有限公司 | C46: 宜昌市夷陵区东城试验区润城社区发展大道99号 | D46: 田勇 | E46: 6000 | F46: 914205067881532392 | G46: D342017333 | H46: （鄂）JZ安许证字 〔2006〕003589-1/2 | I46: 兴山项目 | J46: 包括路基清表、路基挖土石方、利用土石方、特殊路基处理、边沟、排水沟、截水沟、边坡防护、挡土墙、台背回填、涵洞施工等 | K46: 董果 | L46: 18678761205 | M46: 刘周欣 | N46: B | O46: 路桥集团
A47: 41 | B47: 沂南县力学路桥工程有限公司 | C47: 临沂市沂南县 | D47: 聂立学 | E47: 100 | F47: 91371321MA3MP9YK34 | G47: 公路工程施工总承包叁级 D337079548 | H47: 鲁JZ安许证字[2018]080052 | I47: 济青改扩建六标 | J47: 路基土方 | K47: 聂立学 | L47: 13355026277 | M47: 李和平 | N47: B | O47: 鲁桥建设
A48: 42 | B48: 江苏玉磊建设工程有限公司 | C48: 泗洪县车门乡重峰路88号 | D48: 李道军 | E48: 5188 | F48: 91321324565260491F | G48: 房屋建筑施工总承包二级等D232008821 | H48: （苏）JZ安许证[2013]133012 | I48: 330项目 | J48: 路基工程1、3标 | K48: 周兆 | L48: 13773956959 | M48: 苏栋 | N48: B | O48: 公路桥梁
A49: 43 | B49: 山东益通安装有限公司 | C49: 肥城市孙伯大街34号 | D49: 雷印智 | E49: 10000 | F49: 91370983166602749W | G49: 消防设施工程专业承包壹级 建筑机电安装工程专业承包壹级 石油化工工程施工总承包贰级 市政公用工程施工总承包贰级 电子与智能化工程专业承包贰级 防水防腐保温工程专业承包贰级 建筑装修装饰工程专业承包贰级 建筑幕墙工程专业承包贰级D237063644 | H49: 【鲁】JZ安许证字[2005]090006-01 | I49: 京台五标三分部 | J49: 路基土石方工程 | K49: 陈学民 | L49: 13954100003 | M49: 韩园园 | N49: B | O49: 鲁桥建设
C50: 山东省泰安市肥城市孙伯大街 | D50: 雷印智 | E50: 10000 | F50: 91370983166602749W | G50: D337063641 | H50: （鲁）JZ安许证字[2005}090006-01 | I50: 京沪改扩建 | J50: 路基土石方 | K50: 王虎 | L50: 18353866666 | M50: 董新星 | N50: B | O50: 路桥集团
A51: 44 | B51: 攀枝花开云公路工程有限公司 | C51: 四川省攀枝花市东区新源路558 | D51: 宋传利 | E51: 1200 | F51: 91510400MA65HDUP68 | G51: 市政公用工程施工总承包叁级；D351760972 | H51: （川）JZ安许证字 ﹝2018﹞002996 | I51: 文莱项目四合同\莱泰四标 | J51: 路基土石方施工 | K51: 郑术军 | L51: 13287099339 | M51: 王艳娇 | N51: B | O51: 路桥集团
C52: 四川省攀枝花市东区新源路558附2-4号 | D52: 宋传利 | E52: 1200 | F52: 91510400MA65HDUP68 | G52: 市政公用工程施工总承包叁级 D351760972 | H52: （川）JZ安许证字 【2018】002996 | I52: 省道103线青神至五通桥段公路工程（乐山段）PPP项目 攀枝花PPP | J52: 103项目：K20+000-K21+200范围内路基清表、路基便道修筑与维护、路基挖方、路基填方、结构物基础开挖、台背回填、特殊地基处理施工等与此有关的劳务工作。 攀枝花PPP：便道施工工程路基土石方施工 | K52: 宋传利 | L52: 13255369869/ 13969350666 | M52: 李申伟/ 李忠林 | N52: B | O52: 鲁桥建设
C53: 四川省攀枝花市东区新源路558附2-4号 | D53: 宋传利 | E53: 1200 | F53: 91510400MA65HDUP68 | G53: 市政公用工程施工总承包叁级 | H53: （川）JZ安许证字[2018]002996 | I53: 宜宾快速路 | J53: 路基工程 | K53: 郑作前 | L53: 15154431292 | M53: 李申伟 | N53: B | O53: 公路桥梁
A54: 45 | B54: 山东昌源市政景观建设有限公司 | C54: 山东省潍坊市峡山区太保庄街道驻地峡瑞街005号 | D54: 倪强 | E54: 4000 | F54: 91370700791510583K | G54: 建筑业市政公用工程施工总承包贰级 | H54: （鲁）JZ安许证字 〔2011〕07-0056 | I54: 国道204拓宽改造项目 | J54: 路基施工 | K54: 王明忠 | L54: 13964798837 | M54: 丛磊 | N54: B | O54: 鲁桥建设
C55: 山东省潍坊市峡山区太保庄街道驻地峡瑞街005号 | D55: 倪强 | E55: 4000 | F55: 91370700791510583K | G55: 市政公用工程施工总承包贰级D237122075 | H55: （鲁）JZ安许证字[2011]07-0056 | I55: 潍日高速公路潍坊连接线 | J55: 路基土石方 | K55: 王延飞 | L55: 15866178156 | M55: 赵永杰 | N55: B | O55: 路桥集团
A56: 46 | B56: 沂水县顺达路桥工程有限公司 | C56: 沂水县健康路北中区（沂城供电所北邻） | D56: 李同江 | E56: 2015 | F56: 913713237563749347 | G56: 公路路面工程专业承包贰级、公路路基工程专业承包贰级、D237089708 | H56: （鲁）JZ安许证字 【2006】180543 | I56: 泸黄项目 | J56: 路基工程 | K56: 张兆明 | L56: 13573622077 | M56: 李霞 | N56: B | O56: 公路桥梁
A57: 47 | B57: 广东正一建设投资有限公司 | C57: 广州市白云区梅岗路1号大院201栋4楼A02房 | D57: 崔公文 | E57: 10800 | F57: 914401015740394732 | G57: 建筑工程施工总承包叁级 | H57: (粤)JZ 安许证字[2019]011671延 | I57: 河南省渑淅高速公路 | J57: K19+161.5-K23+640段人员设备进出场、修建养护临时便道、清理现场、拆除结构物、路基填方清表、路基填挖方、桥台台背回填、锥护坡填筑、路床处理、铺设土工格栅、灰土桩等路基土石方工程的实施、完成及维修期缺陷修复等 | K57: 李延强 | L57: 18638801532 | M57: 潘鑫达 | N57: B | O57: 路桥集团
A58: 48 | B58: 山东冠泉市政工程有限公司 | C58: 山东省济南市槐荫区经四路681号 | D58: 林宪涛 | E58: 4000万元 | F58: 91370104307169695x | G58: D337084301 | H58: （鲁）JZ安许可证字（2016）01-0134 | I58: 莱泰四标 | J58: 路基土石方 | K58: 高伟 | L58: 15163728999 | M58: 宋劲松 | N58: B | O58: 路桥集团
A59: 49 | B59: 山东亿邦建设工程有限公司 | C59: 枣庄市滕州市南沙河镇北古石村 | D59: 崔增 | E59: 6058 | F59: 91370481798695576N | G59: 证书编号：D237044656 建筑工程施工总承包贰级； 市政公用工程施工总承包贰级； 电子与智能化工程专业承包贰级； 防腐防水保温工程专业承包贰级； 建筑机电安装工程专业承包贰级； 环保工程专业承包贰级； | H59: （鲁）JZ安许证字 【2014】04-0028 | I59: 济南至泰安高速公路 | J59: 路基工程 | K59: 李恒 | L59: 15854173117 | M59: 苏子龙 | N59: B | O59: 路桥集团
A60: 50 | B60: 枣庄市政通路桥工程建设有限公司 | C60: 枣庄市光明大道S4088号 | D60: 石其龙 | E60: 600 | F60: 91370400053437521U | G60: 市政公用工程施工 总承包叁级 | H60: （鲁）JZ安许证字 〔2014〕04-0024 | I60: 莱泰四标 | J60: 路基土石方 | K60: 张知彬 | L60: 13605488579 | M60: 宋劲松 | N60: B | O60: 路桥集团
A61: 51 | B61: 山东永福建设集团有限公司 | C61: 枣庄市市中区兴华路28号 | D61: 乔森 | E61: 10006 | F61: 91370400782319920B | G61: 建筑业市政公用工程施工总承包三级 D3377022563 | H61: （鲁）JZ安许证字 〔2006〕040202 | I61: 京台五标二分部 | J61: 土方挖运工程 | K61: 张维伟 | L61: 13371125599 | M61: 周丰禄 | N61: B | O61: 鲁桥建设
A62: 52 | B62: 宏大同德生态建设发展股份有限公司 | C62: 枣庄高新区泰山北路2999号 | D62: 王洪强 | E62: 5000 | F62: ’913704007657613111 | G62: 建筑业市政公用工程施工总承包三级D337106048 | H62: （鲁）JZ安许证字 〔2018〕040521 | I62: 京台五标二分部 | J62: 便道工程 | K62: 李立 | L62: 13806325817 | M62: 周丰禄 | N62: B | O62: 鲁桥建设
A63: 53 | B63: 济南兆晖建筑劳务有限公司 | C63: 济南市商河县 | D63: 卢红春 | E63: 60 | F63: 91370126MA3P43ND88 | G63: 施工劳务不分等级，D337403306 | H63: （鲁）JZ安许证字 〔2019〕160443 | I63: 济青改扩建六标 | J63: 路基路面排水、安全设施工程 | K63: 王荣峰 | L63: 15020823448 | M63: 李和平 | N63: B | O63: 鲁桥建设
A64: 54 | B64: 江苏万康建设工程有限公司 | C64: 江苏省邳州市长江路南侧中汇汽车城D-007# | D64: 甄现青 | E64: 4088 | F64: 91320300566892685C | G64: 建筑工程施工总承包贰级 钢结构工程专业承包贰级D232153452 | H64: （苏）JZ安许证[2012]030059 | I64: 330项目 | J64: 路基防护及排水工程 | K64: 李飞翔 | L64: 15862295323 | M64: 苏栋 | N64: B | O64: 公路桥梁
A65: 55 | B65: 江苏华旭建筑安装工程有限公司 | C65: 江苏省沛县张庄镇徐海路西 | D65: 李龙潭 | E65: 2000 | F65: 91320322776884739L | G65: 建筑工程施工总承包贰级D232046823 | H65: （苏）JZ安许证[2005]030321 | I65: 330项目 | J65: 路基防护及排水工程 | K65: 徐小未 | L65: 15862295323 | M65: 苏栋 | N65: B | O65: 公路桥梁
A66: 56 | B66: 宿迁市远恒建设工程有限公司 | C66: 宿迁市经济开发区发展大道599号新上海大世界14栋 | D66: 吴鹏 | E66: 2088 | F66: 913213910877014820 | G66: 建筑工程施工总承包贰级D332008328 | H66: （苏）JZ安许证[2015]130010 | I66: 330项目 | J66: 路基防护及排水工程 | K66: 倪绍明 | L66: 81881857 | M66: 简晓辉 | N66: B | O66: 公路桥梁
A67: 57 | B67: 四川景琰建设工程有限公司 | C67: 中国（四川）自由贸易试验区成都高新区天府四街66号2栋11层3号 | D67: 孙湖 | E67: 1000 | F67: 91510100MA6CPHM600 | G67: 施工劳务施工劳务不分等级/D351658095 | H67: （川）JZ安许字 [2017]005182 | I67: 内江项目 | J67: 路基土石方工程 | K67: 孙湖 | L67: 15196722222 | M67: 李豪 | N67: B | O67: 公路桥梁
A68: 58 | B68: 巨野鼎筑路桥工程有限公司 | C68: 山东省菏泽市巨野县麒麟大道西段路北 | D68: 陈彭飞 | E68: 1000 | F68: 91371724326217947M | G68: 建筑业施工劳务不分等级D337197520 | H68: （鲁）JZ安许证字 〔2019〕170890 | I68: 巨单项目\京沪改扩建/河南渑淅/文莱五/京台四/31009 | J68: 防护排水/桥梁下部及涵洞 | K68: 陈彭飞/李加捕/陈成才 | L68: 18253086669/18653055557/15550676000 | M68: 董新星/潘鑫达/王艳娇/屈庆勋/林森林 | N68: B | O68: 路桥集团
A69: 59 | B69: 济宁兴发公路工程有限公司 | C69: 山东省济宁市嘉祥县吉祥路北洪山社区商业4号楼1单元1-109门市 | D69: 付灿灿 | E69: 4600万元 | F69: 913708297061029145 | G69: D237095892 | H69: （鲁）JZ安许证字 【2019】081170-01 | I69: 莱泰四标\巨单项目 | J69: 路基土石方 | K69: 王兴凯 | L69: 15206740365 | M69: 宋劲松 | N69: B | O69: 路桥集团
A70: 60 | B70: 乐山泓胜建筑工程有限公司 | C70: 乐山市市中区碧山路2688号1幢9层 | D70: 汪祺 | E70: 4068 | F70: 9151 11003234179866 | G70: D251655316 建筑工程施工总承包二级 地基基础工程专业承包二级 起重设备安装工程专业承包二级 消防设施工程专业承包二级 防水防腐保温工程专业承包二级 建筑装修装饰工程专业承包二级 古建筑工程专业承包二级 特种工程专业承包不分等级 D351483511 公路工程施工总承包三级 市政公用工程施工总承包三级 钢结构工程专业承包三级 施工劳务不分等级 | H70: （川）JZ安许证字 【2016】OL1020 | I70: 乐自高速乐山大佛收费站及九峰连接线提升改造工程/通江互通AK0+288-344段右侧 边坡处治工程 | J70: 大佛加宽：挡土墙浇筑、墙背回填砂砾石、M10浆砌片石封底、混凝土边沟、沟道盖板、人行道梯步、人行道板预制安装、涵洞加长、人行道横向排水 通江抢险：抗滑桩、挡土板预制安装、锚杆、主动防护、边坡绿化、边沟恢复、路面恢复、路肩恢复、标线等 | K70: 张明昌 | L70: 18784590086 | M70: 高超 | N70: B | O70: 鲁桥建设
A71: 61 | B71: 四川志虹建筑工程有限公司 | C71: 四川省资阳市雁江区雁北路177号1栋16 | D71: 饶云忠 | E71: 10000 | F71: 915120006991676470 | G71: 建筑工程施工总承包壹级D151036405 | H71: （川）JZ安许证字 【2012】000680 | I71: 资阳项目 | J71: 路基土石方工程 | K71: 刘君 | L71: 13778494040 | M71: 熊桓 | N71: B | O71: 鲁桥建设
A72: 62 | B72: 山东平晟建筑劳务有限公司 | C72: 济南市市中区 | D72: 范云云 | E72: 1000 | F72: 91370103MA3CGF8A46 | G72: 施工劳务不分等级 D337150458 | H72: （鲁）JZ安许证字 〔2017〕011869 | I72: 济青改扩建六标 | J72: 路基防护、预制块安装、顺路、顺沟、边沟、排水沟、急流槽、小型预制构件运输 | K72: 察时领 | L72: 13075315788 | M72: 李和平 | N72: B | O72: 鲁桥建设
A73: 63 | B73: 山东黄河建工有限公司 | C73: 县城高苑路23号 | D73: 袁力 | E73: 13762 | F73: 91370322267159504H | G73: D137059397 | H73: （鲁）JZ安许证字[2014}030589-05 | I73: 京沪改扩建 | J73: 防护工程 | K73: 袁力 | L73: 13969348222 | M73: 董新星 | N73: B | O73: 路桥集团
A74: 64 | B74: 山东润泽建设工程有限公司 | C74: 济南市历城区柳埠镇杜家村25号 | D74: 乔战军 | E74: 1300 | F74: 91370112688262104G | G74: 证书编号：D337014379 地基基础工程专业承包叁级； 证书编号： B2024037011221-2/1 土石方工程专业承包贰级； | H74: （鲁）JZ安许证字 【2015】011082-01 | I74: 济南至泰安高速公路 | J74: 路基工程 | K74: 张华 | L74: 13287749999 | M74: 苏子龙 | N74: B | O74: 路桥集团
A75: 65 | B75: 山东三路工程有限公司 | C75: 济南市市中区十六里河镇万寿路14号 | D75: 翟祥富 | E75: 2010 | F75: 913701031634143554 | G75: 证书编号： D237081180 市政公用工程施工总承包贰级； | H75: （鲁）JZ安许证字 【2014】01-0094 | I75: 济南至泰安高速公路 | J75: 路基工程 | K75: 张富荣 | L75: 15063366444 | M75: 苏子龙 | N75: B | O75: 路桥集团
A76: 66 | B76: 山东致远公路工程有限公司 | C76: 山东省泰安市东平县彭集街道滨河新区通渠街南侧 | D76: 卢静 | E76: 1000 | F76: 91370923577787098L | G76: 公路工程施工总承包叁级 公路路面工程专业承包参级 公路路基程专业承包级 D337035387 | H76: (鲁)JZ安许证字 〔2015〕181192-01 | I76: 京台二标 | J76: 管桩工程施工/路基土石方工程施工 | K76: 苏宪权 | L76: 18764861777 | M76: 刘铭磬 | N76: B | O76: 路桥集团
A77: 67 | B77: 攀枝花昊德建筑工程有限公司 | C77: 四川省攀枝花市东区新源路558附2-4 | D77: 都文彬 | E77: 1200 | F77: 91510400MA68X9AW5H | G77: 市政公用工程施工总承包叁级D351815061 | H77: (川）JZ安许证字[2018]007769 | I77: 京台五标三分部/国道204拓宽改造项目 | J77: 路基土石方工程 | K77: 都文彬/刘云涛 | L77: 13356939777 | M77: 韩园园 | N77: B | O77: 鲁桥建设
A78: 68 | B78: 宿迁广建建设有限公司 | C78: 宿迁市运河路33号 | D78: 王家永 | E78: 2000 | F78: 913213005713921917（2/2） | G78: 建筑工程施工总承包叁级 市政公用工程施工总承包叁级D332029302 | H78: （苏）JZ安许证[2012]130003 | I78: 330项目 | J78: 路基防护及排水工程 | K78: 王传兵 | L78: 0527-82990679 | M78: 苏栋 | N78: B | O78: 公路桥梁
A79: 69 | B79: 山东左氏建设集团有限公司 | C79: 山东临沂罗庄区 | D79: 马保义 | E79: 1000 | F79: 91371300493279643Y | G79: 市政公用工程施工总承包叁级D337175796 | H79: (鲁）JZ安许证字 【2018】140894-02 | I79: 临沂项目 | J79: 摊铺水稳 | K79: 赵鸿 | L79: 13375680808 | M79: 栾志民 | N79: B | O79: 齐鲁建设
A80: 70 | B80: 临沂市裕润工程有限公司 | C80: =VLOOKUP($B80,[1]劳务单位汇总表!$C$4:$AD$58,3,0) -> 蒙阴县市场监督管理局 | D80: =VLOOKUP($B80,[1]劳务单位汇总表!$C$4:$AD$58,15,0) -> 石少军 | E80: =VLOOKUP($B80,[1]劳务单位汇总表!$C$4:$AD$58,11,0) -> 2000 | F80: =VLOOKUP($B80,[1]劳务单位汇总表!$C$4:$AD$58,2,0) -> 91371328493481905P | G80: =VLOOKUP($B80,[1]劳务单位汇总表!$C$4:$AD$58,8,0)&VLOOKUP($B80,[1]劳务单位汇总表!$C$4:$AD$58,7,0) -> D337199016建筑业施工劳务不分等级 | H80: =VLOOKUP($B80,[1]劳务单位汇总表!$C$4:$AD$58,13,0) -> （鲁）JZ安许证字〔2018〕140817 | I80: 京台四标 | J80: 主动防护网 | K80: =VLOOKUP($B80,[1]劳务单位汇总表!$C$4:$AD$58,21,0) -> 石少军 | L80: =VLOOKUP($B80,[1]劳务单位汇总表!$C$4:$AD$58,23,0) -> 15376027199 | M80: 屈庆勋 | N80: B | O80: 路桥集团
A81: 71 | B81: 福建日上建设工程有限公司 | C81: 福建省漳州高新区科技城物联网示范园 | D81: 蔡圳斌 | E81: 1200 | F81: 91350600070850449U | G81: 施工劳务不分等级、D335009963 | H81: （闽）JZ安许证字 【2015】ZZ0016-1 | I81: 漳浦县公路建设改造工程 | J81: 坂旧线路基土石方 | K81: 陈绍斌 | L81: 15260178028 | M81: 果加民 | N81: B | O81: 路桥集团
A82: 72 | B82: 乳山市恒基建筑工程有限公司 | C82: 乳山市北环路53号 | D82: 赵新刚 | E82: 2000 | F82: 9137108377630284XW | G82: 建筑工程施工总承包贰级 D237004143 | H82: 鲁JZ安许证字 ﹝2008﹞100405-02 | I82: 文莱项目五合同 | J82: 路基土石方施工 | K82: 胡新建 | L82: 13964639979 | M82: 王艳娇 | N82: B | O82: 路桥集团
A83: 73 | B83: 乳山益正公路工程有限公司 | C83: 山东省威海市乳山市东山路南首 | D83: 张旭 | E83: 3000 | F83: 91371083699693292C | G83: 公路工程施工总承包贰级；D237004248 | H83: （鲁）JZ安许证字 ﹝2011﹞180868-01 | I83: 文莱项目四合同 | J83: 路基土石方施工 | K83: 吴帅 | L83: 15065109019 | M83: 王艳娇 | N83: B | O83: 路桥集团
A84: 74 | B84: 山东寅烽建筑工程有限公司 | C84: 济南市历下区文化东路23号 | D84: 周登银 | E84: 5000 | F84: 91370102754492267Y | G84: 证书编号：D337012729 建筑工程施工总承包叁级； 市政公用工程施工总承包叁级； 机电工程施工总承包叁级； 钢结构工程专业承包叁级； 建筑机电安装工程专业承包叁级； 模板脚手架专业承包不分等级； | H84: （鲁）JZ安许证字 【2011】011032-02 | I84: 济南至泰安高速公路 | J84: 路基工程 | K84: 张川 | L84: 15306446666 | M84: 苏子龙 | N84: B | O84: 路桥集团
C85: 济南市历城区 | D85: 周登银 | E85: 5000 | F85: 91370102754492267Y | G85: 建筑工程施工总承包叁级D337012729 | H85: （鲁）JZ安许证字 〔2011〕011032 | I85: 济青改扩建六标 | J85: 路基防护、预制块安装、顺路、顺沟、边沟、排水沟、急流槽、小型预制构件运输 | K85: 周金魁 | L85: 13688647567 | M85: 李和平 | N85: B | O85: 鲁桥建设
A86: 75 | B86: 山东运华建设集团有限公司（原山东运华市政工程有限公司） | C86: 巨野县经济技术开发区十二里庙村 | D86: 李兆阳 | E86: 1100 | F86: 913717245804489350 | G86: 市政公用工程施工总承包贰级 建筑工程施工总承包壹级D237059570 | H86: （鲁）JZ安许证字 〔2018〕170714 | I86: 巨单项目 | J86: 路基工程 | K86: 高瞻 | L86: 15764059666 | M86: 裴天宇 | N86: B | O86: 路桥集团
A87: 76 | B87: 四川新正路桥建设工程有限公司 | C87: 成都市高新区府城大道西段399号6栋1单元12、13、14号 | D87: 刘昌贵 | E87: 8000 | F87: 91510000068966768Y | G87: 公路工程施工总承包贰级、D251406462 | H87: （川）JZ安许证字 【2014】000950 | I87: 泸黄项目 | J87: 路基工程 | K87: 厍小平 | L87: 15181499625 | M87: 李霞 | N87: B | O87: 公路桥梁
A88: 77 | B88: 峨眉山市符汶建筑有限公司 | C88: 峨眉山市绥山镇白龙北路2号 | D88: 王文峥 | E88: 5260 | F88: 915111812074539390 | G88: 建筑工程施工总承包贰级；D251472210 | H88: (川)JZ安许证字[2005]001671 | I88: 成宜项目/内江项目 | J88: 涵洞工程/防护排水工程 | K88: 敖红军 | L88: 18683357077 | M88: 杨超越/李豪 | N88: B | O88: 公路桥梁
A89: 78 | B89: 四川省洲际建设有限公司 | C89: 四川省绵阳市梓潼县文昌镇翠云街东段155号 | D89: 范多聪 | E89: 5000 | F89: 91510107MA61TMYJ98 | G89: 公路工程施工总承包叁级；D351568838 | H89: (川)JZ安许证字[2016]002037 | I89: 成宜项目 | J89: 涵洞工程 | K89: 赵东升 | L89: 13608160070 | M89: 杨超越 | N89: B | O89: 公路桥梁
A90: 79 | B90: 山东博达建筑工程有限公司 | C90: 山东省济南市市中区南辛庄西路322号1-303室 | D90: 刘进泉 | E90: 800 | F90: 913701037535461553 | G90: 模板脚手架专业承包不分等级；D337023767 | H90: （鲁）JZ安许证字 ﹝2015﹞011537 | I90: 新台项目/济青二/京沪二标 | J90: 防护排水工程/桥梁附属/路基防护 | K90: 韩乃红 | L90: 15853178257 | M90: 王少文 | N90: B | O90: 公路桥梁
A91: 80 | B91: 山东元达建设工程有限公司 | C91: 菏泽市单县园艺办事处 | D91: 周则群 | E91: 5000 | F91: 9137172267550447701-1 | G91: 建筑工程施工总承包贰级；D237066060 | H91: JZ170316-01 | I91: 新台项目 | J91: 路面附属工程 | K91: 邢涛 | L91: / | M91: 王少文 | N91: B | O91: 公路桥梁
A92: 81 | B92: 四川旭洋建设工程有限公司 | C92: 成都市青羊区家园路8号1栋8层9号 | D92: 曹洋 | E92: 3500 | F92: 91510105MA6C9TDQ28 | G92: D351800575 公路工程施工总承包三级 公路路面工程专业承包三级 公路路基工程专业承包三级 施工劳务不分等级 | H92: （川）JZ安许证字 【2018】006355 | I92: 乐山至自贡高速公路LZ～7标段K53+502-K53+529左侧机耕道滑塌应急抢险处治工程/乐宜高速公路K736+350突发病害应急抢险处治工程/乐宜高速公路K734+900、K737+500突发病害应急抢险处治工程 | J92: 乐自抢险：土石方工程、嵌补工程、垫墩锚索、排水工程、防护工程、钢管桩、钢花管、恢复工程及安全布控等 737抢险：K62+170～K62+280路基加固、K64+766～K64+935挖方路段滑塌处治中土石方、钢管桩、抗滑桩（圆桩）、锚索及锚杆框架梁、仰斜式挡土墙、防护排水、硬路肩 736抢险：K63+200-K63+400挖方路段滑塌处治工程中土石方、抗滑桩（圆桩）、锚索及锚杆框架梁、仰斜式挡土墙、φ1.5m圆管涵、防护排水、硬路肩等 | K92: 张明昌 | L92: 18784590086 | M92: 高超 | N92: B | O92: 鲁桥建设
A93: 82 | B93: 厦门市盛璟建设工程有限公司 | C93: 厦门火炬高新区火炬园新丰二路8号（日华大厦）第三层F | D93: 周浩 | E93: 2000 | F93: 91350206MA2Y2DJM9F | G93: 施工劳务不分等级、D335096489 | H93: （闽）JZ安许证字 【2018】XM0015 | I93: 漳浦县公路建设改造工程 | J93: 前亭线路基土石方（K0+000-K4+551.5） | K93: 徐雪峰 | L93: 15880578889 | M93: 果加民 | N93: B | O93: 路桥集团
A94: 83 | B94: 山东鼎盛路桥有限公司 | C94: 山东省济宁市美恒济宁国际汽车博览城 | D94: 李庆泽 | E94: 1200 | F94: 91370811MA3CCU5U8H | G94: 建筑业市政公用工程施工总承包三级D337155142 | H94: （鲁）JZ安许证字 〔2017〕08-0131 | I94: 巨单项目 | J94: 路基工程 | K94: 岳彩月 | L94: 15725377777 | M94: 裴天宇 | N94: B | O94: 路桥集团
A95: 84 | B95: 山东基磊建筑劳务有限公司建筑工程有限公司 | C95: 汶上县次邱镇栓庄村 | D95: 马宗立 | E95: 1000 | F95: 91370830584538436Q | G95: D337060839 | H95: （鲁）JZ安许证字{2016}080811-01 | I95: 京沪改扩建 | J95: 路基土石方、防护工程 | K95: 李启彬 | L95: 15506370637 | M95: 董新星 | N95: B | O95: 路桥集团
A96: 85 | B96: 山东银建公路工程有限公司 | C96: 无棣县205国道以北、大济路以西铭仕汽车城办公楼 | D96: 殷建宁 | E96: 2000 | F96: 91371623760951255B | G96: 公路路基工程专业承包贰级；D237105786 | H96: 鲁JZ安许证字﹝2016﹞030366 | I96: 文莱项目五合同 | J96: 路基土石方施工 | K96: 王东升 | L96: 13356283819 | M96: 王艳娇 | N96: B | O96: 路桥集团
A97: 86 | B97: 伊犁德丰劳务有限责任公司 | C97: 新疆维吾尔自治区伊犁哈萨克自治州伊宁市 | D97: 闫宪东 | E97: 200 | F97: 91654002MA7765XY0M | G97: 施工劳务资质不分等级 | H97: (新)JZ安许证字[2016]03052 | I97: 省道315线蜂场至尼勒克段公路工程第FN-1标段 | J97: 土石方工程 | K97: 邓述仁 | L97: 13709998563 | M97: 纪永恒 | N97: B | O97: 路桥集团
A98: 87 | B98: 四川力嘉工程项目管理有限公司 | C98: 攀枝花市仁和区南山循环经济发展区橄榄坪园北路68号 | D98: 何蓉 | E98: 1000 | F98: 91510400590475515T | G98: 市政公用工程施工总承包三级 D351726620 | H98: （川）JZ安许证字 【2018】004699 | I98: 米易项目 | J98: 米易项目路基工程施工 | K98: 申婷婷 | L98: 15881258396 | M98: 李忠林 | N98: B | O98: 鲁桥建设
A99: 88 | B99: 山东昌舜岩土工程有限公司 | C99: 济南市天桥区泺安家园1号楼1-101室 | D99: 谭延华 | E99: 2000 | F99: 9137010572670981X6 | G99: 地基基础工程专业承包壹级 D237109249 | H99: （鲁）JZ安许证字(2011）011046 | I99: 胶州湾高速营海口周边道路综合提升工程 | J99: 钢板桩打入、拔出，内支撑安装、焊接、拆除 | K99: 刘宝国 | L99: 13395312738 | M99: 王浩 | N99: B | O99: 鲁桥建设
A100: 89 | B100: 成都华文建筑劳务有限公司 | C100: 成都市武侯区人民南路四段27号1栋2单元12楼5号 | D100: 郑利猛 | E100: 500 | F100: 91510107689010996N | G100: 施工劳务不分等级；D351545754 | H100: (川)JZ安许证字[2016]001276 | I100: 成宜项目/成宜路面 | J100: 路基、桥梁桩基、软基处治、梁板安装、临建工程/路面底基层、基层工程施工 | K100: 董彬 | L100: 13808080963 | M100: 杨超越 | N100: B | O100: 公路桥梁
A101: 90 | B101: 池州市江南市政公用工程有限公司 | C101: 安徽省池州市贵池区马衙街道办事处灵芝村 | D101: 刘玉华 | E101: 1001 | F101: 91341700069138577R（1-1） | G101: 公路工程施工承包叁级、市政公用工程施工总承包叁级，D334044536 | H101: （皖）JZ安许证字 【2016】001732-2-1 | I101: 京沪二标 | J101: 路基土石方（拼宽段），油锤破碎解小 | K101: 李国栋 | L101: 13856695271 | M101: 简晓辉 | N101: B | O101: 公路桥梁
A102: 91 | B102: 江苏永顺建设工程有限公司 | C102: 滨海县东坎镇坎涛路18号 | D102: 张勇 | E102: 2088 | F102: 91320922690759654E | G102: 地基基础工程专业承包叁级、市政公用工程施工总承包叁级，D332074230 | H102: (苏）JZ安许证字[2010]092005 | I102: 京沪二标/京台三标 | J102: 路基石方油锤破碎解小，路基土石方拼宽/路基工程 | K102: 陈志国 | L102: 18762534555 | M102: 简晓辉/张新伟 | N102: B | O102: 公路桥梁
A103: 92 | B103: 山东泉东建设工程有限公司 | C103: 济南市历城区董家镇机场路11496号 | D103: 邢道俊 | E103: 4120 | F103: 91370100X13216185D | G103: 市政公用工程施工总承包叁级，D337011091 | H103: （鲁）JZ安许证字 【2014】011465-01 | I103: 京沪二标 | J103: 路基土石方，路基防护，路基油锤破碎解小 | K103: 孟繁腾 | L103: 13335107866 | M103: 简晓辉 | N103: B | O103: 公路桥梁
A104: 93 | B104: 山东舜龙市政工程有限公司 | C104: =VLOOKUP($B104,[2]劳务单位汇总表!$C$4:$AD$58,3,0) -> 济南市长清区市场监督管理局 | D104: =VLOOKUP($B104,[2]劳务单位汇总表!$C$4:$AD$58,15,0) -> 宋文彬 | E104: =VLOOKUP($B104,[2]劳务单位汇总表!$C$4:$AD$58,11,0) -> 10000 | F104: =VLOOKUP($B104,[2]劳务单位汇总表!$C$4:$AD$58,2,0) -> 91370113MA3CC5MK6P | G104: =VLOOKUP($B104,[2]劳务单位汇总表!$C$4:$AD$58,8,0)&VLOOKUP($B104,[2]劳务单位汇总表!$C$4:$AD$58,7,0) -> D237143517建筑业市政公用工程施工总承包二级 | H104: =VLOOKUP($B104,[2]劳务单位汇总表!$C$4:$AD$58,13,0) -> （鲁）JZ安许证字〔2018〕012074 | I104: 京台四标 | J104: 预制小构件 | K104: =VLOOKUP($B104,[2]劳务单位汇总表!$C$4:$AD$58,21,0) -> 胡恩基 | L104: =VLOOKUP($B104,[2]劳务单位汇总表!$C$4:$AD$58,23,0) -> 13869114958 | M104: 屈庆勋 | N104: B | O104: 路桥集团
A105: 94 | B105: 四川嘉泰丰建筑工程有限公司 | C105: =VLOOKUP($B105,[2]劳务单位汇总表!$C$4:$AD$58,3,0) -> 简阳市工商行政管理和质量技术监督局 | D105: =VLOOKUP($B105,[2]劳务单位汇总表!$C$4:$AD$58,15,0) -> 马丽娟 | E105: =VLOOKUP($B105,[2]劳务单位汇总表!$C$4:$AD$58,11,0) -> 1000 | F105: =VLOOKUP($B105,[2]劳务单位汇总表!$C$4:$AD$58,2,0) -> 91510185MA6C6YEX3P | G105: =VLOOKUP($B105,[2]劳务单位汇总表!$C$4:$AD$58,8,0)&VLOOKUP($B105,[2]劳务单位汇总表!$C$4:$AD$58,7,0) -> D351741400公路工程施工总承包三级 | H105: =VLOOKUP($B105,[2]劳务单位汇总表!$C$4:$AD$58,13,0) -> （川）JZ安许证字[2018]001858 | I105: 京台四标 | J105: 预制小构件 | K105: =VLOOKUP($B105,[2]劳务单位汇总表!$C$4:$AD$58,21,0) -> 李柏刚 | L105: =VLOOKUP($B105,[2]劳务单位汇总表!$C$4:$AD$58,23,0) -> 15963975789 | M105: 屈庆勋 | N105: B | O105: 路桥集团
A106: 95 | B106: 乳山市久业建筑安装有限公司 | C106: 山东省威海市乳山市乳山口镇毛家村 | D106: 祝旦镇 | E106: 650 | F106: 9137108376366135XU | G106: 建筑工程施工总承包叁级、D337032067 | H106: （鲁）JZ安许证字 【2005】100199 | I106: 泸黄项目/新台项目/京沪二标/济青二标 | J106: 路基工程/防护排水工程/预制构件 | K106: 丛书江 | L106: 371021196605131518 | M106: 王少文 | N106: B | O106: 公路桥梁
C107: 威海市乳山市 | D107: 祝旦镇 | E107: 650 | F107: 9137108376366135XU | G107: 建筑工程施工总承包叁级，D337032067 | H107: （鲁）JZ安许证字 〔2005〕100199-01 | I107: 济青改扩建六标 | J107: 路基防护排水、路肩排水及路缘石安装 | K107: 丛俊达 | L107: 18669330796 | M107: 李和平 | N107: B | O107: 鲁桥建设
A108: 96 | B108: 宜昌海纳川建设工程有限公司 | C108: 兴山县昭君镇和平大道180号 | D108: 朱德平 | E108: 1200 | F108: 91420500090582445N | G108: D242039056,D342026095 | H108: （鄂）JZ安许证字 〔2015〕010876-1/2 | I108: 兴山项目 | J108: 包括路基清表、路基挖土石方、利用土石方、特殊路基处理、边沟、排水沟、截水沟、边坡防护、挡土墙、台背回填、涵洞施工，桥梁桩基、基础及下部结构承台、桩系梁、墩柱、肋板、柱系梁、盖梁、台帽、垫石及挡块等钢筋加工制作、成品半成品的装运、卸车、安装及模板制作安装、砼浇筑、养护等 | K108: 朱仁胜 | L108: 18671705922 | M108: 刘周欣 | N108: B | O108: 路桥集团
A109: 97 | B109: 广西冠隆建设工程有限公司 | C109: 南宁市青秀区中新路8号中新国际4号楼1003号 | D109: 翁立龙 | E109: 1000 | F109: 91450103MA5L0MGA92 | G109: 隧道工程专业承包叁级、'D345043466 | H109: （桂）JZ安许证字 【2017】000803 | I109: 漳浦县公路建设改造工程 | J109: 官浔线软基处理、涵洞工程、路基土石方、防护排水工程 | K109: 薛理洪 | L109: 18277450006 | M109: 果加民 | N109: B | O109: 路桥集团
A110: 98 | B110: 济宁市顺通市政工程有限公司 | C110: 山东省济宁市任城区济安桥南路41号 | D110: 杨继喜 | E110: 5088 | F110: 91370811166004327F | G110: 市政公用工程施工总承包贰级D237064032 | H110: （鲁）JZ安许证字 〔2012〕080003 | I110: 巨单项目 | J110: 涵洞、护坡及排水沟预制件 | K110: 乔新华 | L110: 13562789888 | M110: 裴天宇 | N110: B | O110: 路桥集团
A111: 99 | B111: 山东军辉建设集团有限公司 | C111: 山东省泰安市肥城市仪阳工业园区 | D111: 李军英 | E111: 50000 | F111: 91370983766663684M 10-1 | G111: 市政公用工程施工总承包叁级 | H111: （苏）JZ安许证字 【2005】090005-01 | I111: 莱泰四标 | J111: 路基土石方 | K111: 苗忠锋 | L111: 15762377878 | M111: 宋劲松 | N111: B | O111: 路桥集团
A112: 100 | B112: 中海诚壹建设集团有限公司 | C112: 江西省抚州市临川区洋洲居委会14组12号 | D112: 范琼 | E112: 102800 | F112: 91361000566278466U | G112: D236004701 | H112: （赣）JZ安许证字{2011}060012--2/9 | I112: 京沪改扩建 | J112: 防护工程 | K112: 刘允亮 | L112: 15069080822 | M112: 董新星 | N112: B | O112: 路桥集团
A113: 101 | B113: 山东圣诚建设集团有限公司 | C113: 曲阜市孔子大道111号 | D113: 张杰 | E113: 6285 | F113: 9137080075825749F | G113: 市政公用工程施工总承包贰级D237116625 | H113: (鲁)JZ安许证字{2017}080542 | I113: 京台五标三分部 | J113: 路基土石方工程 | K113: 石友全 | L113: 13964983369 | M113: 韩园园 | N113: B | O113: 鲁桥建设
A114: 102 | B114: 山东舜阳建设工程有限公司 | C114: 济南市长清区 | D114: 房泽香 | E114: 1000 | F114: 913701135607620032 | G114: 市政公用工程施工总承包贰级A2104037011301-3/2 | H114: 鲁JZ安许证字[2011]01-0047 | I114: 济青改扩建六标 | J114: 路基土方 | K114: 滑静 | L114: 18660107111 | M114: 李和平 | N114: B | O114: 鲁桥建设
A115: 103 | B115: 山东全成路桥工程有限公司（原莱芜市全成路桥工程有限公司） | C115: 山东省莱芜市口镇西街村 | D115: 韩传亮 | E115: 3000 | F115: 91371200761868461A 3-1 | G115: 公路工程施工总承包贰级，D237078874 | H115: （鲁）JZ安许证字 【2005】120030-01 | I115: 京沪二标 | J115: 路基防护，土石方，临建，安全围挡，收费广场 | K115: 魏杰 | L115: 18063400004 | M115: 简晓辉 | N115: B | O115: 公路桥梁
A116: 104 | B116: 济南嘉振建筑劳务有限公司 | C116: 济南市天桥区历山北路石桥小区12号楼2-201室 | D116: 王广利 | E116: 1500 | F116: 913701056846976372 | G116: 脚手架作业劳务分包壹级 模板作业劳务分包壹级 木工作业劳务分包壹级 钢筋作业劳务分包壹级 混凝土作业劳务分包不分等级 | H116: （鲁）JZ安许证字[2015]011116-02 | I116: 京台五标一分部 | J116: 路基土石方 | K116: 龙代明 | L116: 13705310336 | M116: 邴召建 | N116: B | O116: 鲁桥建设
C117: 济南市天桥区市场监督管理局 | D117: 王广利 | E117: 1500 | F117: 913701056846976372 | G117: D337132358 建筑业模板脚手架专业承包不分等级 | H117: （鲁）JZ安许证字 〔2015〕011116 | I117: 京台四标\巨单项目 | J117: 路基工程 | K117: 李向阳 | L117: 15253439333 | M117: 屈庆勋 | N117: B | O117: 路桥集团
A118: 105 | B118: 山东耀通科技集团股份有限公司 | C118: =VLOOKUP($B118,[1]劳务单位汇总表!$C$4:$AD$58,3,0) -> 济南高新技术产业开发区管委会市场监管局 | D118: =VLOOKUP($B118,[1]劳务单位汇总表!$C$4:$AD$58,15,0) -> 冯鹏 | E118: =VLOOKUP($B118,[1]劳务单位汇总表!$C$4:$AD$58,11,0) -> 3009 | F118: =VLOOKUP($B118,[1]劳务单位汇总表!$C$4:$AD$58,2,0) -> 9137010066485675XG | G118: =VLOOKUP($B118,[1]劳务单位汇总表!$C$4:$AD$58,8,0)&VLOOKUP($B118,[1]劳务单位汇总表!$C$4:$AD$58,7,0) -> D337141480市政公用工程施工总承包三级 | H118: =VLOOKUP($B118,[1]劳务单位汇总表!$C$4:$AD$58,13,0) -> （鲁）JZ安许证字〔2018〕011984 | I118: 京台四标 | J118: 防护排水工程 | K118: =VLOOKUP($B118,[1]劳务单位汇总表!$C$4:$AD$58,21,0) -> 孟飞 | L118: =VLOOKUP($B118,[1]劳务单位汇总表!$C$4:$AD$58,23,0) -> 18953193500 | M118: 屈庆勋 | N118: B | O118: 路桥集团
A119: 106 | B119: 青岛皓源基础工程有限公司 | C119: 青岛胶州市铺集镇铺上一村 | D119: 王永华 | E119: 500 | F119: 91370281069066585B | G119: 地基基础工程专业承包叁级 D337165242 | H119: （鲁）JZ安许证字[2018]021967-01 | I119: 胶州湾高速营海口周边道路综合提升工程 | J119: 水泥搅拌桩施工 | K119: 王峰 | L119: 13678867811 | M119: 王浩 | N119: C | O119: 鲁桥建设
A120: 107 | B120: 湖北渔跃建设工程有限公司 | C120: 宜昌市夷陵区小溪塔冯家湾社区无石山庄96幢 | D120: 段波 | E120: 2857 | F120: 91420506MA4930CEXX | G120: D342191028 | H120: （鄂）JZ安许证字[2019]031946-1/2 | I120: 兴山项目 | J120: 包括路基清表、路基挖土石方、利用土石方、特殊路基处理、边沟、排水沟、截水沟、边坡防护、挡土墙、台背回填、涵洞施工等 | K120: 李正友 | L120: 13872680437 | M120: 刘周欣 | N120: B | O120: 路桥集团
A121: 108 | B121: 重庆意远建设工程有限公司 | C121: 重庆市南岸区珊瑚路8号2栋15-4号 | D121: 翁远俊 | E121: 2000 | F121: 91500108MA5UQGFQ7N | G121: D350100897 | H121: （渝）JZ安许证字[2018]010768-01 | I121: 兴山项目 | J121: 包括路基清表、路基挖土石方、利用土石方、特殊路基处理、边沟、排水沟、截水沟、边坡防护、挡土墙、台背回填、涵洞施工，桥梁桩基、基础及下部结构承台、桩系梁、墩柱、肋板、柱系梁、盖梁、台帽、垫石及挡块等钢筋加工制作、成品半成品的装运、卸车、安装及模板制作安装、砼浇筑、养护等 | K121: 朱蒙 | L121: 15997542270 | M121: 刘周欣 | N121: B | O121: 路桥集团
A122: 109 | B122: 福建省冠成建设工程有限公司 | C122: 福清市龙山街道东门路雄华大厦201 | D122: 高长云 | E122: 1200 | F122: 913501817937869038 | G122: 建筑工程施工总承包叁级、市政公用工程施工总承包叁级、钢结构工程专业承包叁级D335019887 | H122: (闽)JZ安许证字[2007]000113 | I122: 武平PPP项目 | J122: 路基工程、涵洞工程、附属工程 | K122: 林文锋 | L122: 18805016633 | M122: 吴庆龙 | N122: B | O122: 路桥集团
A123: 110 | B123: 山东省巨野明航水利工程有限公司 | C123: 巨野县经济技术开发区巨富路与工中路交汇处 | D123: 程相勇 | E123: 2000 | F123: 91371724053422282W | G123: 水利水电工程施工总承包叁级D337115742 | H123: （鲁）JZ安许证字 〔2013〕181100 | I123: 巨单项目 | J123: 路基工程 | K123: 陈海涛 | L123: 13561305066 | M123: 裴天宇 | N123: B | O123: 路桥集团
A124: 111 | B124: 汶上县三星建筑工程有限公司 | C124: 汶上县汶上街道吉市口佳苑南区1004座楼1-102 | D124: 杨绍坤 | E124: 1100 | F124: 91370830761887742M | G124: 模板脚手架专业承包部分等级D337061059 | H124: （鲁）JZ安许证字 〔2018〕080425 | I124: 巨单项目 | J124: 路基工程 | K124: 郑龙凤 | L124: 18254751111 | M124: 裴天宇 | N124: B | O124: 路桥集团
A125: 112 | B125: 山东恒泰工程集团有限公司 | C125: 滨州市黄河四路523号 | D125: 武凯 | E125: 8800 | F125: 9137160072669833XM | G125: 建筑业市政公用工程施工总承包二级D237011368 | H125: （鲁）JZ安许证字 〔2005〕180020 | I125: 京台五标三分部 | J125: 路基土石方工程 | K125: 郝龙迪 | L125: 18954325022 | M125: 韩园园 | N125: B | O125: 鲁桥建设
A126: 113 | B126: 浙江中陆建设有限公司 | C126: 浙江省桐乡市河山镇五泾村 | D126: 彭锦祥 | E126: 5018 | F126: 9133048306691687U | G126: 公路工程施工总承包贰级D233223884 | H126: (浙)JZ安许证字[2014]060539 | I126: 330项目 | J126: 路基工程4标 | K126: 慕金永 | L126: 18306700008 | M126: 苏栋 | N126: B | O126: 公路桥梁
A127: 114 | B127: 山东振帅市政工程有限公司 | C127: 莱芜高新区鹏泉街道办事处程故事村 | D127: 刘振帅 | E127: 6000 | F127: 913712006882768648 | G127: 市政公用工程施工总承包叁级；D337133010 | H127: （鲁）JZ安许证字 〔2020〕012912 | I127: 新台项目 | J127: 客土喷播、植草工程 | K127: 刘振帅 | L127: 13863470988 | M127: 王少文 | N127: B | O127: 公路桥梁
A128: 115 | B128: 合肥康腾建设工程有限公司 | C128: =VLOOKUP($B128,[1]劳务单位汇总表!$C$4:$AD$58,3,0) -> 合肥市瑶海区市场监督管理局 | D128: =VLOOKUP($B128,[1]劳务单位汇总表!$C$4:$AD$58,15,0) -> 张志伟 | E128: =VLOOKUP($B128,[1]劳务单位汇总表!$C$4:$AD$58,11,0) -> 1200 | F128: =VLOOKUP($B128,[1]劳务单位汇总表!$C$4:$AD$58,2,0) -> 91340102MA2PBQWT51 | G128: =VLOOKUP($B128,[1]劳务单位汇总表!$C$4:$AD$58,8,0)&VLOOKUP($B128,[1]劳务单位汇总表!$C$4:$AD$58,7,0) -> D334125023施工劳务不分等级 | H128: =VLOOKUP($B128,[1]劳务单位汇总表!$C$4:$AD$58,13,0) -> （皖）JZ安许证字{2017}006991 | I128: 京台四标 | J128: 防护排水工程 | K128: =VLOOKUP($B128,[1]劳务单位汇总表!$C$4:$AD$58,21,0) -> 刘红伟 | L128: =VLOOKUP($B128,[1]劳务单位汇总表!$C$4:$AD$58,23,0) -> 18353030662 | M128: 屈庆勋 | N128: B | O128: 路桥集团
A129: 116 | B129: 湖北众源建设工程有限公司 | C129: 当阳市王店镇木店村九组56号 | D129: 张冬伟 | E129: 2100 | F129: 91420582795946309Q | G129: D342132260 | H129: （鄂）JZ安许证字 〔2018〕024140-1/2 | I129: 兴山项目 | J129: 包括路基清表、路基挖土石方、利用土石方、特殊路基处理、边沟、排水沟、截水沟、边坡防护、挡土墙、台背回填、涵洞施工，桥梁桩基、基础及下部结构承台、桩系梁、墩柱、肋板、柱系梁、盖梁、台帽、垫石及挡块等钢筋加工制作、成品半成品的装运、卸车、安装及模板制作安装、砼浇筑、养护等 | K129: 李颖 | L129: 0717-3228828 | M129: 刘周欣 | N129: B | O129: 路桥集团
A130: 117 | B130: 四川鑫铭建设工程有限公司 | C130: 南充市顺庆区滨江中路四段48号4幢1层2号 | D130: 郭又铭 | E130: 11100 | F130: 915113020974365398 | G130: 建筑工程施工总承包贰级、公路工程施工总承包叁级、水利水电工程施工总承包叁级、市政公用工程施工总承包叁级 | H130: （川）JZ安许证字 【2014】OR0004 | I130: 省道103线青神至五通桥段公路工程（乐山段）PPP项目 | J130: K20+000-K23+360范围内挡墙、护肩、护脚、涵洞及通道、截水沟施工等与此有关的劳务工作。 | K130: 熊倩莉 | L130: 15196426019 | M130: 李申伟 | N130: B | O130: 鲁桥建设
A131: 118 | B131: 祁东县建设劳务有限责任公司 | C131: 湖南省祁东县洪桥镇莲花路8号 | D131: 彭轶凡 | E131: 3600 | F131: 91430426755848050G | G131: 施工劳务不分等级、D343094152 | H131: （湘）JZ安许证字 【2011】000029 | I131: 泸黄项目/京沪二标 | J131: 路基工程/路基防护（新建、改造段） | K131: 陈爱明/陈前军 | L131: 18274769099/15920910880 | M131: 李霞 | N131: B | O131: 公路桥梁
A132: 119 | B132: 山东金来建设集团有限公司 | C132: 山东省莱芜市莱城区茶业口镇北腰关村 | D132: 韩璐山 | E132: 10600 | F132: 91371200169539327Q | G132: D237003674 | H132: （鲁）JZ安许证字{2017}120183-01 | I132: 京沪改扩建 | J132: 防护工程 | K132: 赵强德 | L132: 18253086669 | M132: 董新星 | N132: B | O132: 路桥集团
A133: 120 | B133: 山东尚德建安有限公司 | C133: 山东省济宁市嘉祥县呈祥街路北新辉花园小区 | D133: 宋阳 | E133: 6000 | F133: 91370829798653958F | G133: 市政公用工程施工总承包叁级D337017551 | H133: （鲁）JZ安许证字 〔2008〕080442 | I133: 巨单项目 | J133: 护坡、排水沟预制件 | K133: 杜维灿 | L133: 15263761999 | M133: 裴天宇 | N133: B | O133: 路桥集团
A134: 121 | B134: 山东正康建设工程有限公司 | C134: 蒙阴县垛庄镇商业街 | D134: 蹇令席 | E134: 30000 | F134: 91371328076972420B | G134: 施工劳务不分等级C1074037132802 | H134: （鲁）JZ安许证字[2014]140589-01 | I134: 国道204拓宽改造项目 | J134: 路基施工 | K134: 刘英尉 | L134: 15688869777 | M134: 丛磊 | N134: B | O134: 鲁桥建设
A135: 122 | B135: 沂南县广安市政园林工程有限公司 | C135: 山东省临沂市沂南县县城历山路北首 | D135: 范如冰 | E135: 5000 | F135: 9137132174452259XQ | G135: 市政公用工程施工总承包贰级；D237082116 | H135: （鲁）JZ安许证字 〔2020〕141130 | I135: 新台项目 | J135: 路基土石方及涵洞工程 | K135: 李长山 | L135: 15965618338 | M135: 王少文 | N135: B | O135: 公路桥梁
A136: 123 | B136: 山东大匠建设工程有限公司 | C136: 威海市张村镇明翠园-48号 | D136: 李均 | E136: 2000 | F136: 913710007884729269 | G136: D237066448 | H136: （鲁）JZ安许证字[2019]100767 | I136: 青岛新机场周边市政配套工程项目 | J136: 综保二路路基土方开挖、沙砾土和石渣回填、雨污水管埋设级管沟回填、检查井安装等 | K136: 田淑铮 | L136: 18153264567 | M136: 刘亚楠 | N136: B | O136: 路桥集团
C137: 威海市张村镇明翠园-48号 | D137: 李均 | E137: 2000 | F137: 913710007884729000 | G137: 市政公用工程施工总承包贰级；D237066448 | H137: （鲁）JZ安许证字[2019]100767 | I137: 新台项目 | J137: 路基土石方及涵洞工程 | K137: 武瑞国 | L137: 18553611667 | M137: 王少文 | N137: B | O137: 公路桥梁
A138: 124 | B138: 青岛万达路桥工程有限公司 | C138: 青岛市黄岛区珠山路203号 | D138: 任鹏钧 | E138: 3000 | F138: 9137021116399621XM | G138: 公路施工总包三级D337074479 | H138: （鲁）JZ安许证字 【2012】180566-02 | I138: 茂山路 | J138: K0+000-K2+000球墨铸铁管及管件安装、消火栓安装、阀门安装、阀门井、检查井砌筑、支墩浇筑，混凝土管安装、挖沟槽土方、风化砂回填、原土回填、余方弃置等 | K138: 张连仁 | L138: 13606487877 | M138: 罗一纯 | N138: B | O138: 路桥集团
A139: 32 | C139: 青岛市黄岛区珠山路203号 | D139: 任鹏钧 | E139: 3000 | F139: 9137021116399621XM | G139: 不分等级D337074479 | H139: （鲁）JZ安许证字（2012）180566-02 | I139: 国道204拓宽改造项目 | J139: 路基施工 | K139: 陈立军 | L139: 15053291776 | M139: 丛磊 | N139: B | O139: 鲁桥建设
A140: 125 | B140: 山东恒远路桥工程有限公司 | C140: 菏泽市丹阳办事处何楼社区菏建数码大厦09007 | D140: 周磊 | E140: 3000 | F140: 91371702764825643E | G140: 公路工程施工总承包叁级，D337032751 | H140: （鲁）JZ安许证字 【2013】181091-02 | I140: 京沪二标 | J140: 路基土石方（新建段），下部结构（新建段） | K140: 李伟 | L140: 15564781117 | M140: 简晓辉 | N140: B | O140: 公路桥梁
A141: 126 | B141: 山东济宁金塔建安有限公司 | C141: 济宁市红星西路西首 | D141: 翟兆路 | E141: 5036 | F141: 913708111660466583 | G141: 市政公用工程施工总承包叁级；D337085425 | H141: （鲁）JZ安许证字 〔2005〕080102 | I141: 新台项目 | J141: 防护排水工程 | K141: 孙照民 | L141: 18769396077 | M141: 王少文 | N141: B | O141: 公路桥梁
A142: 127 | B142: 邹城市公路工程有限公司 | C142: =VLOOKUP($B142,[1]劳务单位汇总表!$C$4:$AD$58,3,0) -> 邹城市市场监督管理局 | D142: =VLOOKUP($B142,[1]劳务单位汇总表!$C$4:$AD$58,15,0) -> 孙传旺 | E142: =VLOOKUP($B142,[1]劳务单位汇总表!$C$4:$AD$58,11,0) -> 3800 | F142: =VLOOKUP($B142,[1]劳务单位汇总表!$C$4:$AD$58,2,0) -> 91370883747815929R | G142: =VLOOKUP($B142,[1]劳务单位汇总表!$C$4:$AD$58,8,0)&VLOOKUP($B142,[1]劳务单位汇总表!$C$4:$AD$58,7,0) -> D237108377公路路面工程专业承包贰级 | H142: =VLOOKUP($B142,[1]劳务单位汇总表!$C$4:$AD$58,13,0) -> （鲁）JZ安许证字{2012}180544 | I142: 京台四标 | J142: 防护排水工程 | K142: =VLOOKUP($B142,[1]劳务单位汇总表!$C$4:$AD$58,21,0) -> 张旗 | L142: =VLOOKUP($B142,[1]劳务单位汇总表!$C$4:$AD$58,23,0) -> 13188802711 | M142: 屈庆勋 | N142: B | O142: 路桥集团
A143: 41 | C143: 邹城市峄山镇贾洼村 | D143: 孙传旺 | E143: 3800 | F143: 91370883747815929R | G143: 公路路面工程专业承包贰级 D237108377 | H143: （鲁）JZ安许证字 〔2012〕180544 | I143: 枣菏项目 | J143: 路基防护排水 | K143: 白现鹏 | L143: 18905473770 | M143: 李阳 | N143: B | O143: 公路桥梁
A144: 128 | B144: 福建东肪建筑工程劳务有限公司 | C144: 福州市鼓楼区华林路201号华林大厦四层右侧 | D144: 王灵敏 | E144: 2800 | F144: 91350100669291217X | G144: 模板脚手架专业承包不分等级D335029621 | H144: 【闽】JZ安许证字[2016]FZ0038 | I144: 宜宾快速路 | J144: 路基工程 | K144: 莫羲建 | L144: 13960743049 | M144: 屈庆勋/苏子龙 | N144: B | O144: 公路桥梁
C145: 福建市鼓楼区华林路202华林大厦四层右侧 | D145: 林世福 | E145: 2800 | F145: 91350100669291217X | G145: 模板脚手架专业承包不分等级，证书编号：D335029621 | H145: (闽)JZ安许证字[2016]EZ0038-2 | I145: 宁夏西会 | J145: 路基管涵工程 | K145: 王文朝 | L145: 13515011018 | M145: 刘亚文 | N145: B | O145: 路桥集团
C146: 福建省福州市鼓楼区琴亭路33号（福建省职工科教活动中心）1#楼东区第九层 | D146: 林世福/ 王灵敏 | E146: 2800 | F146: 91350100669291217X | G146: 模板脚手架专业承包不分等级 D335029621 | H146: （闽）JZ安许证字 【2019】FZ0302 | I146: 省道103线青神至五通桥段公路工程（乐山段）PPP项目/ 乐自高速乐山大佛收费站及九峰连接线提升改造工程 | J146: 103项目：K21+200-K23+360范围内路基清表、路基便道修筑与维护、路基挖方、路基填方、结构物基础开挖、台背回填、特殊地基处理施工等与此有关的劳务工作。/ 大佛加宽：土石方开挖、弃方运输、回填土石方、软土地基处理、拆除原有标志牌、拆除板房、拆除波形护栏、边沟拆除、照明设施拆除、挖除水泥路面、拆除硬路肩。 | K146: 李子翔/张明昌 | L146: 18588844436/ 18784590086 | M146: 李申伟/高超 | N146: B | O146: 鲁桥建设
A147: 129 | B147: 安徽远通路桥工程劳务有限公司 | C147: 安徽省蚌埠市金山花园1号楼2单元4层402号 | D147: 张远 | E147: 200 | F147: 913403005914211808（1-1) | G147: 施工劳务不分等级；D334133775 | H147: （皖）JZ安许证字 〔2018〕009011 | I147: 新台项目/京沪二标 | J147: 路基土石方及涵洞工程/下部结构（拼宽段） | K147: 金卫星 | L147: 13287828566 | M147: 王少文 | N147: B | O147: 公路桥梁
A148: 130 | B148: 威海市鸿远公路工程有限公司 | C148: 威海市环翠区温泉明珠-2号 | D148: 尉旭光 | E148: 3000 | F148: 91371000699676783R | G148: 公路工程施工总承包贰级，市政公用工程施工总承包贰级；D237004458 | H148: 鲁JZ安许证字 ﹝2009﹞180816-01 | I148: 文莱项目四合同 | J148: 路基土石方施工 | K148: 刘良平 | L148: 13906309898 | M148: 王艳娇 | N148: B | O148: 路桥集团
A149: 131 | B149: 山东凯文路桥有限公司 | C149: 山东省济宁市光河花园小区18号楼1单元6层西户 | D149: 王彦鹄 | E149: 1200 | F149: 91510185MA67A64199 | G149: 市政公用工程施工总承包叁级：D337207639 | H149: （鲁）JZ安许证字 〔2020〕081531 | I149: 济微高速济宁段 | J149: 路基工程 | K149: 王彦鹄 | L149: 18653753953 | M149: 刘继文 | N149: B | O149: 公路桥梁
A150: 132 | B150: 江西省益众建筑工程有限公司 | C150: 江西省抚州市临川区七里岗乡 | D150: 付宇华 | E150: 10018 | F150: 9136100055603509XK | G150: 市政公用工程施工总承包贰级，D236017171 | H150: （赣 ）JZ安许证字[2011 ]0600011 | I150: 江西抚州 | J150: 包括清表，土方开挖，土方填筑，软基处理，原结构物拆除、盖板涵、圆管涵、雨水管、污水管、混凝土井、雨水口、顶管、沟槽开挖回填等劳务分包工作。 | K150: 梅加磊 | L150: 13767614372 | M150: 李德义 | N150: B | O150: 路桥集团
A151: 133 | B151: 山东鲁任市政园林工程有限公司 | C151: 济宁北湖省级旅游度假区新城发展大厦裙楼3层0305室 | D151: 李腾华 | E151: 1000 | F151: 91370800MA3CEQ2C17 | G151: 市政公用工程施工总承包叁级，D337147038 | H151: （鲁）JZ安许证字[2017]08-0112 | I151: 江西抚州 | J151: 路基换填、填筑，扶壁式挡墙钢筋制安、混凝土浇筑，衡重式挡土墙砌筑、勾缝、抹面，盖板涵、排水管、检查井、雨水口等劳务工作 | K151: 张培府 | L151: 18678761205 | M151: 李德义 | N151: B | O151: 路桥集团
A152: 134 | B152: 聊城首开市政工程有限公司 | C152: 山东省聊城市东昌府区振兴西街（久安房产B2精英大厦8楼） | D152: 高月峰 | E152: 1500 | F152: 913715003130223076 | G152: 市政公用工程施工总承包叁级 D337138480 | H152: 【鲁】JZ安许证字[2016]15-0067 | I152: 枣菏项目 | J152: 微山连接线路基土石方 | K152: 薛运堂 | L152: 15275766852 | M152: 李阳 | N152: B | O152: 公路桥梁
A153: 135 | B153: 山东中海建筑安装工程有限公司 | C153: 山东省泰安市东平县经济开发区闫村社区 | D153: 张庆合 | E153: 2000 | F153: 913709257618878305 | G153: 建筑工程施工总承包叁级 D377110516 | H153: （鲁）JZ安许证字 〔2017〕090235 | I153: 枣菏项目 | J153: 路基防护排水 | K153: 王善奎 | L153: 18562304666 | M153: 李阳 | N153: B | O153: 公路桥梁
A154: 136 | B154: 曲阜市永兴路桥有限公司 | C154: 曲阜市王庄镇褚魏村村北 | D154: 刘勇 | E154: 1000 | F154: 9137088169060605XQ 2-2 | G154: 公路工程施工总承包叁级，D337062859 | H154: （鲁）JZ安许证字 〔2014〕180871 | I154: 京沪二标 | J154: 连接线排水 | K154: 高俊超 | L154: 18678789666 | M154: 简晓辉 | N154: B | O154: 公路桥梁
A155: 137 | B155: 北京综建科技有限公司 | C155: 北京市东城区东直门内大街177号 | D155: 武威 | E155: 5000 | F155: 9111010171775765XB | G155: D311013051 | H155: （京）JZ安许证字{2016}210085-1 | I155: 京沪改扩建 | J155: 防护工程 | K155: 王浩 | L155: 18310979868 | M155: 董新星 | N155: B | O155: 路桥集团
A156: 138 | B156: 山东建华建筑劳务有限公司 | C156: 滕州市北辛办事处马王东村 | D156: 陈孝涛 | E156: 3000 | F156: 91370481771042145E | G156: 模板脚手架专业承包不分等级、施工劳务不分等级 D337039159 | H156: 【鲁】JZ安许证字[2017]180069-01 | I156: 枣菏项目 | J156: 微山连接线路基土石方 | K156: 陈孝涛 | L156: 0632-5895556 | M156: 李阳 | N156: B | O156: 公路桥梁
A157: 139 | B157: 山东万象建筑工程有限公司 | C157: =VLOOKUP($B157,[1]劳务单位汇总表!$C$4:$AD$58,3,0) -> 邹城市市场监督管理局 | D157: =VLOOKUP($B157,[1]劳务单位汇总表!$C$4:$AD$58,15,0) -> 李红冉 | E157: =VLOOKUP($B157,[1]劳务单位汇总表!$C$4:$AD$58,11,0) -> 4606 | F157: =VLOOKUP($B157,[1]劳务单位汇总表!$C$4:$AD$58,2,0) -> 91370883092181952A | G157: =VLOOKUP($B157,[1]劳务单位汇总表!$C$4:$AD$58,8,0)&VLOOKUP($B157,[1]劳务单位汇总表!$C$4:$AD$58,7,0) -> D337081371建筑工程施工总承包叁级 | H157: =VLOOKUP($B157,[1]劳务单位汇总表!$C$4:$AD$58,13,0) -> （鲁）JZ安许证字〔2015〕080776 | I157: 京台四标 | J157: 防护排水工程 | K157: =VLOOKUP($B157,[1]劳务单位汇总表!$C$4:$AD$58,21,0) -> 王现俊 | L157: =VLOOKUP($B157,[1]劳务单位汇总表!$C$4:$AD$58,23,0) -> 13676378444 | M157: 屈庆勋 | N157: C | O157: 路桥集团
A158: 140 | B158: 山东银汇市政工程有限公司 | C158: 山东省潍坊市安丘市兴安街道马家楼村（安丘交警大队斜对面） | D158: 王学才 | E158: 30000 | F158: 913707847591530880 | G158: 市政公用工程施工总承包壹级 D137100622 | H158: （鲁）JZ安许证字(2018）071048-02 | I158: 胶州湾高速营海口周边道路综合提升工程 | J158: 路基挖方、路基填方、路基换填、桥台台背回填、利用土石方 | K158: 王波 | L158: 18853226511 | M158: 王浩 | N158: C | O158: 鲁桥建设
A159: 141 | B159: 济阳县富国建筑安装有限公司 | C159: 济阳镇纬一路10号 | D159: 张建国 | E159: 2000 | F159: 91370125167734575D | G159: 建筑工程施工总承包贰级，D237051146 | H159: (鲁)JZ安许证字[2005]010204-01 | I159: 长深高速高青至广饶段工程 | J159: 路基防护排水/小型构件预制 | K159: 李宁 | L159: 13127151166 | M159: 范伟 | N159: C | O159: 路桥集团
A160: 142 | B160: 南京恒利建设集团有限公司 | C160: 南京市江宁区经济技术开发区 | D160: 石杰 | E160: 8000 | F160: 91320115249810412X | G160: 公路工程施工总承包叁级 D332105083 | H160: (苏)JZ安许证字（2005）010290 | I160: 文莱项目四/五合同 | J160: 防护排水工程 | K160: 王建超 | L160: 13153312999 | M160: 王艳娇 | N160: C | O160: 路桥集团
A161: 143 | B161: 孝感珑盛建设工程有限公司 | C161: 孝感市孝南区孝武大道199号 | D161: 丁红艳 | E161: 3028 | F161: 91420900050036351B | G161: 市政公用工程施工总承包叁级D342001417 | H161: (鄂）JZ安许证字（2015）011777-1/2 | I161: 文莱项目五合同 | J161: 防护排水工程 | K161: 于常林 | L161: 13326315716 | M161: 王艳娇 | N161: C | O161: 路桥集团
A162: 144 | B162: 济宁博航市政工程有限公司 | C162: 济宁市金宇路47号汇景国际城A座十九层19号房 | D162: 梁圣亮 | E162: 1000 | F162: 91370800MA3N0Y7A2D | G162: D337179996 | H162: (鲁)JZ安许证字[2019]081114-02 | I162: 京台五标一分部 | J162: 路基土石方 | K162: 郭鹏飞/张银 | L162: 17863232222 | M162: 邴召建 | N162: C | O162: 鲁桥建设
A163: 145 | B163: 陕西盛坤建设工程有限公司 | C163: 陕西省西安市高新三路财富中心2期C座31020室 | D163: 常晶 | E163: 3000 | F163: 91610112099627929E | G163: 公路二级、市政二级、桥梁二级、照明二级、环保二级、交通安全设施二级、交通机电二级 D261051513 | H163: （陕）JZ安许证字 ﹝2016﹞010173-2/1 | I163: 楚大项目 | J163: 路基土石方、防护排水，涵洞等项目的施工 | K163: 常晶 | L163: 13892079300 | M163: 陈成伟 | N163: C | O163: 鲁桥建设
A164: 146 | B164: 江苏乐达建筑安装工程有限公司 | C164: 江苏省邳州市赵墩镇工业集中区 | D164: 王乐永 | E164: 3000 | F164: 91320382550274049K | G164: 市政公用工程施工总承包三级 D332030518 | H164: （苏）JZ安许证字（2010）036003 | I164: 省道241 | J164: 砌石护坡 | K164: 王昌国 | L164: 18266298188 | M164: 刘远明 | N164: C | O164: 鲁桥建设
A165: 147 | B165: 临沂科泰建筑新技术应用有限公司 | C165: 临沂市河东区郑旺镇后洪瑞村 | D165: 高鑫 | E165: 1600 | F165: 91371312569049482Y | G165: 施工劳务不分等级C1074037131228 | H165: （鲁）JZ安许证字[2014]140577-01 | I165: 省道241 | J165: 泡沫轻质土 | K165: 高鑫 | L165: 13853951079 | M165: 刘远明 | N165: C | O165: 鲁桥建设
A166: 148 | B166: 青岛柳源绿化环境建设集团有限公司 | C166: 山东省青岛市黄岛区衡山路14号办公2201室 | D166: 薛桂凯 | E166: 6000 | F166: 913702117472097690 | G166: 市政公用工程施工总承包三级，城市及道路照明工程专业承包三级D337112640 | H166: （鲁）JZ安许证字 【2015】02-0173 | I166: 茂山路 | J166: K0+000-K1+700挖一般土方、回填土方、回填石渣 | K166: 郭加祥 | L166: 15908983988 | M166: 罗一纯 | N166: C | O166: 路桥集团
A167: 149 | B167: 日照万斛建筑工程有限公司 | C167: 日照市岚山区安东卫街道陈家湖村 | D167: 牟善巧 | E167: 2100 | F167: 91371103559911323Y | G167: 建筑工程施工总承包叁级，D337104746 | H167: (鲁)JZ安许证字[2016]110541-01 | I167: 长深高速高青至广饶段工程 | J167: 路基土石方工程 | K167: 窦永全 | L167: 15339915173 | M167: 范伟 | N167: C | O167: 路桥集团
A168: 150 | B168: 山东宏钧建设工程有限公司 | C168: 山东省东营市东营区千佛山路19号 | D168: 宋怀良 | E168: 2000 | F168: 91370500065919093C | G168: D337033921 市政公用工程施工总承包三级 | H168: （鲁）JZ安许证字 〔2018〕050432 | I168: 潍日高速公路潍坊连接线 | J168: 路基土石方 | K168: 李根源 | L168: 18954676391 | M168: 赵永杰 | N168: C | O168: 路桥集团
A169: 151 | B169: 山东双惠建设工程有限公司 | C169: 山东省烟台市牟平区通山路732号 | D169: 田玉松 | E169: 5000 | F169: 91370612MA3DG8ND6R | G169: 市政公用工程施工总承包贰级 D237154013 | H169: (鲁）JZ安许证字（2019）061583-02 | I169: 文莱项目四合同 | J169: 防护排水工程 | K169: 王尧尧 | L169: 15966453555 | M169: 王艳娇 | N169: C | O169: 路桥集团
A170: 152 | B170: 四川名胜建筑工程有限公司 | C170: 成都市青羊区瑞联路165号附5号 | D170: 周在猛 | E170: 1000 | F170: 91510100MA6DFB861J | G170: 建筑工程施工总承包叁级D351720774 | H170: (川）JZ安许证字（2018）001291 | I170: 文莱项目四合同 | J170: 防护排水工程 | K170: 丛书江 | L170: 18663131622 | M170: 王艳娇 | N170: C | O170: 路桥集团
A171: 153 | B171: 四川新冶建设工程有限公司 | C171: 成都市锦江区东四横街8号 | D171: 张继凤 | E171: 1000 | F171: 91510100MA61TNKM7Q | G171: D351526790 | H171: （川）JZ安许证字{2016}000642 | I171: 京沪改扩建 | J171: 路基土石方 | K171: 李永明 | L171: 18853823333 | M171: 董新星 | N171: C | O171: 路桥集团
A172: 154 | B172: 烟台市三和市政工程有限公司 | C172: 烟台开发区泰山路2号 | D172: 温方 | E172: 2000 | F172: 913706007409562000 | G172: 市政公用工程施工总承包贰级D237078172 | H172: (鲁）JZ安许证字（2011）06-0033 | I172: 文莱项目四合同/京沪改扩建 | J172: 挂网喷播施工 | K172: 杨国俊 | L172: 13306387088 | M172: 王艳娇/董新星 | N172: C | O172: 路桥集团
A173: 155 | B173: 青岛恒态城市建设有限公司 | C173: 山东省青岛市黄岛区隐珠街道办事处小河东社区4楼 | D173: 龚文江 | E173: 3000 | F173: 913702115720604710 | G173: 施工劳务不分等级D337192150 | H173: 【2019】022192-01 | I173: 京台五标三分部 | J173: 路基土石方工程 | K173: 周垂斌 | L173: 13255555419 | M173: 韩园园 | N173: C | O173: 鲁桥建设
A174: 156 | B174: 上海政通建设发展有限公司 | C174: 上海市宝山区金石路1688号 402-B | D174: 陈祖良 | E174: 6066 | F174: 91310113630663677Q | G174: 建筑工程施工总承包二级 D231254812 | H174: （沪）JZ 安许证字[2016] 016272 | I174: 楚大项目 | J174: 路基土石方、防护排水等项目的施工 | K174: 李帅 | L174: 15201918081 | M174: 陈成伟 | N174: C | O174: 鲁桥建设
A175: 157 | B175: 四川永茂建设有限公司 | C175: 仪陇县金城镇文化路27号 | D175: 刘晓平 | E175: 3100 | F175: 91511324209998940A | G175: 建筑工程施工总承包贰级；D251560053 | H175: (川)JZ安许证字[2006]000248 | I175: 成宜项目 | J175: 路基、桥梁桩基、梁板安装工程 | K175: 童品岗 | L175: 13548188468 | M175: 杨超越 | N175: C | O175: 公路桥梁
A176: 158 | B176: 山东竣达建安工程有限公司 | C176: 平邑县平邑镇新建村 | D176: 沈洪宝 | E176: 5170 | F176: 91371326679247527B | G176: 建筑工程施工总承包贰级；D237094370 | H176: （鲁）JZ安许证字 〔2013〕140525 | I176: 新台项目 | J176: 防护排水工程 | K176: 魏运波 | L176: 15563668577 | M176: 王少文 | N176: C | O176: 公路桥梁
A177: 159 | B177: 山东海建水利工程有限公司 | C177: 济宁北湖省级旅游度假区市场监督管理局 | D177: 王建海 | E177: 9200 | F177: 913708115754642609 | G177: D337076423 建筑业市政公用工程施工总承包三级 | H177: （鲁）JZ安许证字 〔2015〕181186 | I177: 京台四标 | J177: 路基土石方 | K177: 马允凯 | L177: 13905475966 | M177: 屈庆勋 | N177: C | O177: 路桥集团
A178: 160 | B178: 青岛丰悦达市政园林工程有限公司 | C178: 山东省青岛市黄岛区峄山路308 | D178: 张艳 | E178: 1000 | F178: 91370211334144354Y | G178: 市政公用工程施工总承包叁级D337150908 | H178: 【鲁】JZ安许证字 【2018】02-0243 | I178: 京台五标三分部 | J178: 路基土石方工程 | K178: 杨晓 | L178: 18560660783 | M178: 韩园园 | N178: C | O178: 鲁桥建设
A179: 161 | B179: 成都晨翔建筑劳务有限公司 | C179: 成都市武侯区武侯大道顺江段 | D179: 李菊 | E179: 2000 | F179: 91510107577357813Y | G179: 施工劳务不分等级 D351475095 | H179: (川）JZ安许证字（2016）0A0952 | I179: 文莱项目五合同 | J179: 挂网喷播工程 | K179: 孙科 | L179: 18602778667 | M179: 王艳娇 | N179: C | O179: 路桥集团
A180: 162 | B180: 山东万顺路桥工程有限公司 | C180: 沂南县城振兴路中段 | D180: 樊秋美 | E180: 12800 | F180: 91371321661361487N | G180: 公路工程施工总承包贰级D237073760 | H180: (鲁）JZ安许证字（2011）180869-01 | I180: 文莱项目四合同 | J180: 预制块工程 | K180: 孙永杰 | L180: 13326306020 | M180: 王艳娇 | N180: C | O180: 路桥集团
A181: 163 | B181: 威海市艺境园林建设有限公司 | C181: 威海市青岛北路68号 | D181: 赵新有 | E181: 1000 | F181: 91371000737209968A | G181: 市政公用工程施工总承包叁级 D337162632 | H181: (鲁）JZ安许证字（2018）10-0287 | I181: 文莱项目四合同 | J181: 植草工程 | K181: 周远东 | L181: 13306387088 | M181: 王艳娇 | N181: C | O181: 路桥集团
A182: 164 | B182: 招远市梦芝建筑工程公司 | C182: 招远市梦芝街道办事处梦芝村 | D182: 李进东 | E182: 3008 | F182: 91370685165229700U | G182: 建筑工程施工总承包贰级， D237067802 | H182: (鲁）JZ安许证字（2005）060041-01 | I182: 文莱项目五合同 | J182: 防护排水工程 | K182: 张超群 | L182: 13406548999 | M182: 王艳娇 | N182: C | O182: 路桥集团
A183: 165 | B183: 青岛林海建设工程有限公司 | C183: 青岛市黄岛区铁山街道办事处平湖路68号 | D183: 苗增刚 | E183: 20000 | F183: 913702117940250576 | G183: 市政公用工程总承包壹级建筑工程施工总承包壹级 证书编号：D37122430 | H183: （鲁）JZ安许证字（2019）022175 | I183: 红河交通枢纽 | J183: 土石方 | K183: 于秀坤 | L183: 18660208229 | M183: 周君 | N183: C | O183: 鲁桥建设
A184: 166 | B184: 山东润发建筑工程公司 | C184: 新泰市银河路南头 | D184: 徐甲银 | E184: 2020 | F184: 91370982745678174B | G184: 建筑工程施工总承包贰级，D237090334 | H184: （鲁）JZ安许证字 〔2005〕090148 | I184: 京沪二标 | J184: 路基弃方，路基土石方（被交路） | K184: 史新良 | L184: 13406213058 | M184: 简晓辉 | N184: C | O184: 公路桥梁
A185: 167 | B185: 新泰市建筑安装工程有限公司 | C185: 山东省泰安市新泰市青云街道金斗路38号 | D185: 陈绪功 | E185: 15000 | F185: 91370982169593390X | G185: 市政公用工程施工总承包叁级，D337127442 | H185: （鲁）JZ安许证字 〔2005〕090026-01 | I185: 京沪二标 | J185: 路基土石方（青云互通） | K185: 付成阳 | L185: 15253820000 | M185: 简晓辉 | N185: C | O185: 公路桥梁
A186: 168 | B186: 安徽昌庐建设工程有限公司 | C186: 安徽省合肥市瑶海区隆岗新村西10幢502 | D186: 孙丰刚 | E186: 1000 | F186: 91340102MA2RLEA36Q(1-1) | G186: 施工劳务不分等级；D334154901 | H186: （皖）JZ安许证字 【2018】009677 | I186: 新台项目 | J186: 路基土石方及涵洞工程 | K186: 赵术田 | L186: 13805448121 | M186: 王少文 | N186: C | O186: 公路桥梁
A187: 169 | B187: 北京众创鑫达工程建设有限公司 | C187: 北京市门头沟区双峪路35号院1号7层F701-677 | D187: 陈晓亮 | E187: 3000 | F187: 91110109MA01LUBP9B | G187: 劳务分包不分等级 | H187: （京）JZ安许证字[2019]019807 | I187: 京雄高速SG4标段 | J187: 京雄高速SG4标软土路基处理、湿陷性黄土路基处理等。（CFG桩、灰土桩强夯、冲碾）等与此相关的一切劳务作业。 | K187: 张延瑞 | L187: 15176992131 | M187: 朱祥坤 | N187: C | O187: 鲁桥建设
A188: 170 | B188: 四川民发建筑劳务有限公司 | C188: 成都市武侯区金华镇陆坝村金江明珠商业3号楼2楼 | D188: 余方富 | E188: 1006 | F188: 91510000669562072Q | G188: 模板脚手架专业承包不分等级、D351480599 | H188: （川）JZ安许证字【2010】000052 | I188: 泸黄项目 | J188: 路基工程 | K188: 蒋雷激 | L188: 13608028563 | M188: 李霞 | N188: C | O188: 公路桥梁
A189: 171 | B189: 中地寅岗建设集团有限公司 | C189: 内蒙古自治区包头稀土高新区青工南路（第三功能小区） | D189: 郭志轩 | E189: 30000 | F189: 91150291787084817D | G189: 公路工程施工总承包壹级；D115022095 | H189: (蒙)JZ安许证字[2009]000028 | I189: 新台项目 | J189: 客土喷播、植草工程 | K189: 孙超 | L189: 18763011808 | M189: 王少文 | N189: C | O189: 公路桥梁
A190: 172 | B190: 枣庄舜扬建设有限公司 | C190: 市中区解放南路183 | D190: 任鹏 | E190: 1000 | F190: 913704005860857253 | G190: 市政公用工程施工总承包叁级D337093135 | H190: （鲁）JZ安许证字 〔2018〕040523 | I190: 滕州市墨子湖隧道及引道工程 | J190: 土石方工程 | K190: 王伟 | L190: 13969462888 | M190: 彭鹏 | N190: C | O190: 鲁桥建设
A191: 173 | B191: 河南锦路路桥建设有限公司 | C191: 三门峡市产业集聚区经十路 | D191: 刘晓博 | E191: 13900 | F191: 91411200551616821P | G191: 施工劳务不分等级 | H191: （豫）JZ安许证字 【2012】090156-01 | I191: 京雄高速SG4标段 | J191: 京雄高速SG4标软土路基处理、湿陷性黄土路基处理等。（CFG桩、灰土桩强夯、冲碾）等与此相关的一切劳务作业。（包清工） | K191: 赵玉录 | L191: 13833611770 | M191: 朱祥坤 | N191: C | O191: 鲁桥建设
A192: 174 | B192: 福建恒源泰劳务有限公司 | C192: 福建省福州市永泰县东洋乡东洋村东洋街40号二层 | D192: 夏春生 | E192: 3000 | F192: 91350125MA2YKC2W8G | G192: 施工劳务不分等级、模板脚手架专业承包不分等级 编号：D335096665 | H192: (闽）JZ安许证字[2018]YT005 | I192: 31009工程 | J192: 路基工程施工 | K192: 檀东攀 | L192: 13600808993 | M192: 林森林 | N192: C | O192: 路桥集团
A193: 175 | B193: 青岛韶航建设工程有限公司 | C193: 山东省青岛市平度市经济技术开发区财富广场1号楼1711室 | D193: 刘忠晓 | E193: 3600 | F193: 91370283MA3MM6A29N | G193: 施工劳务不分等级D337178814 | H193: （鲁）JZ安许证字 【2018】022098 | I193: 茂山路 | J193: K2+000-K4+000段球墨铸铁管及管件安装、消火栓安装、阀门安装、阀门井、检查井砌筑、支墩浇筑，混凝土管安装、挖沟槽土方、风化砂回填、原土回填、余方弃置等 | K193: 秦海涛 | L193: 13791976666 | M193: 罗一纯 | N193: C | O193: 路桥集团
A194: 176 | B194: 青岛兴水实业有限公司 | C194: 青岛市广饶路129号甲 | D194: 宋雷 | E194: 2007 | F194: 91370200163614584E | G194: 水利水电总包三级D337112464 | H194: （鲁）JZ安许证字 【2012】02-0017 | I194: 茂山路 | J194: K4+000-K6+480段球墨铸铁管及管件安装、消火栓安装、阀门安装、阀门井、检查井砌筑、支墩浇筑，混凝土管安装、挖沟槽土方、风化砂回填、原土回填、余方弃置等 | K194: 魏春兴 | L194: 13854292339 | M194: 罗一纯 | N194: C | O194: 路桥集团
A195: 177 | B195: 山东宝恒建筑工程有限公司 | C195: 山东省淄博市沂源县 鲁村镇西五陡村 | D195: 穆钰琳 | E195: 300 | F195: 91370323MA3MAK1G93 | G195: 施工劳务不分等级 D337189966 | H195: (鲁）JZ安许证字（2019）030862-02 | I195: 文莱项目四合同/济泰 | J195: 防护排水工程 | K195: 穆念书/薛其孟 | L195: 15215331333/13969348222 | M195: 王艳娇/苏子龙 | N195: C | O195: 路桥集团
A196: 178 | B196: 山东鲁岩基础工程有限公司 | C196: 山东省济南市历下区山大南路13号 | D196: 牛波 | E196: 5678 | F196: 91370112780797865K | G196: 地基基础工程专业承包贰级、D237066788 | H196: （鲁）JZ安许证字 〔2012〕010678-01 | I196: 国高青兰线泰安到东阿界第一合同段二分部 | J196: 路基工程 | K196: 张友才 | L196: 13325130832 | M196: 刘顶顶 | N196: C | O196: 路桥集团
A197: 179 | B197: 河南省正航建设工程有限公司 | C197: 兰考县考城镇城北村村委会院内 | D197: 刘伟 | E197: 10600 | F197: 91410100687126135D | G197: 市政公用工程施工总承包壹级；D141101309 | H197: （豫）JZ安许证字 【2010】011705 | I197: 新台项目 | J197: 防护排水工程 | K197: 米宪 | L197: 18763678581 | M197: 王少文 | N197: C | O197: 公路桥梁
A198: 180 | B198: 山东泰岳市政工程有限公司 | C198: 泰安开发区创业大街超越广场 | D198: 孙桂红 | E198: 4200 | F198: 913709027628667755 | G198: 市政公用工程施工总承包贰级；D237131173 | H198: （鲁）JZ安许证字 〔2019〕090779 | I198: 新台项目 | J198: 路基防护工程 | K198: 孟繁腾 | L198: 13335107866 | M198: 王少文 | N198: C | O198: 公路桥梁
A199: 181 | B199: 宜宾市路荣公路建设有限公司 | C199: 四川省宜宾市翠屏区 | D199: 李虹均 | E199: 4008 | F199: 91511500309347782Q | G199: 公路工程施工总承包叁级；施工劳务施工劳务不分等级；市政公用工程总承包叁级；模板脚手架专业承包不分等级等 | H199: （川）JZ安许证字[2016] 002153 | I199: 宜宾快速路 | J199: 路基工程 | K199: 李虹均 | L199: 13002885388 | M199: 王巍 | N199: C | O199: 公路桥梁
A200: 182 | B200: 宜宾盛世高阁建设工程有限公司 | C200: 四川省宜宾市叙州区 | D200: 傅永 | E200: 2018 | F200: 91511529MA68T5ET3E | G200: 施工劳务施工劳务不分等级 | H200: （川）JZ安许证字[2019] 003250 | I200: 宜宾快速路 | J200: 路基工程 | K200: 傅坤 | L200: 18990934818 | M200: 王巍 | N200: C | O200: 公路桥梁
... 17 more rows

Sheet 爆破劳务单位名册
A1: 山东高速路桥集团股份有限公司2019~20年劳务单位信用评价统计汇总表
A2: 序号 | B2: 劳务单位名称 | C2: 注册地址 | D2: 法定代表人 | E2: 注册资本（万元） | F2: 营业执照（统一社会信用代码） | G2: 资质类别、等级，编号 | H2: 安全许可证编号 | I2: 所属项目 | J2: 工程分包内容 | K2: 项目联系人 | L2: 联系人电话 | M2: 证件网上核对人 | N2: 信用等级 | O2: 上报单位
A3: 1 | B3: 三山爆破工程有限公司 | C3: 山东省烟台市芝罘区北大街53号 | D3: 李和利 | E3: 5012 | F3: 9137060072495028XB | G3: 地基基础工程专业承包叁级；爆破贰级，D337114304；3700001300274 | H3: （鲁）JZ安许证字【2005】060268-01 | I3: 京沪二标/新台项目 | J3: 石方爆破路基段，路基土石方（新建段） | K3: 李永青 | L3: 13791213051 | M3: 简晓辉/王少文 | N3: B | O3: 公路桥梁
C4: 山东省烟台市芝罘区北大街53号 | D4: 李和利 | E4: 5012 | F4: 9137060072495028XB | G4: 建筑业企业资质、地基基础工程专业承包三级 、D237114307 | H4: （鲁）JZ安许证字〔2005〕060268-02 | I4: 国高青兰线泰安到东阿界第一合同段二分部 | J4: 爆破工程 | K4: 李永青 | L4: 13791213051 | M4: 刘顶顶 | N4: B | O4: 路桥集团
A5: 2 | B5: 山东鲁昊建设工程有限公司 | C5: 济南市市中区经六路123号 | D5: 张志瀚 | E5: 2100 | F5: 9137010306117029XY | G5: 爆破作业一级 | H5: 3700001300262 | I5: 济南至泰安高速公路 | J5: 爆破工程 | K5: 李庆国 | L5: 13953194478 | M5: 苏子龙 | N5: B | O5: 路桥集团
A6: 3 | B6: 济南兴鲁爆破有限公司 | C6: 济南市历下区二环东路7879号 | D6: 张学科 | E6: 1000 | F6: 91370102742434801R | G6: 爆破作业二级 | H6: / | I6: 济南至泰安高速公路 | J6: 爆破工程 | K6: 卢英明 | L6: 18615520660 | M6: 苏子龙 | N6: B | O6: 路桥集团
A7: 4 | B7: 济南城建集团有限公司 | C7: 济南市天桥区济洛路汽车厂东路29号 | D7: 汤继沂 | E7: 60000 | F7: 91370100163152498L | G7: 爆破作业四级 | H7: （鲁）JZ安许证字【2009】01-0001 | I7: 济南至泰安高速公路 | J7: 爆破工程 | K7: 柴相全 | L7: 15288878529 | M7: 苏子龙 | N7: B | O7: 路桥集团
A8: 5 | B8: 福建省烁龙建设工程有限公司 | C8: 福建省漳州市芗城区浦南镇浦林 | D8: 郝永军 | E8: 2000 | F8: 91350581665053238K | G8: （营业性）爆破二级、3500001300383 | H8: / | I8: 漳浦县公路建设改造工程 | J8: 前亭线、坂旧线石方爆破 | K8: 郝永军 | L8: 13806905583 | M8: 果加民 | N8: B | O8: 路桥集团
A9: 6 | B9: 乳山市龙志爆破工程有限公司 | C9: 乳山市城东工业园二区 | D9: 赵超 | E9: 11500 | F9: 913710837456545276 | G9: 爆破二级资质；3700001300293 | H9: / | I9: 文莱项目四、五合同 | J9: 爆破工程 | K9: 从茂林 | L9: 18660357299 | M9: 王艳娇 | N9: B | O9: 路桥集团
A10: 7 | B10: 江苏省矿业工程集团有限公司 | C10: 南京市鼓楼区集庆门大街268号1幢1512-1514室 | D10: 胡长兴 | E10: 33760.37 | F10: 91320000134778061M | G10: 建筑工程施工总承包壹级、矿山工程施工总承包壹级 D132015398 | H10: 【苏】JZ安许证字[2005]030183 | I10: 枣菏项目 | J10: 石方爆破 | K10: 司卫东 | L10: 18266777769 | M10: 李阳 | N10: B | O10: 公路桥梁
A11: 8 | B11: 泰安市宏达爆破有限公司 | C11: 上高乡施家结庄建筑公司 | D11: 徐太文 | E11: 1060 | F11: 91370902706131686J | G11: 3700001300237 | H11: 3700001300237 | I11: 京沪改扩建 | J11: 爆破工程 | K11: 赵强德 | L11: 18253086669 | M11: 董新星 | N11: B | O11: 路桥集团
A12: 9 | B12: 山东天宝爆破有限公司 | C12: 平邑县蒙阳南路西327国道北 | D12: 裴保华 | E12: 10000 | F12: 913713267861246968 | G12: 矿山工程施工总承包叁级；D337094363 | H12: （鲁）JZ安许证字〔2017〕140737 | I12: 新台项目 | J12: 石方爆破工程 | K12: 孙健 | L12: 18253970560 | M12: 王少文 | N12: B | O12: 公路桥梁
C13: 平邑县市场监督管理局 | D13: 斐保华 | E13: 10000 | F13: 913713267861246968 | G13: D237094366 建筑业矿山工程施工总承包二级 | H13: （鲁）JZ安许证字〔2017〕140737 | I13: 京台四标 | J13: 爆破工程 | K13: 牛庆明 | L13: 13583966339 | M13: 屈庆勋 | N13: B | O13: 路桥集团
A14: 10 | B14: 泰安市泰山爆破有限公司 | C14: 泰安万达广场7号楼12层1211号 | D14: 王教军 | E14: 1020 | F14: 913709021664989538 | G14: 爆破二级；3700001300424 | H14: 3700001300424 | I14: 新台项目 | J14: 石方爆破工程 | K14: 王教亮 | L14: 15063426633 | M14: 王少文 | N14: B | O14: 公路桥梁
C15: 泰安万达广场7号楼12层1211号 | D15: 王教军 | E15: 1020 | F15: 913709021664989538 | G15: 爆破作业二级3700001300424 | H15: 3700001300424 | I15: 国高青兰线泰安到东阿界第一合同段二分部 | J15: 爆破工程 | K15: 邢义勇 | L15: 13793836835 | M15: 刘顶顶 | N15: B | O15: 路桥集团
A16: 11 | B16: 新泰市青云爆破工程有限公司 | C16: 新泰市龙廷镇南站村以西瑞山路以南 | D16: 徐加成 | E16: 6000 | F16: 9137098275087310XM | G16: 爆破三级，3700001300233 | H16: 鲁FM安许证字【2016】09-0001 | I16: 京沪二标 | J16: 石方爆破路基段 | K16: 徐晓龙 | L16: 13468055355 | M16: 简晓辉 | N16: C | O16: 公路桥梁
A17: 12 | B17: 平邑金鹰爆破工程有限公司 | C17: 临沂市平邑县城板桥路与银花路交汇处 | D17: 魏志远 | E17: 2000 | F17: 91371326059038839M | G17: 矿山工程施工总承包叁级；D337142772 | H17: JZ140727 | I17: 新台项目 | J17: 石方爆破工程 | K17: 李修龙 | L17: 17853932221 | M17: 王少文 | N17: C | O17: 公路桥梁

Sheet 路面劳务单位名册
A1: 山东高速路桥集团股份有限公司2019~20年劳务单位信用评价统计汇总表
A2: 序号 | B2: 劳务单位名称 | C2: 注册地址 | D2: 法定代表人 | E2: 注册资本（万元） | F2: 营业执照（统一社会信用代码） | G2: 资质类别、等级，编号 | H2: 安全许可证编号 | I2: 所属项目 | J2: 工程分包内容 | K2: 项目联系人 | L2: 联系人电话 | M2: 证件网上核对人 | N2: 信用等级 | O2: 上报单位
A3: 1 | B3: 四川海鲁川建设工程有限公司 | C3: 四川省攀枝花市东区机场路118号12-3号 | D3: 于业鹏 | E3: 1200 | F3: 91510400MA67Q6NU4J | G3: 市政公用工程施工总承包叁级 D351787780 | H3: (川)JZ安许证字[2018]007296 | I3: 胶州湾高速营海口周边道路综合提升工程 | J3: 中央分隔带渗沟、铣刨原路面、挖除既有人行道、水稳基层摊铺、沥青路面摊铺、水泥稳定风化砂底基层、玻纤格栅、人行道、路缘石安装、病害路面处置等相关工作内容 | K3: 于业鹏 | L3: 18661866567 | M3: 王浩 | N3: A | O3: 鲁桥建设
A4: 2 | B4: 江苏凯翔建设集团有限公司 | C4: 江苏省苏州昆山市开发区黄河南路323号新鼎岸商务大厦1403室 | D4: 徐大文 | E4: 5008 | F4: 913205836725047543 | G4: 建筑工程施工总承包贰级、市政公用工程施工总承包贰级、建筑装修装饰工程专业承包贰级，编号：D232010249 | H4: （苏）JZ安许证字 【2010】053024-2 | I4: 连城县市政基础设施PPP项目 | J4: 东环路道路及管网工程 | K4: 姜在峰 | L4: 15862659466 | M4: 刘昊蔚 | N4: A | O4: 路桥集团
A5: 3 | B5: 山东金路交通实业有限公司 | C5: 山东省潍坊市寿光市寿尧路工业园 | D5: 张小明 | E5: 10000 | F5: 91370783735753230H | G5: D2370104590 | H5: （鲁）JZ安许证字 ﹝2012﹞180501 | I5: 济青二标/京沪二标 | J5: 路面基层 | K5: 胡银生 | L5: 13805362027 | M5: 张航/简晓辉 | N5: A | O5: 公路桥梁
A6: 4 | B6: 江苏颐荣建设工程有限公司 | C6: 盐城市太平路169号水岸名都苑紫荆园 | D6: 姜巍伟 | E6: 2188 | F6: 91320900696741666D | G6: 建筑工程施工总承包叁级D332046708 | H6: （苏）JZ安许证字 〔2011〕090014-02 | I6: 巨单项目 | J6: 路面附属 | K6: 王红霞 | L6: 13805103233 | M6: 裴天宇 | N6: A | O6: 路桥集团
A7: 2 | C7: 盐城市太平路169号水岸名都苑紫荆园Z-10幢102室 | D7: 姜巍伟 | E7: 2188 | F7: 91320900696741666D | G7: 建筑工程施工总承包叁级 地基基础工程专业承包叁级 城市及道路照明专业承包叁级D332046708 | H7: （苏）JZ安许证字 〔2011〕090014-2 | I7: 国道204拓宽改造项目 | J7: 人行道 | K7: 王爱兵 | L7: 13770170932 | M7: 丛磊 | N7: A | O7: 鲁桥建设
A8: 3 | C8: 盐城市太平路169号水岸名都苑紫荆园Z-10幢102室 | D8: 姜巍伟 | E8: 2188 | F8: 91320900696741666D | G8: 建筑工程施工总承包叁级、地基基础工程专业承包叁级、城市及道路照明工程专业承包叁级D332046708 | H8: （苏）JZ安许证字[2011]090014 | I8: 长深高速高青至广饶段路面工程 | J8: 路面附属，通信管道 | K8: 王红霞 | L8: 13805103233 | M8: 时寅辉 | N8: A | O8: 路桥集团
A9: 8 | C9: 盐城市太平路169号水岸名都苑紫荆园Z-10幢102室 | D9: 姜巍伟 | E9: 2188 | F9: 91320900696741666D | G9: 建筑工程施工总承包叁级 地基基础工程专业承包叁级 城市及道路照明工程专业承包叁级D332046708 | H9: (苏)JZ安许证号 【2011】090014-2 | I9: 路面公司文莱项目 | J9: 路面附属 劳务施工 | K9: 周志红 | L9: 13851054959 | M9: 唐友权 | N9: A | O9: 路桥集团
A10: 6 | C10: 江苏省盐城市亭湖区太平路169号水岸名都苑紫荆园Z-10幢102室 | D10: 姜巍伟 | E10: 2188 | F10: 91320900696741666D | G10: 建筑工程施工总承包叁级、地基基础工程专业承包叁级、城市及道路照明工程专业承包叁级、D332046708 | H10: （苏）JZ安许证字 〔2011〕090014-02 | I10: 国高青兰线泰安到东阿界第一合同段二分部 | J10: 路面工程 | K10: 王红霞 | L10: 13805103233 | M10: 刘顶顶 | N10: A | O10: 路桥集团
A11: 3 | C11: 盐城市太平路169号水岸名都苑紫荆园Z-10幢104室 | D11: 姜巍伟 | E11: 2188 | F11: 91320900696741666D | G11: 建筑工程施工总承包三级 、地基基础工程专业承包三级、城市及道路照明工程专业承包三级D332046710 | H11: （苏）JZ安许证字 【2011】090014 | I11: 岚罗项目 | J11: 路面附属工程 | K11: 王红霞 | L11: 13805103233 | M11: 曹文增 | N11: A | O11: 路桥集团
A12: 5 | B12: 齐河龙亭路业有限公司 | C12: 齐河县经济开发区金石大街 | D12: 黄传亭 | E12: 1000 | F12: 91371425771019180P | G12: 市政公用工程施工总承包壹级、D337173436 | H12: （鲁）JZ安许证字 〔2018〕130747 | I12: 国高青兰线泰安到东阿界第一合同段二分部 | J12: 路面工程 | K12: 铉令玉 | L12: 15998779466 | M12: 刘顶顶 | N12: A | O12: 路桥集团
A13: 1 | C13: 齐河县经济开发区金石大街 | D13: 黄传亭 | E13: 1000 | F13: 91371425771019180p | G13: 市政公用工程施工总承包叁级D337173436 | H13: (鲁）JZ安许证字[2018]130747 | I13: 青岛建设有限公司路面项目部 | J13: 路面工程 | K13: 胡胜静 | L13: 17685826868 | M13: 耿才荣 | N13: A | O13: 路桥集团
A14: 3 | C14: 齐河县经济开发区金石大街 | D14: 黄传亭 | E14: 1000 | F14: 91371425771019180P | G14: 市政公用工程施工总承包叁级、D337173436 | H14: （鲁）JZ安许证字 【2018】130747 | I14: 成宜路面/京台三标/枣菏项目 | J14: 路面工程、路面排水工程施工/收费广场 | K14: 黄传亭 | L14: 13905548982 | M14: 李阳 | N14: A | O14: 公路桥梁
A15: 9 | C15: 齐河县经济开发区金石大街 | D15: 黄传亭 | E15: 1000 | F15: 91371425771019180P | G15: 市政公用工程施工总承包叁级D337173436 | H15: （鲁）JZ安许证字[2018]130747-02 | I15: 临枣高速至枣木高速路面工程项目 | J15: 透封粘层 | K15: 杨同东 | L15: 15253463899 | M15: 齐海建 | N15: A | O15: 路桥集团
A16: 6 | B16: 厦门市星海建筑劳务有限公司 | C16: 厦门市思明区南投路3号602之C | D16: 吕济凉 | E16: 2000 | F16: 9.135020079e+17 | G16: 施工劳务不分等级、D335044259 | H16: （闽）JZ安许证字 【2009】000017 | I16: 漳浦县公路建设改造工程 | J16: 前亭线路面工程 | K16: 郑少杰 | L16: 15715055888 | M16: 果加民 | N16: B | O16: 路桥集团
A17: 7 | B17: 福建省集泉建设工程有限公司 | C17: 福建省龙岩市连城县姑田镇上堡村东洋路139-1号 | D17: 庄飞 | E17: 1112 | F17: 91350825MA2YFXKC9K | G17: 公路工程施工总承包叁级、水利水电工程施工总承包叁级、市政公用工程施工总承包叁级 | H17: (闽）JZ安许证字 【2018】LY0001-1 | I17: 连城县市政基础设施PPP项目 | J17: 北大路、莲中南路、江林大道、政府路、中山街管网工程/幸福北路路基及管网 | K17: 黄庆均 | L17: 13950883720 | M17: 刘昊蔚 | N17: B | O17: 路桥集团
A18: 8 | B18: 裕腾建设集团有限公司 | C18: 江苏省昆山市青阳北路108号 | D18: 周琴妹 | E18: 20000 | F18: 9132058375509392X4 | G18: 市政公用工程施工总承包壹级，编号：D132007478 | H18: （苏）JZ安许证字 【2005】051193 | I18: 连城县市政基础设施PPP项目 | J18: 东环路道路及管网工程/浦梅铁路连城火车站站前广场配套设施项目临建工程 | K18: 周小明 | L18: 13812956186 | M18: 刘昊蔚 | N18: B | O18: 路桥集团
A19: 9 | B19: 四川名胜建筑工程有限公司 | C19: 成都市青羊区瑞联路165号附5号1号 | D19: 周在猛 | E19: 1000 | F19: 91510100MA6DFB861J | G19: 公路工程施工总承包贰级； 公路路面工程专业承包贰级； 公路路基工程专业承包贰级D351720774 | H19: （川）JZ安许证字 【2018】001291 | I19: 路面公司文莱项目 | J19: K57+965-K69+967.445范围内垫层、水稳风化砂+碎石底基层、水稳基层前场施工等一切与此内容有关的劳务作业 | K19: 周国强 | L19: 15098217966 | M19: 唐友权 | N19: B | O19: 路桥集团
A20: 1 | C20: 成都市青羊区瑞联路165号附5号1层 | D20: 周在猛 | E20: 1000 | F20: 91510100MA6FB861J | G20: 公路工程施工总承包三级D351720774 | H20: （川）JZ安许证字 【2018】001291 | I20: 京台五标一分部/2019年养护专项工程（乐自、乐宜高速） | J20: 水稳、沥青摊铺/乐自高速：水泥混凝土路面挖除、精铣刨水泥混凝土路面、高粘SMA-10路面摊铺、贴补压缝带 乐宜高速：MS-3型微表处、SBS改性热沥青灌缝 | K20: 周在猛/张明昌 | L20: 17662723333 | M20: 邴召建 | N20: B | O20: 鲁桥建设
A21: 5 | C21: 成都蜀青羊区瑞联165号附5号1层 | D21: 周在猛 | E21: 1000 | F21: 91510100MA6DFB861J | G21: 公路工程施工总承包叁级、D351720774 | H21: （川）JZ安许证字 【2018】001291 | I21: 泸黄项目/京沪二标 | J21: 路面工程/路基防护（拼宽段） | K21: 刘雾亮/丛骏达 | L21: 17753032911/18669330796 | M21: 简晓辉 | N21: B | O21: 公路桥梁
A22: 18 | C22: 成都市青羊区瑞联路165号附5号1层 | D22: 周在猛 | E22: 1000 | F22: 91510100MA6DFB861J | G22: 公路工程施工总承包叁级、公路路面工程专业承包叁级、公路路基工程专业承包叁级D351720774 | H22: （川）JZ安许证书[2018]001291 | I22: 长深高速高青至广饶段路面工程 | J22: 水稳摊铺 | K22: 许玉君 | L22: 15553871234 | M22: 时寅辉 | N22: B | O22: 路桥集团
A23: 10 | B23: 福建省融沙建设工程有限公司 | C23: 福建省福州市福清市沙埔镇人民政府旧政府附属办公室海津路路西70号 | D23: 高长云 | E23: 18000 | F23: 91350181MA31L8AL5M | G23: 施工劳务不分等级、D335108390 | H23: （闽）JZ安许证字 【2018】XM0017 | I23: 漳浦县公路建设改造工程 | J23: 官浔线路面、交安工程 | K23: 胡建维 | L23: 13809500408 | M23: 果加民 | N23: B | O23: 路桥集团
A24: 11 | B24: 镇江蓝舶科技股份有限公司 | C24: 镇江市禹山路338号 | D24: 郭庆莲 | E24: 5000 | F24: 91321100141444123J | G24: 防水防腐保温工程专业承包一级 D232001923 | H24: 【苏】JZ安许证字[2005]110177-1 | I24: 南京浦仪公路西段路面工程施工项目L1标段 | J24: 路面工程 | K24: 徐斌 | L24: 15706106365 | M24: 郭成 | N24: B | O24: 路桥集团
A25: 12 | B25: 江苏宝建建设工程有限公司 | C25: 盐城市盐都区盐渎街道中远世纪城C幢1008室（C） | D25: 王爱余 | E25: 1008 | F25: 913209033138444826 | G25: 建筑工程施工总承包叁级、市政公用工程施工总承包叁级、地基基础工程专业承包叁级D332121495 | H25: （苏）JZ安许证字[2017]900039 | I25: 长深高速高青至广饶段路面工程 | J25: 路面附属，通信管道 | K25: 王涛 | L25: 15950232018 | M25: 时寅辉 | N25: B | O25: 路桥集团
A26: 13 | B26: 安徽筑煌建筑工程有限公司 | C26: 安徽合肥市庐阳区濉溪路9号富荣大厦709室 | D26: 时洪兵 | E26: 500 | F26: 91340100MA2NMWY212(1-1) | G26: 施工劳务不分等级 D334122069 | H26: (皖)JZ安许证号 【2018】007352-2-1 | I26: 路面公司文莱项目 | J26: 沥青面层 劳务施工 | K26: 时洪兵 | L26: 13814617192 | M26: 唐友权 | N26: B | O26: 路桥集团
A27: 15 | C27: 安徽省合肥市庐阳区濉溪路9号富荣大厦709室 | D27: 时洪兵 | E27: 500 | F27: 91340100MA2NMWY212 | G27: 施工劳务不分等级D334122069 | H27: （皖）JZ安许证书[2018]007352 | I27: 长深高速高青至广饶段路面工程 | J27: 沥青摊铺 | K27: 时洪兵 | L27: 13814617192 | M27: 时寅辉 | N27: B | O27: 路桥集团
A28: 10 | C28: 安徽省合肥市庐阳区濉溪路9号富荣大厦709室 | D28: 时红兵 | E28: 500 | F28: 91340100MA2NMWY212（1-1） | G28: 施工劳务不分等级 | H28: (皖)JZ安许证字[2018]007352 | I28: 福建安溪项目 | J28: 路面基层 | K28: 殷方武 | L28: 15968102318 | M28: 周胜福 | N28: B | O28: 路桥集团
A29: 1 | C29: 安徽省合肥市庐阳区 | D29: 时洪兵 | E29: 500 | F29: 91340100MA2NMWY212 | G29: 劳务分包不分等级D334122069 | H29: (皖)JZ安许证字（2018）007352-2-1 | I29: 杭州湾绿色养护（嘉兴）股份有限公司 | J29: 沥青摊铺 | K29: 崔根兵 | L29: 15068898858 | M29: 张德宇 | N29: B | O29: 路桥集团
A30: 14 | B30: 济南汇聚路桥工程有限公司 | C30: 济南市高新区 | D30: 范镇镇 | E30: 1000 | F30: 91370100084021772Y | G30: 施工劳务不分等级 D337177258 | H30: (鲁）JZ安许证字[2018]012181-01 | I30: 济青项目养护事业部 | J30: 路肩排水及路缘石安装 | K30: 范镇镇 | L30: 18888319666 | M30: 晁国昕 | N30: B | O30: 鲁桥建设
A31: 15 | B31: 四川宁昌建设工程有限公司 | C31: 四川省成都市成华区双建路170号1栋5单元1层170号 | D31: 黄俊东 | E31: 1000 | F31: 91510108MA64NTRG95 | G31: 施工劳务不分等级D351919052 | H31: （川）JZ安许证字[2019]006180 | I31: 京台五标一分部 | J31: 粘封透洒布 | K31: 李俭军 | L31: 18563195180 | M31: 邴召建 | N31: B | O31: 鲁桥建设
A32: 2 | C32: 四川省成都市成华区双建路170号1栋5单元1层170号 | D32: 周在猛 | E32: 1000 | F32: 91510108MA64NTRG95 | G32: 施工劳务不分等级D351919052 | H32: （川）JZ安许证字[2019]006180 | I32: 潍日高速公路潍坊连接线 | J32: 沥青混合料前场摊铺 | K32: 许玉君 | L32: 15552382875 | M32: 赵永杰 | N32: B | O32: 路桥集团
A33: 33 | C33: 四川省成都市成华区双建路170号1栋5单元1层170号 | D33: 周在猛 | E33: 1000 | F33: 91510108MA64NTRG95 | G33: 施工劳务不分等级D351919052 | H33: （川）JZ安许证字[2019]006180 | I33: 武平PPP项目 | J33: 水稳、级配碎石、沥青面层摊铺、拌和、运输 | K33: 王后田 | L33: 15265803766 | M33: 吴庆龙 | N33: B | O33: 路桥集团
A34: 16 | B34: 四川海亿达盛公路工程有限公司 | C34: 四川省攀枝花市仁和区攀枝花大道南段1049号2栋2单元8号 | D34: 苑相同 | E34: 1200 | F34: 91370214713773492G | G34: 建筑工程施工总承包叁级D351847251 | H34: （川）JZ安许证字[2019]001313 | I34: 国道204拓宽改造项目 | J34: 路缘石施工/人行道 | K34: 苑伟 | L34: 15808101767 | M34: 丛磊 | N34: B | O34: 鲁桥建设
A35: 17 | B35: 山东舜龙市政工程有限公司 | C35: 山东省济南市长清区文昌街道办事处经十西路15551号 | D35: 宋文彬 | E35: 10000 | F35: 91370113MA3CC5MK6P | G35: 市政公用工程总承包贰级D237143517 | H35: （鲁）JZ安许证字[2018]012074-01 | I35: 国道204拓宽改造项目 | J35: 路缘石施工/人行道 | K35: 胡晓明 | L35: 13589145999 | M35: 丛磊 | N35: B | O35: 鲁桥建设
A36: 18 | B36: 山东昌源市政景观建设有限公司 | C36: 山东省潍坊市峡山区太保庄街道驻地峡瑞街005号 | D36: 倪强 | E36: 4000 | F36: 91370700791510583K | G36: 建筑业市政公用工程施工总承包贰级 | H36: （鲁）JZ安许证字 〔2011〕07-0056 | I36: 国道204拓宽改造项目 | J36: 路面基层施工 | K36: 王明忠 | L36: 13964798837 | M36: 丛磊 | N36: B | O36: 鲁桥建设
A37: 19 | B37: 山东瑞达路桥工程有限公司 | C37: 山东省潍坊市潍城区 | D37: 于瑞群 | E37: 5000 | F37: 913707027973264450 | G37: 市政公用工程施工总承包贰级，D237122899 | H37: （鲁）JZ安许证字 【2018】071110 | I37: 京沪二标/330/济青二标/新台项目 | J37: 路面基层（拼宽段）、路基工程/防护排水工程 | K37: 王清国 | L37: 13561401555 | M37: 简晓辉/刘继文/张航/王少文 | N37: B | O37: 公路桥梁
A38: 20 | B38: 山东大地公路工程有限公司 | C38: 山东省临沂市沂水县道托镇后官庄村 | D38: 李青蓉 | E38: 4000 | F38: 91371323590323570N | G38: 建筑业公路工程施工总承包二级D237073614 | H38: （鲁）JZ安许证字（2015）180974 | I38: 京台五标一分部 | J38: 路缘石安装、路肩排水 | K38: 王强 | L38: 18668931134 | M38: 邴召建 | N38: B | O38: 鲁桥建设
A39: 21 | B39: 四川启源盛隆建设工程有限公司 | C39: 成都市锦江区静沙南路18号2栋20层2001号 | D39: 孙合井 | E39: 1000 | F39: 91510104MA6CCJFP6X | G39: 施工劳务施工劳务不分等级D351820099 | H39: （川）JZ安许证书[2018]007656 | I39: 长深高速高青至广饶段路面工程 | J39: 水稳拌和 沥青拌合 | K39: 孙合井 | L39: 18854020936 | M39: 时寅辉 | N39: B | O39: 路桥集团
A40: 29 | C40: 成都市锦江区静沙南路18号2栋20层2001号 | D40: 孙合井 | E40: 1000 | F40: 91510104MA6CCJFP6X | G40: 施工劳务不分等级；D351820099 | H40: （川）JZ安许证字 【2018】007656 | I40: 路面公司文莱项目 | J40: K57+965-K69+967.445范围内水稳拌和施工。 | K40: 孙合井 | L40: 15864667500 | M40: 唐友权 | N40: B | O40: 路桥集团
A41: 22 | B41: 齐河隆昌建筑工程有限责任公司 | C41: 齐河县城永乐街21号 | D41: 王吉春 | E41: 2200 | F41: 913714258630447386 | G41: 建筑工程施工总承包贰级D237025990 | H41: （鲁）JZ安许证字[2005]130070 | I41: 临枣高速至枣木高速路面工程项目 | J41: 路面附属 | K41: 路振阳 | L41: 18678381143 | M41: 齐海建 | N41: B | O41: 路桥集团
A42: 23 | B42: 臻匠建设工程有限公司 | C42: 滕州市姜屯镇大彦西村北首 | D42: 宋乐前 | E42: 5000 | F42: 91370481MA3MGF73XC | G42: 建筑业城市及道路照明工程专业承包三级;建筑业市政公用工程施工总承包三级D337169186 | H42: （鲁）JZ安许证字[2018]040529-01 | I42: 京台五标二分部 | J42: 老路面铣刨工程 | K42: 刘宜强 | L42: 13306373837 | M42: 周丰禄 | N42: B | O42: 鲁桥建设
A43: 24 | B43: 四川路顺众安建筑工程有限公司 | C43: 四川省攀枝花市仁和区攀枝花大道南段1049号2栋2单元8号 | D43: 刘新秀 | E43: 1200 | F43: 91510400MA64832Y4T | G43: 建筑工程施工总承包叁级D351875179 | H43: （川）JZ安许证字 〔2019〕002044 | I43: 国道204拓宽改造项目/胶州湾高速营海口周边道路综合提升工程 | J43: 路缘石施工/人行道/粘层、透层、封层施工 | K43: 江少场 | L43: 13791751122 | M43: 丛磊 | N43: B | O43: 鲁桥建设
A44: 25 | B44: 青岛众安路桥工程有限公司 | C44: 青岛市城阳区上马工业园 | D44: 陈福序 | E44: 3000 | F44: 91370214750410420W | G44: 市政公用工程施工总承包贰级D237118839 | H44: （鲁）JZ安许证字 〔2010〕02-0044 | I44: 国道204拓宽改造项目 | J44: 人行道 | K44: 吴秀芝 | L44: 18661973739 | M44: 丛磊 | N44: B | O44: 鲁桥建设
A45: 26 | B45: 合肥畅和公路工程有限公司 | C45: 合肥市蜀山区汶水路电商园三期 | D45: 王怀刚 | E45: 200 | F45: 91340111MA2N4JCR2Q | G45: 施工劳务不分等级D334125283 | H45: （皖）JZ安许证书[2018]007096 | I45: 巨单项目 | J45: 水稳、面层 | K45: 王怀刚 | L45: 18678601779 | M45: 裴天宇 | N45: B | O45: 路桥集团
C46: 合肥市蜀山区汶水路电商园 | D46: 王怀刚 | E46: 200 | F46: 91340111MA2N4JCR2Q | G46: 施工劳务不分等级 D334125283 | H46: （皖）JZ安许证字 【2018】007096 | I46: 南京浦仪公路西段路面工程施工项目L1标段 | J46: 路面工程 | K46: 王怀刚 | L46: 18567979333 | M46: 郭成 | N46: B | O46: 路桥集团
C47: 合肥市蜀山区 | D47: 王怀刚 | E47: 200 | F47: 91340111MA2N4JCR2Q | G47: 施工劳务不分等级，D334125283 | H47: （皖）JZ安许证字 〔2018〕007096 | I47: 济青改扩建第六标段 | J47: 路面水稳层施工 | K47: 霍明启 | L47: 17854017888 | M47: 李和平 | N47: B | O47: 鲁桥建设
C48: 合肥市蜀山区汶水路电商园三期2号楼A区8层8663室 | D48: 王怀刚 | E48: 200 | F48: 91340111MA2N4JCR2Q | G48: 施工劳务不分等级D334125283 | H48: （皖）JZ安许证书[2018]007096 | I48: 长深高速高青至广饶段路面工程 | J48: 沥青摊铺 | K48: 王怀刚 | L48: 18055195206 | M48: 时寅辉 | N48: B | O48: 路桥集团
A49: 27 | B49: 漳州市信德劳务服务有限公司 | C49: 福建省漳州市龙文区龙江路以东、水仙大街以北明发商业广场7幢2007、2008号 | D49: 杨克荣 | E49: 2000 | F49: 91350603M0001QHF88 | G49: 施工劳务不分等级D335065821 | H49: （闽）JZ安许证书[2016]ZZ0040 | I49: 长深高速高青至广饶段路面工程 | J49: 沥青拌合 | K49: 时洪兵 | L49: 13814617192 | M49: 时寅辉 | N49: B | O49: 路桥集团
A50: 28 | B50: 福建省冠腾建设工程有限公司 | C50: 连城县朋口镇朋城村建新路C幢5号 | D50: 张冬花 | E50: 1508 | F50: 91350825066597938J | G50: 市政公用工程施工总承包叁级、施工劳务不分等级 | H50: （闽）JZ安许证字 【2017】LY0027-1 | I50: 连城县市政基础设施PPP项目 | J50: 北大路、政府路、路面工程/幸福北路结构物工程 | K50: 李通红 | L50: 15860129021 | M50: 刘昊蔚 | N50: B | O50: 路桥集团
A51: 29 | B51: 山东绿桥环境设计有限公司 | C51: 泰安市东岳大街小区11#-2-501 | D51: 郝奎士 | E51: 1001 | F51: 91370900782304219C | G51: 建筑业市政公用工程施工总承包二级D237137973 | H51: (鲁)JZ安许证字[2016]09-0027 | I51: 京台五标一分部 | J51: 粘封透洒布 | K51: 张涛 | L51: 13953888818 | M51: 邴召建 | N51: B | O51: 鲁桥建设
A52: 30 | B52: 四川九亿建筑工程有限公司 | C52: 中国（四川）自由贸易试验区成都高新区 | D52: 刘娱吉 | E52: 2016 | F52: 91510100MA62NB179E | G52: 公路工程施工总承包叁级、地基基础工程专业承包叁级、公路路面工程专业承包叁级、D351640133 | H52: （川）JZ安许证字 【2017】002854 | I52: 成宜路面 | J52: 路面排水工程施工 | K52: 谭开富 | L52: 18781317555 | M52: 李霞 | N52: B | O52: 公路桥梁
A53: 31 | B53: 四川华懋基础工程有限公司 | C53: 成都蜀青羊区敬业路108号5栋2号 | D53: 谭金富 | E53: 1000 | F53: 91510105086678110J | G53: 地基基础工程专业承包贰级、D251622826 | H53: （川）JZ安许证字 【2016】000176 | I53: 泸黄项目 | J53: 路面工程 | K53: 谭金富 | L53: 15883698301 | M53: 李霞 | N53: B | O53: 公路桥梁
A54: 32 | B54: 山东安顺达路桥工程有限公司 | C54: 济南商河 | D54: 张晓英 | E54: 2200 | F54: 91370126MA3C9LXT7F | G54: 市政公用工程施工总承包叁级 D337145462 | H54: 鲁JZ安许证字[2017]01-0164 | I54: 济青项目养护事业部 | J54: 路面工程-沥青洒布 | K54: 郭家成 | L54: 15688883978 | M54: 晁国昕 | N54: B | O54: 鲁桥建设
A55: 33 | B55: 山东清蓝新能源发展有限公司 | C55: 威海临港经济技术开发区市场监督管理局 | D55: 王树明 | E55: 2000 | F55: 9137100079616873XP | G55: D337060241建筑工程施工总承包叁级 | H55: (鲁)JZ安许证字[2015]10-0058 | I55: 京台四标 | J55: 路基水稳基层 | K55: 胡永庆 | L55: 13156988222 | M55: 屈庆勋 | N55: B | O55: 路桥集团
A56: 34 | B56: 四川泰通交通工程有限公司 | C56: 成都蜀青羊区敬业路108号T区5幢 | D56: 杨明松 | E56: 7000 | F56: 91510000687921227A | G56: 公路工程施工总承包贰级、D251455188 | H56: （川）JZ安许证2 【2012】000596 | I56: 泸黄项目 | J56: 路面工程 | K56: 钟邦厅 | L56: 15883698301 | M56: 李霞 | N56: B | O56: 公路桥梁
A57: 35 | B57: 山东乾鑫市政建设工程有限公司 | C57: 济阳区市场监督管理局 | D57: 梁富贵 | E57: 10000 | F57: 91370125MA3CEWJD4C | G57: D337155626市政公用工程施工总承包三级 | H57: （鲁）JZ安许证字 〔2018〕012274 | I57: 京台四标 | J57: 路基路面附属 | K57: 裴全师 | L57: 15066140786 | M57: 屈庆勋 | N57: B | O57: 路桥集团
A58: 36 | B58: 德州宏大市政工程总公司 | C58: 德州市陵城区经济开发区武佑街南首路西 | D58: 姜有祥 | E58: 2416.68 | F58: 913714211673727461 | G58: 建筑工程施工总承包叁级、地基基础工程专业承包叁级 | H58: （鲁）JZ安许证字[2018]130721-02 | I58: 临枣高速至枣木高速路面工程项目 | J58: 沥青施工 | K58: 孙忠义 | L58: 13969202218 | M58: 齐海建 | N58: B | O58: 路桥集团
A59: 37 | B59: 徐州市恒通建筑劳务有限公司 | C59: 沛县安国镇王陵路19号 | D59: 孙存宣 | E59: 2000 | F59: 9132032267739041197 | G59: 模板脚手架专业承包不分等级D332031448 | H59: （苏）JZ安许证[2012]032007 | I59: 巨单项目 | J59: 路缘石 | K59: 吴志坚 | L59: 18913493333 | M59: 裴天宇 | N59: B | O59: 路桥集团
A60: 38 | B60: 龙岩市杰新钢结构工程有限公司 | C60: 龙岩经济技术开发区联发路1号 | D60: 邱杰 | E60: 2200 | F60: 913508007395270116 | G60: 钢结构工程专业承包壹级 | H60: （闽）JZ安许证字 【2005】000259-1 | I60: 连城县市政基础设施PPP项目 | J60: 莲中南路人行天桥工程 | K60: 邱明 | L60: 13860259733 | M60: 刘昊蔚 | N60: B | O60: 路桥集团
A61: 39 | B61: 山东耀星市政工程有限公司 | C61: 淄博桓台县索镇西苑生活区34号楼10号房 | D61: 巩增尧 | E61: 2080 | F61: 91370321593627289G | G61: 市政公用工程施工总承包叁级D337119740 | H61: （鲁）JZ安许证字[2013]03-0062 | I61: 国道204拓宽改造项目 | J61: 路缘石施工 | K61: 李宜国 | L61: 17662835866 | M61: 丛磊 | N61: B | O61: 鲁桥建设
A62: 40 | B62: 攀枝花禾瑞达市政工程有限公司 | C62: 四川省攀枝花市东区德阳巷15附2号的4、5号房 | D62: 何兰 | E62: 1200 | F62: 91510400MA6763Q94A | G62: 市政公用工程施工总承包叁级D351771784 | H62: （川）JZ安许证字 【2018】004985 | I62: 攀枝花米易项目 | J62: 路面工程 | K62: 邝志远 | L62: 135509 26166 | M62: 李忠林 | N62: B | O62: 鲁桥建设
A63: 41 | B63: 福建春宏建设工程有限公司 | C63: 上杭县临城镇紫金路金七巷10号 | D63: 陈满玉 | E63: 2600 | F63: 913508236650509851 | G63: 市政公用工程施工总承包二级、建筑工程施工总承包二级、城市及道路工程专业承包二级、建筑装修装饰工程专业承包二级、钢结构工程专业承包二级、水防设施工程专业承包二级D235027402 | H63: （闽）JZ安许证字{2007}000128 | I63: 武平PPP项目 | J63: 混凝土面板、路肩、路缘石、人行道 | K63: 胡标灯 | L63: 13559983219 | M63: 吴庆龙 | N63: B | O63: 路桥集团
A64: 42 | B64: 潍坊大益公路工程养护有限公司 | C64: 潍坊市奎文区樱前街13291号九龙大厦532号 | D64: 梁仁强 | E64: 100 | F64: 91370705065946681B | G64: 公路工程养护施工专业承包叁级 D137043367 | H64: （鲁）JZ安许证字[2015]0615852 | I64: 胶州湾高速营海口周边道路综合提升工程 | J64: 粘层、透层、封层施工 | K64: 梁仁明 | L64: 0536-8866037 | M64: 王浩 | N64: B | O64: 鲁桥建设
A65: 43 | B65: 定陶县通源路桥工程有限公司 | C65: 定陶县青年南路A段154号（水务局院内） | D65: 何有军 | E65: 1005 | F65: 913717277710484326 | G65: 公路工程施工总承包叁级 D337068763 | H65: 【鲁】JZ安许证字[2016]180962-01 | I65: 枣菏项目 | J65: 路面垫层、底基层、基层Ⅰ（主线K31+500-K40+566） | K65: 何有军 | L65: 0530-2119988 | M65: 李阳 | N65: B | O65: 公路桥梁
A66: 12 | C66: 定陶县青年南路A段154号（水务局院内） | D66: 何有军 | E66: 1005 | F66: 913717277710484326 | G66: 建筑业企业资质、公路工程施工总承包三级 、D337068762 | H66: 【鲁】JZ安许证字[2016]180962-01 | I66: 岚罗项目 | J66: 路面基层摊铺 | K66: 闫东升 | L66: 18854081919 | M66: 曹文增 | N66: B | O66: 路桥集团
A67: 44 | B67: 山东畅通集团股份有限公司 | C67: 山东省济青高速公路高密北对面 | D67: 王成琪 | E67: 100000 | F67: 91370700720739364A | G67: 市政公用工程施工总承包贰级D237047006 | H67: (鲁）JZ安许证字[2006]180438-03 | I67: 青岛建设有限公司路面项目部 | J67: 路面工程 | K67: 胡胜静 | L67: 17685826868 | M67: 耿才荣 | N67: B | O67: 路桥集团
A68: 45 | B68: 四川天创劳务有限公司 | C68: 内江市东兴区兴盛路618号1-4号 | D68: 吴茂华 | E68: 12000 | F68: 915110110689532542 | G68: 施工劳务施工劳务不分等级/D351477209 | H68: (川）JZ安许证字[2014]002686 | I68: 内江项目 | J68: 路面工程（基层、面层） | K68: 熊俊安 | L68: 15828411480 | M68: 李豪 | N68: B | O68: 公路桥梁
A69: 46 | B69: 山东微山湖建设工程有限公司 | C69: 微山县夏镇城后路 | D69: 高兴龙 | E69: 3000 | F69: 913708267478143607 | G69: 公路路基工程专业承包贰级 D237108457 | H69: 【鲁】JZ安许证字[2013]180827-02 | I69: 枣菏项目 | J69: 微山连接线路基土石方-沥青路面Ⅰ（主线K31+500-K50+456） | K69: 高兴龙 | L69: 0537-8556606 | M69: 李阳 | N69: B | O69: 公路桥梁
A70: 47 | B70: 四川恒宝建筑工程有限公司 | C70: 成都市武侯区高华横街33号1栋2单元10层1009号 | D70: 张元 | E70: 5011 | F70: 915100005707466214 | G70: 公路工程施工总承包叁级、桥梁工程专业承包叁级、D351860869 | H70: （川）JZ安许证字 【2011】001172 | I70: 成宜路面 | J70: 沥青拌和站临建工程施工 | K70: 吕平丰 | L70: 13990341760 | M70: 李霞 | N70: B | O70: 公路桥梁
A71: 48 | B71: 济南通达公路工程有限公司 | C71: 章丘市明水西外环路北段 | D71: 刘国桢 | E71: 50100 | F71: 913701817874104081 | G71: D137056325 | H71: （鲁）JZ安许证字[2015]181198-01 | I71: 济青二标 | J71: 路面基层 | K71: 朱建新 | L71: 18105416562 | M71: 张航 | N71: B | O71: 公路桥梁
A72: 49 | B72: 山东林海建筑安装工程有限公司 | C72: 山东省日照市东港区大沙洼林场 | D72: 毕思玲 | E72: 6000 | F72: 9137110073171930XP | G72: 建筑业城市及道路照明工程专业承包三级 、建筑业地基基础工程专业承包三级 建筑业钢结构工程专业承包三级 、建筑业环保工程专业承包三级 建筑业建筑机电安装工程专业承包三级 、建筑业模板脚手架专业承包不分等级 建筑业施工劳务不分等级 、建筑业市政公用工程施工总承包三级；D337052355 | H72: (鲁）JZ安许证字[2017]110048 | I72: 路面公司文莱项目 | J72: K45+900-K57+965范围内垫层、水稳风化砂+碎石底基层、水稳基层前场施工等一切与此内容有关的劳务作业 | K72: 张凤 | L72: 13969051507 | M72: 唐友权 | N72: B | O72: 路桥集团
A73: 50 | B73: 四川堂金建筑工程有限公司 | C73: 四川省成都市金堂县赵镇十里大道一段120号 | D73: 韩滔 | E73: 2000 | F73: 91510121MA62MM632Y | G73: 施工劳务不分等级、D351609433 | H73: （川）JZ安许证字 【2017】006442 | I73: 成宜路面/宜宾快速路 | J73: K27+000-K41+599.5路基改善层、路面底基层、路面基层工程施工/碎石桩 | K73: 王明辉 | L73: 13568953173 | M73: 李霞 | N73: B | O73: 公路桥梁
A74: 51 | B74: 湖北奥鼎盈天建设工程有限公司 | C74: 武汉市汉南区纱帽街汉南大道39号汉南家园三期2栋1层商2 | D74: 戚琴芳 | E74: 1000 | F74: 91420113MA4KYE1X2T | G74: 公路工程施工总承包叁级 桥梁工程专业承包叁级 隧道工程专业承包叁级 公路路面工程专业承包叁级 公路路基工程专业承包叁级D342186188 | H74: (鄂）JZ安许证字[2018]026676-1/2 | I74: 路面公司文莱项目 | J74: K45+900-K57+965范围内水稳拌和施工。 | K74: 林平 | L74: 13777390336 | M74: 唐友权 | N74: B | O74: 路桥集团
A75: 52 | B75: 山东龙口富龙工程机械有限公司 | C75: 黄城牟黄路商城对面 | D75: 尚涛 | E75: 3500 | F75: 91370681734704496X | G75: 公路工程施工总承包贰级 公路路面工程专业承包贰级 公路路基工程专业承包贰级D237055136 | H75: (鲁)JZ安许证号 【2006】180547-02 | I75: 路面公司文莱项目 | J75: 路缘石 劳务施工 | K75: 曾宪东 | L75: 15953527958 | M75: 唐友权 | N75: B | O75: 路桥集团
A76: 53 | B76: 乐山市和盛建设工程有限公司 | C76: 乐山市市中区罗槽巷19号 | D76: 刘前英 | E76: 2100 | F76: 915111003093064465 | G76: D351630785 公路工程施工总承包三级 市政公用工程施工总承包三级 公路路面工程专业承包三级 | H76: （川）JZ安许证字 【2017】002301 | I76: 乐自高速乐山大佛收费站及九峰连接线提升改造工程 | J76: 铣刨旧路面、粘贴防裂卷材、4cmSBS改性沥青砼上面层（SMA-13）摊铺、粘层撒布、6cm厚普通沥青砼下面层(AC-20C）摊铺、20cm厚C30砼基层浇筑、20cm级配碎石底基层摊铺 | K76: 张明昌 | L76: 18784590086 | M76: 高超 | N76: B | O76: 鲁桥建设
A77: 54 | B77: 四川中亿腾建筑工程有限公司 | C77: 成都市锦江区一环路东五段46号1幢6层12号 | D77: 翟长军 | E77: 5000 | F77: 91510104MA6C5B487A | G77: 建筑工程施工总承包叁级、市政公用工程施工总承包叁级/D351766692 | H77: (川）JZ安许证字[2018]005491 | I77: 内江项目 | J77: 人行道工程 | K77: 翟长军 | L77: 17760178777 | M77: 李豪 | N77: B | O77: 公路桥梁
A78: 55 | B78: 徐州市防腐工程总公司 | C78: 徐州市民主北路219号 | D78: 李庆彬 | E78: 612 | F78: 91320300136480525C | G78: 防水防腐保温工程专业承包贰级 | H78: （苏）JZ安许证字[2005]030057 | I78: 南京浦仪公路西段路面工程施工项目L1标段 | J78: 路面工程 | K78: 韩光超 | L78: 15262132666 | M78: 郭成 | N78: C | O78: 路桥集团
A79: 56 | B79: 安徽国顺机械工程有限公司 | C79: 安徽省长丰县岗集镇 | D79: 王善俊 | E79: 1000 | F79: 91340121MA2NBK874J | G79: 施工劳务不分等级D334155495 | H79: （皖）JZ安许证字（2018）010270 | I79: 南京浦仪公路西段路面工程施工项目L1标段 | J79: 路面工程 | K79: 陈威 | L79: 18715628000 | M79: 郭成 | N79: C | O79: 路桥集团
A80: 57 | B80: 江西聚源人力资源有限公司 | C80: 江西省抚州市抚州高新技术产业开发区城西创业园（安石大道以北伍塘路以东 | D80: 宋玲梅 | E80: 3000 | F80: 91361003MA35LYC78J | G80: 模板脚手架专业承包不分等级/施工劳务资质不分等级，D336095844 | H80: (赣)JZ安许证字[2018]060022-1/2 | I80: 江西抚州 | J80: 包括混凝土路面、级配碎石、水泥稳定碎石、路床(槽）整形、人行道块料铺设、人行道整形碾压、路缘石安装、树池砌筑、人孔井砌筑等劳务分包工作。 | K80: 周晓林 | L80: 13970475016 | M80: 李德义 | N80: C | O80: 路桥集团
A81: 58 | B81: 四川嘉合兴建筑劳务有限公司 | C81: 成都市青羊区青羊大道99号37栋18层1801号 | D81: 蒋剑英 | E81: 5880 | F81: 9151010539525010XM | G81: 混凝土作业劳务分包不分等级、脚手架作业劳务分包壹级、模板作业劳务分包壹级、C5074051010500-1027 | H81: （川）JZ安许证字 【2015】0A0772 | I81: 成宜路面 | J81: 路面排水工程施工 | K81: 余文贤 | L81: 13708217762 | M81: 李霞 | N81: C | O81: 公路桥梁
A82: 59 | B82: 山东益通安装有限公司 | C82: 山东省泰安市肥城市孙伯大街34号 | D82: 雷印智 | E82: 10000 | F82: 91370983166602749w | G82: 建筑工程施工总承包叁级、电力工程施工总承包叁级、冶金工程施工总承包叁级、环保工程专业承包叁级、D337063641、D237063644 | H82: （鲁）JZ安许证字 〔2005〕090006-01 | I82: 国高青兰线泰安到东阿界第一合同段二分部 | J82: 路面工程 | K82: 刘海明 | L82: 15662446789 | M82: 刘顶顶 | N82: C | O82: 路桥集团
A83: 60 | B83: 上海乐辛新材料科技有限公司 | C83: 上海市嘉定区沪宜公路3638号2幢J943室 | D83: 史乐 | E83: 1000 | F83: 91310114MA1GTTMX07 | G83: 防水防腐保温工程专业承包二级 | H83: （沪）JZ安许证字[2019]141568 | I83: 南京浦仪公路西段路面工程施工项目L1标段 | J83: 路面工程 | K83: 洪昱 | L83: 18616360094 | M83: 郭成 | N83: C | O83: 路桥集团
A84: 61 | B84: 青岛胶州南关建安股份有限公司 | C84: 青岛市胶州市扬州西路45号 | D84: 赵焕鑫 | E84: 8031 | F84: 91370200706497776P | G84: 市政公用工程施工总承包叁级 | H84: （鲁）JZ安许证字[2005]020038-01 | I84: 胶州市2019年农村公路大中修工程二标段 | J84: 路缘石工程施工 | K84: 曹书坤 | L84: 15553203877 | M84: 张鑫 | N84: C | O84: 鲁桥建设
A85: 62 | B85: 陕西云门山建设有限公司 | C85: 西安市未央区太花北路先锋花园南区15号楼2001室 | D85: 刘兴田 | E85: 1000 | F85: 91610103MA6W3386R | G85: 市政公用工程施工总承包叁级DW361132321 | H85: （陕）JZ安许证字[2019]010229-2/1 | I85: 京台五标一分部 | J85: 路缘石安装、路肩排水 | K85: 刘洪田 | L85: 18765151888 | M85: 邴召建 | N85: C | O85: 鲁桥建设
A86: 63 | B86: 枣庄市金地建筑工程有限公司 | C86: 枣庄市峄城区底阁镇甘露沟村吴底路南 | D86: 马士申 | E86: 600 | F86: 91370400556728275Y | G86: 建筑工程施工总承包叁级D337026327 | H86: （鲁）JZ安许证字 〔2012〕040326 | I86: 省道241 | J86: 路缘石 | K86: 马华振 | L86: 18663211955 | M86: 刘远明 | N86: C | O86: 鲁桥建设
A87: 64 | B87: 江西鼎顺建设工程有限公司 | C87: 江西省抚州市临川区赣东大道31号3栋 | D87: 胡建团 | E87: 10000 | F87: 91361000672435023W | G87: 市政公用工程施工总承包壹级，D136118257 | H87: （赣 ）JZ安许证字[2009]060006-3/4 | I87: 江西抚州 | J87: 包括级配碎石、水泥稳定碎石、混凝土路面、路缘石安装、树池砌筑、路灯、电箱安装、电缆安装、人孔井砌筑、各类保护管、绿化等劳务分包工作。 | K87: 胡聪 | L87: 18679824490 | M87: 李德义 | N87: C | O87: 路桥集团
A88: 65 | B88: 山东合鑫路桥工程有限公司 | C88: 山东省潍坊市寿光市文家街道市场路与横五路交叉口寿光传化公路巷 | D88: 王长霞 | E88: 1080 | F88: 91370783MA3C95G750 2-1 | G88: 市政公用工程施工总承包叁级，D337174824 | H88: （鲁）JZ安许证字 【2019】071242-01 | I88: 京沪二标 | J88: 沥青层摊铺（拼宽段） | K88: 杨铁辉 | L88: 13280197778 | M88: 简晓辉 | N88: C | O88: 公路桥梁
A89: 66 | B89: 山东三永建业有限公司 | C89: 菏泽市人民路菏泽数码大厦15009室 | D89: 王福深 | E89: 3600 | F89: 91371700MA3F956X71 | G89: 市政公用工程施工总承包叁级、建筑工程施工总承包叁级 | H89: （鲁）JZ安许证字[2019]170772-01 | I89: 胶州市2019年农村公路大中修工程二标段 | J89: 路基、路面工程施工 | K89: 杨飞 | L89: 18353201065 | M89: 张鑫 | N89: C | O89: 鲁桥建设
A90: 67 | B90: 鲁建集团股份有限公司 | C90: 青岛市崂山区山东头路58号 | D90: 徐贵东 | E90: 15000 | F90: 91370200743986325C | G90: 公路工程总承包贰级 | H90: （鲁）JZ安许证字（2009）180804-03 | I90: 胶州市2019年农村公路大中修工程二标段 | J90: 路基、路面、标线、附属工程施工 | K90: 姜绍帅 | L90: 17685523806 | M90: 张鑫 | N90: C | O90: 鲁桥建设
A91: 68 | B91: 菏泽市定陶区国信建设有限公司 | C91: 山东省菏泽市定陶区青年路北段惠民小区13号楼205室 | D91: 李珍 | E91: 10000 | F91: 91371727MA3CAREC9P | G91: 建筑业建筑装修装饰工程专业承包二级;建筑业市政公用工程施工总承包二级D237145221 | H91: （鲁）JZ安许证字[2017]170484-01 | I91: 京台五标一分部 | J91: 路基、路面、路床铣刨 | K91: 徐强 | L91: 18363208789 | M91: 邴召建 | N91: C | O91: 鲁桥建设
A92: 69 | B92: 国和建设集团有限公司 | C92: 济南市高新区舜华路2000号舜泰广场6号楼603-4室 | D92: 段守星 | E92: 30206 | F92: 913701007600397332 | G92: 公路工程施工总承包贰级；D237104345 | H92: （鲁）JZ安许证字 【2016】181122-03 | I92: 京台五标一分部 | J92: 水稳、沥青摊铺 | K92: 冯庆凯 | L92: 15263225226 | M92: 邴召建 | N92: C | O92: 鲁桥建设
A93: 70 | B93: 青岛董家口市政工程有限公司 | C93: 山东省青岛市黄岛区琅琊镇毕家村 | D93: 毕德峰 | E93: 2017 | F93: 91370211553951797E | G93: 市政公用工程施工总承包贰级 | H93: （鲁）JZ安许证字[2011]02-0105 | I93: 胶州市2019年农村公路大中修工程二标段 | J93: 路基路面、附属设施公交亭及路灯工程 | K93: 徐永刚 | L93: 13335039661 | M93: 张鑫 | N93: C | O93: 鲁桥建设
A94: 71 | B94: 山东桓台建设工程有限公司 | C94: 山东省淄博市桓台县建筑商城28#楼 | D94: 逯志军 | E94: 15099.9287 | F94: 913703211644071810 | G94: 建筑工程施工总承包壹级D137025007 | H94: （鲁）JZ安许证字[2005]030246-02 | I94: 福建安溪项目 | J94: 路面面层 | K94: 王立鹏 | L94: 18205335222 | M94: 周胜福 | N94: C | O94: 路桥集团
A95: 72 | B95: 青岛兴水实业有限公司 | C95: 山东省青岛市市北区广饶路129号甲 | D95: 宋雷 | E95: 2007 | F95: 91370200163614584E | G95: 市政公用工程总承包贰级 | H95: （鲁）JZ安许证字（2012）02-0017 | I95: 胶州市2019年农村公路大中修工程二标段 | J95: 路基、路面、标线、附属工程施工 | K95: 董建松 | L95: 15964203290 | M95: 张鑫 | N95: C | O95: 鲁桥建设
A96: 73 | B96: 青岛宏德祥建筑工程有限公司 | C96: 山东省胶州市胶东镇大麻湾二村012号 | D96: 宋振斗 | E96: 2018 | F96: 91370281664522071P | G96: 市政公用工程施工总承包叁级 | H96: （鲁）JZ安许证字 〔2019〕022450 | I96: 胶州市2019年农村公路大中修工程二标段 | J96: 路基、路面、标志、标线、附属、路缘石工程施工 | K96: 王昭明 | L96: 13792426708 | M96: 张鑫 | N96: C | O96: 鲁桥建设
A97: 74 | B97: 青岛建国工程集团有限公司 | C97: 青岛经济技术开发区长江路办事处薛辛庄 | D97: 李长家 | E97: 20000 | F97: 913702007137224336 | G97: 市政公用工程施工总承包贰级 | H97: （鲁）JZ安许证字（2005）020237-01 | I97: 胶州市2019年农村公路大中修工程二标段/胶州湾高速营海口周边道路综合提升工程 | J97: 路基路面及其附属设施工程/营旧路跨胶州湾高速大桥新东路、大洛戈庄等相关工作内容 | K97: 王希坤 | L97: 13646425188 | M97: 张鑫/王浩 | N97: C | O97: 鲁桥建设
A98: 75 | B98: 青岛汇众源建设工程有限公司 | C98: 山东省青岛市黄岛区薛家岛办事处三社区 | D98: 王强 | E98: 2000 | F98: 91370211780398530K | G98: 市政公用工程施工总承包贰级 | H98: （鲁）JZ安许证字（2019）022203-02 | I98: 胶州市2019年农村公路大中修工程二标段 | J98: 路基、路面、标志、标线、附属、路缘石工程施工 | K98: 候晓明 | L98: 18661815291 | M98: 张鑫 | N98: C | O98: 鲁桥建设
A99: 76 | B99: 山东省引黄济青青岛建筑安装有限公司 | C99: 青岛市胶州市九龙街道办事处西庄西村村南 | D99: 黄宝欣 | E99: 2018 | F99: 91370281169657008A | G99: 建筑工程施工总承包贰级、防水防腐保温工程专业承包贰级、建筑装饰装修工程专业承包贰级 | H99: （鲁）JZ安许证字[2017]02132-01 | I99: 胶州市2019年农村公路大中修工程二标段 | J99: 路基、路面工程施工 | K99: 赵述光 | L99: 150922292897 | M99: 张鑫 | N99: C | O99: 鲁桥建设
A100: 77 | B100: 山东正康建设工程有限公司 | C100: 蒙阴县垛庄镇商业街 | D100: 蹇令席 | E100: 8000 | F100: 91371328076972420B | G100: 施工劳务不分等级 D337177548 | H100: (鲁)JZ安许证号 【2014】140589-01 | I100: 路面公司文莱项目 | J100: 路缘石 劳务施工 | K100: 刘英尉 | L100: 15688869777 | M100: 唐友权 | N100: C | O100: 路桥集团
A101: 78 | B101: 青岛科兴教育装备有限公司 | C101: 山东省胶州市营海镇王家村387号 | D101: 王茂旗 | E101: 1180 | F101: 913702817064986059 | G101: 建筑工程施工总承包叁级、市政公用工程施工总承包叁级 | H101: （鲁）JZ安许证字（2016）02-0212 | I101: 胶州市2019年农村公路大中修工程二标段 | J101: 路基、路面、标志、标线、附属、路缘石工程施工 | K101: 王俊程 | L101: 13780660219 | M101: 张鑫 | N101: C | O101: 鲁桥建设
A102: 79 | B102: 青岛基隆市政建设工程有限公司 | C102: 青岛经济技术开发区薛家岛办事处南营村 | D102: 逄焕德 | E102: 2100 | F102: 91370211776825982R | G102: 市政公用工程施工总承包贰级 | H102: （鲁）JZ安许证字（2018）021976-01 | I102: 胶州市2019年农村公路大中修工程二标段 | J102: 路基路面及其附属设施工程 | K102: 董春浩 | L102: 15166671517 | M102: 张鑫 | N102: C | O102: 鲁桥建设
A103: 80 | B103: 莱芜市华厦建设有限公司 | C103: 莱城区苗山工业园 | D103: 吕夫军 | E103: 5000 | F103: 913712008630502497 | G103: 1、市政公用工程施工总承包叁级：D337009341；2、建筑工程施工总承包贰级、钢结构工程专业承包贰级、建筑装修装饰工程专业承包贰级：D237003586 | H103: （鲁）JZ安许证字[2005]120082-01 | I103: 潍日高速公路潍坊连接线 | J103: 路面附属工程 | K103: 崔孝国 | L103: 18606342888 | M103: 赵永杰 | N103: C | O103: 路桥集团

Sheet 桩基劳务单位名册
A1: 山东高速路桥集团股份有限公司2019~20年劳务单位信用评价统计汇总表
A2: 序号 | B2: 劳务单位名称 | C2: 注册地址 | D2: 法定代表人 | E2: 注册资本（万元） | F2: 营业执照（统一社会信用代码） | G2: 资质类别、等级，编号 | H2: 安全许可证编号 | I2: 所属项目 | J2: 工程分包内容 | K2: 项目联系人 | L2: 联系人电话 | M2: 证件网上核对人 | N2: 信用等级 | O2: 上报单位
A3: 1 | B3: 山东筑峰建筑工程有限公司 | C3: 济南市市中区白马山南路8号三三四处沿街营业房 | D3: 王超 | E3: 1600 | F3: 9137010369747909XU | G3: 建筑业地基基础工程专业承包三级 、建筑业钢结构工程专业承包三级 建筑业建筑工程施工总承包三级 、建筑业建筑机电安装工程专业承包三级 建筑业施工劳务不分等级 、建筑业市政公用工程施工总承包三级D337051483 | H3: （鲁）JZ安许证字[2013]011269 | I3: 京台五标二分部 | J3: 桩基工程、桥梁基础及下部构造现浇工程 | K3: 岳林 | L3: 13280007817 | M3: 周丰禄 | N3: A | O3: 鲁桥建设
A4: 2 | B4: 青岛吉安桩基工程有限公司 | C4: 青岛经济开发区黄河东路127号241室 | D4: 张庆明 | E4: 300 | F4: 91370211568590066Y | G4: 市政公用工程总承包三级、A2104037032301-3/2 | H4: 鲁JZ安许证字[2011]03-0007 | I4: 济青改扩建第六标段/京台五标三分部 | J4: 高架桥桩基施工 | K4: 张庆明/黄兴伟 | L4: 1364286666/18266216688 | M4: 闫胜国/韩园园 | N4: A | O4: 鲁桥建设
C5: 青岛市行政审批服务局 | D5: 张庆明 | E5: 3000 | F5: 91370211568590066Y | G5: 施工劳务不分等级，D337234879 | H5: （鲁）JZ安许证字[2011]03-0007 | I5: 潍莱高铁 | J5: 桩基钻孔灌注施工 | K5: 张庆明 | L5: 13864286666 | M5: 辛浩 | N5: A
A6: 3 | B6: 嘉祥鑫昌劳务有限公司（原永昌路桥集团嘉祥鑫昌劳务有限公司） | C6: 嘉祥县经济开发区呈祥大道88号 | D6: 姚洪磊 | E6: 5000 | F6: 91370829795309000Q | G6: 模板脚手架专业承包不分等级、D337017279 | H6: （鲁）JZ安许证字【2018】080573-01 | I6: 济青改扩建第六标段 | J6: 高架桥桩基施工 | K6: 李继敏 | L6: 13325101288 | M6: 闫胜国 | N6: A | O6: 鲁桥建设
A7: 4 | B7: 菏泽市川宇建筑工程有限公司 | C7: 山东省菏泽市巨野县永丰办会盟路4119号16幢606室 | D7: 王联长 | E7: 1200 | F7: 91371724MA3MX8P6D | G7: 地基基础工程专业承包叁级 | H7: （鲁）JZ安许证字{2019}170901-02 | I7: 京雄高速SG4标段 | J7: 桩基 | K7: 丁修月 | L7: 15357285555 | M7: 朱祥坤 | N7: A | O7: 公路桥梁
A8: 1 | C8: 山东省菏泽市巨野县 | D8: 王联长 | E8: 600 | F8: 91371724MA3MX8P46D | G8: 建筑工程施工总承包叁级：D337094993 | H8: （鲁）JZ安许证字[2017]110497-01 | I8: 济微高速济宁段 | J8: 桩基工程（摩擦桩） | K8: 王联长 | L8: 15265406888 | M8: 刘继文 | N8: A
A9: 5 | B9: 山东亿邦建设工程有限公司 | C9: 枣庄市滕州市 | D9: 崔增 | E9: 6058 | F9: 91370481798695576N | G9: 建筑工程施工总承包贰级；D237044656 | H9: JZ04-0028 | I9: 新台项目 | J9: 桩基工程 | K9: 韩佰龙 | L9: 18954137708 | M9: 王少文 | N9: A | O9: 公路桥梁
A10: 6 | B10: 山东冠泉市政工程有限公司 | C10: =VLOOKUP(B10,[1]劳务单位汇总表!$C$4:$AD$58,3,0) -> 济南市槐荫区市场监督管理局 | D10: =VLOOKUP(B10,[1]劳务单位汇总表!$C$4:$AD$58,15,0) -> 林宪涛 | E10: =VLOOKUP(B10,[1]劳务单位汇总表!$C$4:$AD$58,11,0) -> 4000 | F10: =VLOOKUP(B10,[1]劳务单位汇总表!$C$4:$AD$58,2,0) -> 91370104307169695X | G10: =VLOOKUP(B10,[1]劳务单位汇总表!$C$4:$AD$58,8,0)&VLOOKUP(B10,[1]劳务单位汇总表!$C$4:$AD$58,7,0) -> D337084301市政公用工程施工总承包三级 | H10: =VLOOKUP(B10,[1]劳务单位汇总表!$C$4:$AD$58,13,0) -> （鲁）JZ安许证字〔2019〕012704 | I10: 京台四标 | J10: 桩基工程 | K10: =VLOOKUP(B10,[1]劳务单位汇总表!$C$4:$AD$58,21,0) -> 申涛 | L10: =VLOOKUP(B10,[1]劳务单位汇总表!$C$4:$AD$58,23,0) -> 15900944878 | M10: 屈庆勋 | N10: A | O10: 路桥集团
C11: 山东省济南市槐荫区经四路681号 | D11: 林宪涛 | E11: 4000 | F11: 91370104307169695X | G11: 市政公用工程施工总承包叁级；施工劳务不分等级 | H11: （鲁）JZ安许证字〔2016〕01-0134 | I11: 京雄高速SG4标段 | J11: 桩基 | K11: 申涛 | L11: 15900944878 | M11: 朱祥坤 | N11: A
A12: 7 | B12: 菏泽市垚森建筑工程有限公司 | C12: 菏泽市牡丹区 | D12: 李翠兰 | E12: 2000 | F12: 91371700061959610R | G12: 地基基础工程专业承包贰级 D237000870 | H12: （鲁）JZ安许证字〔2018〕170590 | I12: 枣菏项目/新台项目/京台三标/济微高速济宁段 | J12: 水中钢平台桩基/软基工程 | K12: 李翠兰 | L12: 18816005956 | M12: 李阳/王少文/张新伟/刘继文 | N12: B | O12: 路桥集团
A13: 8 | B13: 山东锢瑞特水电工程有限公司 | C13: 济宁市金字路47号 | D13: 何明建 | E13: 2120 | F13: 91370800494275599p | G13: D237076484 | H13: （鲁）JZ安许证字{2015}080778-01 | I13: 京沪改扩建 | J13: 桩基工程 | K13: 亓云峰 | L13: 13676344299 | M13: 董新星 | N13: B | O13: 路桥集团
A14: 9 | B14: 江苏住友建设有限公司 | C14: 江苏省徐州市新泽市圣丰小区 | D14: 陈勇丽 | E14: 2501.83 | F14: 913203811371182887 | G14: D332030286 | H14: （苏）JZ安许证字{2005}030161-1 | I14: 京沪改扩建 | J14: 桩基工程 | K14: 丁继磊 | L14: 15054107107 | M14: 董新星 | N14: B | O14: 路桥集团
A15: 10 | B15: 山东旭星路桥工程有限公司 | C15: 山东省滨州市邹平县黄山街道办事处城南新区新悦家园13号楼701室 | D15: 景元东 | E15: 1000 | F15: 913716265704702902 | G15: 建筑工程施工总承包叁级 D337008323 | H15: (鲁)JZ安许证字〔2016〕160538-02 | I15: 京台二标 | J15: 桩基钻孔施工 | K15: 刘含新 | L15: 13515470611 | M15: 刘铭磬 | N15: B | O15: 路桥集团
A16: 11 | B16: 山东鲁岩基础工程有限公司 | C16: 济南市山大南路13号 | D16: 牛波 | E16: 5678 | F16: 91370112780797865K | G16: D237066788 地基基础工程专业承包贰级 | H16: （鲁）JZ安许证字〔2012〕010678-01 | I16: 莱泰四标 | J16: 旋挖钻 | K16: 牛汇宇 | L16: 13869144148 | M16: 宋劲松 | N16: B | O16: 路桥集团
C17: 济南市山大南路13号 | D17: 牛波 | E17: 5678 | F17: 91370112780797865K | G17: 地基基础工程专业承包贰级 | H17: (鲁)JZ 安许证字[2012]010678-01 | I17: 河南省渑淅高速公路 | J17: 特大桥及各大桥桩基成孔及砼灌注等 | K17: 袁传明 | L17: 15168846200 | M17: 潘鑫达 | N17: B | O17: 路桥集团
A18: 12 | B18: 山东德远路桥工程有限公司 | C18: 山东省菏泽市鄄城县潍坊路东、运河街北 | D18: 付加印 | E18: 2000 | F18: 91371700597800544D | G18: 市政公用工程施工总承包叁级D337160978 | H18: （鲁）JZ安许证字〔2018〕170668 | I18: 京台五标三分部 | J18: 加固土桩工程 | K18: 胡际涛 | L18: 18678602219 | M18: 韩园园 | N18: B | O18: 鲁桥建设
A19: 13 | B19: 福建东肪建筑工程劳务有限公司 | C19: 福州市鼓楼区华林路201号华林大厦四层右侧 | D19: 王灵敏 | E19: 2800 | F19: 91350100669291217X | G19: 模板脚手架专业承包不分等级D335029621 | H19: 【闽】JZ安许证字[2016]FZ0038 | I19: 京台五标三分部 | J19: 桩基工程 | K19: 李子翔 | L19: 18588844436 | M19: 韩园园 | N19: B | O19: 鲁桥建设
A20: 14 | B20: 中泰恒宣（北京）建设工程有限公司 | C20: 北京市门头沟区杨坨粮库院内CZ0912室 | D20: 童志华 | E20: 6000 | F20: 91110109MA00D4GE53 | G20: 施工劳务不分等级 | H20: （京）JZ安许证字{2017}013173 | I20: 京雄高速SG4标段 | J20: 桩基 | K20: 齐春良 | L20: 15733330999 | M20: 朱祥坤 | N20: B | O20: 路桥集团
A21: 15 | B21: 山东强巍建筑工程有限公司 | C21: 菏泽市佃户屯田水井村28号 | D21: 吕国民 | E21: 2123 | F21: 913717007797245622 | G21: 建筑工程总承包二级、地基基础专业承包二级、市政工程叁级D337001491 | H21: （鲁）JZ安许证字（2006）170132-01 | I21: 330项目 | J21: 桩基工程1标、2标 | K21: 王世军 | L21: 0530-5329697 | M21: 苏栋 | N21: B | O21: 路桥集团
A22: 16 | B22: 潍坊玖玖建设工程有限公司 | C22: 山东省潍坊市青州市青州南路东二街3643号平章府东方大厦13层 | D22: 田委强 | E22: 5000 | F22: 913707815819471970 | G22: 地基基础工程专业承包贰级D237093638 | H22: （鲁）JZ安许证字〔2015〕070801 | I22: 国道204拓宽改造项目 | J22: 桩基施工 | K22: 张文君 | L22: 15908064167 | M22: 丛磊 | N22: B | O22: 路桥集团
A23: 17 | B23: 湖北省建勘基础工程有限公司 | C23: 武汉市东西湖区柏泉农场茅庙集街43号（9） | D23: 文飞 | E23: 1000 | F23: 91420112333496753L | G23: 施工劳务不分等级、地基基础工程专业承包叁级 | H23: （鄂）JZ安许证字〔2017〕016638-1/2 | I23: 京雄高速SG4标段 | J23: 桩基 | K23: 文杰生 | L23: 13326211565 | M23: 朱祥坤 | N23: B | O23: 路桥集团
A24: 18 | B24: 四川吉隆翔建设工程有限公司 | C24: 成都市武侯区 | D24: 陈坚 | E24: 20000 | F24: 91510107MA61W9JM90 | G24: 地基基础工程专业承包贰级、隧道工程专业承包贰级、施工劳务不分等级，编号：D251746671 | H24: （川）JZ安许证字[2015]OA1706 | I24: 济微高速济宁段 | J24: 桩基工程（摩擦桩） | K24: 陈坚 | L24: 13950391555 | M24: 刘继文 | N24: B | O24: 公路桥梁
A25: 19 | B25: 山东海和建筑工程有限公司 | C25: 山东省济南市历下区 | D25: 齐先胜 | E25: 1866 | F25: 91370102MA3MDR889 | G25: 地基基础工程专业承包叁级 | H25: （鲁）JZ安许证字[2019]170905-01 | I25: 济微高速济宁段 | J25: 桩基工程（摩擦桩） | K25: 杨洪孝 | L25: 15588750699 | M25: 刘继文 | N25: B | O25: 公路桥梁鲁桥建设
A26: 12 | C26: 山东省济南市历下区 | D26: 齐先胜 | E26: 1866 | F26: 91370102MA3MDRGB9X | G26: 地基基础工程专业承包叁级D337195228 | H26: （鲁）JZ安许证字〔2019〕012622 | I26: 京台五标三分部 | J26: 桩基工程 | K26: 杨洪孝 | L26: 15588750699 | M26: 韩园园 | N26: B
A27: 20 | B27: 济宁市瑞华市政园林工程有限公司 | C27: 济宁高新区柳行街道办事处东艺工业园内 | D27: 胡敬月 | E27: 5020 | F27: 91370800695439510K | G27: 建筑业市政公用工程施工总承包二级D237064146 | H27: （鲁）JZ安许证字〔2011〕08-0037 | I27: 京台五标二分部 | J27: 桩基工程 | K27: 朱雪梅 | L27: 13806377355 | M27: 周丰禄 | N27: B | O27: 路桥集团
A28: 21 | B28: 湖南蒂茂建筑劳务有限公司 | C28: 湖南省娄底市娄星区扶青路早元街盛世华庭5栋22号 | D28: 毛红文 | E28: 2800 | F28: 914431300MA4PB46R7H | G28: D343094652 | H28: （湘）JZ安许证字[2019]000572-1（2） | I28: 兴山项目 | J28: 桥梁桩基、基础及下部结构承台、桩系梁、墩柱、肋板、柱系梁、盖梁、台帽、垫石等钢筋制作加工、成品半成品的装运、卸车、安装及模板制作安装、砼浇筑、养护等 | K28: 朱磊 | L28: 13873832244 | M28: 刘周欣 | N28: B | O28: 路桥集团
A29: 22 | B29: 宜昌海纳川建设工程有限公司 | C29: 兴山县昭君镇和平大道180号 | D29: 朱德平 | E29: 1200 | F29: 91420500090582445N | G29: D242039056,D342026095 | H29: （鄂）JZ安许证字〔2015〕010876-1/2 | I29: 兴山项目 | J29: 包括路基清表、路基挖土石方、利用土石方、特殊路基处理、边沟、排水沟、截水沟、边坡防护、挡土墙、台背回填、涵洞施工，桥梁桩基、基础及下部结构承台、桩系梁、墩柱、肋板、柱系梁、盖梁、台帽、垫石及挡块等钢筋加工制作、成品半成品的装运、卸车、安装及模板制作安装、砼浇筑、养护等 | K29: 朱仁胜 | L29: 18671705922 | M29: 刘周欣 | N29: B | O29: 路桥集团
A30: 23 | B30: 泰安鑫岳建设工程有限公司 | C30: 泰安市傲徕峰路花园街2号 | D30: 赵西利 | E30: 2000 | F30: 91370900684826064J | G30: 地基基础工程专业承包、三级、D337120108 | H30: （鲁）JZ安许证字〔2005〕090038 | I30: 京台五标二分部/京台五标一分部 | J30: 桩基工程 | K30: 王煜海/黄丙林 | L30: 0538-6633272/13365382599 | M30: 周丰禄/邴召建 | N30: B | O30: 路桥集团
A31: 2 | C31: 泰安市傲徕峰路花园街2号 | D31: 赵西利 | E31: 2000 | F31: 91370900684826064J | G31: 地基基础工程专业承包、三级、D337120108 | H31: （鲁）JZ安许证字〔2005〕090038 | I31: 莱泰四标 | J31: 冲击钻 | K31: 张智勇 | L31: 13605488579 | M31: 宋劲松 | N31: B
A32: 24 | B32: 江苏中阳建设集团有限公司 | C32: 丰县解放西路23号 | D32: 王长宏 | E32: 30300 | F32: 913203211367956077 | G32: D232048191 市政公用工程施工总承包贰级、公路工程施工总承包叁级 | H32: （苏）JZ安许证字[2005]030113 | I32: 济微高速济宁段 | J32: 桩基工程（嵌岩桩） | K32: 张多桥 | L32: 13791756670 | M32: 刘继文 | N32: B | O32: 公路桥梁
A33: 25 | B33: 国和建设集团有限公司 | C33: 济南市高新区 | D33: 段守星 | E33: 30206 | F33: 913701007600397332 | G33: 公路工程施工总承包贰级；D237104345 | H33: （鲁）JZ安许证字【2016】181122-03 | I33: 济微高速济宁段 | J33: 桩基工程（嵌岩桩） | K33: 靳磊 | L33: 15615717676 | M33: 刘继文 | N33: B | O33: 公路桥梁
A34: 3 | C34: 济南市高新区舜华路2000号舜泰广场6号楼603-4室 | D34: 段守星 | E34: 30206 | F34: 913701007600397332 | G34: 公路工程施工总承包贰级；D237104345 | H34: （鲁）JZ安许证字【2016】181122-03 | I34: 莱泰四标 | J34: 冲击钻 | K34: 勒磊 | L34: 15615717676 | M34: 宋劲松 | N34: B
A35: 26 | B35: 江苏亿隆市政工程有限公司 | C35: 新沂市花厅路市政公司一号楼 | D35: 倪恒源 | E35: 2100 | F35: 91320381559332524W | G35: 市政公用工程施工总承包叁级；D332030656 | H35: （苏）JZ安许证字﹝2012﹞035003 | I35: 文莱项目四合同 | J35: 桩基施工 | K35: 冯兆远 | L35: 15052079111 | M35: 王艳娇 | N35: B | O35: 路桥集团
A36: 27 | B36: 济南丰弘建筑劳务分包有限公司 | C36: 济南市中区十六里河街道办事处 | D36: 王忠军 | E36: 1000 | F36: 913701033071796074 | G36: 建筑劳务分包工程专业承包三级；B1034044030510-6/3 | H36: 鲁JZ安许证字﹝2014﹞010391-04 | I36: 文莱项目五合同 | J36: 桩基施工 | K36: 郭永戈 | L36: 15063728932 | M36: 王艳娇 | N36: B | O36: 路桥集团
A37: 28 | B37: 济南京通公路工程有限公司 | C37: =VLOOKUP(B37,[1]劳务单位汇总表!$C$4:$AD$58,3,0) -> 济南市章丘区市场监督管理局 | D37: =VLOOKUP(B37,[1]劳务单位汇总表!$C$4:$AD$58,15,0) -> 王东 | E37: =VLOOKUP(B37,[1]劳务单位汇总表!$C$4:$AD$58,11,0) -> 2000 | F37: =VLOOKUP(B37,[1]劳务单位汇总表!$C$4:$AD$58,2,0) -> 91370181353478931N | G37: =VLOOKUP(B37,[1]劳务单位汇总表!$C$4:$AD$58,8,0)&VLOOKUP(B37,[1]劳务单位汇总表!$C$4:$AD$58,7,0) -> D33184570建筑业施工劳务不分等级 | H37: =VLOOKUP(B37,[1]劳务单位汇总表!$C$4:$AD$58,13,0) -> （鲁）JZ安许证字〔2019〕012300 | I37: 京台四标 | J37: 旋挖钻 | K37: =VLOOKUP(B37,[1]劳务单位汇总表!$C$4:$AD$58,21,0) -> 滕培佳 | L37: =VLOOKUP(B37,[1]劳务单位汇总表!$C$4:$AD$58,23,0) -> 15098786163 | M37: 屈庆勋 | N37: B | O37: 路桥集团
A38: 29 | B38: 重庆意远建设工程有限公司 | C38: 重庆市南岸区珊瑚路8号2栋15-4号 | D38: 翁远俊 | E38: 2000 | F38: 91500108MA5UQGFQ7N | G38: D350100897 | H38: （渝）JZ安许证字[2018]010768-01 | I38: 兴山项目 | J38: 包括路基清表、路基挖土石方、利用土石方、特殊路基处理、边沟、排水沟、截水沟、边坡防护、挡土墙、台背回填、涵洞施工，桥梁桩基、基础及下部结构承台、桩系梁、墩柱、肋板、柱系梁、盖梁、台帽、垫石及挡块等钢筋加工制作、成品半成品的装运、卸车、安装及模板制作安装、砼浇筑、养护等 | K38: 朱蒙 | L38: 15997542270 | M38: 刘周欣 | N38: B | O38: 路桥集团
A39: 30 | B39: 济南市黄河基础工程公司 | C39: 济南市天桥区泺安路12号 | D39: 刘振元 | E39: 1280 | F39: 9137010516336137XU | G39: 地基基础工程专业承包贰级 证书编号：D237108981 | H39: （鲁）JZ安许证字﹝2015﹞010235-02 | I39: 董梁公路宁梁段二合同二分部 | J39: 桩基 | K39: 孔祥国 | L39: 18610648668 | M39: 卞福坤 | N39: B | O39: 路桥集团
A40: 31 | B40: 武汉钢铁集团宏信置业发展有限公司 | C40: 武汉市青山区武钢厂前附七号门 | D40: 曾三军 | E40: 5000 | F40: 91420107733574300A | G40: 地基基础工程专业承包叁级，D342117560 | H40: （鄂）JZ安许证字【2012】007897-08.4/5 | I40: 京沪二标 | J40: 桩基（新建段） | K40: 曾三军 | L40: 13605480771 | M40: 简晓辉 | N40: B | O40: 路桥集团
A41: 32 | B41: 湖北众源建设工程有限公司 | C41: 当阳市王店镇木店村九组56号 | D41: 张冬伟 | E41: 2100 | F41: 91420582795946309Q | G41: D342132260 | H41: （鄂）JZ安许证字〔2018〕024140-1/2 | I41: 兴山项目 | J41: 包括路基清表、路基挖土石方、利用土石方、特殊路基处理、边沟、排水沟、截水沟、边坡防护、挡土墙、台背回填、涵洞施工，桥梁桩基、基础及下部结构承台、桩系梁、墩柱、肋板、柱系梁、盖梁、台帽、垫石及挡块等钢筋加工制作、成品半成品的装运、卸车、安装及模板制作安装、砼浇筑、养护等 | K41: 李颖 | L41: 0717-3228828 | M41: 刘周欣 | N41: B | O41: 路桥集团
A42: 33 | B42: 保定冠诚路桥工程有限公司 | C42: 河北省保定市清苑区清苑镇南大冉 | D42: 魏全乐 | E42: 5000 | F42: 91130608561965662W | G42: 公路工程施工总承包二级：D213018410 | H42: (冀）JZ安许证字﹝2011﹞004912-1/2 | I42: 文莱项目四合同 | J42: 桩基施工 | K42: 刘岩 | L42: 13315279032 | M42: 王艳娇 | N42: B | O42: 路桥集团
A43: 34 | B43: 济南振华岩土工程有限责任公司 | C43: 济南高新技术产业开发区管委会市场监管局 | D43: 张伟 | E43: 1561 | F43: 9137018186311883XC | G43: 地基基础工程专业承包一级 | H43: （鲁）JZ安许证字〔2005〕010173 | I43: 京台四标/河南渑淅 | J43: 桩基工程 | K43: 李衍卫 | L43: 13853763307 | M43: 屈庆勋 | N43: B | O43: 路桥集团
A44: 35 | B44: 滕州市中远建设有限公司 | C44: 山东省枣庄市滕州市善国北路16号 | D44: 杜洋坚 | E44: 5000 | F44: 91370481169904670G | G44: 建筑业建筑工程施工总承包一级D337035273 | H44: （鲁）JZ安许证字〔2005〕040011 | I44: 京台二标 | J44: 桩基钻孔施工/涵洞及桥梁下部结构施工 | K44: 代伟 | L44: 13561120789 | M44: 刘铭磬 | N44: B | O44: 路桥集团
A45: 36 | B45: 德州亿成地基基础工程有限公司 | C45: 山东省德州市经济技术开发区长河街道办事处三八路东城国际1号楼1单元8层802号 | D45: 陈霞 | E45: 1000 | F45: 91371402MA3DBEMW4L | G45: 地基基础工程专业承包叁级 | H45: （鲁）JZ安许证字【2019】130832-01 | I45: 临清市永青小区项目 | J45: 桩基工程 | K45: 王军 | L45: 18765857111 | M45: 高瑞强 | N45: B | O45: 路桥集团
A46: 37 | B46: 河南省纳川基础工程有限公司 | C46: 新沂市新安镇市府路48号新亚大厦919 | D46: 叶志杭 | E46: 1000 | F46: 91320381MA1XLB513Y | G46: 地基基础工程专业承包叁级，D341111285 | H46: (豫)JZ安许证字【2019】012890 | I46: G518日定线莒南绕城段（路面、大中桥）工程一标段 | J46: 桩基成孔 | K46: 张文战 | L46: 13182377558 | M46: 李现飞 | N46: B | O46: 路桥集团
A47: 38 | B47: 济南中普工贸有限公司 | C47: 济南市天桥区无影山中路45号2号楼2单元603室 | D47: 任恒大 | E47: 2016 | F47: 91370105774172623D | G47: 施工劳务不分等级 | H47: （鲁）JZ安许证字〔2017〕011916 | I47: 京台五标二分部 | J47: 桩基钢筋加工工程 | K47: 陈雷 | L47: 13854128820 | M47: 周丰禄 | N47: B | O47: 鲁桥建设
A48: 39 | B48: 山东鸿顺建工集团有限公司 | C48: 济宁市济安桥北路17号 | D48: 段余顺 | E48: 10216 | F48: 9137081116593483X8 | G48: 地基基础工程专业承包壹级 证书编号：D137024299 | H48: （鲁）JZ安许证字﹝2005﹞08007 | I48: 董梁公路宁梁段二合同二分部 | J48: 桩基 | K48: 魏强 | L48: 15163788666 | M48: 卞福坤 | N48: B | O48: 路桥集团
A49: 40 | B49: 南京东土建设科技有限公司 | C49: 南京市江宁区谷里街道兴谷路13号 | D49: 黄晓 | E49: 2000 | F49: 91320115339315132F | G49: 特种工程(结构补强)专业承包不分等级证书编号：D232122176 | H49: （苏）JZ安许证字﹝2018﹞001762 | I49: 董梁公路宁梁段二合同二分部 | J49: 桩基后压浆 | K49: 黄晓 | L49: 13809038329 | M49: 卞福坤 | N49: B | O49: 路桥集团
A50: 41 | B50: 中勘资源勘探科技股份有限公司 | C50: 安徽省淮北市经济开发区龙湖工业园梧桐路18号 | D50: 王建设 | E50: 5169 | F50: 91340600150821736M | G50: D234069377 地基基础工程专业承包一级 | H50: (皖)JZ安许证字[2004]003323 | I50: 宁梁二标一分部 | J50: 一分部桩基施工 | K50: 唐杰 | L50: 15385612398 | M50: 徐耀 | N50: B | O50: 路桥集团
A51: 42 | B51: 山东金来建设集团有限公司 | C51: 山东省济南市莱芜区 | D51: 韩璐山 | E51: 10600 | F51: 91371200169539327Q | G51: 公路工程施工总承包贰级，D237003674 | H51: （鲁）JZ安许证字【2017】120183-02 | I51: 京沪二标 | J51: 桩基（新建段） | K51: 王成本 | L51: 13854858662 | M51: 简晓辉 | N51: B | O51: 路桥集团
A52: 43 | B52: 青岛皓源基础工程有限公司 | C52: 青岛胶州市铺集镇铺上一村 | D52: 王永华 | E52: 300 | F52: 91370281069066585B | G52: 地基基础工程专业承包叁级 D337165242 | H52: 【鲁】JZ安许证字[2013]000898-3/8 | I52: 枣菏项目 | J52: 加固土桩、强夯-岩溶区、采空区注浆 | K52: 王峰/王晓鹏 | L52: 13678867811/15092095585 | M52: 李阳 | N52: B | O52: 路桥集团
A53: 44 | B53: 枣庄市恒生桩基工程有限公司 | C53: 滕州市东沙河镇中心街 | D53: 曹长生 | E53: 860 | F53: 91370400773198039T | G53: 地基基础工程专业承包贰级D237022532 | H53: （鲁）JZ安许证字〔2006〕040200 | I53: 京台五标三分部/京台五标二分部 | J53: 桩基工程 | K53: 曹长景 | L53: 13616373696 | M53: 韩园园/周丰禄 | N53: B | O53: 鲁桥建设
A54: 45 | B54: 山东鲁泰基础工程有限公司 | C54: 山东省肥城市王庄镇驻地 | D54: =VLOOKUP(B54,[1]劳务单位汇总表!$C$4:$AD$58,15,0) -> 梁进常 | E54: =VLOOKUP(B54,[1]劳务单位汇总表!$C$4:$AD$58,11,0) -> 1273 | F54: =VLOOKUP(B54,[1]劳务单位汇总表!$C$4:$AD$58,2,0) -> 91370983166612701P | G54: =VLOOKUP(B54,[1]劳务单位汇总表!$C$4:$AD$58,8,0)&VLOOKUP(B54,[1]劳务单位汇总表!$C$4:$AD$58,7,0) -> D237107455地基基础工程专业承包二级 | H54: =VLOOKUP(B54,[1]劳务单位汇总表!$C$4:$AD$58,13,0) -> （鲁）JZ安许证字〔2005〕090282 | I54: 京台四标 | J54: 桩基工程 | K54: =VLOOKUP(B54,[1]劳务单位汇总表!$C$4:$AD$58,21,0) -> 梁进常 | L54: =VLOOKUP(B54,[1]劳务单位汇总表!$C$4:$AD$58,23,0) -> 15753889988 | M54: 屈庆勋 | N54: B | O54: 路桥集团
C55: 山东省肥城市王庄镇驻地 | D55: 梁进常 | E55: 1273 | F55: 91370983166612701P | G55: 地基基础工程专业承包贰级 D237107455 | H55: 【鲁】JZ安许证字[2005]090282-01 | I55: 枣菏项目 | J55: 钻孔灌注桩Ⅰ、（主航道桥）钻孔灌注桩 | K55: 雷茂平 | L55: 13853824862 | M55: 李阳 | N55: B | O55: 路桥集团
A56: 46 | B56: 雷亿建工集团有限公司 | C56: 菏泽市牡丹区黄罡镇工业园188号 | D56: 池海雷 | E56: 10088 | F56: 913717007871789799 | G56: 地基基础工程专业承包叁级，D337078485 | H56: （鲁）JZ安许证字【2011】17-0019 | I56: 京沪二标/新台项目 | J56: 波形护栏，桩基（新建、拼宽） | K56: 王连营 | L56: 13176021756 | M56: 简晓辉/王少文 | N56: B | O56: 路桥集团
A57: 47 | B57: 江苏莱炎建设工程有限公司 | C57: 南京市鼓楼区 | D57: 熊华萍 | E57: 6041.7 | F57: 91320106679042687K | G57: 建筑工程施工总承包贰级、公路工程施工总承包贰级、市政公用工程施工总承包贰级 D232092157 | H57: 【苏】JZ安许证字[2009]160013-1 | I57: 枣菏项目 | J57: 钻孔灌注桩Ⅰ、路面垫层、底基层、基层Ⅱ（微山连接线） | K57: 熊华萍 | L57: 025-58825536 | M57: 李阳 | N57: B | O57: 路桥集团
A58: 48 | B58: 中煤地华盛水文地质勘察有限公司 | C58: =VLOOKUP(B58,[1]劳务单位汇总表!$C$4:$AD$58,3,0) -> 邯郸市市场监督管理局 | D58: =VLOOKUP(B58,[1]劳务单位汇总表!$C$4:$AD$58,15,0) -> 蒋向明 | E58: =VLOOKUP(B58,[1]劳务单位汇总表!$C$4:$AD$58,11,0) -> 20000 | F58: =VLOOKUP(B58,[1]劳务单位汇总表!$C$4:$AD$58,2,0) -> 9113040010552154XK | G58: D213048954 | H58: =VLOOKUP(B58,[1]劳务单位汇总表!$C$4:$AD$58,13,0) -> (冀)JZ安许证字[2005]000009 | I58: 京台四标 | J58: 设备、人员进出场，自备自备机械设备负责护筒埋设、钻机就位；桩基的成孔、下钢筋笼等一切相关作业内容 | K58: =VLOOKUP(B58,[1]劳务单位汇总表!$C$4:$AD$58,21,0) -> 张潇川 | L58: =VLOOKUP(B58,[1]劳务单位汇总表!$C$4:$AD$58,23,0) -> 18348760000 | M58: 屈庆勋 | N58: C | O58: 路桥集团
A59: 49 | B59: 济南众联深基工程有限公司 | C59: 济南市高新区会展西路88号 | D59: 程志刚 | E59: 800 | F59: 91370100553706855Y | G59: 地基基础工程专业承包贰级；D237024246 | H59: 鲁JZ安许证字﹝2015﹞011101-02 | I59: 文莱项目四、五合同 | J59: 桩基施工 | K59: 陈祥路 | L59: 18782228364 | M59: 王艳娇 | N59: C | O59: 路桥集团
A60: 50 | B60: 富顺县华瑞建筑工程有限公司 | C60: 富顺县彭庙镇街村二组清正街100号 | D60: 罗秀 | E60: 500 | F60: 91510322MA6205660E | G60: 施工劳务施工劳务不分等级；D351579430 | H60: (川）JZ安许证字﹝2017﹞001592 | I60: 文莱项目四、五合同、京沪改扩建 | J60: 桩基施工 | K60: 张宗华 | L60: 15808227148 | M60: 王艳娇/董新星 | N60: C | O60: 路桥集团
A61: 51 | B61: 山东省机械施工有限公司 | C61: 山东省济南市槐荫区绿地中央广场C-3地块A座1802 | D61: 沈缤 | E61: 2043 | F61: 91370104163152244H | G61: 地基基础工程专业承包壹级 | H61: （鲁）JZ安许证字【2016】010754-01 | I61: 曲阜服务区东区提升改造项目 | J61: 桩基工程 | K61: 赵烈 | L61: 18888297576 | M61: 王紫晨 | N61: C | O61: 路桥集团
A62: 52 | B62: 山东八达路桥建设有限公司 | C62: =VLOOKUP(B62,[1]劳务单位汇总表!$C$4:$AD$58,3,0) -> 齐河县市场监督管理局 | D62: =VLOOKUP(B62,[1]劳务单位汇总表!$C$4:$AD$58,15,0) -> 曹华 | E62: =VLOOKUP(B62,[1]劳务单位汇总表!$C$4:$AD$58,11,0) -> 11800 | F62: =VLOOKUP(B62,[1]劳务单位汇总表!$C$4:$AD$58,2,0) -> 91370104687228289H | G62: D337176764 | H62: =VLOOKUP(B62,[1]劳务单位汇总表!$C$4:$AD$58,13,0) -> （鲁）JZ安许证字〔2019〕130810 | I62: 京台四标 | J62: 设备、人员进出场，自备自备机械设备负责护筒埋设、钻机就位；桩基的成孔、下钢筋笼等一切相关作业内容 | K62: =VLOOKUP(B62,[1]劳务单位汇总表!$C$4:$AD$58,21,0) -> 贾洪晓 | L62: =VLOOKUP(B62,[1]劳务单位汇总表!$C$4:$AD$58,23,0) -> 18678847888 | M62: 屈庆勋 | N62: C | O62: 路桥集团
A63: 53 | B63: 新沂市嘉瑞建筑工程有限公司 | C63: 新沂市新安镇苏北建材物流中心A2幢109、109A室 | D63: 樊伟伟 | E63: 320 | F63: 91320381783390972A | G63: 砌筑劳务分包一级C1024032038104-2/2 | H63: （苏）JZ安许证字【2005】030324 | I63: 茂山路 | J63: 桩基成孔，灌注 | K63: 冯兆远 | L63: 15312699955 | M63: 罗一纯 | N63: C | O63: 路桥集团
A64: 54 | B64: 河北创龙地基工程有限公司 | C64: 河北省石家庄市桥西区南小街 | D64: 孙海龙 | E64: 1500 | F64: 911301003989755013 | G64: 地基基础工程专业承包贰级；D313026169 | H64: （冀）JZ安许证字﹝2015﹞007500 | I64: 文莱项目四、五合同/京台四标 | J64: 桩基施工 | K64: 曹凤全 | L64: 15966600333 | M64: 王艳娇/屈庆勋 | N64: C | O64: 鲁桥建设路桥集团
C65: 河北省石家庄市桥西区南小街6号 | D65: 孙海龙 | E65: 1500 | F65: 911301003989755013 | G65: 地基基础工程专业承包叁级D313026169 | H65: (冀)JZ安许证字[2015]007500 | I65: 京台五标三分部 | J65: 桩基工程 | K65: 孙庆常 | L65: 15163889388 | M65: 韩园园 | N65: C
C66: 河北省石家庄市 | D66: 孙海龙 | E66: 1500 | F66: 911301003989755013 | G66: 地基基础工程专业承包叁级；证书编号：D313026169 | H66: (冀）JZ安许证字[2015]007500 | I66: 京台三标 | J66: K365+100-K376+000桩基工程 | K66: 孙庆常 | L66: 15163889388 | M66: 张新伟 | N66: C
A67: 55 | B67: 江西常通桥梁建筑有限公司 | C67: 江西省南昌市进贤县泉岭乡聂家村 | D67: 梁刚 | E67: 5000 | F67: 91360124563816169M | G67: 市政公用工程施工总承包叁级，'D336030340 | H67: 赣）JZ安许证字[2016]010014-1/2 | I67: 江西抚州 | J67: 包含Ф1200、Ф1500、Ф2000旋挖钻机钻孔，埋设钢护筒，现浇C35水下砼，钢筋笼制作与安装，护壁泥浆制作及运输等劳务工作 | K67: 胡浪 | L67: 18172888389 | M67: 李德义 | N67: C | O67: 路桥集团
A68: 56 | B68: 保定泰广路桥工程有限公司 | C68: 河北省保定市清苑区发展中路30号2栋1单元501室 | D68: 牛艳普 | E68: 4100 | F68: 9113060832019959X8 | G68: 地基基础工程专业承包叁级 | H68: （冀）JZ安许证字 {2018}010784 | I68: 京雄高速SG4标段 | J68: 桩基 | K68: 牛艳普 | L68: 15188662666 | M68: 朱祥坤 | N68: C | O68: 路桥集团
A69: 57 | B69: 四川泸州通达路桥有限公司 | C69: 泸州市江阳区弥陀镇天元街二组 | D69: 曹大福 | E69: 20800 | F69: 915105002050026675 | G69: 公路工程施工总承包贰级、桥梁工程专业承包贰级等；D251472278 | H69: (川)JZ安许证字[2005]000359 | I69: 成宜项目 | J69: 桥梁桩基工程 | K69: 张伟 | L69: 15882778779 | M69: 杨超越 | N69: C | O69: 路桥集团
A70: 58 | B70: 山东赢创电力科技有限公司 | C70: 山东省聊城市茌平县信发街道齐刘村 | D70: 吕春燕 | E70: 10000 | F70: 91370104MA3CF32Y4Q | G70: 建筑工程施工总承包叁级/D351477209 | H70: (鲁）JZ安许证字[2019]150478 | I70: 内江项目/新台项目 | J70: 桩基工程/涵洞工程 | K70: 孙荣刚/吕春燕 | L70: 13969168912/13656413554 | M70: 李豪 | N70: C | O70: 路桥集团
A71: 59 | B71: 山东省宏发化工工程有限公司 | C71: 济南市历城区 | D71: 方明 | E71: 800 | F71: 91370000267154869Q 2-1 | G71: 地基基础工程专业承包贰级；D237089208 | H71: JZ010256-02 | I71: 新台项目 | J71: 桩基工程 | K71: 王军 | L71: 13001733343 | M71: 王少文 | N71: C | O71: 路桥集团
A72: 60 | B72: 随县神农水利水电工程有限公司 | C72: 湖北省随州市随县厉山镇烈山湖西路 | D72: 程予相 | E72: 720 | F72: 914213215769792000 | G72: D342062165水利水电工程施工总承包叁级 | H72: （鄂）JZ安许证字﹝2016﹞013842 | I72: 京台五标一分部 | J72: 桩基工程 | K72: 裴从保 | L72: 13911893665 | M72: 邴召建 | N72: C | O72: 路桥集团
A73: 61 | B73: 连云港鑫顺建设工程有限公司 | C73: 连云港市海州区解放东路280号(亚欧建材广场) | D73: 高万昆 | E73: 2067 | F73: 91320700663843009C | G73: 地基基础工程专业承包三级 D332044368 | H73: （苏）JZ安许证（2013）070020-3 | I73: 省道241 | J73: 桩基施工 | K73: 褚红伟 | L73: 13258967889 | M73: 刘远明 | N73: C | O73: 路桥集团
A74: 62 | B74: 普瑞建设集团有限公司 | C74: 菏泽市牡丹区高新技术工业园 | D74: 程普 | E74: 10000 | F74: 91371700683245030P | G74: 公路工程、公路路面、公路路基专业承包三级 D337060363 | H74: （鲁）JZ安许证字〔2013〕181031 | I74: 胶州湾高速营海口周边道路综合提升工程 | J74: 桩基冲击钻成孔、砼灌注、永久性钢护筒焊接、安装 | K74: 吴在顺 | L74: 13953002559 | M74: 王浩 | N74: C | O74: 路桥集团
A75: 63 | B75: 宜宾市建伦建筑劳务有限责任公司 | C75: 宜宾市翠屏区五粮液大道旧州路6号 | D75: 邓甲伦 | E75: 500 | F75: 91511500767271201P | G75: 钢筋、模板。混凝土作业劳务分包壹级：C1024051150000-0113 | H75: 川JZ安许证字﹝2008﹞000751 | I75: 文莱项目五合同 | J75: 桩基施工 | K75: 张宗华 | L75: 15808227148 | M75: 王艳娇 | N75: C | O75: 路桥集团
A76: 64 | B76: 东营昱柱基础工程有限公司 | C76: 东营区西四路以西、潍坊路以北 | D76: 王梅水 | E76: 1000 | F76: 91370502579382406P | G76: 地基基础工程专业承包贰级D237090392 | H76: (鲁)JZ安许证字〔2013〕050305-01 | I76: 京台二标 | J76: 桩基钻孔施工 | K76: 张兴建 | L76: 13589973730 | M76: 刘铭磬 | N76: C | O76: 路桥集团
A77: 65 | B77: 山东省汶上县海润建筑安装有限公司 | C77: 汶上县圣泽大街25号 | D77: 李国明 | E77: 1580 | F77: 91370830765783190U | G77: 模板脚手架专业承包不分等级 | H77: （鲁）JZ安许证字〔2017〕080513 | I77: 京台五标一分部 | J77: 桩基工程 | K77: 宁廷防 | L77: 18364874777 | M77: 邴召建 | N77: C | O77: 路桥集团
A78: 66 | B78: 徐州鹏程钢结构工程有限公司 | C78: 丰县开发区 | D78: 张彩英 | E78: 6000 | F78: 913203217780491000 | G78: 建筑工程施工总承包叁级、地基基础工程专业承包叁级、施工劳务不分等级，编号：D332032230 | H78: （苏）JZ 安许证字[2007]030408 | I78: 济微高速济宁段 | J78: 桩基工程（摩擦桩） | K78: 张捷 | L78: 15963770018 | M78: 刘继文 | N78: C | O78: 公路桥梁
A79: 67 | B79: 四川长和建筑工程有限公司 | C79: 成都市武侯区二环路西一段2号1栋1单元12层1224号 | D79: 江华义 | E79: 10000 | F79: 91510000694830649N | G79: 公路工程施工总承包贰级D251479894 | H79: （川）JZ安许证字【2010】000081 | I79: 资阳项目 | J79: 桥梁基础工程 | K79: 李幸福 | L79: 15520569588 | M79: 熊桓 | N79: C | O79: 路桥集团
A80: 68 | B80: 山西省地矿建设工程总公司 | C80: 山西省太原市 | D80: 韩益强 | E80: 5208 | F80: 91140000110019044H | G80: 地基基础工程专业承包壹级，编号：D214029605 | H80: （晋）JZ安许证[2011]000259 | I80: 济微高速济宁段 | J80: 桩基工程（摩擦桩） | K80: 韩益强 | L80: 18635760000 | M80: 刘继文 | N80: C | O80: 公路桥梁
A81: 69 | B81: 山东万兴路桥工程有限公司 | C81: 山东省济宁市梁山县水泊街道办郑垓村 | D81: 张永阁 | E81: 2000 | F81: 91370832MA3DMBP2X1 | G81: 地基基础工程专业承包三级 D337168504 | H81: (鲁)JZ安许证字〔2018〕080983-01 | I81: 京台二标 | J81: 桩基钻孔施工 | K81: 张贵生 | L81: 18954266666 | M81: 刘铭磬 | N81: C | O81: 路桥集团
A82: 70 | B82: 东平县新湖建筑安装有限公司 | C82: 山东省泰安市东平县新湖镇驻地 | D82: 韩明秀 | E82: 1010 | F82: 91370923674547379B | G82: 建筑工程施工总承包叁级D337033165 | H82: (鲁)JZ安许证字〔2017〕090225 -02 | I82: 京台二标 | J82: 桩基钻孔施工 | K82: 瞿峰 | L82: 18854832333 | M82: 刘铭磬 | N82: C | O82: 路桥集团
A83: 71 | B83: 泰安市岱宗机电科技开发有限公司 | C83: 山东省泰安市开发区中天门大街1366号星火科技园 | D83: 张延策 | E83: 1000 | F83: 913709007456673879 | G83: 地基基础工程专业承包三级D337127900 | H83: （鲁）JZ安许证字〔2015〕090545 | I83: 京台二标 | J83: 桩端后压浆 | K83: 张健 | L83: 13905485295 | M83: 刘铭磬 | N83: C | O83: 路桥集团
A84: 72 | B84: 河北中凯建设工程有限公司 | C84: 河北省保定市清苑区清苑南街751号 | D84: 张红星 | E84: 10000 | F84: 91130608106120000U | G84: 地基基工程专业承包叁级 机电工覆地工总承包叁袋 石油化工工覆施工总承包叁级 市政公用工程施工总承包参级 D313009385 | H84: (冀)JZ安许证字〔2005〕000993-01/6 | I84: 京台二标 | J84: 桩基钻孔施工 | K84: 刘垚 | L84: 15632238088 | M84: 刘铭磬 | N84: C | O84: 路桥集团
A85: 73 | B85: 安徽爱尼达建设工程有限公司 | C85: 安徽省芜湖市鸠江区沈巷镇鸠江经济开发区北区百旺路12号办公室309室 | D85: 赵姣姣 | E85: 4977 | F85: 91340225MA2N0TLK8U | G85: 地基基础工程专业承包叁级D334141943 | H85: (皖)JZ安许证字[2017]003738 | I85: G205九华南路快速化改造工程大茆立交项目 | J85: 桩基施工 | K85: 杨成文 | L85: 13956650408 | M85: 陈帆 | N85: C | O85: 路桥集团
A86: 74 | B86: 安徽永成基础工程有限公司 | C86: 安徽省芜湖市繁昌县新港镇新东村部二楼 | D86: 韦国顺 | E86: 3880 | F86: 91340200570400495K | G86: 地基基础工程专业承包贰级 D234046025 | H86: (皖)JZ安许证字[2016]001683 | I86: G205九华南路快速化改造工程大茆立交项目 | J86: 桩基泥浆挖运 | K86: 胡之友 | L86: 13721201855 | M86: 陈帆 | N86: C | O86: 路桥集团
A87: 75 | B87: 安徽坤江建设工程有限公司 | C87: 芜湖市弋江区长江长现代城9幢2-602 | D87: 殷海成 | E87: 1000 | F87: 91340200MA2NF1P058 | G87: 地基基础工程专业承包三级 D334122997 | H87: (皖)JZ安许证字[2017]006748 | I87: G205九华南路快速化改造工程大茆立交项目 | J87: 桩基施工 | K87: 马宜林 | L87: 13309632877 | M87: 陈帆 | N87: C | O87: 路桥集团
A88: 76 | B88: 蒙城县满意建筑工程有限公司 | C88: 蒙城县漆园办事处 | D88: 任满意 | E88: 1000 | F88: 913416220978795244 | G88: D334124345 | H88: （皖）JZ安许证字{2017}006659-1 | I88: 京沪改扩建 | J88: 桩基工程 | K88: 任满意 | L88: 13966511118 | M88: 董新星 | N88: C | O88: 路桥集团

Sheet 桥梁劳务单位名册
A1: 山东高速路桥集团股份有限公司2019~20年劳务单位信用评价统计汇总表
A2: 序号 | B2: 劳务单位名称 | C2: 注册地址 | D2: 法定代表人 | E2: 注册资本（万元） | F2: 营业执照（统一社会信用代码） | G2: 资质类别、等级，编号 | H2: 安全许可证编号 | I2: 所属项目 | J2: 工程分包内容 | K2: 项目联系人 | L2: 联系人电话 | M2: 证件网上核对人 | N2: 信用等级 | O2: 上报单位
A3: 1 | B3: 山东筑峰建筑工程有限公司 | C3: 济南市市中区白马山南路8号三三四处沿街营业房 | D3: 王超 | E3: 1600 | F3: 9137010369747909XU | G3: 建筑业地基基础工程专业承包三级 、建筑业钢结构工程专业承包三级 建筑业建筑工程施工总承包三级 、建筑业建筑机电安装工程专业承包三级 建筑业施工劳务不分等级 、建筑业市政公用工程施工总承包三级D337051483 | H3: （鲁）JZ安许证字[2013]011269 | I3: 京台五标二分部 | J3: 桩基工程、桥梁基础及下部构造现浇工程 | K3: 岳林 | L3: 13280007817 | M3: 周丰禄 | N3: A | O3: 鲁桥建设
A4: 2 | B4: 陕西百达钢构工程有限公司 | C4: 陕西省西安市浐灞生态区浐灞半岛A4区5号楼二单元1702室 | D4: 张鹏 | E4: 1000 | F4: 91610136MA6W7WH27K | G4: 钢结构工程专业承包三级D361152063 | H4: （陕）JZ安许证字（2019）011698-2/2 | I4: 莱泰高速钢桥 | J4: 钢桥加工 | K4: 张永强 | L4: 18637251042 | M4: 王广森 | N4: A | O4: 路桥集团
A5: 3 | B5: 上海民舜公路桥梁建设工程有限公司 | C5: 上海市奉贤区柘林镇楚华北路1563号第四幢582室 | D5: 徐勤菜 | E5: 3189 | F5: 91310120MA1HNWHQ8U | G5: 施工劳务企业资质劳务分包不分级 | H5: 泸JZ安许证字[2018]191053-02 | I5: 济青改扩建六标 | J5: 桥梁工程 | K5: 邵全明 | L5: ‭138 1898 1999‬ | M5: 李世杰 | N5: A | O5: 鲁桥建设
A6: 4 | B6: 江苏天健源建设工程有限公司 | C6: 江苏省江阴市月城镇下塘村东胥林58号 | D6: 李蓉 | E6: 4500 | F6: 91320903MA1NT22G75 | G6: 市政公用工程施工总承包贰级D232114634 | H6: (苏)JZ安许证字[2017]901450 | I6: 京台五标三分部/济青改扩建六标 | J6: 小结构物工程、现浇桥梁施工工程 | K6: 诸海军 | L6: 13812130350 | M6: 韩园园/李世杰 | N6: A | O6: 鲁桥建设
A7: 5 | B7: 四川长和建筑工程有限公司 | C7: 成都市武侯区二环路西一段2号1栋1单元12层1224号 | D7: 江华义 | E7: 6500 | F7: 91511529399137294A | G7: 公路工程施工总承包贰级D251479894 | H7: （川）JZ安许证字[2010]000081 | I7: 京台五标三分部 | J7: 小结构物工程 | K7: 李幸福 | L7: 15520569588 | M7: 韩园园 | N7: A | O7: 鲁桥建设
A8: 6 | B8: 四川申浦路桥工程有限公司 | C8: 四川省绵阳市江油市东大街北段265号 | D8: 马学功 | E8: 3058 | F8: 510781000013593 | G8: 公路工程施工总承包贰级；D251493500 | H8: (川)JZ安许证字[2005]001262 | I8: 成宜项目 | J8: 桥梁梁板安装工程、桥梁下构、梁板预制、涵洞工程 | K8: 刘玉 | L8: 13547338777 | M8: 杨超越 | N8: A | O8: 公路桥梁
A9: 7 | B9: 南阳金宝路桥工程有限公司 | C9: 南阳市建设路宇信凯旋城西侧 | D9: 张吉虎 | E9: 1000 | F9: 91411302MA3X456Q9M | G9: 施工劳务不分等级、D341081896 | H9: （豫）JZ安许证字[2018]130839-04 | I9: 潍莱铁路WLTLSG-3标 | J9: 桥梁基础及下部结构 | K9: 张吉虎 | L9: 13613872222 | M9: 辛浩 | N9: A | O9: 路桥集团
A10: 8 | B10: 山东鲁达路桥工程有限公司 | C10: 山东省菏泽市巨野县麒麟大道 | D10: 陈成银 | E10: 1000 | F10: 91371724349089829A | G10: 施工劳务不分等级D337157452 | H10: （鲁）JZ安许证字[2017]170537 | I10: 京台五标一分部/济青改扩建第六标段 | J10: 桥梁施工 | K10: 陈成银/陈研玉 | L10: 18865019888/15550739198 | M10: 邴召建/邱继旭 | N10: A | O10: 鲁桥建设
C11: 菏泽市巨野县麒麟大道831号 | D11: 陈成银 | E11: 1000 | F11: 91371724349089829A | G11: 施工劳务不分等级D337157452 | H11: (鲁）JZ安许证字（2017）170537-01 | I11: 文莱五/京沪/京台/济泰/31009 | J11: 现浇箱梁/路基/临建/下部 | K11: 陈成雷/陈彭飞/巩西银/袁国强/陈成才 | L11: 13255309998/18253086669/13605491687/15054635276/15550676000 | M11: 王艳娇/董新星/屈庆勋/苏子龙/林森林 | N11: A | O11: 路桥集团
C12: 山东省菏泽市巨野县麒麟大道（原花冠路）831号牡丹花园小区C5号楼2单元1002号 | D12: 陈成银 | E12: 1000 | F12: 91371724349089829A | G12: D337157452 施工劳务不分等级 | H12: （鲁）JZ安许证字〔2017〕170537 | I12: 宁梁二标、莱泰四标 | J12: 下部结构、箱梁预制 | K12: 陈成银 | L12: 18865019888 | M12: 徐耀 | N12: A | O12: 路桥集团
A13: 9 | B13: 巨野福达重钢建筑安装工程有限公司 | C13: 山东省菏泽市巨野县光明路北段路西 | D13: 张长军 | E13: 3000 | F13: 91371724067368555N | G13: 建筑工程施工总承包叁级 D337082727 | H13: （鲁）ZJ安许证字[2016]170444-01 | I13: 岚罗项目 | J13: 预制箱梁工程 | K13: 王善玉 | L13: 18905309975 | M13: 曹文增 | N13: A | O13: 路桥集团
C14: 山东省菏泽市巨野县光明北路西 | D14: 张长军 | E14: 2000 | F14: 91371724067368555N | G14: 建筑工程施工总承包叁级，证书编号：D337082727 | H14: （鲁）JZ安许证字[2016]170444-01 | I14: 宁夏西会 | J14: 梁板预制及安装 | K14: 张长军 | L14: 15663743658 | M14: 刘亚文 | N14: A | O14: 路桥集团
A15: 10 | B15: 乐山泓胜建筑工程有限公司 | C15: 乐山市市中区碧山路2688号1幢9层 | D15: 汪祺 | E15: 4068 | F15: 915111003234179866 | G15: 建筑工程施工总承包叁级、 市政公用工程施工总承包叁级 | H15: （川）JZ安许证字【2016】OL1020 | I15: 省道103线青神至五通桥段公路工程（乐山段）PPP项目 | J15: 包含K21+925毛塆大桥、K49+802代家祠中桥基础（钻孔桩、挖孔桩、承台等）、下部结构（墩柱、系梁、盖梁、桥台等）和附属工程（桥面铺装、防撞护栏、搭板等）施工等与此有关的劳务工作。 | K15: 吕其祥 | L15: 18608331522 | M15: 李申伟 | N15: A | O15: 鲁桥建设
A16: 11 | B16: 淄博金铭市政工程有限公司 | C16: 淄博市高新区 | D16: 张东、宋训臣 | E16: 2000 | F16: 91370303683233638N | G16: 市政公用工程施工总承包贰级，D237089346 | H16: （鲁）JZ安许证字〔2012〕03-0049 | I16: 枣木东延项目 | J16: 箱梁预制及安装工程 | K16: 周榴元 | L16: 13869310697 | M16: 卢洁 | N16: A | O16: 路桥集团
A17: 12 | B17: 齐河龙亭路业有限公司 | C17: 齐河县经济开发区金石大街 | D17: 黄传亭 | E17: 1000 | F17: 91371425771019180P | G17: 市政公用工程施工总承包贰级A210437142504-2/2 | H17: (鲁）JZ安许证字（2018）130747 | I17: 文莱项目四/五合同 | J17: 钢筋加工 | K17: 铉令玉/于建朝/黄兴辉 | L17: 15998779466/13483912513/13406798989 | M17: 王艳娇/潘鑫达/屈庆勋 | N17: A | O17: 路桥集团
A18: 13 | B18: 宜昌城堡建设有限公司 | C18: 宜昌市夷陵区东城试验区润城社区发展大道99号 | D18: 田勇 | E18: 6000 | F18: 91420567881532392 | G18: 模板脚手架专业承包不分等级，'D342017333 | H18: (鄂)JZ安许证字[2006]003589 -1/2 | I18: 江西抚州 | J18: 包含起拱线以上拱座、主拱、腹拱、主梁、引桥箱梁、桥面铺装、人行道、桥头搭板、支座垫石等钢筋制安、混凝土浇筑，伸缩缝安装，支座安装，支架搭设拆除、预压，桥面排水等劳务工作 | K18: 董果 | L18: 18678761205 | M18: 李德义 | N18: A | O18: 路桥集团
A19: 14 | B19: 山东万里市政工程建设有限公司 | C19: 无棣县阳信镇鲁北通判经济开发区 | D19: 刘超 | E19: 1000 | F19: 9130 1135 0024 2050 0015 81 | G19: 市政公用工程施工总承包叁级 证书编号：D337066009 | H19: （鲁）JZ安许证字﹝2014﹞16-0021 | I19: 董梁公路宁梁段二合同二分部 | J19: 桥梁下部结构；桥面系及附属工程 | K19: 刘超 | L19: 13854368999 | M19: 卞福坤 | N19: A | O19: 鲁桥建设
A20: 15 | B20: 河南省精中建设有限公司 | C20: 汤阴县食品工业园工横二路东段北侧 | D20: 郑承国 | E20: 2000 | F20: 914105237932473609(1-12) | G20: 水利水电工程施工总承包叁级；D341015708 | H20: （豫）JZ安许证字[2005]060103 | I20: 新台项目/枣菏 | J20: 钢筋加工工程 | K20: 张开祥 | L20: 15093906788 | M20: 王少文/李阳 | N20: A | O20: 公路桥梁
A21: 16 | B21: 济宁恒瑞路桥工程有限公司 | C21: 济宁市 | D21: 张磊 | E21: 2000 | F21: 91370811060443698B | G21: 市政路桥工程施工专业承包叁级，A1011037095213-1 | H21: （鲁）JZ安许证字{2018}08097901 | I21: 泰东三合同/新台项目/京沪二标 | J21: 西接线引桥预应力混凝土连续梁工程 | K21: 张磊 | L21: 13854718111 | M21: 王骁/王少文/简晓辉 | N21: A | O21: 公路桥梁
A22: 17 | B22: 济南超华建筑工程有限公司 | C22: 山东省济南市槐荫区绿地国际花都14-2-2302室 | D22: 张奉稳 | E22: 888 | F22: 91370104307128797K | G22: D337209125 施工劳务不分等级 | H22: （鲁）JZ安许证字〔2020〕012982-02 | I22: 宁梁二标一分部 | J22: 下部结构及桥面系 | K22: 张奉稳 | L22: 15552306988 | M22: 徐耀 | N22: B | O22: 路桥集团
C23: 山东省济南市槐荫区绿地国际花都14-2-2302室 | D23: 张奉稳 | E23: 888 | F23: 91370104307128797K | G23: D337209125 施工劳务不分等级 | H23: （鲁）JZ安许证字〔2020〕012982-02 | I23: 京台四标 | J23: 钢筋加工 | K23: 张奉稳 | L23: 15552306988 | M23: 屈庆勋 | N23: B | O23: 路桥集团
C24: 山东省济南市槐荫区绿地国际花都14-2-2302室 | D24: 张奉稳 | E24: 50 | F24: 91370104307128797K | G24: 施工劳务不分等级 D337209125 | H24: （鲁）JZ安许证字【2020】012982-02 | I24: 济青改扩建第六标段 | J24: 桥梁工程 | K24: 张奉稳 | L24: 13153141471 | M24: 邱继旭 | N24: B | O24: 鲁桥建设
C25: 山东省济南市槐荫区绿地国际花都14-2-2302室 | D25: 张奉稳 | E25: 888 | F25: 91370104307128797K | G25: 公路工程、桥梁施工专业承包壹级；证书编号：C1064037012 | H25: (鲁）JZ安许证字[2014]170375 | I25: 京台三标 | J25: K365+100-K376+000钢筋加工 | K25: 张奉稳 | L25: 15552306988 | M25: 张新伟 | N25: B | O25: 公路桥梁
A26: 18 | B26: 中铁宝桥集团有限公司 | C26: 宝鸡市高新技术产业开发区火炬路4号 | D26: 黄振宇 | E26: 123369.23 | F26: 916100007273575450 | G26: 钢结构工程专业承包壹级，D161057736 | H26: (陕)JZ安许证字{2005}030031-2/2 | I26: 泰东三合同 | J26: 钢箱梁、钢桁梁、钢锚梁及钢牛腿加工制造 | K26: 康兵选 | L26: 18791979780 | M26: 王骁 | N26: B | O26: 公路桥梁
C27: 陕西省宝鸡市高新开发区火炬路4号 | D27: 洪军 | E27: 123369.23 | F27: 916100007273575450 | G27: 钢结构工程专业承包壹级，D161057736 | H27: (陕)JZ安许证字[2005]030031-2/2 | I27: 长深高速高青至广饶段工程/枣木东延 | J27: 钢箱梁加工与运输安装工程 | K27: 张晓伟 | L27: 18729788774 | M27: 范伟 | N27: B | O27: 路桥集团
A28: 19 | B28: 山东英益建筑工程有限公司 | C28: 山东省菏泽市单县东关南家后119号 | D28: 田军 | E28: 5000 | F28: 91371722MA3C4P1XX8 | G28: D337157170 市政公用工程施工总承包三级；建筑工程施工总承包三级 | H28: （鲁）JZ安许证字〔2017〕17-0104 | I28: 宁梁二标一分部 | J28: 下部结构、挂篮施工、桥面系 | K28: 吴兆标 | L28: 18254002688 | M28: 徐耀 | N28: B | O28: 路桥集团
A29: 20 | B29: 山东众诚建筑劳务有限公司 | C29: 济南市天桥区前黄屯79号 | D29: 卢广顺 | E29: 600 | F29: 91370105697491371N | G29: 模板脚手架专业承包不分级 | H29: （鲁）JZ 安许证字（2017） 010950-01 | I29: 京台五标三分部/京台五标一分部/京台五标二分部 | J29: 钢筋加工/桥梁施工/箱梁预制工程 | K29: 郑钦建/陈尚乾/吴林 | L29: 18954065406/17705478808/13325197399 | M29: 韩园园/邴召建/周丰禄 | N29: B | O29: 鲁桥建设
A30: 21 | B30: 济南庆达丰成工程技术有限公司 | C30: 山东省济南市天桥区卢庄工业园二区12号 | D30: 耿凤霞 | E30: 800 | F30: 9.137010578e+17 | G30: 特种工程（结构补强）专业承包不分等级 D237142233 | H30: （鲁）JZ安许证字【2017】011758-1 | I30: 济青改扩建 | J30: 桥梁加固 | K30: 魏征 | L30: 15866696565 | M30: 邱继旭 | N30: B | O30: 鲁桥建设
A31: 22 | B31: 河北慧诚路桥工程有限公司 | C31: 衡水市桃城区胜利西路888号 | D31: 魏俊慧 | E31: 5100 | F31: 91131102084989513B | G31: 特种工程作业承包不分等级 D213104397 | H31: （冀）JZ安许证字【2017】008816-2/2 | I31: 济青改扩建第六标段 | J31: 伸缩缝安装 | K31: 王庆海 | L31: 153155586968 | M31: 邱继旭 | N31: B | O31: 鲁桥建设
A32: 22 | B32: 东阿和平建筑劳务有限公司 | C32: 东阿县鱼山镇驻地 | D32: 李和平 | E32: 500 | F32: 91371524672231776P | G32: D337113894 模板脚手架专业承包不分等级 | H32: （鲁）JZ安许证字〔2016〕150357 | I32: 宁梁二标一分部 | J32: 下部结构、箱梁预制 | K32: 李德平 | L32: 18953911170 | M32: 徐耀 | N32: B | O32: 路桥集团
C33: 东阿县鱼山镇驻地 | D33: 李和平 | E33: 500 | F33: 91371524672231776P | G33: 模板脚手架专业承包不分等级，D337113894 | H33: （鲁）JZ安许证字〔2016〕150357 | I33: 京沪二标/新台项目/泰东/济微/京台三 | J33: 水稳，沥青，临建场地硬化，预制梁板 | K33: 李和军 | L33: 15315790991 | M33: 简晓辉/王少文/王骁 | N33: B | O33: 公路桥梁
A34: 23 | B34: 浙江中隧桥波形钢腹板有限公司 | C34: 萧山区所前镇东复村 | D34: 冯雅萍 | E34: 3500 | F34: 9133010955265503X2 | G34: 钢结构壹级，MC2011021A-123 | H34: AQBIIIJX(杭)201400954 | I34: 长深高速高青至广饶段工程 | J34: 波形钢腹板加工与运输安装工程 | K34: 勾志鹏 | L34: 18646396129 | M34: 范伟 | N34: B | O34: 路桥集团
A35: 24 | B35: 安徽华新建筑劳务有限责任公司 | C35: 安徽省六安市皖西路65号（仙安商城） | D35: 苏振新 | E35: 1600 | F35: 91341500788572126U | G35: 模板脚手架专业承包不分等级 D334048664 | H35: (皖)JZ安许证字〔2019〕004048-2-1 | I35: 京台二标 | J35: 涵洞及桥梁下部结构施工/场站土建/防护排水 | K35: 李树森 | L35: 15250921788 | M35: 刘铭磬 | N35: B | O35: 路桥集团
A36: 25 | B36: 聊城市传朋公路工程有限公司 | C36: 莘县东鲁办事处东升路与文明路交叉口西北角 | D36: 靳传朋 | E36: 3600 | F36: 91371500728607446F | G36: D237011124 公路工程施工总承包二级 | H36: （鲁）JZ安许证字〔2005〕150108 | I36: 宁梁二标一分部 | J36: 下部结构及桥面系 | K36: 任兰勇 | L36: 13188807744 | M36: 徐耀 | N36: B | O36: 路桥集团
A37: 26 | B37: 重庆市綦江区国鹏建筑劳务有限公司 | C37: 重庆市綦江区文龙街道九龙大道 | D37: 王再国 | E37: 2000 | F37: 91500222798044693F | G37: D350086390 模板脚手架专业承包不分等级 施工劳务不分等级 | H37: （渝）JZ安许证字〔2008〕004458-01 | I37: 宁梁二标一分部 | J37: 挂篮施工 | K37: 孙杰 | L37: 13853197082 | M37: 徐耀 | N37: B | O37: 路桥集团
A38: 27 | B38: 河南灿加防腐保温工程有限公司 | C38: 河南省郑州高新技术产业开发区科学大道57号2号楼10层189 | D38: 王科科 | E38: 1020 | F38: 914101003534204497 | G38: 防水防腐保温工程专业承包二级，D341122097 | H38: （豫）JZ安许证字〔2017〕013860 | I38: 青岛海湾大桥胶州连接线工程 | J38: 桥梁工程承台、墩柱防腐涂层工程施工 | K38: 王科科 | L38: 15952220358 | M38: 王媛 | N38: B | O38: 路桥集团
A39: 28 | B39: 山东宏盛建筑劳务有限公司 | C39: 市中区清檀南路75号 | D39: 马俊 | E39: 2000 | F39: 913704000604247105 | G39: 模板脚手架专业承包不分等级 D337112914 | H39: 【鲁】JZ安许证字[2015]040406-02 | I39: 京台五标二分部/京雄高速SG4标段/济青改扩建六标 | J39: 京雄高速SG4标现浇箱梁钢筋加工、运输、支架搭设及拆除，支座安装、支模、钢筋绑扎，混凝土浇筑养护。 | K39: 庄其东 | L39: 13062067216 | M39: 周丰禄 | N39: B | O39: 鲁桥建设
A40: 29 | B40: 江苏东海星泰建设工程有限公司 | C40: 连云港市东海县石榴街道办事处石泉路41号 | D40: 赵志开 | E40: 3180 | F40: 91320722139334822T | G40: 房屋建筑施工总承包贰级、市政公用工程施工总承包贰级 D232041865 | H40: （苏）JZ安许证字【2005】070033 | I40: 胶州湾高速营海口周边道路综合提升工程/董梁公路宁梁段二合同二分部 | J40: 凿除桩头、钢筋笼加工与安装、钢筋加工与安装、浇筑承台与桥台、浇筑墩身、盖梁与顶系梁、现浇箱梁、空心板预制、安装 | K40: 鲍怀华 | L40: 13563949918 | M40: 王浩 | N40: B | O40: 鲁桥建设
A41: 30 | B41: 江苏宇丰建设投资有限公司 | C41: 泰兴市宣堡镇三堡村大张堡二组 | D41: 史金凤 | E41: 1000 | F41: 91321283675487953U | G41: 市政公用工程施工总承包叁级D332101157 | H41: 苏JZ安许证字[2011]601029 | I41: 京台五标二分部 | J41: 桥梁基础及下部构造现浇工程 | K41: 钱建刚 | L41: 15861625358 | M41: 周丰禄 | N41: B | O41: 鲁桥建设
A42: 31 | B42: 上海豪江路桥建设有限公司 | C42: 上海市闵行区闵北路88弄1-17号、18-30号第29幢137室 | D42: 邵佳豪 | E42: 3668 | F42: 91310112566552840B | G42: 施工劳务企业资质劳务分包不分级 | H42: （泸）JZ安许证字[2017]040815-02 | I42: 济青改扩建六标 | J42: 桥梁工程 | K42: 陆元海 | L42: ‭137 7105 9538‬ | M42: 李世杰 | N42: B | O42: 鲁桥建设
A43: 32 | B43: 枣庄盛翔建筑劳务有限公司 | C43: 山东省枣庄市山亭区府前路176号 | D43: 陈书勇 | E43: 220 | F43: 9137040631 2853985C | G43: 模板脚手架专业承包不分等级、D337113886 | H43: （鲁）JZ安许证字【2015】040429-01 | I43: 济青改扩建第六标段 | J43: 高架桥下部结构及现浇箱梁施工 | K43: 乔安生 | L43: 15054026688 | M43: 闫盛国 | N43: B | O43: 鲁桥建设
A44: 33 | B44: 日照华德建筑工程有限公司 | C44: 山东省日照市东港区天津路中学沿街座5号 | D44: 申华 | E44: 1000 | F44: 91371102586078234C | G44: 混凝土作业分包劳务分包资质、钢筋作业分包劳务分包贰级、C5114037110135-1/1 | H44: （鲁）JZ安许证字【2017】110616-02 | I44: 济青改扩建第六标段 | J44: 高架桥下部结构及现浇箱梁施工 | K44: 崔久余 | L44: 13863337596 | M44: 闫盛国 | N44: B | O44: 鲁桥建设
A45: 34 | B45: 宿迁市韬恒劳务有限公司 | C45: 宿迁市宿城区香榭里明珠门面房119号 | D45: 朱滔滔 | E45: 400 | F45: 91321302573818109A（1/1） | G45: 施工劳务不分等级，编号：D332151543 | H45: （苏）JZ安许证字[2017]901262 | I45: 济微高速济宁段 | J45: 下部结构及现浇箱梁 | K45: 朱磊 | L45: 15250773678 | M45: 刘继文 | N45: B | O45: 公路桥梁
A46: 35 | B46: 大连海滨建筑劳务有限公司 | C46: 庄河市新华街道暖水村 | D46: 刘美花 | E46: 400 | F46: 9121028366 92374647 | G46: 模板脚手架专业承包不分等级 | H46: （辽）JZ安许证字[2010]005447 | I46: 省道315线蜂场至尼勒克段公路工程第FN-1标段 | J46: 桥梁工程 | K46: 丁义广 | L46: 15040531767 | M46: 纪永恒 | N46: B | O46: 路桥集团
C47: 庄河市新华街道暖水村 | D47: 刘美花 | E47: 400 | F47: 9121028366 92374000 | G47: 模板脚手架专业承包不分等级 | H47: （辽）JZ安许证字[2010]005447 | I47: 长深高速高青至广饶段工程 | J47: 钢箱梁桥面系、小清河特大桥3#主桥工程 | K47: 刘美花 | L47: 15168955350 | M47: 范伟 | N47: B | O47: 路桥集团
A48: 36 | B48: 山东东煌建筑工程有限公司 | C48: 山东省济南市历城区华山街道宋刘庄5号楼2单元402室 | D48: 黄兴栋 | E48: 2000 | F48: 91370112307101340J | G48: 施工劳务不分等级D337148598 | H48: (鲁)JZ安许证字〔2017〕011895 | I48: 京台二标 | J48: 小型预制件预制施工/涵洞及桥梁下部结构施工 | K48: 黄兴栋 | L48: 15318851676 | M48: 刘铭磬 | N48: B | O48: 路桥集团
C49: 山东省济南市历城区华山街道宋刘庄5号楼2单元40 | D49: 黄兴栋 | E49: 2000 | F49: 91370112307101340J | G49: 施工劳务不分等级；D337148598 | H49: （鲁）JZ安许证字【2017】011895 | I49: 岚罗项目 | J49: 桥面附属工程 | K49: 姚辉文 | L49: 18660798998 | M49: 曹文增 | N49: B | O49: 路桥集团
C50: 山东省济南市历城区华山街道宋刘庄5号楼2单元40 | D50: 黄兴栋 | E50: 2000 | F50: 91370112307101340J | G50: 施工劳务不分等级D337148598 | H50: 鲁）JZ安许证字【2017】011895 | I50: 京台五标三分部/国道204拓宽改造项目 | J50: 桥涵拆除工程 | K50: 潘宝增 | L50: 13053413888 | M50: 韩园园/丛磊 | N50: B | O50: 鲁桥建设
A51: 37 | B51: 福建鑫千百工程管理有限公司 | C51: 福建省福州市仓山区螺洲镇杜园路18号海峡西岸国际物流商贸城（二期）16号楼15层19办公 | D51: 李家晖 | E51: 5000 | F51: 91350104MA32W8A04X | G51: 施工劳务不分等级、D335151110 | H51: （闽）JZ安许证字【2019】FZ1041-1 | I51: 漳浦县公路建设改造工程 | J51: 前亭线桥涵及挡土墙 | K51: 张贤决 | L51: 13959313178 | M51: 果加民 | N51: B | O51: 路桥集团
A52: 38 | B52: 四川新冶建筑工程有限公司 | C52: 成都市锦江区东四横街8号1栋2单元6层609号 | D52: 张继凤 | E52: 1000 | F52: 91510100MA61TNKM7Q | G52: 模板脚手架专业承包不分等级，D351526790 | H52: (川)JZ安许证字[2016]000642 | I52: 长深高速高青至广饶段工程 | J52: 下部构造工程 | K52: 魏生明 | L52: 18963402688 | M52: 范伟 | N52: B | O52: 路桥集团
A53: 39 | B53: 山东全成路桥工程有限公司 | C53: 莱芜市口镇西街村 | D53: 韩传亮 | E53: 3000 | F53: 91371200761868461A | G53: 公路工程施工总承包贰级 D237078874 | H53: (鲁)JZ安许证字〔2005〕120030-01 | I53: 京台二标 | J53: 涵洞及桥梁下部结构施工/桥面系及护栏 | K53: 怀培伟 | L53: 15250921788 | M53: 刘铭磬 | N53: B | O53: 路桥集团
A54: 40 | B54: 山东省梁山县第三建筑安装有限公司 | C54: 山东省济宁市梁山县信楼村 | D54: 杨作朋 | E54: 2100 | F54: 91370832169152229R | G54: 建筑业建筑工程施工总承包三级 | H54: （鲁）JZ安许证字〔2016〕080352 | I54: 莱泰四标 | J54: 下部结构 | K54: 张玉团 | L54: 15950434777 | M54: 宋劲松 | N54: B | O54: 路桥集团
A55: 41 | B55: 山东致远公路工程有限公司 | C55: 山东省泰安市东平县彭集街道滨河新区通渠街南侧 | D55: 卢静 | E55: 1000 | F55: 91370923577787098L | G55: D337035387 公路工程施工总承包三级 | H55: （鲁）JZ安许证字〔2015〕181192 | I55: 宁梁二标一分部 | J55: 下部结构 | K55: 徐恩平 | L55: 13854860110 | M55: 徐耀 | N55: B | O55: 路桥集团
A56: 42 | B56: 山东玉泰公路设施有限公司 | C56: 淄博市高新区中润大道153号 | D56: 刘晓辉 | E56: 2000 | F56: 91370303706033365P | G56: 公路交通工程（公路安全设施）专业承包壹级：D137075485 | H56: （鲁）JZ安许证字[2016]180781-01 | I56: 京台五标二分部/济青改扩建六标 | J56: 结构物拆除工程/桥梁工程 | K56: 牛和亮 | L56: 0533-3591000 | M56: 周丰禄/李世杰 | N56: B | O56: 鲁桥建设
A57: 43 | B57: 山东辉翔建筑劳务有限公司 | C57: 山东省枣庄市市中区青檀南路75号中奥万融公馆A区1.2.3号楼商业75-6号 | D57: 邹昊奇 | E57: 2000 | F57: 91370402067379457E | G57: 施工劳务不分等级D337147192 | H57: (鲁)JZ安许证字〔2018〕040499-01 | I57: 京台五标二分部 | J57: 桥面系及附属结构现浇 | K57: 邹昊奇 | L57: 15564660699 | M57: 周丰禄 | N57: B | O57: 鲁桥建设
A58: 44 | B58: 山东金亿劳务有限公司 | C58: 山东省济南市历城区飞跃大道与凤岐路交叉口东南侧200米 | D58: 刘杰 | E58: 3000 | F58: 91370112MA3C14RJ7M | G58: 建筑业施工劳务不分等级 | H58: （鲁）JZ安许证字〔2017〕011879 | I58: 京台五标二分部 | J58: 桥面系及附属结构现浇 | K58: 席念辉 | L58: 186537515911 | M58: 周丰禄 | N58: B | O58: 鲁桥建设
A59: 45 | B59: 青岛众安路桥工程有限公司 | C59: 青岛市城阳区上马工业园 | D59: 陈福序 | E59: 3000 | F59: 91370214750410420W | G59: 市政公用工程施工总承包贰级D237118839 | H59: （鲁）JZ安许证字〔2010〕02-0044 | I59: 国道204拓宽改造项目 | J59: 钢筋加工 | K59: 吴秀芝 | L59: 18661973739 | M59: 丛磊 | N59: B | O59: 鲁桥建设
A60: 46 | B60: 大英众诚劳动服务有限公司 | C60: 大英县蓬莱镇江西三路 | D60: 蒋平安 | E60: 1550 | F60: 91510923797885116F | G60: 施工劳务不分等级、D351615519 | H60: （川）JZ安许证字【2017】006739 | I60: 泸黄项目 | J60: 桥梁工程 | K60: 刘建军 | L60: 18223125785 | M60: 李霞 | N60: B | O60: 公路桥梁
A61: 47 | B61: 长春市新雨建筑劳务有限公司 | C61: 吉林省长春市南关区 | D61: 庞云凤 | E61: 2000 | F61: 91220101MA1411FR74 | G61: 施工劳务不分等级；证书编号：D322048623 | H61: (吉）JZ安许证字[2018]005489 | I61: 京台三标 | J61: K365+100-K376+000桥涵工程（含保通桥） | K61: 张彦军 | L61: 15043122299 | M61: 张新伟 | N61: B | O61: 公路桥梁
A62: 48 | B62: 济宁诚鸿路桥工程有限公司 | C62: 山东省济宁市梁山县韩垓镇红庙村 | D62: 刘承红 | E62: 200 | F62: 91370832MA3N65N14L | G62: 施工劳务不分等级 | H62: (鲁)JZ 安许证字[2020]081481 | I62: 河南省渑淅高速公路 | J62: 八字墙、涵洞整平层、洞口附属工程混凝土，盖板涵、箱涵及拱涵及其附属钢筋安装，盖板涵、箱涵及通道一字墙涵身、盖板、帽石混凝土，圆管涵及倒虹吸安装，浆砌片石台身，钢波纹管安装。 | K62: 刘鹏 | L62: 13375477999 | M62: 潘鑫达 | N62: B | O62: 路桥集团
C63: 山东省济宁市梁山县韩垓镇红庙村 | D63: 刘承红 | E63: 200 | F63: 91370832MA3N65N14L | G63: D337202349 | H63: （鲁）JZ安许证字〔2020〕081481 | I63: 莱泰四标 | J63: 下部结构 | K63: 刘鹏 | L63: 13375477999 | M63: 宋劲松 | N63: B | O63: 路桥集团
A64: 49 | B64: 菏泽英建路桥工程有限公司 | C64: 菏泽市牡丹区市场监督管理局 | D64: 油金彪 | E64: 2088 | F64: 91371702694448685E | G64: D337162914模板脚手架专业承包不分等级 | H64: （鲁）JZ安许证字〔2016〕170457 | I64: 京台四标/京沪/黄河大桥 | J64: 桥梁工程 | K64: 油金刚/宋传扬/油金彪 | L64: 18615290810/18661526636/13345678989 | M64: 屈庆勋/董新星/吴文波 | N64: B | O64: 路桥集团
C65: 山东省菏泽市牡丹区中华路与青年路交叉口桑盾商务中心 | D65: 油金彪 | E65: 2088 | F65: 91371702694448685E | G65: 模板脚手架专业承包不分等级， D337162914 | H65: （鲁）JZ安许证字〔2016〕 170457-02 | I65: 青岛海湾大桥胶州连接线工程 | J65: 桥梁工程现浇箱梁、混凝土护栏工程 | K65: 油金彪 | L65: 13305307058 | M65: 王媛 | N65: B | O65: 路桥集团
C66: 山东省菏泽市牡丹区 | D66: 油金彪 | E66: 2088 | F66: 91371702694448685E | G66: C1074037290109-1/1 | H66: （鲁）JZ安许证字﹝2016﹞170457 | I66: 济青二标/枣菏/京台改扩建三标段 | J66: 桥梁加固、桥梁、桥面系（跨径≤16m）、桥梁搭板（拼宽部分）、桥面系及搭板（老桥部分）、防抛网安装 | K66: 刘振军 | L66: 13791491858 | M66: 张航 | N66: B | O66: 公路桥梁
C67: 山东省菏泽市牡丹区中华路与青年路交叉口桑盾商务中心 | D67: 油金彪 | E67: 366 | F67: 91371702694448685E | G67: 混凝土作业劳务分包资质C1074037290109-1/1 | H67: （鲁）JZ安许证字〔2016〕170457 | I67: 巨单项目 | J67: 桥梁下部构造、桥面系施工 | K67: 张常喜 | L67: 13305307058 | M67: 裴天宇 | N67: B | O67: 路桥集团
C68: 山东省菏泽市牡丹区中华路与青年路交叉口桑盾商务中心 | D68: 油金彪 | E68: 366 | F68: 91371702694448685E | G68: 混凝土作业劳务分包资质 | H68: （鲁）JZ安许证字〔2016〕170457 | I68: 巨单项目 | J68: 桥梁下部构造 | K68: 张常喜 | L68: 13305307058 | M68: 裴天宇 | N68: B | O68: 路桥集团
C69: 山东省菏泽市牡丹区中华路与青年路交叉口桑盾商务中心 | D69: 油金彪 | E69: 2088 | F69: 91371702694448685E | G69: 混凝土作业劳务分包资质 证书编号：C1074037290109-1/1 | H69: （鲁）JZ安许证字﹝2016﹞170457-02 | I69: 董梁公路宁梁段二合同二分部 | J69: 桥梁下部结构；挂篮悬浇（含下部）结构施工 | K69: 岳耀全 | L69: 13678821011 | M69: 卞福坤 | N69: B | O69: 鲁桥建设
A70: 50 | B70: 河南汇福路桥工程有限公司 | C70: 开封市开发区宋城路以北 | D70: 耿涛 | E70: 1000 | F70: 2546 0156 1793 | G70: 市政公用工程施工总承包叁级 证书编号：D341111323 | H70: （豫）JZ安许证字﹝2017﹞020435 | I70: 董梁公路宁梁段二合同二分部 | J70: 小箱梁预制 | K70: 耿涛 | L70: 15637898889 | M70: 卞福坤 | N70: B | O70: 鲁桥建设
A71: 2 | C71: 河南自贸试验区开封片区宋城路以北 | D71: 耿涛 | E71: 1000 | F71: 91410200785097315M | G71: 市政公用工程施工总承包叁级D341111323 | H71: （豫）JZ安许证字[2018]020435-02 | I71: 2019年少新/330项目 | J71: 桥梁加固 | K71: 耿涛 | L71: 13803785888 | M71: 刘星/邓伟伟 | N71: B | O71: 公路桥梁
A72: 51 | B72: 齐河县晏建建筑工程有限责任公司 | C72: 齐河县城齐顺大街东首路南 | D72: 丁建勇 | E72: 2050.71 | F72: 9137142516753272X6 | G72: 建筑工程施工总承包贰级D237033440 | H72: （鲁）JZ安许证字{2005}130065-02 | I72: 济青改扩建六标 | J72: 桥梁工程 | K72: 张继信 | L72: 15205346189 | M72: 李世杰 | N72: B | O72: 鲁桥建设
A73: 52 | B73: 新泰市金斗建筑安装工程有限公司 | C73: 新泰市青云街道金斗社区 | D73: 尹俊 | E73: 2000 | F73: 91370982169600685L | G73: D237090368 | H73: （鲁）JZ安许证字{2011}090440-01 | I73: 京沪改扩建 | J73: 下部结构工程 | K73: 李超 | L73: 15163837866 | M73: 董新星 | N73: B | O73: 路桥集团
A74: 53 | B74: 富顺县华瑞建筑工程有限责任公司 | C74: 富顺县彭庙镇街村二组清正街100号 | D74: 罗秀 | E74: 500 | F74: 91510322MA6205660E | G74: 施工劳务、不分等级，D351579430 | H74: (川)JZ安许证字[2017]00 1592 | I74: 莱泰四标 | J74: 结构物及小桥 | K74: 张宗华 | L74: 15808227148 | M74: 宋劲松 | N74: B | O74: 路桥集团
A75: 54 | B75: 江西川瑞建筑劳务有限公司 | C75: 江西省抚州市临川区赣东大道328号 | D75: 王付英 | E75: 2000 | F75: 100220011846 | G75: D336136999 | H75: （赣）JZ安许证字2019060188 | I75: 莱泰四标 | J75: 预制箱梁 | K75: 米长刚 | L75: 13755983908 | M75: 宋劲松 | N75: B | O75: 路桥集团
A76: 55 | B76: 山东优步建筑工程有限公司 | C76: 山东省菏泽市单县园艺舜师东路义乌商贸城C73号 | D76: 邵强 | E76: 1200 | F76: 91371722MA3N015P21 | G76: D337185476 | H76: （鲁）JZ安许证字〔2019〕170774 | I76: 莱泰四标 | J76: 预制板，结构物，下部结构 | K76: 吴兆彪 | L76: 18254002688 | M76: 宋劲松 | N76: B | O76: 路桥集团
A77: 56 | B77: 山东丰志建筑工程有限公司 | C77: 山东省济南市高新区新泺大街786号南楼206-01房间 | D77: 张跃宏 | E77: 6000 | F77: 91370112307221414K | G77: 建筑业建筑工程施工总承包三级D337173864 | H77: （鲁）JZ安许证字[2018]012269-01 | I77: 京台五标二分部 | J77: 下部及上部结构物钢筋加工 | K77: 有龙超 | L77: 15098811111 | M77: 周丰禄 | N77: B | O77: 鲁桥建设
A78: 57 | B78: 四川亿路顺路桥建设工程有限公司 | C78: 四川省攀枝花市东区新源路558附2-6 | D78: 李娜 | E78: 1200 | F78: 91510400MA65JQTF4B | G78: 公路工程施工总承包叁级D351805009 | H78: （川）JZ安许证字[2018]007915 | I78: 京台五标三分部 | J78: 小结构物工程 | K78: 张灿达 | L78: 17662532999 | M78: 韩园园 | N78: B | O78: 鲁桥建设
A79: 58 | B79: 泰安市益鑫建筑安装工程有限公司 | C79: 泰安市泰山区省庄镇后省庄村（20） | D79: 洒西圣 | E79: 1000 | F79: 91370902166521770F | G79: 建筑工程施工总承包叁级D337063713 | H79: （鲁）JZ安许证字〔2005〕090257-01 | I79: 京台五标三分部 | J79: 小构件预制工程 | K79: 赵爱华 | L79: 15315639000 | M79: 韩园园 | N79: B | O79: 鲁桥建设
A80: 59 | B80: 山东舜龙市政工程有限公司 | C80: 济南市长清区经十西路15551号 | D80: 宋文彬 | E80: 10000 | F80: 91370113MA3CC5MK6P | G80: 建筑业企业资质，市政公用工程施工总承包二级D237143517 | H80: （鲁）JZ安许证字【2018】012074-01 | I80: 京台五标三分部 | J80: 小构件预制工程 | K80: 胡恩基 | L80: 13869114958 | M80: 韩园园 | N80: B | O80: 鲁桥建设
A81: 60 | B81: 四川川和建筑工程有限公司 | C81: 四川省绵阳市涪城区长虹大道中段131号 | D81: 徐礼亮 | E81: 2180 | F81: 91510703309300482F | G81: 公路工程施工总承包叁级D351454377 | H81: （川）JZ安许证字{2015}OB0931 | I81: 京台五标三分部 | J81: 桥梁施工工程 | K81: 左军 | L81: 15082165550 | M81: 韩园园 | N81: B | O81: 鲁桥建设
A82: 61 | B82: 山东泛邦工程有限公司 | C82: 山东省烟台市高新区科技大道69号创业大厦西塔17层 | D82: 崔文海 | E82: 3000 | F82: 913706827433504312 | G82: 市政公用工程施工总承包叁级D337063667 | H82: （鲁）JZ安许证字[2011]180466 | I82: 京台五标三分部 | J82: 小构件安装工程 | K82: 张维锋 | L82: 15166866777 | M82: 韩园园 | N82: B | O82: 鲁桥建设
A83: 62 | B83: 阔扬科技集团有限公司 | C83: 北京市丰台区富丰路2号2-23幢 十七层10号 | D83: 王新峰 | E83: 22000 | F83: 1100 1019 0000 5300 9364 | G83: 钢筋作业分包壹级、混凝土作业分包不分等级 证书编号：D311061647 | H83: （京）JZ安许证字﹝2014﹞346514-1 | I83: 董梁公路宁梁段二合同二分部 | J83: 小箱梁预制 | K83: 张玉清 | L83: 18353038888 | M83: 卞福坤 | N83: B | O83: 鲁桥建设
A84: 63 | B84: 江苏楚城建设有限公司 | C84: 宿迁经济技术开发区深圳路38号 | D84: 吴季龙 | E84: 4000 | F84: 91321302MA1NWAQKOP | G84: 建筑工程施工总承包贰D232112358 | H84: （苏）JZ安许证[2017]902064 | I84: 330项目 | J84: 桥面防水层 | K84: 沈艳 | L84: 17766267007 | M84: 苏栋 | N84: B | O84: 公路桥梁
A85: 64 | B85: 河南天元建设工程有限公司 | C85: 河南省商丘市城乡一体化示范区 | D85: 孟宪勇 | E85: 11000 | F85: 914114007616798714 | G85: 建筑工程施工总承包壹级、钢结构工程专业承包壹级D141099640 | H85: （豫）JZ安许证字[2010]150213 | I85: 2019年少新管理处二广高速济洛段、长济高速济邵段桥梁三类承重构件维修加固专项工程 | J85: 吊架及支架搭设 | K85: 孟宪勇 | L85: 13393875588 | M85: 刘星 | N85: B | O85: 公路桥梁
A86: 65 | B86: 沂南县天宇建设工程有限公司 | C86: 临沂市沂南县蒲汪镇大王庄村 | D86: 杜友全 | E86: 1000 | F86: 91371321771022785F | G86: 公路工程施工总承包叁级D337054359 | H86: （鲁）JZ安许证字〔2013〕181021 | I86: 莱泰四标 | J86: 预制箱梁 | K86: 杜连杰 | L86: 13755983908 | M86: 宋劲松 | N86: B | O86: 路桥集团
C87: 沂南县蒲汪镇大王庄村 | D87: 杜友权 | E87: 1000 | F87: 91371321771022785F | G87: 公路工程施工总承包叁级：D337054359 | H87: （鲁）JZ安许证字（2019）181021 | I87: 济微高速济宁段/枣菏项目 | J87: 下部结构及现浇箱梁/南阳互通匝道桥（支架现浇） | K87: 杜友全/杜连忠 | L87: 13863369999/13863369999 | M87: 刘继文 | N87: B | O87: 公路桥梁
C88: 沂南县市场监督管理局 | D88: 杜友全 | E88: 1000 | F88: 91371321771022785F | G88: D337054359建筑业公路工程施工总承包三级 | H88: （鲁）JZ安许证字〔2019〕181021 | I88: 京台四标/文莱五 | J88: 涵洞及桥梁下部 | K88: 杜连忠 | L88: 13235398399 | M88: 屈庆勋/王艳娇 | N88: B | O88: 路桥集团
C89: 临沂市沂南县蒲汪镇大王庄村 | D89: 杜友全 | E89: 1000 | F89: 91371321771022785F | G89: 公路工程施工总承包叁级D337054359 | H89: （鲁）JZ安许证字〔2013〕181021 | I89: 潍日高速公路潍坊连接线 | J89: 桥涵工程 | K89: 杜来宝 | L89: 18653994660 | M89: 赵永杰 | N89: B | O89: 路桥集团
A90: 66 | B90: 山东省建设建工集团劳务管理有限公司 | C90: 济南市历下区济王路164号(西门) | D90: 刘红伟 | E90: 300 | F90: 91370102723267323F | G90: 模板脚手架专业承包不分等级D337056101 | H90: （鲁）JZ安许证字〔2018〕010093 | I90: 巨单项目 | J90: 桥面系、钢筋加工 | K90: 吴晨 | L90: 13561390922 | M90: 裴天宇 | N90: B | O90: 路桥集团
C91: 济南市历下区济王路164号（西门） | D91: 刘红伟 | E91: 300 | F91: 91370102723267323F | G91: 模板脚手架专业承包不分等级 D337056101 | H91: （鲁）JZ安许证字〔2018〕010093 | I91: 京台五标二分部/济青改扩建六标 | J91: 空心板预制工程、桥梁基础及下部构造现浇工程/桥梁工程 | K91: 陈猛/郑钦建 | L91: 15866238066/18954065406 | M91: 周丰禄 | N91: B | O91: 鲁桥建设
C92: 济南市历下区济王路164号（西门） | D92: 刘红伟 | E92: 300 | F92: 91370102723267323F | G92: D337056101 | H92: （鲁）JZ安许证字﹝2014﹞010093 | I92: 济青二标 | J92: 桥梁通道下部结构、桥面系（跨径≤16m）、桥梁搭板（拼宽部分）工程 | K92: 张典征 | L92: 13573055799 | M92: 张航 | N92: B | O92: 公路桥梁
A93: 67 | B93: 江西常通桥梁建筑有限公司 | C93: 南昌市进贤县温圳镇泉岭乡聂家村 | D93: 梁刚 | E93: 5000 | F93: 91360124563816169M | G93: 建筑工程施工总承包叁级D336030340 | H93: （赣）JZ安许证字﹝2016﹞010014 | I93: 潍日高速公路潍坊连接线 | J93: 梁板安装 | K93: 梁刚 | L93: 13330076588 | M93: 赵永杰 | N93: B | O93: 路桥集团
C94: 江西省南昌市进贤县泉岭乡聂家村 | D94: 梁刚 | E94: 5000 | F94: 91360124563816169M | G94: 建筑工程施工总承包叁级、D336030340 | H94: （赣）JZ安许证字【2016】010014 | I94: 济青二/泸黄项目/京沪二标/新台项目 | J94: 桥梁工程 | K94: 梁刚 | L94: 13330076588 | M94: 张航/李霞/简晓辉/王少文 | N94: B | O94: 公路桥梁
A95: 68 | B95: 攀枝花富海路桥工程有限公司 | C95: 四川省攀枝花市东区新源路558附2-6 | D95: 王连喜 | E95: 1200 | F95: 91510400MA67Q6NC7C | G95: 市政公用工程施工总承包贰级 | H95: （川）JZ安许证字【2018】007767 | I95: 省道103线青神至五通桥段公路工程（乐山段）PPP项目/董梁公路宁梁段二合同二分部 | J95: 包含K23+500梁场硬化、轨道及台座砼浇筑，K21+925毛塆大桥、K22+919.5龙子堰中桥梁板钢筋集中加工、梁板预制及安装施工等与此有关的劳务工作/挂篮悬浇（含下部）结构施工 | K95: 王连喜 | L95: 15053788298 | M95: 李申伟/卞福坤 | N95: B | O95: 鲁桥建设
C96: 四川省攀枝花市东区新源路558附2-6 | D96: 王连喜 | E96: 1200 | F96: 91510400MA67Q6NC7C | G96: D351800719 市政公用工程施工总承包三级；施工劳务不分等级 | H96: （川）JZ安许证字〔2018〕007767 | I96: 宁梁二标一分部 | J96: 挂篮施工 | K96: 王连喜 | L96: 15053788298 | M96: 徐耀 | N96: B | O96: 路桥集团
A97: 69 | B97: 安徽双鼎建筑工程有限公司 | C97: 合肥市蜀山区淠河路98号颐和阳光大厦1506室 | D97: 熊代保 | E97: 1592 | F97: 91340100092474122P | G97: 施工劳务，证件号：D334147697 | H97: (皖)JZ安许证字[2018]009240 | I97: 京台五标二分部 | J97: 箱梁预制工程 | K97: 熊代保 | L97: 15156076777 | M97: 周丰禄 | N97: B | O97: 鲁桥建设
C98: 合肥市蜀山区淠河路98号颐和阳光大厦1506室 | D98: 熊代保 | E98: 800 | F98: 91340100092474122P | G98: 施工劳务不分等级D334147697 | H98: (皖)JZ安许证字〔2018〕009240-02-1 | I98: 京台二标 | J98: 空心板及下部结构预制安装工程施工 | K98: 熊代保 | L98: 15156076777 | M98: 刘铭磬 | N98: B | O98: 路桥集团
A99: 70 | B99: 禹城市方正建筑安装工程有限公司 | C99: 山东省德州市禹城市禹石商贸街 | D99: 张俊勇 | E99: 2020 | F99: 913714821675724815 | G99: 建筑工程施工总承包贰级D237023648 | H99: （鲁）JZ安许证字〔2005〕130043-02 | I99: 国道204拓宽改造项目/济青改扩建六标 | J99: 桥涵 | K99: 程光勇 | L99: 15954775756 | M99: 丛磊/赵越 | N99: B | O99: 鲁桥建设
A100: 71 | B100: 四川路顺众安建筑工程有限公司 | C100: 四川省攀枝花市仁和区攀枝花大道南段1049号2栋2单元8号 | D100: 刘新秀 | E100: 1200 | F100: 91510400MA64832Y4T | G100: 建筑工程施工总承包叁级D351875179 | H100: （川）JZ安许证字[2019]002044 | I100: 京台五标钢桥安装 | J100: 钢桥安装 | K100: 吕化勇 | L100: 15588814442 | M100: 王明月 | N100: B | O100: 路桥集团
A101: 72 | B101: 淄博中铁建筑安装公司 | C101: 山东省淄博市张店区中埠镇 | D101: 张永光 | E101: 2040 | F101: 913703037317309044 | G101: 建筑工程施工总承包贰级D237069670 | H101: （鲁）JZ安许证字【2005】030056-01 | I101: 京台五标三分部 | J101: 桥涵拆除工程 | K101: 牛和亮 | L101: 13156988222 | M101: 韩园园 | N101: B | O101: 鲁桥建设
A102: 73 | B102: 山东安盛路桥工程有限公司 | C102: 山东省淄博市高新区四宝山街道向阳一路24-1号 | D102: 徐清红 | E102: 1000 | F102: 9137030305238187XH | G102: 施工劳务不分级D337158840 | H102: （鲁）JZ安许证字【2018】030739-01 | I102: 京台五标三分部/京雄高速SG4标段 | J102: 京雄高速SG4标承台、系梁、墩柱、桥台、盖梁、台帽、垫石等下部结构钢筋安装、支模，砼浇筑养护等 | K102: 刘建新 | L102: 15161658842 | M102: 韩园园/朱祥坤 | N102: B | O102: 鲁桥建设
A103: 74 | B103: 普瑞建设集团有限公司 | C103: 菏泽市牡丹区高新技术工业园 | D103: 程普 | E103: 10000 | F103: 91371700683245030P | G103: 建筑工程施工总承包贰级 市政公用工程施工总承包贰级D237144569 | H103: 【鲁】JZ安许证字[2013]181031-01 | I103: 京台五标三分部 | J103: 实心板预制工程 | K103: 施鹏 | L103: 13864189987 | M103: 韩园园 | N103: B | O103: 鲁桥建设
A104: 75 | B104: 济南兴华建筑工程有限公司 | C104: 济南市高新区 | D104: 张鹏 | E104: 500 | F104: 913701006846941618 | G104: 模板脚手架专业承包不分等级，D337056143 | H104: （鲁）JZ安许证字〔2013〕010930-02 | I104: 济青改扩建第六标段 | J104: 空心板、T梁安装 | K104: 李广 | L104: 13954166583 | M104: 李和平 | N104: B | O104: 鲁桥建设
A105: 76 | B105: 六盘水嘉腾宇劳务有限公司 | C105: 贵州省六盘水市水城县 | D105: 罗玉婷 | E105: 1168 | F105: 91520221314363947T | G105: 施工劳务不分等级 市政公用工程施工总承包叁级D352036996 | H105: （黔）JZ安许证[2017]000074[08] | I105: 330项目 | J105: 桥面系及附属工程二标段、桥梁桥面系工程及下部结构工程 | K105: 叶青 | L105: 13984888169 | M105: 苏栋 | N105: B | O105: 公路桥梁
A106: 77 | B106: 天津中腐科技发展有限公司 | C106: 天津自贸区（东疆保税区） | D106: 王春山 | E106: 800 | F106: 91120118340956279w | G106: 防水防腐保温工程专业承包贰级，D212033859 | H106: （津）JZ安许证字{2018}ZE0006744 | I106: 泰东三合同 | J106: 跨大堤桥桁梁杆件外表面处理，桥面抛丸处理工程 | K106: 王春山 | L106: 13901377880 | M106: 王骁 | N106: B | O106: 公路桥梁
A107: 78 | B107: 山东兴昌建设工程有限公司 | C107: 昌邑市利民街东首 | D107: 潘兆科 | E107: 5168 | F107: 913707861658026699 3-3 | G107: 建筑工程施工总承包壹级；D137014665 | H107: JZ070011-01 | I107: 新台项目 | J107: 预制构件工程 | K107: 刘苏琦 | L107: 13356782255 | M107: 王少文 | N107: B | O107: 公路桥梁
A108: 79 | B108: 青岛安博劳务工程有限公司 | C108: 山东省青岛市保税区上海路34号 | D108: 白正海 | E108: 300 | F108: 91370220MA3BYTCDXF | G108: D337115936 建筑业施工劳务不分等级 | H108: （鲁）JZ安许证字〔2017〕021909 | I108: 宁梁二标一分部 | J108: 挂篮施工 | K108: 陈长龙 | L108: 15864540519 | M108: 徐耀 | N108: B | O108: 路桥集团
A109: 80 | B109: 滕州市硕通劳务有限公司 | C109: 滕州市奎文小区2-1-301 | D109: 张玉清 | E109: 1000 | F109: 91370481076953983F | G109: 钢筋作业分包劳务分包贰级 | H109: （鲁）JZ安许证字[2016]040432-01 | I109: 宁夏西会 | J109: 梁板预制及安装 | K109: 曹龙 | L109: 18866817933 | M109: 刘亚文 | N109: B | O109: 路桥集团
A110: 13 | C110: 山东省枣庄市滕州市龙阳镇龙阳街118号 | D110: 张玉清 | E110: 1000 | F110: 91370481076953983F | G110: 钢筋作业分包劳务分包贰级 | H110: （鲁）JZ安许证字 〔2016〕0404321 | I110: 京雄高速SG4标段/省道241/京台五标三分部 | J110: 京雄高速SG4标T梁钢筋加工、运输、绑扎、支模、混凝土浇筑、张拉及养护。 | K110: 王立旭/张玉清 | L110: 18953911170/15866238066 | M110: 朱祥坤/刘远明 | N110: B | O110: 鲁桥建设
A111: 17 | C111: 滕州市奎文小区2-1-301 | D111: 张玉清 | E111: 1000 | F111: 91370481076953983F | G111: C2064037048159-1/1 | H111: （鲁）JZ安许证字{2016}040432-01 | I111: 京沪改扩建/黄河大桥 | J111: 预制工程/下部结构工程 | K111: 薛现龙/张玉清 | L111: 18663270738/15866238066 | M111: 董新星/吴文波 | N111: B | O111: 路桥集团
A112: 54 | C112: 山东省枣庄市滕州市龙阳镇龙阳街118号 | D112: 张玉清 | E112: 1000 | F112: 91370481076953983F | G112: 钢筋作业分包劳务分包贰级；证书编号 C2064037048159-1/1 | H112: (鲁）JZ安许证字[2019]040432 | I112: 京台三标 | J112: K365+605.000徒骇河大桥工程 | K112: 张玉华 | L112: 18663820678 | M112: 张新伟 | N112: B | O112: 公路桥梁
A113: 81 | B113: 山东驿嘉集团有限公司 | C113: 汶上县康驿镇驻地 | D113: 郑钦红 | E113: 30000 | F113: 91370830672212217Q | G113: 建筑工程施工总承包壹级 | H113: （鲁）JZ安许证字〔2009〕080481 | I113: 京台五标二分部 | J113: 桥梁基础及下部构造现浇工程 | K113: 马占华 | L113: 138053766638 | M113: 周丰禄 | N113: B | O113: 鲁桥建设
C114: 汶上县康驿镇驻地 | D114: 郑钦红 | E114: 30000 | F114: 91370830672212217Q | G114: D337040331 市政公用工程施工总承包三级；环保工程专业承包三级 | H114: （鲁）JZ安许证字〔2009〕080481-01 | I114: 宁梁二标一分部 | J114: 下部结构 | K114: 渠修桐 | L114: 15063776726 | M114: 徐耀 | N114: B | O114: 路桥集团
A115: 82 | B115: 江苏亚卿市政工程有限公司 | C115: 沛县市场监督管理局 | D115: 孟华卿 | E115: 5000 | F115: 91320322064567874F | G115: D332097814建筑工程施工总承包叁级 | H115: (苏)JZ安许证字[2014]032006 | I115: 京台四标 | J115: 涵洞及桥梁下部 | K115: 韩琪 | L115: 18751695141 | M115: 屈庆勋 | N115: B | O115: 路桥集团
A116: 83 | B116: 郓城昊源建筑劳务有限公司 | C116: 山东省菏泽市郓城县金河路西段 | D116: 雷广刚 | E116: 500 | F116: 91371725MA3CTUWA9J | G116: 91371725MA3CTUWA9J | H116: （鲁）JZ安许证字[2017}170526-02 | I116: 京沪改扩建/河南渑淅/京台四标 | J116: 涵洞工程/下部结构/钢筋加工/桥面系及附属 | K116: 赵登军 | L116: 16505655888 | M116: 董新星/潘鑫达/屈庆勋 | N116: B | O116: 路桥集团
A117: 84 | B117: 宁夏荣鑫劳务有限公司 | C117: 宁夏银川市西夏区怀远西路109号6号楼1单元101室 | D117: 孙晓辉 | E117: 200 | F117: 9.164010006e+17 | G117: 钢筋作业一级 C1064064010141-1/1 | H117: （宁）JZ安许证字[2019]002267 | I117: 宁夏西会 | J117: 桥梁上部构造劳务分包合同 | K117: 孙晓辉 | L117: 13995312759 | M117: 刘亚文 | N117: B | O117: 路桥集团
A118: 85 | B118: 磐石宏城建筑有限责任公司 | C118: 磐石市红旗岭镇 | D118: 王雪松 | E118: 602 | F118: 91220284124798296A | G118: 建筑工程施工总承包叁级，D322016799 | H118: （吉）JZ安许证字【2005】000048 | I118: G518日定线莒南绕城段（路面、大中桥）工程一标段 | J118: 箱梁预制 | K118: 邱涛 | L118: 13012311366 | M118: 李现飞 | N118: B | O118: 路桥集团
A119: 86 | B119: 山东志诚达路桥工程有限公司 | C119: 济南市天桥区大桥镇104线马店段 | D119: 王道庆 | E119: 1700 | F119: 913701052644229952 | G119: 桥梁工程专业承包贰级 | H119: （鲁）JZ安许证字[2012]180954 | I119: 京台五标二分部 | J119: 箱梁预制工程 | K119: 张永孝 | L119: 18663750126 | M119: 周丰禄 | N119: B | O119: 鲁桥建设
A120: 87 | B120: 滕州市中远建设有限公司 | C120: 滕州市善国北路16号 | D120: 张宗昌 | E120: 5000 | F120: 91370481169904670G | G120: 建筑工程施工总承包壹级 | H120: （鲁）JZ安许证字〔2005〕040011-01 | I120: 京台五标二分部/董梁公路宁梁段二合同二分部 | J120: 桥面系及附属结构现浇 | K120: 徐茂琪/周水元 | L120: 18863229933/18266015658 | M120: 周丰禄/卞福坤 | N120: B | O120: 鲁桥建设
A121: 88 | B121: 攀枝花贯通公路养护服务有限公司 | C121: 四川省攀枝花市东区新源路558附2-6号 | D121: 孙成明 | E121: 1200 | F121: 91510400MA6BDFDW4N | G121: 市政公用工程施工总承包三级D351851913 | H121: （川）JZ安许证字[2019]001546 | I121: 京台五标三分部 | J121: 小结构物工程 | K121: 崔远芝 | L121: 15688505989 | M121: 韩园园 | N121: B | O121: 鲁桥建设
A122: 89 | B122: 巨野鼎筑路桥工程有限公司 | C122: 菏泽市巨野县麒麟大道 | D122: 陈彭飞 | E122: 1000 | F122: 91371724326217947M | G122: 施工劳务不分等级D337197520 | H122: （鲁）JZ安许证字[2019]170890-02 | I122: 京台五标三分部/董梁公路宁梁段二合同二分部 | J122: 桥梁施工工程 | K122: 陈研玉 | L122: 15550739198 | M122: 韩园园/卞福坤 | N122: B | O122: 鲁桥建设
A123: 90 | B123: 淄博安达安装工程有限公司 | C123: 桓台县起凤镇府驻地 | D123: 田美财 | E123: 200 | F123: 91370321760971707F | G123: 钢筋、混凝土、模板劳务分包 | H123: （鲁）JZ安许证字【2017】030419 | I123: 京雄高速 SG4标段 | J123: 京雄高速SG4标墩柱钢筋加工，及墩柱钢筋笼加工及运输。 | K123: 田美财 | L123: 17663017555 | M123: 朱祥坤 | N123: B | O123: 鲁桥建设
A124: 91 | B124: 济南汇聚路桥工程有限公司 | C124: 山东省济南市高新区凤凰国际广场1号楼720室-2、13793161666 | D124: 范镇镇 | E124: 1000 | F124: 91370100084021772Y | G124: 施工劳务不分等级D337177258 | H124: （鲁）JZ安许证字[2018]012181-01 | I124: 省道241 | J124: 涵洞、急流槽 | K124: 范镇镇 | L124: 13793161666 | M124: 刘远明 | N124: B | O124: 鲁桥建设
A125: 92 | B125: 山东省显通安装有限公司 | C125: 肥城市泰东路 | D125: 雷印峰 | E125: 6100 | F125: 91370982166600743D | G125: 电力工程施工总承包叁级，冶金工程施工总承包叁级，建筑机电安装工程专业承包叁级，环保工程专业承包叁级D337065049 | H125: （鲁）JZ安许证字〔2014〕090516-02 | I125: 济青改扩建第六标段 | J125: 空心板、T梁安装 | K125: 王元波 | L125: 18653150236 | M125: 李和平 | N125: B | O125: 鲁桥建设
A126: 93 | B126: 河南隆云建设工程有限公司 | C126: 安阳市解放大道180号（原安阳县政府院内） | D126: 李东来 | E126: 11000 | F126: 9.141052205e+17 | G126: 水利水电施工总承包叁级D341026690 | H126: （豫）JZ安许证字{2014}060797 | I126: 泰东三合同 | J126: 桥梁排泄水管安装工程 | K126: 王春林 | L126: 15836395151 | M126: 王骁 | N126: B | O126: 公路桥梁
A127: 94 | B127: 山东鲁昱路桥工程有限公司 | C127: 山东省济南市高新区新宇路西侧世纪财富中心AB座607-D1室 | D127: 周长林 | E127: 1000 | F127: 91370100MA3PG80T1E | G127: 建筑业施工劳务不分等级D337202201 | H127: （鲁）JZ安许证字〔2020〕012737 | I127: 京台二标 | J127: 场站土建/桥面系及护栏 | K127: 周长林 | L127: 15953505678 | M127: 刘铭磬 | N127: B | O127: 路桥集团
A128: 95 | B128: 山东益通安装有限公司 | C128: 肥城市孙伯大街34号 | D128: 雷印智 | E128: 10000 | F128: 91370983166602749W | G128: 市政公用工程施工总承包贰级 D237063644 | H128: 【鲁】JZ安许证字[2005]090006-01 | I128: 枣菏高项目 | J128: 微山连接线涵洞 | K128: 雷印智 | L128: 15315381979 | M128: 李阳 | N128: B | O128: 公路桥梁
C129: 肥城市孙伯大街34号 | D129: 雷印智 | E129: 10000 | F129: 91370983166602749W | G129: D237063644 市政公用工程总承包二级 | H129: （鲁）JZ安许证字〔2005〕090006 | I129: 宁梁二标一分部 | J129: 下部结构 | K129: 刘吉兵 | L129: 13105389066 | M129: 徐耀 | N129: B | O129: 路桥集团
A130: 96 | B130: 菏泽市菏建劳务服务有限公司 | C130: 菏泽市牡丹区青年路9号 | D130: 牛银生 | E130: 2000 | F130: 91371702753533143B | G130: 模板脚手架专业承包不分等级D337139046 | H130: (鲁）JZ安许证字[2015]180430-02 | I130: 河南焦作黄河大桥 | J130: 桥面铺装及护栏施工 | K130: 丁继磊 | L130: 15054107107 | M130: 吴文波 | N130: B | O130: 路桥集团
A131: 97 | B131: 山东万安建设有限公司 | C131: 山东省东营市东营区黄河路660－113号 | D131: 周帅 | E131: 10066 | F131: 91370500556717787Q | G131: D237022742 市政公用工程施工总承包二级 | H131: (鲁)JZ安许证字[2011]05-0054 | I131: 宁梁二标一分部 | J131: 下部结构、箱梁预制 | K131: 张芯绮 | L131: 15266638366 | M131: 徐耀 | N131: B | O131: 路桥集团
A132: 98 | B132: 山东恒拓建筑工程股份有限公司 | C132: 山东省济宁市汶上县康驿镇驻地 | D132: 郑培香 | E132: 2000 | F132: 91370830767793560K | G132: 施工劳务不分等级D337150924 | H132: （鲁）JZ安许证字〔2007〕080407 | I132: 京台五标一分部 | J132: 现浇桥施工 | K132: 杨群东 | L132: 17705478806 | M132: 邴召建 | N132: B | O132: 鲁桥建设
A133: 99 | B133: 山东德正公路工程有限公司 | C133: 山东省济南市历下区文化东路63号 | D133: 赵雪红 | E133: 1000 | F133: 91370102684670100F | G133: 市政公用工程施工总承包叁级 D337155336 | H133: （鲁）JZ安许证字［2018］012070-01 | I133: G205九华南路快速化改造工程大茆立交项目 | J133: 本合同段内桩基钢筋及其他部位半成品钢筋加工（不含护栏钢筋）。包括设备、人员进退场，原材场内运输，桩基钢筋笼加工（包括安装声测管、焊接吊环、格构柱）；钢筋笼及格构柱运输到施工现场，钢筋笼格构柱的验收，下放到钻孔中，其他部位钢筋加工成半成品，半成品钢筋装车，交验，场地清理等及其他为完成该项工程所做的一切附属性工作。 | K133: 邵珠先 | L133: 18364108057 | M133: 陈帆 | N133: B | O133: 路桥集团
A134: 100 | B134: 四川荣昌茂业建设工程有限公司 | C134: 四川成都市锦江区一环路东五段108号1栋2单元9层909号 | D134: 关勇 | E134: 1000 | F134: 91510104MA6AEQ9J7F | G134: 劳务施工不分等级 | H134: （川）JZ安许证字[2019]007424 | I134: 京台五标一分部 | J134: 桥梁施工 | K134: 王树俊 | L134: 13869979217 | M134: 邴召建 | N134: B | O134: 鲁桥建设
A135: 101 | B135: 济南孚安建筑劳务有限公司 | C135: 济南市高新区正丰路554号3号科研楼405室 | D135: 王春 | E135: 1500 | F135: 91370100697473931B | G135: 建筑业模板脚手架专业承包不分等级D337025359 | H135: （鲁）JZ安许证字 〔2014〕010984 | I135: 京雄高速SG4标段 | J135: 京雄高速SG4标现浇箱梁钢筋加工、运输、支架搭设及拆除，支座安装、支模、钢筋绑扎，混凝土浇筑养护。 | K135: 谢维 | L135: 15688864788 | M135: 朱祥坤 | N135: B | O135: 鲁桥建设
A136: 102 | B136: 四川如荣康建设工程有限公司 | C136: 成都高新区濯锦路108号1楼 | D136: 李超 | E136: 1000 | F136: 91510100MA6CEYE588 | G136: 施工劳务不分等级 | H136: （川）JZ安许证字[2019]001031 | I136: 京雄高速SG4标段 | J136: 京雄高速SG4标承台、系梁、墩柱、桥台、盖梁、台帽、垫石等下部结构钢筋安装、支模，砼浇筑养护等 | K136: 于东 | L136: 15631228000 | M136: 朱祥坤 | N136: B | O136: 鲁桥建设
A137: 103 | B137: 山东双赢勘测工程有限公司 | C137: 山东省泰安市岱岳区中天城市广场808号 | D137: 徐洪威 | E137: 1000 | F137: 91370900344653777N | G137: 丙测资字3722288 | H137: / | I137: 济青改扩建六标 | J137: 桥梁工程 | K137: 徐洪威 | L137: 15005480156 | M137: 李和平 | N137: B | O137: 鲁桥建设
A138: 104 | B138: 河南交控建设工程有限公司 | C138: 郑州市郑东新区泽雨街9号 | D138: 王学勤 | E138: 5000 | F138: 91410103395164105R | G138: 特种工程(结构补强)专业承包不分等级 D341095104 D241095107 | H138: （豫）JZ安许证字[2015]013144 | I138: 开封黄河公路大桥维修工程 | J138: 桥梁工程 | K138: 卢彦 | L138: 15038111415 | M138: 刘星 | N138: B | O138: 公路桥梁
A139: 105 | B139: 新泰市万泰路桥工程有限公司 | C139: 山东省泰安市新泰市汶南镇下峪村村东16号 | D139: 李超 | E139: 500 | F139: 9137098232850910X1 | G139: 路桥工程专业施工总承包叁级A3074037098240-2/2 | H139: （鲁）JZ安许证字〔2019〕090812 | I139: 济微高速济宁段 | J139: 下部结构及现浇箱梁 | K139: 李超 | L139: 15163837866 | M139: 刘继文 | N139: B | O139: 公路桥梁
A140: 106 | B140: 河南嵩岳路桥工程有限公司 | C140: 安阳县住建局院内(市紫薇大道中段286-3号） | D140: 孙新兵 | E140: 5000 | F140: 91410600067550189N(2-5) | G140: 建筑工程施工总承包贰级；D241101306 | H140: JZ110193 | I140: 新台项目 | J140: 下部结构工程 | K140: 董建福 | L140: 13245309222 | M140: 王少文 | N140: B | O140: 公路桥梁
A141: 107 | B141: 济南民华建筑劳务有限公司 | C141: 济南市高新区孙村镇埠东村72号 | D141: 隗茂芝 | E141: 860 | F141: 9137010059704649XL | G141: 建筑业企业资质、模板脚手架专业承包不分等级 、D337088463 | H141: （鲁）JZ安许证字〔2016〕011256 | I141: 国高青兰线泰安到东阿界第一合同段二分部 | J141: 现浇箱梁 | K141: 周占鹏 | L141: 15806883123 | M141: 刘顶顶 | N141: B | O141: 路桥集团
C142: 济南市高新区孙村镇埠东村72号 | D142: 隗茂芝 | E142: 860 | F142: 9137010059704649XL | G142: 模板脚手架专业承包不分等级 | H142: (鲁)JZ安许证字[ 2016 ] 011256 -01 | I142: 济青改扩建六标 | J142: 桥梁工程 | K142: 付朝训 | L142: 13606414777 | M142: 李世杰 | N142: B | O142: 鲁桥建设
C143: 济南市高新区孙村镇埠东村72号 | D143: 隗茂芝 | E143: 860 | F143: 9137010059704649XL | G143: 模板架手架专业承包不分等级D337088463 | H143: （鲁）JZ安许证字〔2016〕011256 | I143: 京台二标 | J143: 涵洞及桥梁下部结构施工/桥面系及护栏 | K143: 高昆 | L143: 13165106000 | M143: 刘铭磬 | N143: B | O143: 路桥集团
C144: 济南市高新区孙村镇埠东村72号 | D144: 隗茂芝 | E144: 860 | F144: 9137010059704649XL | G144: 建筑业企业资质、模板脚手架专业承包不分等级 、D337088463 | H144: （鲁）JZ安许证字〔2016〕011256 | I144: 潍日高速公路潍坊连接线 | J144: 桥涵工程 | K144: 隗茂芝 | L144: 18063220456 | M144: 赵永杰 | N144: B | O144: 路桥集团
A145: 108 | B145: 中江县力源劳务有限公司 | C145: 四川省德阳市中江县南华镇西江南路436号 | D145: 唐虎 | E145: 200 | F145: 91510623662784465Q | G145: 砌筑作业劳务分包貳级C2024051062302-3/3 | H145: （川）JZ安许证件[2008]000520 | I145: 河南焦作黄河大桥 | J145: 桥梁工程 | K145: 林昌国 | L145: 13778154911 | M145: 吴文波 | N145: B | O145: 路桥集团
A146: 109 | B146: 淄博凯宇市政工程有限公司 | C146: 淄博经济开发区市场监督管理局 | D146: 王静 | E146: 2216 | F146: 91370306777427628D | G146: D337110814市政公用工程施工总承包三级 | H146: （鲁）JZ安许证字〔2018〕030749 | I146: 京台四标 | J146: 桥面系及附属 | K146: 司建霞 | L146: 13561666657 | M146: 屈庆勋 | N146: B | O146: 路桥集团
A147: 110 | B147: 福建闽通建设集团有限公司 | C147: 漳州市南昌路小商品城F1幢105号 | D147: 陆锦东 | E147: 5000 | F147: 9.135060271e+17 | G147: 市政公用工程施工总承包贰级、D235009214 | H147: （闽）JZ安许证字【2005】000359-1 | I147: 漳浦县公路建设改造工程 | J147: 坂旧线桥涵及挡土墙 | K147: 吴辉泽 | L147: 13806923655 | M147: 果加民 | N147: B | O147: 路桥集团
A148: 111 | B148: 山东厚德公路工程有限公司 | C148: 山东省济宁市梁山县黑虎庙镇政府驻地 | D148: 高坤 | E148: 1001 | F148: 91370832MA3FCMNLXM | G148: D337165784 市政公用工程施工总承包三级 | H148: （鲁）JZ安许证字〔2018〕080975 | I148: 宁梁二标一分部 | J148: 箱梁预制 | K148: 陈长龙 | L148: 15864540519 | M148: 徐耀 | N148: B | O148: 路桥集团
A149: 112 | B149: 东明金桥公路工程有限公司 | C149: 东明黄河公路大桥南端路东 | D149: 杨振 | E149: 3000 | F149: 371728018001496 | G149: 公路工程施工总承包贰级D237030574 | H149: 【鲁】JZ安许证字[2006]180524-01 | I149: 京台五标三分部/济青改扩建六标 | J149: 小结构物工程/桥梁工程 | K149: 陈敬元/杨浩 | L149: 18678862789/13854081699 | M149: 韩园园/赵越 | N149: B | O149: 鲁桥建设
A150: 113 | B150: 山东华卫建设集团有限公司 | C150: =VLOOKUP($B150,[1]劳务单位汇总表!$C$4:$AD$58,3,0) -> 滕州市市场监督管理局 | D150: =VLOOKUP($B150,[1]劳务单位汇总表!$C$4:$AD$58,15,0) -> 许新虎 | E150: =VLOOKUP($B150,[1]劳务单位汇总表!$C$4:$AD$58,11,0) -> 5000 | F150: =VLOOKUP($B150,[1]劳务单位汇总表!$C$4:$AD$58,2,0) -> 91370481743387576C | G150: =VLOOKUP($B150,[1]劳务单位汇总表!$C$4:$AD$58,8,0)&VLOOKUP($B150,[1]劳务单位汇总表!$C$4:$AD$58,7,0) -> D137107634建筑工程施工总承包一级 | H150: =VLOOKUP($B150,[1]劳务单位汇总表!$C$4:$AD$58,13,0) -> （鲁）JZ安许证字〔2005〕040069 | I150: 京台四标 | J150: 钢筋加工 | K150: =VLOOKUP($B150,[1]劳务单位汇总表!$C$4:$AD$58,21,0) -> 巩超 | L150: =VLOOKUP($B150,[1]劳务单位汇总表!$C$4:$AD$58,23,0) -> 17706321659 | M150: 屈庆勋 | N150: B | O150: 路桥集团
A151: 114 | B151: 四川弘生建筑劳务有限公司 | C151: 青羊区市场和质量监督管理局 | D151: 魏成太 | E151: 1000 | F151: 91510100MA62PN0W0R | G151: D351789330施工劳务不分等级 | H151: （川）JZ安许证字[2018]007415 | I151: 京台四标 | J151: 涵洞及桥梁下部 | K151: 魏成太 | L151: 13688790777 | M151: 屈庆勋 | N151: B | O151: 路桥集团
A152: 115 | B152: 四川古疆建设工程有限公司 | C152: 成都市成华区双林路44号 | D152: 周军峰 | E152: 1000 | F152: 91510108MA6CEXPK86 | G152: 施工劳务不分等级D351821929 | H152: (川)JZ安许证字[2018]008367 | I152: 国道204拓宽改造项目/胶州湾高速营海口周边道路综合提升工程 | J152: 钢便桥/营旧路跨胶州湾高速大桥钢管贝雷支架搭设及拆除等相关工作内容 | K152: 李学辉 | L152: 18606311257 | M152: 丛磊/王浩 | N152: B | O152: 鲁桥建设
A153: 116 | B153: 山东旺角建筑装饰工程有限公司 | C153: 山东省济南市天桥区蓝翔路15号时代总部基地一期第二部分六区9号楼6-507室 | D153: 李庆水 | E153: 500 | F153: 9.137010531e+17 | G153: 钢结构工程、市政工程等，GJZ2017112T | I153: 京沪改扩建二标段钢桥安装 | J153: 钢桥安装 | K153: 李中前 | L153: 18005317008 | M153: 王明月 | N153: B | O153: 路桥集团
A154: 117 | B154: 江苏百江建筑劳务有限公司 | C154: 宿迁市软件与服务外包产业园 | D154: 高宏元 | E154: 500 | F154: 91321300094131764J | G154: D332086536 | H154: （苏）JZ安许证字[2014]130056 | I154: 京沪改扩建 | J154: 下部结构劳务分包 | K154: 王跃军 | L154: 18552709091 | M154: 董新星 | N154: B | O154: 路桥集团
A155: 118 | B155: 邹城市旭东建筑工程有限公司 | C155: 邹城市市场监督管理局 | D155: 王蕊生 | E155: 3000 | F155: 91370883334596457M | G155: D337189924 建筑业施工劳务不分等级 | H155: （鲁）JZ安许证字〔2019〕081275 | I155: 京台四标 | J155: 预制矮T梁板施工 | K155: 洪辰 | L155: 13127136606 | M155: 屈庆勋 | N155: B | O155: 路桥集团
A156: 119 | B156: 山东广友路桥工程有限公司 | C156: 日照市东港区 | D156: 刘兴永 | E156: 2000 | F156: 91371102MA3CCMYY3Y | G156: 模板脚手架专业承包不分等级 | H156: （鲁）JZ安许证字(2017)110796-02 | I156: 枣木东延项目 | J156: 预制箱梁安装 | K156: 秦启连 | L156: 13355139369 | M156: =M176 -> 裴天宇 | N156: B | O156: 路桥集团
A157: 120 | B157: 四川瑞联建筑工程有限公司 | C157: 四川省攀枝花市东区大花地东路4号1栋1单元11号 | D157: 岳耀全 | E157: 1200 | F157: 91510400MA62GUBD5M | G157: 市政公用工程施工总承包叁级D351853337 | H157: （川）JZ安许证字【2019】003773 | I157: 攀枝花米易项目 | J157: 路面工程 | K157: 岳耀全 | L157: 13678821011 | M157: 李忠林 | N157: B | O157: 鲁桥建设
A158: 121 | B158: 山东恒远路桥工程有限公司 | C158: 菏泽市丹阳办事处何楼社区菏建数码大厦09007 | D158: 周磊 | E158: 3000 | F158: 91371702764825643E | G158: 公路工程施工总承包叁级；D337032751 | H158: （鲁）JZ安许证字【2013】181091-02 | I158: 京台五标二分部/董梁公路宁梁段二合同二分部 | J158: T梁、箱梁预制工程、小箱梁预制、安装；钢筋加工及运输 | K158: 马李军 | L158: 13954001551 | M158: 周丰禄/卞福坤 | N158: B | O158: 鲁桥建设
A159: 122 | B159: 江西意通建筑劳务有限公司 | C159: 江西省南昌市南昌经济技术开发区玉屏东大街以南办公楼第一层 | D159: 薛理勇 | E159: 500 | F159: 91360108MA35YUHK6X | G159: 施工劳务不分等级 | H159: 赣JZ安许证字〔2018〕010465 | I159: 京台五标二分部 | J159: 箱梁预制工程 | K159: 潘广伟 | L159: 18363070999 | M159: 周丰禄 | N159: B | O159: 鲁桥建设
A160: 123 | B160: 山东绿桥环境设计有限公司 | C160: 泰安市东岳大街小区11#-2-501 | D160: 郝奎士 | E160: 1001 | F160: 91370900782304219C | G160: 建筑业市政公用工程施工总承包二级D237137973 | H160: (鲁)JZ安许证字[2016]09-0027 | I160: 京台五标二分部 | J160: 结构物拆除工程 | K160: 潘宝曾 | L160: 13053413888 | M160: 周丰禄 | N160: B | O160: 鲁桥建设
A161: 124 | B161: 中霆建设有限公司 | C161: 成都市成华区万科路5号1栋2楼附25号 | D161: 张现伟 | E161: 5000 | F161: 5105 0148 8508 0000 3120 | G161: 施工劳务不分等级D351830607 | H161: （川）JZ安许证字﹝2019﹞00147 | I161: 董梁公路宁梁段二合同二分部 | J161: 小箱梁预制 | K161: 张现伟 | L161: 13665376811 | M161: 卞福坤 | N161: B | O161: 鲁桥建设
A162: 125 | B162: 山东祥宏建设工程有限公司 | C162: 山东省威海市经济技术开发区香港路-38号-4 | D162: 李海明 | E162: 3000 | F162: 91371000564078225U | G162: 施工劳务不分等级 | H162: （鲁）JZ安许证字 【2018】100741-01 | I162: 京雄高速SG4标段 | J162: 京雄高速SG4标承台、系梁、墩柱、桥台、盖梁、台帽、垫石等下部结构钢筋安装、支模，砼浇筑养护等 | K162: 徐西房 | L162: 13869010093 | M162: 朱祥坤 | N162: B | O162: 鲁桥建设
A163: 126 | B163: 四川华固建筑工程有限公司 | C163: 成都市金牛区 | D163: 陈俊华 | E163: 500 | F163: 915100005904752911 | G163: 防水防腐保温工程专业承包贰级、D251565061 | H163: （川）JZ安许证字【2012】001400 | I163: 泸黄项目 | J163: 桥梁工程 | K163: 陈俊华 | L163: 13966511118 | M163: 李霞 | N163: B | O163: 公路桥梁
A164: 127 | B164: 四川新功建筑劳务有限公司 | C164: 成都市青羊区 | D164: 赵彬 | E164: 900 | F164: 91510000586461954C | G164: 模板脚手架专业承包不分等级、D351568022 | H164: （川）JZ安许证字【2013】000145 | I164: 泸黄项目 | J164: 桥梁工程 | K164: 赵彬 | L164: 18681251119 | M164: 李霞 | N164: B | O164: 公路桥梁
A165: 128 | B165: 崇州市蜀州劳务有限公司 | C165: 崇州市崇阳街道文化东街29号 | D165: 何强 | E165: 718 | F165: 91510184MA62P79F58 | G165: 施工劳务不分等级、D351615463 | H165: （川）JZ安许证字【2017】002130 | I165: 泸黄项目 | J165: 桥梁工程 | K165: 何强 | L165: 17380600956 | M165: 李霞 | N165: B | O165: 公路桥梁
A166: 129 | B166: 沛县众安路桥工程有限公司 | C166: 沛县魏庙镇工业园区 | D166: 孙亚洲 | E166: 1000 | F166: 91320322331070150T（1/1） | G166: 施工劳务不分等级，D332165319 | H166: （苏）JZ安许证字【2018】000800 | I166: 京沪二标 | J166: 下部结构（拼宽段），路面附属，波形护栏安装 | K166: 李保朋 | L166: 18063560558 | M166: 简晓辉 | N166: B | O166: 公路桥梁
A167: 130 | B167: 齐河隆昌建筑工程有限责任公司 | C167: 山东省德州市齐河县城永乐街21号 | D167: 王吉春 | E167: 2200 | F167: DD913714258630447386 | G167: 建筑工程施工总承包叁级 | H167: （鲁）JZ安许证字〔2005〕130070 | I167: 巨单项目 | J167: 桥梁下部构造 | K167: 陶明松 | L167: 15589198998 | M167: 裴天宇 | N167: B | O167: 路桥集团
C168: 山东省德州市齐河县城永乐街21号 | D168: 王吉春 | E168: 2200 | F168: 913714258630447386 | G168: 建筑业企业资质、建筑工程施工总承包二级 、D237025990、钢结构工程专业承包三级 、D337025997 | H168: （鲁）JZ安许证字〔2005〕130070-01 | I168: 国高青兰线泰安到东阿界第一合同段二分部 | J168: 桥梁工程 | K168: 黄兴义 | L168: 13905448982 | M168: 刘顶顶 | N168: B | O168: 路桥集团
A169: 131 | B169: 湖北省建勘基础工程有限公司 | C169: 武汉市东西湖区 | D169: 文飞 | E169: 1000 | F169: 91420112333496753L | G169: 地基基础工程专业承包叁级 | H169: (鄂)JZ安许证字[2017]016638 | I169: 潍日高速公路潍坊连接线 | J169: 桥涵工程 | K169: 申政武 | L169: 13808935938 | M169: 赵永杰 | N169: B | O169: 路桥集团
A170: 8 | C170: 武汉市东西湖区柏泉农场茅庙集街43号（9） | D170: 文飞 | E170: 1000 | F170: 91420112333496753L | G170: 施工劳务资质不分等级 地基基础工程专业承包叁级D342099187 | H170: (鄂)JZ安许证字〔2017〕011638-01/2 | I170: 京台二标 | J170: 涵洞及桥梁下部结构施工 | K170: 申政武 | L170: 18560063022 | M170: 刘铭磬 | N170: B | O170: 路桥集团
A171: 132 | B171: 河南省京豫建筑劳务有限公司 | C171: 郑州市金水区北环路116号中方园小区25号楼2单元7号 | D171: 刘加国 | E171: 1500 | F171: 9141010076487666XL | G171: 钢筋作业分包壹级C1064041010503-4/3 | H171: （豫）JZ安许证件[2015]010295-02 | I171: 河南焦作黄河大桥 | J171: 桥梁工程 | K171: 谢新林 | L171: 15226181817 | M171: 吴文波 | N171: B | O171: 路桥集团
A172: 133 | B172: 济南泉鑫旺建筑劳务有限公司 | C172: 济南市天桥区湖畔小区8-2号楼1-502室 | D172: 付杰生 | E172: 1000 | F172: 91370105780640569Y | G172: 模板脚手架专业承包不分等级D337190244 | H172: （鲁）JZ安许证件[2018]010849-02 | I172: 河南焦作黄河大桥/京台四标 | J172: 桥面铺装及护栏施工 | K172: 庞同民 | L172: 15866630866 | M172: 吴文波/屈庆勋 | N172: B | O172: 路桥集团
A173: 134 | B173: 湖南蒂茂建筑劳务有限公司 | C173: 湖南省娄底市娄星区扶青路早元街盛世华庭5栋22号 | D173: 毛红文 | E173: 2800 | F173: 914431300MA4PB46R7H | G173: D343094652 | H173: （湘）JZ安许证字[2019]000572-1（2） | I173: 兴山项目 | J173: 桥梁桩基、基础及下部结构承台、桩系梁、墩柱、肋板、柱系梁、盖梁、台帽、垫石等钢筋制作加工、成品半成品的装运、卸车、安装及模板制作安装、砼浇筑、养护等 | K173: 朱磊 | L173: 13873832244 | M173: 刘周欣 | N173: B | O173: 路桥集团
A174: 135 | B174: 山东四方安装工程有限公司 | C174: 泰安市肥城市泰东路 | D174: 张修森 | E174: 12000 | F174: 913709831666007351 | G174: 施工劳务不分等级、市政公用工程施工总承包叁级，D337063633 | H174: （鲁）JZ安许证字﹝2005﹞090099 | I174: 济青二标/新台项目/京沪二标 | J174: 桥梁通道下部结构、桥面系（跨径≤16m）、桥梁搭板（拼宽部分）、桥梁加固、桥面系及搭板（老桥部分）、伸缩缝安装工程/路基土石方及涵洞工程/桩基（新建、拼宽），下部结构（新建、拼宽），桥梁加固，桥面系（拼宽段），现浇箱梁 | K174: 王强/孟繁腾 | L174: 18253809966/13335107866 | M174: 张航 | N174: B | O174: 公路桥梁
A175: 136 | B175: 山东德远路桥工程有限公司 | C175: 山东省菏泽市鄄城县潍坊路东、运河街北 | D175: 付加印 | E175: 2000 | F175: 91371700597800544D | G175: 市政公用工程施工总承包叁级D337160978 | H175: （鲁）JZ安许证字〔2018〕170668 | I175: 武平PPP项目 | J175: 桥梁基础及下部结构、上部结构、梁板预制、桥面系 | K175: 李朝辉 | L175: 19969900596 | M175: 吴庆龙 | N175: B | O175: 路桥集团
C176: 山东省菏泽市鄄城县潍坊路东、运河街北 | D176: 付加印 | E176: 2000 | F176: 91371700597800544D | G176: 建筑业建筑工程施工总承包三级 、建筑业市政公用工程施工总承包三级 建筑业水利水电工程施工总承包三级 D337160978 | H176: （鲁）JZ安许证字〔2018〕170669 | I176: 巨单项目 | J176: 预制梁板、安装 | K176: 刘传孟 | L176: 18678609939 | M176: 裴天宇 | N176: B | O176: 路桥集团
A177: 137 | B177: 宜昌海纳川建设工程有限公司 | C177: 兴山县昭君镇和平大道180号 | D177: 朱德平 | E177: 1200 | F177: 91420500090582445N | G177: D242039056,D342026095 | H177: （鄂）JZ安许证字〔2015〕010876-1/2 | I177: 兴山项目 | J177: 包括路基清表、路基挖土石方、利用土石方、特殊路基处理、边沟、排水沟、截水沟、边坡防护、挡土墙、台背回填、涵洞施工，桥梁桩基、基础及下部结构承台、桩系梁、墩柱、肋板、柱系梁、盖梁、台帽、垫石及挡块等钢筋加工制作、成品半成品的装运、卸车、安装及模板制作安装、砼浇筑、养护等 | K177: 朱仁胜 | L177: 18671705922 | M177: 刘周欣 | N177: B | O177: 路桥集团
A178: 138 | B178: 陕西博安机械工程有限公司 | C178: 陕西省西安市高新区丈八街办太白南路118号大华阳光曼哈顿5号楼3单元5层10513室 | D178: 王俊峰 | E178: 6000 | F178: 91610000570666744Q | G178: 钢结构工程专业承包二级D261027731 | H178: （陕）JZ安许证字（2013）000180 | I178: 汶金线南旺运河大桥改造工程 | J178: 钢桥加工安装 | K178: 赵乾 | L178: 13619132858 | M178: 王广森 | N178: B | O178: 路桥集团
A179: 139 | B179: 章丘市东昌建筑装饰有限公司 | C179: 山东省济南市章丘区双山街道办事处城东工业园东昌大道 | D179: 张艳芳 | E179: 1600 | F179: 9137018116236941XR | G179: 建筑业，D337101918 | I179: 京沪改扩建二标段钢桥安装 | J179: 钢桥安装 | K179: 王永兵 | L179: 13964007907 | M179: 王明月 | N179: B | O179: 路桥集团
A180: 140 | B180: 山东伸达建设集团有限公司 | C180: 山东省菏泽市郓城县金河路278号 | D180: 祝嗣伸 | E180: 5000 | F180: 91371700312971818H | G180: 建筑工程施工总承包贰级D337127862 | H180: （鲁）JZ安许证字〔2015〕170388 | I180: 巨单项目 | J180: 桥梁下部构造、钢筋加工 | K180: 孙高俊 | L180: 13275300888 | M180: 裴天宇 | N180: B | O180: 路桥集团
A181: 141 | B181: 巨野行泉建筑工程有限公司 | C181: 巨野县永丰办麒麟大道中段南路 | D181: 唐海玉 | E181: 1000 | F181: 9137170259030461XY | G181: 模板脚手架专业承包不分等级D337145278 | I181: 巨单项目 | J181: 预制梁板、安装、钢筋加工 | K181: 唐海玉 | L181: 15465234566 | M181: 裴天宇 | N181: B | O181: 路桥集团
A182: 142 | B182: 福建新朗建设有限公司 | C182: 清流县龙津镇龙城街246号二楼 | D182: 黄金钟 | E182: 3000 | F182: 91350423054321205P | G182: 公路工程施工总承包贰级D235028084、城市及道路照明工程专业承包叁级、市政公用工程施工总承包叁级、环保工程专业承包叁级、建筑工程施工总承包叁级、古建筑工程专业承包叁级、钢结构工程专业承包叁级D335028081 | H182: (闽)JZ安许证字[2014]000006 | I182: 武平PPP项目 | J182: 梁板安装 | K182: 黄金钟 | L182: 18106090066 | M182: 吴庆龙 | N182: B | O182: 路桥集团
A183: 143 | B183: 南充川烽建筑劳务有限公司 | C183: 南充嘉陵区双店乡 | D183: 李烽 | E183: 400 | F183: 91511304MA6295F91P | G183: 模板脚手架专业承包不分等级、施工劳务不分等级、D351545914 | H183: （川）JZ安许证字【2016】001318 | I183: 泸黄项目 | J183: 桥梁工程 | K183: 李烽 | L183: 18227369876 | M183: 李霞 | N183: B | O183: 公路桥梁
A184: 144 | B184: 河南省防腐保温开发有限公司 | C184: 长恒县建设路北段426号 | D184: 李希让 | E184: 11168 | F184: 914107287126405593 | G184: 建筑工程施工总承包叁级，电力工程施工总承包叁级、D441050583 | H184: （豫）JZ安许证字【2017】040010-08 | I184: 泸黄项目/枣菏 | J184: 桥梁工程 | K184: 李希让 | L184: 15516404666 | M184: 李霞 | N184: B | O184: 公路桥梁
A185: 145 | B185: 济南宏泰路桥工程有限公司 | C185: 山东省济南市槐荫区 | D185: 韩红强 | E185: 800 | F185: 91370104306821303G 2-2 | G185: 钢筋作业劳务分包壹级；C4074037010452-2/2 | H185: JZ011680-02 | I185: 新台项目 | J185: 钢筋加工工程 | K185: 张奉稳 | L185: 15552306988 | M185: 王少文 | N185: B | O185: 公路桥梁
C186: 山东省济南市槐荫区田家庄田欣苑小区4号楼2-401室 | D186: 韩红强 | E186: 800 | F186: 91370104306821303G | G186: 钢筋作业劳务分包壹级 C4074037010452-2/1 | H186: （鲁）JZ安许证字〔2016〕011680-01 | I186: 京台五标一分部/京台五标二分部/董梁公路宁梁段二合同二分部/省道241 | J186: 桥梁施工/桥面系及附属结构现浇/钢筋加工及运输；桥面系及附属 | K186: 秦士峰/韩红强 | L186: 15253467560/15866740999 | M186: 邴召建/周丰禄/卞福坤/刘远明 | N186: B | O186: 鲁桥建设
A187: 146 | B187: 山东凯荣路桥工程有限公司 | C187: 济南市历城区闵子骞路21号 | D187: 吕受容 | E187: 5000 | F187: 91370112564054282H | G187: 建筑业地基基础工程专业承包三级;建筑业建筑工程施工总承包三级D337189474 | H187: （鲁）JZ安许证字（2019）012474-02 | I187: 京台五标二分部 | J187: 桥梁基础及下部构造现浇工程 | K187: 孙杰 | L187: 13853197082 | M187: 周丰禄 | N187: B | O187: 鲁桥建设
C188: 济南市历城区市场监督管理局 | D188: 吕受容 | E188: 5000 | F188: 91370112564054282H | G188: D337189478建筑业建筑工程施工总承包三级 | H188: （鲁）JZ安许证字〔2019〕012474 | I188: 京台四标 | J188: 涵洞及桥梁下部 | K188: 孙杰 | L188: 13853197082 | M188: 屈庆勋 | N188: B | O188: 路桥集团
A189: 147 | B189: 天津兄弟同创劳务服务有限公司 | C189: 天津市东丽区荣成路2号增207-B号 | D189: 许学柱 | E189: 1000 | F189: 911201103004546965 | G189: 模板脚手架专业承包不分等级 D212013957 | H189: 【津】JZ安许证字[2015]LY0004742 | I189: 枣菏高项目 | J189: 微山连接线预制箱梁、空心板-南阳互通支架 | K189: 许学柱 | L189: 022-27955625 | M189: 李阳 | N189: B | O189: 公路桥梁
A190: 7 | C190: 天津市东丽区荣成路2号增207-B号 | D190: 许学柱 | E190: 1000 | F190: 911201103004546965 | G190: 模板脚手架专业承包不分等级，D212013957 | H190: (津)JZ安许证字[2015]LY0004742 | I190: 长深高速高青至广饶段工程 | J190: 下部构造工程/钢箱梁桥面系/桥面系及附属工程 | K190: 许学柱 | L190: 13902182427 | M190: 范伟 | N190: B | O190: 路桥集团
A191: 148 | B191: 重庆意远建设工程有限公司 | C191: 重庆市南岸区珊瑚路8号2栋15-4号 | D191: 翁远俊 | E191: 2000 | F191: 91500108MA5UQGFQ7N | G191: D350100897 | H191: （渝）JZ安许证字[2018]010768-01 | I191: 兴山项目 | J191: 包括路基清表、路基挖土石方、利用土石方、特殊路基处理、边沟、排水沟、截水沟、边坡防护、挡土墙、台背回填、涵洞施工，桥梁桩基、基础及下部结构承台、桩系梁、墩柱、肋板、柱系梁、盖梁、台帽、垫石及挡块等钢筋加工制作、成品半成品的装运、卸车、安装及模板制作安装、砼浇筑、养护等 | K191: 朱蒙 | L191: 15997542270 | M191: 刘周欣 | N191: B | O191: 路桥集团
A192: 149 | B192: 临沂广大建筑劳务分包有限公司 | C192: 临沂市郯城县源乡驻地 | D192: 黄广文 | E192: 2000 | F192: 9137130255994298X2 | G192: 建筑业模板脚手架专业承包不分等级 | H192: (鲁)JZ安许证字[2017]140778 | I192: 岚罗项目 | J192: 桥面附属工程 | K192: 黄广文 | L192: 13791138111 | M192: 曹文增 | N192: B | O192: 路桥集团
A193: 150 | B193: 山东天扬建筑工程有限公司 | C193: 菏泽市开发区岳程办事处王集社区东100米路北 | D193: 田之恒 | E193: 1000 | F193: 91371700MA3CG59YXM | G193: 施工劳务不分等级 | H193: （鲁）JZ安许证字 【2017】170465-01 | I193: 京雄高速SG4标段 | J193: 京雄高速SG4标T梁钢筋加工、运输、绑扎、支模、混凝土浇筑、张拉及养护。 | K193: 马李军 | L193: 13954001551 | M193: 朱祥坤 | N193: B | O193: 鲁桥建设
A194: 151 | B194: 青岛冠宇建筑劳务有限公司 | C194: 青岛即墨市华山一路郭庄二村 | D194: 宋培元 | E194: 2000 | F194: 91370282550848962P | G194: 钢筋、混凝土、模板、脚手架、焊接等劳务分包壹级， | H194: （鲁）JZ安许证字 【2012】021428-02 | I194: 京雄高速SG4标段 | J194: 京雄高速SG4标T梁钢筋加工、运输、绑扎、支模、混凝土浇筑、张拉及养护。 | K194: 宋培元 | L194: 13969785777 | M194: 朱祥坤 | N194: B | O194: 鲁桥建设
A195: 152 | B195: 潍坊顺和市政园林工程有限公司 | C195: 潍坊高新区志远路1888号 | D195: 刘焕龙 | E195: 2000 | F195: 91370700266833018C 2-1 | G195: 市政公用工程施工总承包贰级；D237122995 | H195: JZ071075-01 | I195: 新台项目 | J195: 下部结构工程 | K195: 唐嘉鹏 | L195: 17667187777 | M195: 王少文 | N195: B | O195: 公路桥梁
A196: 153 | B196: 淮北市明飞建筑劳务有限公司 | C196: 安徽省淮北市杜集区矿山集镇下圩行政村三组57号 | D196: 沈继志 | E196: 400 | F196: 91340600395504376F | G196: 施工劳务不分等级D334137715 | H196: （皖）JZ安许证字（2018）007710 | I196: 岚罗项目 | J196: 预制箱梁工程 | K196: 刘浩 | L196: 15065380666 | M196: 曹文增 | N196: B | O196: 路桥集团
C197: 安徽省淮北市杜集区 | D197: 沈继志 | E197: 400 | F197: 91340600395504376F（1-1） | G197: 施工劳务不分等级，D334137715 | H197: （皖）JZ安许证字【2018】007710 | I197: 京沪二标 | J197: 钢筋加工及下部结构新建，拼宽段被动防护，预制构件 | K197: 刘浩 | L197: 15065380666 | M197: 简晓辉 | N197: B | O197: 公路桥梁
C198: 安徽省淮北市杜集区矿山集镇下圩行政村三组57号 | D198: 沈继志 | E198: 400 | F198: 91340600395504376F | G198: 施工劳务不分等级D334137715 | H198: （皖）JZ安许证字（2018）007710 | I198: 京台五标一分部/济青改扩建六标 | J198: 桥梁施工 | K198: 王海艳/沈继志 | L198: 15371533666/18726885656 | M198: 邴召建/李世杰 | N198: B | O198: 鲁桥建设
C199: 安徽省淮北市杜集区矿山集镇下圩行政村三组57号 | D199: 沈继志 | E199: 400 | F199: 91340600395504376F | G199: 施工劳务不分等级 D334137715 | H199: (皖)JZ安许证字[2018]007710 | I199: 京台二标 | J199: 涵洞及桥梁下部结构施工 | K199: 沈继志 | L199: 18726885656 | M199: 刘铭磬 | N199: B | O199: 路桥集团
A200: 154 | B200: 湖北众源建设工程有限公司 | C200: 当阳市王店镇木店村九组56号 | D200: 张冬伟 | E200: 2100 | F200: 91420582795946309Q | G200: D342132260 | H200: （鄂）JZ安许证字〔2018〕024140-1/2 | I200: 兴山项目 | J200: 包括路基清表、路基挖土石方、利用土石方、特殊路基处理、边沟、排水沟、截水沟、边坡防护、挡土墙、台背回填、涵洞施工，桥梁桩基、基础及下部结构承台、桩系梁、墩柱、肋板、柱系梁、盖梁、台帽、垫石及挡块等钢筋加工制作、成品半成品的装运、卸车、安装及模板制作安装、砼浇筑、养护等 | K200: 李颖 | L200: 0717-3228828 | M200: 刘周欣 | N200: B | O200: 路桥集团
... 115 more rows

Sheet 隧道工程劳务单位名册
A1: 山东高速路桥集团股份有限公司2019~20年劳务单位信用评价统计汇总表
A2: 序号 | B2: 劳务单位名称 | C2: 注册地址 | D2: 法定代表人 | E2: 注册资本（万元） | F2: 营业执照（统一社会信用代码） | G2: 资质类别、等级，编号 | H2: 安全许可证编号 | I2: 所属项目 | J2: 工程分包内容 | K2: 项目联系人 | L2: 联系人电话 | M2: 证件网上核对人 | N2: 信用等级 | O2: 上报单位
A3: 1 | B3: 山东晋金盾构建设工程有限公司 | C3: 济南市历下区和平路16号 | D3: 林峰 | E3: 500 | F3: 91370102672291293M | G3: 证书编号： C4074037010272-2/1 混凝土作业劳务分包不分等级； 钢筋作业劳务分包贰级； | H3: （鲁）JZ安许证字 【2013】011274-02 | I3: 济南至泰安高速公路 | J3: 隧道工程 | K3: 程刚 | L3: 15991276373 | M3: 苏子龙 | N3: A | O3: 路桥集团
A4: 2 | B4: 福建东肪建筑工程劳务有限公司 | C4: 福建省福州路鼓楼区琴亭路33号（福建省职工科教活动中心）1#楼东区第九层 | D4: 王灵敏 | E4: 2800 | F4: 91350100669291217X | G4: 施工劳务不分等级，D335029621 | H4: （闽）JZ安许证字[2019]FZ03023 | I4: 新台/京台/河南渑淅/济泰 | J4: 隧道工程/路基工程 | K4: 王元兵 | L4: 13335295778 | M4: 刘杰/屈庆勋/潘鑫达/苏子龙 | N4: A | O4: 路桥集团
A5: 3 | B5: 山东鼎夏路桥工程有限公司 | C5: 山东省济南市高新区经十路5777号万科金域国际天泰家园1号办公楼1105 | D5: 杨荣平 | E5: 3001 | F5: 91370100MA3C8JYM5X | G5: D337126538 | H5: （鲁）JZ安许证字{2017}011795-02 | I5: 京沪改扩建 | J5: 隧道工程 | K5: 于兆新 | L5: 13305387332 | M5: 董新星 | N5: A | O5: 路桥集团
A6: 4 | B6: 淄博鑫洋建筑劳务有限公司 | C6: 淄博高新区中润大道129号 | D6: 王静涛 | E6: 1000 | F6: 9137030366809019X0 | G6: 砌筑作业劳务分包一级C1024037030319 | H6: （鲁）JZ安许证字 〔2019〕030402 | I6: 滕州市墨子湖隧道及引道工程 | J6: 箱体及U型槽工程 | K6: 曹长清 | L6: 18866031888 | M6: 彭鹏 | N6: B | O6: 鲁桥建设
A7: 5 | B7: 天津星昊建筑工程有限公司 | C7: 河东区春华里2-1-305-307 | D7: 李自美 | E7: 5000 | F7: 911202225723132805 | G7: D212016083 | H7: （津）JZ安许证字[2017}ZB0006093 | I7: 京沪改扩建 | J7: 防火涂料工程 | K7: 迟剑 | L7: 15966991118 | M7: 董新星 | N7: B | O7: 路桥集团
A8: 6 | B8: 中恒太鸿建设有限公司 | C8: 成都市武侯区晋阳路 | D8: 张颖 | E8: 10000 | F8: 915100005904543949 | G8: 隧道工程专业承包贰级D251437554 | H8: [川]JZ安许证字[2013]000124 | I8: 四川夹江千佛岩隧道 | J8: 隧道土建工程 | K8: 张宗均 | L8: 15983117222 | M8: 张海涛 | N8: B | O8: 路桥集团
A9: 7 | B9: 武汉俊国力防腐涂装工程有限公司 | C9: 武汉市东西湖区养殖私营经济小区4栋1-4层（12） | D9: 王海霞 | E9: 3180 | F9: 91420112070533507J | G9: 消防设施工程专业承包贰级D242091256 | H9: （鄂）JZ安许证字[2018]024652 | I9: 四川夹江千佛岩隧道/济泰 | J9: 隧道装饰工程 | K9: 陈凤鸣 | L9: 18571701799 | M9: 张海涛 | N9: B | O9: 路桥集团
A10: 8 | B10: 枣庄市恒生桩基工程有限公司 | C10: 滕州市东沙河镇中心街 | D10: 曹长生 | E10: 2150 | F10: 91370400773198039T | G10: 建筑业地基基础工程专业承包一级D237022532 | H10: （鲁）JZ安许证字 〔2006〕040200 | I10: 滕州市墨子湖隧道及引道工程 | J10: 止水帷幕工程及支护工程 | K10: 曹长景 | L10: 13616373696 | M10: 彭鹏 | N10: B | O10: 鲁桥建设
A11: 9 | B11: 山东宇青建筑劳务有限公司 | C11: 济南市市中区建设路85号25、26号楼如意商街二区1-101室 | D11: 刘盼 | E11: 15000 | F11: 91370103664888292M | G11: 建筑业模板脚手架专业承包不分等级D337037067 | H11: （鲁）JZ安许证字（2009）010861-01 | I11: 滕州市墨子湖隧道及引道工程 | J11: 箱体及U型槽工程 | K11: 陈克镇 | L11: 18354197444 | M11: 彭鹏 | N11: B | O11: 鲁桥建设
A12: 10 | B12: 泰安市圣恒路桥有限公司 | C12: 泰安市擂鼓石大街15号 | D12: 张圣忠 | E12: 13000 | F12: 91370902760993236F | G12: 隧道工程专业承包叁级、桥梁工程专业叁级；D337151686 | H12: （鲁）JZ安许证字 ﹝2017﹞090657-02 | I12: 文莱项目五合同 | J12: 路基、隧道、排水及防护 | K12: 刘吉满 | L12: 15508666799 | M12: 王艳娇 | N12: B | O12: 路桥集团
A13: 6 | C13: 泰安市擂鼓石大街15号 | D13: 张圣忠 | E13: 4900 | F13: 91370902760993236F | G13: 桥梁工程施工总承包叁级隧道工程施工总承包叁级 证书编号：D337064623 | H13: （鲁）JZ安许证字 (2017)090657-02 | I13: 元蔓项目 | J13: 隧道、隧道便道及弃土场 | K13: 李世强 | L13: 13853805177 | M13: 王博林 | N13: B | O13: 鲁桥建设
A14: 11 | B14: 山东正康建设工程有限公司 | C14: 蒙阴县垛庄镇商业街 | D14: 蹇令席 | E14: 8000 | F14: 91371328076972420B | G14: C1074037132802 | H14: （鲁）JZ安许证字[2014}140589-01 | I14: 京沪改扩建 | J14: 隧道工程 | K14: 蹇令席 | L14: 18563958655 | M14: 董新星 | N14: B | O14: 路桥集团
A15: 12 | B15: 合肥齐福劳务有限公司 | C15: 合肥市包河区淝河南路99号玫瑰绅城花园C-1幢1802室 | D15: 束延福 | E15: 1500 | F15: 91340100MA2MX80U82 | G15: 施工劳务不分等级D334138015 | H15: （皖）JZ安许证字[2018]007760-2-2 | I15: 楚大项目 | J15: 隧道洞口及洞身开挖，仰拱及洞身衬砌，洞内防护排水及附属等 | K15: 郭光辉 | L15: 18395066569 | M15: 陈成伟 | N15: B | O15: 鲁桥建设
A16: 13 | B16: 陕西龙昊建设劳务有限公司 | C16: 陕西省西安市未央区凤城七路与贞观路十字三丰中心小区3-1506号房 | D16: 郑文财 | E16: 5000 | F16: 9161000058352696XN | G16: 施工劳务不分等级 D361043368 | H16: （陕）JZ安许证字[2014]011242 | I16: 楚大项目 | J16: 隧道洞口及洞身开挖，仰拱及洞身衬砌，洞内防护排水及附属等 | K16: 薛猛 | L16: 13309139853 | M16: 陈成伟 | N16: C | O16: 鲁桥建设
A17: 14 | B17: 山东亚通路桥工程有限公司 | C17: 莱芜市莱城区长勺北路 | D17: 徐会英 | E17: 4501 | F17: 91371200669331450M | G17: 证书编号：D237032738 桥梁工程专业承包贰级； 公路路面工程专业承包贰级； 公路路基工程专业承包贰级； 隧道工程专业承包贰级； | H17: （鲁）JZ安许证字 【2016】180850-01 | I17: 济南至泰安高速公路 | J17: 隧道工程 | K17: 徐国鹏 | L17: 15666346999 | M17: 苏子龙 | N17: C | O17: 路桥集团
A18: 15 | B18: 四川鼎圣建设工程有限公司 | C18: 成都市青羊区过街楼街17号1栋3单元31层3103号 | D18: 游经佑 | E18: 2688 | F18: 91510105MA6CLHG1X9 | G18: 施工劳务施工劳务不分等级D351639401 | H18: （川）JZ安许证字[2017]003253 | I18: 楚大项目 | J18: 隧道洞口及洞身开挖，仰拱及洞身衬砌，洞内防护排水及附属等 | K18: 游经佑 | L18: 15029816666 | M18: 陈成伟 | N18: C | O18: 鲁桥建设
A19: 16 | B19: 重庆市聚德力建设工程有限公司 | C19: 重庆市江津区珞璜镇华西路27号 | D19: 江瀚 | E19: 500 | F19: 91500116MA60G063K | G19: 施工劳务不分等级 D350155805 | H19: （渝）JZ安许证字[2019]012951 | I19: 楚大项目 | J19: 隧道钢拱架加工 | K19: 阮连娟 | L19: 15925832778 | M19: 陈成伟 | N19: C | O19: 鲁桥建设
A20: 17 | B20: 四川中辰世纪建设工程有限公司 | C20: （中国）四川自由贸易试验区成都高新区吉泰五路88号2栋37层10号 | D20: 刘宗元 | E20: 2100 | F20: 91510100MA6CNMEU9Y | G20: 施工劳务施工劳务不分等级 D351658763 | H20: （川）JZ安许证字[2017]005885 | I20: 楚大项目 | J20: 隧道洞口及洞身开挖，仰拱及洞身衬砌，洞内防护排水及附属等 | K20: 刘宗元 | L20: 18363026166 | M20: 陈成伟 | N20: C | O20: 鲁桥建设
A21: 18 | B21: 四川鼎力威劳务有限公司 | C21: 成都市金牛区金府路666号1栋26层2627号 | D21: 陈小兰 | E21: 1000 | F21: 91510106MA6C5D3HXD | G21: 施工劳务不分等级 D351913278 | H21: （川）JZ 安许证字[2019] 004430 | I21: 楚大项目 | J21: 隧道洞口及洞身开挖，仰拱及洞身衬砌，洞内防护排水及附属等 | K21: 文滔 | L21: 13550271555 | M21: 陈成伟 | N21: C | O21: 鲁桥建设

Sheet 养护劳务单位名册
A1: 山东高速路桥集团股份有限公司2019~20年劳务单位信用评价统计汇总表
A2: 序号 | B2: 劳务单位名称 | C2: 注册地址 | D2: 法定代表人 | E2: 注册资本（万元） | F2: 营业执照（统一社会信用代码） | G2: 资质类别、等级，编号 | H2: 安全许可证编号 | I2: 所属项目 | J2: 工程分包内容 | K2: 项目联系人 | L2: 联系人电话 | M2: 证件网上核对人 | N2: 信用等级 | O2: 上报单位
A3: 1 | B3: 盐城市宏泰交通工程有限公司 | C3: 射阳县合德镇科技创业园合德路1-1号 | D3: 董廷凤 | E3: 1518 | F3: 91320924570378726J | G3: 钢结构工程专业承包叁级D332194061 | H3: （苏）JZ安许证字（2018）002377 | I3: 遥墙、靳家、齐河东收费站扩建 | J3: 遥墙收费站项目雨棚 | K3: 房建建 | L3: 18660803066 | M3: 周海峰 | N3: A | O3: 养护公司
A4: 2 | B4: 湖北华志劳务分包有限公司 | C4: 襄阳市樊城区丹江路30号1幢1层 | D4: 杨华 | E4: 500 | F4: 91420600331782123K | G4: D342119758施工劳务资质不分等级 | H4: （鄂）JZ安许证字[2017]017802 | I4: 湖北武荆高速公路2018年-2020年小修保养工程 | J4: 路基路面保洁、绿化工程 | K4: 杨华 | L4: 13872935176 | M4: 王红建 | N4: A | O4: 养护公司
A5: 3 | B5: 四川匹克生态景观工程有限公司 | C5: 成都高新区九兴大道14号2栋1单元6楼601、602号 | D5: 杨秉义 | E5: 2050 | F5: 91510000713094553T | G5: 市政公用工程施工总承包叁D2515601682 | H5: （川）JZ安许证字（2014）000494 | I5: 国高青兰线泰安至东阿界（含黄河大桥）段第一合同段项目绿化工程施工 | J5: 项目绿化工程边坡客土喷播/路堑喷混植生 | K5: 高文峰 | L5: 13982089343 | M5: 任永辉 | N5: A | O5: 养护公司
A6: 4 | B6: 山东昌源市政景观建设有限公司 | C6: 山东省潍坊市峡山区太保庄街道驻地峡瑞街005号 | D6: 倪强 | E6: 4000 | F6: 91370700791510583K | G6: 市政公用工程施工总承包贰级D237122075 | H6: （鲁）JZ安许证字[2011]07-0056 | I6: 济南项目部 | J6: 劳务 | K6: 倪强 | L6: 13516381677 | M6: 孙义林 | N6: A | O6: 养护公司
A7: 5 | B7: 宜昌砼富公路养护有限公司 | C7: 宜昌市猇亭区磨盘村3-13号 | D7: 朱鸿飞 | E7: 1500 | F7: 91420500568330192B | G7: 公路路面工程专业承包叁级D342236373 | H7: （鄂）JZ安许证字 【2019】040102 | I7: 山东高速2019-2020年度养护维修专项工程KG衡邵段 | J7: 微表处工程 | K7: 王进 | L7: 15871629150 | M7: 曾璐 | N7: A | O7: 养护公司
A8: 6 | B8: 山东省夏津县恒兴建筑安装有限公司 | C8: 夏津县经济开发区胡里长屯南侧 | D8: 许本永 | E8: 2100 | F8: 91371427739280143D | G8: 建筑工程总承包叁级、期中设备安装工程专业承包叁级、钢结构工程专业承包叁级D237025924 | H8: 鲁JZ安许证字〔2016〕130335 | I8: 山东高速2019-2020年度小修保养项目JT禹城 | J8: 小修保养 | K8: 杜志刚 | L8: 18953498866 | M8: 王烨 | N8: A | O8: 养护公司
A9: 7 | B9: 泰安市东岳市政工程有限公司 | C9: 泰安市迎胜村（迎胜西路） | D9: 赵尊仓 | E9: 2000 | F9: 9137090073721031XW | G9: 市政公用工程施工总承包贰级、城市及道路照明工程专业承包贰级：D237131585 | H9: （鲁）JZ安许证字 〔2013〕09-0001 | I9: 曲阜项目部 | J9: 乳化沥青洒布、封层撒布 | K9: 李银江 | L9: 15553806899 | M9: 王洋飞 | N9: A | O9: 养护公司
A10: 8 | B10: 德州黄河建业工程有限责任公司 | C10: 山东省齐河县城齐鲁大街219号 | D10: 王瑞恭 | E10: 1032 | F10: 913714257262163025 | G10: 水利水电工程施工总承包壹级D137044617 | H10: 【鲁】JZ安许证字[2005]180015-02 | I10: 2019年度胶州湾大桥、胶州湾高速公路日常养护维修工程 | J10: 养护 | K10: 王康 | L10: 18606407628 | M10: 王坤 | N10: A | O10: 养护公司
A11: 9 | B11: 淄博泰丰道路工程有限公司 | C11: 淄博市桓台县果里镇西龙村 | D11: 张涛 | E11: 6156 | F11: 91370321267111391Y | G11: 公路工程施工总承包贰级；公路路面工程专业承包贰级；公路路基工程专业承包贰级；D237020780 | H11: （鲁）JZ安许证字 〔2005〕030329 | I11: 山东高速2019-2020年度小修保养项目（淄博运管中心GF青银淄博段） | J11: 小修保养、齐鲁专项 | K11: 张鹏 | L11: 15866267146 | M11: 刘柳 | N11: A | O11: 养护公司
A12: 10 | B12: 江苏帝邦建设工程有限公司 | C12: 沛县经济开发区沛公路科创园一号楼 | D12: 姬传领 | E12: 5980 | F12: 91320322086977524U | G12: 消防设施工程专业承包壹级、防水防腐保温工程专业承包壹级、建筑机电安装工程专业承包贰级、环保工程专业承包贰级D232025743； | H12: （苏）JZ安许证字 【2005】030127 | I12: 胶州湾大桥、胶州湾高速公路2020年度养护专项工程 | J12: 大沽河航道桥及红岛航道桥的塔柱防腐、塔柱裂缝封闭、丙乳砂浆修补、硅烷浸渍等全部内容的施工 | K12: 贾海涛 | L12: 13708968629 | M12: 王坤 | N12: B | O12: 养护公司
A13: 11 | B13: 广东伟恒建筑工程有限公司 | C13: 廉江市廉城环市北路六十二号 | D13: 尹浩 | E13: 16038 | F13: 91440881194723310J | G13: 建筑工程施工总承包二级D244041024 | H13: （粤）JZ安许可证 【2017】152632延 | I13: 深圳地区直管路段清扫保洁、绿化项目/深圳地区直管路段日常巡查、小修项目 | J13: 深圳地区直管路段的机荷东、机荷西、梅观、盐排、盐坝、南光高速公路。劳务分包作业范围高速公路范围内路基排水设施清理、路面清扫保洁；桥梁疏通泄水孔、清理伸缩缝；隧道内装清洁、排水设施清理疏通，绿化工程。 | K13: 郭庆举 | L13: 13480900721 | M13: 赵凤轩 | N13: B | O13: 路桥集团
A14: 12 | B14: 钟祥市兴水工程有限责任公司 | C14: 钟祥市郢中镇长寿路4号 | D14: 蒋祯义 | E14: 6002.7 | F14: 91420881770773528D | G14: 市政公用工程施工总承包叁级D342016219 | H14: （鄂）JZ安许证字 【2014】0009576-1/2 | I14: 荆门国际内陆港麻矿路工程 | J14: 供水工程 | K14: 陈盛 | L14: 18602746900 | M14: 周炜超 | N14: B | O14: 养护公司
A15: 13 | B15: 荆门永怡机电工程有限公司 | C15: 荆门市东宝区苏畈桥社区屋脊山1栋1单元101室 | D15: 黄中 | E15: 1200 | F15: 91420800050009898T | G15: D342041245；城市及道路照明工程专业承包叁级 | H15: （鄂）JZ安许证字[2015]011981-1/2 | I15: 荆门国际内陆港麻矿路工程 | J15: 照明工程 | K15: 刘凤丽 | L15: 13797975655 | M15: 周炜超 | N15: B | O15: 养护公司
A16: 14 | B16: 江苏颐荣建设工程有限公司 | C16: 盐城市太平路169号水岸名都苑紫荆园Z-10幢102室 | D16: 姜巍伟 | E16: 2188 | F16: 91320900696741666D | G16: 建筑工程施工总承包三级、地基基础工程专业承包三级、城市及道路照明工程专业承包三级D332046710 | H16: （苏）JZ安许证字 〔2011〕090014 | I16: 高广项目 | J16: 土方劳务 | K16: 节雷 | L16: 18668959170 | M16: 节雷 | N16: B | O16: 养护公司
A17: 15 | B17: 青岛海科表面技术工程有限公司 | C17: 青岛市市南区金湖路3号 | D17: 赵军 | E17: 3000 | F17: 9137020279081047X2 | G17: 防水防腐保温工程专业 承包壹级D237011632； | H17: （鲁）JZ安许证字 〔2018〕021448-02 | I17: 胶州湾大桥、胶州湾高速公路2020年度养护专项工程 | J17: 沧口航道桥塔柱施工，负责该桥的塔柱防腐、塔柱裂缝封闭、丙乳砂浆修补等全部内容 | K17: 杨坤 | L17: 0532-83882956 | M17: 王坤 | N17: B | O17: 养护公司
A18: 16 | B18: 青岛海信网络科技股份有限公司 | C18: 青岛市高科技工业园宁夏路308号 | D18: 陈维强 | E18: 12103 | F18: 913702007278082031 | G18: D137024097 公路交通工程（公路机电工程）专业承包壹级 | H18: （鲁）JZ安许证字 ﹝2009﹞180780-02 | I18: 青新高速即墨西收费站改建工程一标段 | J18: 收费计算机设备、收费车道设备、称重检测系统、视频监视系统、数据图像传输系统、供配电系统、收费广场设施等机电工程施工。 | K18: 张海波 | L18: 15820035027 | M18: 王坤 | N18: B | O18: 养护公司
A19: 17 | B19: 山东慧丰建筑装饰工程有限公司 | C19: 德州市德城区大学西路1672号好宜居装饰材料城3号楼17号 | D19: 王延东 | E19: 1118 | F19: 913714007720570662 | G19: 建筑业建筑幕墙工程专业承包一级;建筑业建筑装修装饰工程专业承包一级；D237048234建筑业钢结构工程专业承包三级;建筑业建筑工程施工总承包三级；D337048231 | H19: 鲁JZ安许证字 【2012】130459-01 | I19: 山东高速2019-2020年度小修保养项目JT禹城 | J19: 小修保养 | K19: 杜志刚 | L19: 18953498866 | M19: 王烨 | N19: B | O19: 养护公司
A20: 18 | B20: 山东宏环金宇钢构有限公司 | C20: 滕州市洪绪工业园区（104国道西侧） | D20: 满宪忠 | E20: 3600 | F20: 91370481743382468P | G20: 钢结构工程专业承包壹级D137024845、地基基础工程专业承包叁级D337021771 | H20: （鲁）JZ安许证字[2005]040175-01 | I20: 山东高速2018年度养护维修专项工程JT 枣庄段 | J20: 专项工程 | K20: 满宪忠 | L20: 13963269629 | M20: 朱星宇 | N20: B | O20: 养护公司
A21: 19 | B21: 曲阜市恒通路桥工程材料有限公司 | C21: 曲阜市王庄镇前孟村104国道西 | D21: 张通 | E21: 3000 | F21: 91370881326182887X | G21: 市政公用工程施工总承包叁级：D337171554，安全生产许可证：（鲁）JZ安许证〔2019〕081168-01 | H21: （鲁）JZ安许证 〔2019〕081168-01 | I21: 曲阜项目部 | J21: 路面清扫、铣刨料运输 | K21: 张登科 | L21: 15253703306 | M21: 王洋飞 | N21: B | O21: 养护公司
A22: 20 | B22: 泰安市晓然园林市政工程有限公司 | C22: 泰安市御景龙城小区营业房1#-1营业房 | D22: 严茂芳 | E22: 1060 | F22: 91370900754477788H | G22: 市政公用工程施工总承包叁D337135782 | H22: （鲁）JZ安许证字（2018）090703-01 | I22: 国高青兰线泰安-东阿界（含黄河大桥）段绿化工程/第一合同段项目绿化工程施工 | J22: 互通区绿化/中分带、路侧绿化 | K22: 张运生 | L22: 13325288565 | M22: 任永辉 | N22: B | O22: 养护公司
A23: 21 | B23: 巨野县华茂建筑工程有限公司 | C23: 巨野县人民路256号 | D23: 吴延尊 | E23: 1056 | F23: 91371724785046905R | G23: D337131306建筑业模板脚手架专业承包不分等级;建筑业施工劳务不分等级 | H23: （鲁）JZ安许证字 〔2013〕170123 | I23: 湖北武荆高速公路2018年-2020年小修保养工程 | J23: 路基路面桥梁交安及临时工程 | K23: 韩爽 | L23: 15053096111 | M23: 王红建 | N23: B | O23: 养护公司
A24: 22 | B24: 湖北杏林春园林建设有限公司 | C24: 荆门市东宝区海慧路17号 | D24: 朱红桥 | E24: 7800 | F24: 91420800685636246P | G24: 城市园林绿化贰级CYLZ·门·1165·贰 | H24: (鄂)JZ安许证字 【2013】008648 | I24: 荆门国际内陆港麻矿路工程 | J24: 绿化工程 | K24: 朱红桥 | L24: 13897966906 | M24: 周炜超 | N24: B | O24: 养护公司
A25: 23 | B25: 山西长达交通设施有限公司 | C25: 太原市高新技术开发区高新街32号 | D25: 杜利民 | E25: 5000 | F25: 91140000110056494N | G25: 公路交通工程（公路安全设施）专业承包壹级D114058246 | H25: (晋)JZ安许证字 〔2012〕000516 | I25: 山东高速2019-2020年度养护维修专项工程标线施工 | J25: 热熔型反光涂料标线施划、标线清除、双组份突起涂料标线施划双组份防滑型标线施划 | K25: 任宁 | L25: 15098935055 | M25: 王德超 | N25: B | O25: 养护公司
A26: 24 | B26: 柳州欧维姆工程有限公司 | C26: 广西柳州市阳和工业新区阳惠路1号服务综合楼 | D26: 陈昱鹏 | E26: 5500 | F26: 91450200272981930H | G26: 市政公用工程施工总承包叁级D345002968、桥梁工程专业承包贰级D245002961； | H26: (桂)JZ安许证字 〔2005〕000071 | I26: 2017年高速公路桥梁维修工程 | J26: 更换吊杆 | K26: 周坤 | L26: 15102291525 | M26: 王坤 | N26: B | O26: 养护公司
A27: 25 | B27: 青岛鲁建路桥工程有限公司 | C27: 青岛市崂山区山东头路58号1号楼901户 | D27: 徐贵东 | E27: 5000 | F27: 913702125990403074 | G27: D237210300公路工程施工总承包贰级、桥梁工程专业承包贰级、隧道工程专业承包贰级、公路路面工程专业承包贰级、公路路基工程专业承包贰级 | H27: （鲁）JZ安许证字［2019］022397 | I27: 青新高速即墨西收费站改建工程一标段 | J27: 清表、拆除工程、土方工程、路基路面工程等。 | K27: 韩秀鹏 | L27: 15963259566 | M27: 王坤 | N27: B | O27: 养护公司
A28: 26 | B28: 山东惠孚建设工程有限公司 | C28: 曲阜市陵城镇杨屯村 | D28: 毛秀珍 | E28: 1200 | F28: 91370881592625273Y | G28: 市政公用工程施工总承包叁级 | H28: （鲁）JZ安许证字{2018}08149 | I28: 2018年山东高速养护维修工程-书院桥 | J28: 施工便道挖淤泥、土方填筑、建筑砾料填筑、土方挖除清运；便道填筑、路基施工；水泥稳定碎石施工。 | K28: 关德军 | L28: 18678899001 | M28: 丁兵兵 | N28: B | O28: 养护公司
A29: 27 | B29: 济南消防工程有限公司 | C29: 天桥区生产路东街7号 | D29: 张衍林 | E29: 2200 | F29: 913701051633862436 | G29: 建筑业电子与智能化工程专业承包二级 、建筑业建筑机电安装工程专业承包二级 建筑业消防设施工程专业承包一级 D237023130 | H29: （鲁）JZ安许证字[2005]010037 | I29: 山东高速2020年度小修保养项目－京沪济南运管中心GF京沪隧道段 | J29: 京沪高速济莱段隧道消防设施维修等。 | K29: 张衍林 | L29: 0531-85867179 | M29: 赵希胜 | N29: B | O29: 养护公司
A30: 28 | B30: 山东兴源建设工程有限公司 | C30: 济南市历城区董家镇谢家商业街东段 | D30: 谢安珂 | E30: 5010 | F30: 91370112163425628B | G30: 施工总承包·房屋建筑工程·二级;D237023076 | H30: 鲁JZ安许证字 （2013）011340-01 | I30: 山东高速2019-2020年度小修保养项目-JT济南顺河高架桥 | J30: 小修保养 | K30: 谢安珂 | L30: 18764161666 | M30: 孟娟 | N30: B | O30: 养护公司
A31: 29 | B31: 淮北市明飞建筑劳务有限公司 | C31: 安徽省淮北市杜集区矿山集镇下圩行政村三组57号 | D31: 沈继志 | E31: 400 | F31: 91340600395504376F | G31: 施工劳务不分等级D334137715 | H31: （皖）JZ安许证字（2018）007710 | I31: 遥墙、靳家、齐河东收费站扩建 | J31: 遥墙收费站扩建项目收费岛，广场 | K31: 房建建 | L31: 18660803068 | M31: 周海峰 | N31: B | O31: 养护公司
A32: 30 | B32: 河南省广宇建设集团有限公司 | C32: 商丘市梁园区中州北路99号 | D32: 刘全友 | E32: 32699 | F32: 914114001750413066 | G32: 水利水电工程施工总承包一级，市政公用工程总承包一级D141023254、D241013303； | H32: （豫）JZ安许证字（2005）150009-02 | I32: 2019年度胶州湾大桥、胶州湾高速公路日常养护维修工程 | J32: 胶州湾大桥、胶州湾高速公路日常维修 | K32: 刘全友 | L32: 0370-2810926 | M32: 王坤 | N32: B | O32: 养护公司
A33: 31 | B33: 山东富博交通设施有限公司 | C33: 山东省淄博市高新区中润大道153号 | D33: 王烨 | E33: 1000 | F33: 91370303733693844G | G33: 公路交通工程（公路安全设施）专业承包壹级：D137075557 | H33: {鲁）JZ安许证字（2018）030775-01 | I33: 曲阜项目部 | J33: 标线施划 | K33: 丁俊峰 | L33: 13562107139 | M33: 王洋飞 | N33: B | O33: 养护公司
A34: 32 | B34: 泰安市泰山区王家庄建筑安装工程公司 | C34: 泰安市王家庄村 | D34: 李克海 | E34: 2000 | F34: 9137090216648499X8 | G34: D237064814建筑工程施工总承包二级、建筑装修装饰工程专业承包二级 | H34: （鲁）JZ安许证字 〔2005〕090120 | I34: 山东高速2019-2020年养护维修专项工程-GF泰安段、JT泰安段房建 | J34: 103 | K34: 张友星 | L34: 13668689627 | M34: 孟娟 | N34: B | O34: 养护公司
A35: 33 | B35: 湖北中申建设工程有限责任公司 | C35: 武汉市东西湖区辛安渡办事处徐家台1号 | D35: 陈刚 | E35: 3000 | F35: 91420000094987845T | G35: D342085505建筑工程施工总承包叁级、市政公用工程施工总承包叁级 | H35: （鄂）JZ安许证字[2015]012099 | I35: 武荆高速公路服务区厕所革命改造工程 | J35: 钟祥服务区公共厕所改造 | K35: 林春才 | L35: 13006380930 | M35: 王红建 | N35: B | O35: 养护公司
A36: 34 | B36: 山东隆材宇栋路桥工程有限公司 | C36: 济宁市汶上县汶上街道大刘庄村胜利街398号 | D36: 李士国 | E36: 1600 | F36: 91370830MA3P1L1K8P | G36: 市政公用工程施工总承包叁级D337195550 | H36: （鲁）JZ安许证字 〔2020〕081427 | I36: 2020-2021年度胶州湾大桥、胶州湾高速公路日常养护维修工程 | J36: 胶州湾大桥日常机械清扫、胶州湾大桥收费站站区、办公区日常保洁费、胶州湾大桥中央分隔带苗木顶部修剪、施肥以及胶州湾大桥、路面、桥涵、设施、绿化等项目的维修保养及临时与应急抢险项目工作等。 | K36: 李士国 | L36: 17562789797 | M36: 王坤 | N36: B | O36: 养护公司
A37: 35 | B37: 山东中安建设工程有限公司 | C37: 山东东阿经济开发区霞光路西首路北 | D37: 任海燕 | E37: 4006 | F37: 91371524MA3CE5H877 | G37: D237166965水利水电工程施工总承包贰级 | H37: (鲁)JZ安许证字[2018]150445-02 | I37: 2020-2021年度胶州湾大桥、胶州湾高速公路日常养护维修工程 | J37: 胶州湾高速日常机械清扫、胶州湾高速路基、路面、桥涵、设施、绿化等项目的维修保养及临时与应急抢险项目工作等。 | K37: 任海燕 | L37: 15615026206 | M37: 王坤 | N37: B | O37: 养护公司
A38: 36 | B38: 广东中汇建筑劳务有限公司 | C38: 茂名市电白区海淀新区第一小区单位小住宅D区D02号 | D38: 陈婷婷 | E38: 5000 | F38: 91440904MA4W892E90 | G38: 施工劳务不分等级D344156728 | H38: （粤）JZ安许证字 【2017】162483 | I38: 清连高速公路小修保养工程YH3合同段工程施工/深圳地区高速公路桥梁维修加固工程施工 | J38: 劳务分包作业范围清连高速K2197+000～K2262+928（含匝道及收费站广场）的日常保洁及小修保养劳。 1、人工清洁（硬路肩、上下边坡及平台；收费站、广场、车道、雨棚；桥面、中带、紧急停车带、服务区三角带等）； 2、机械清扫（全线） 3、全线树枝、杂草修剪（含匝道）； 4、交安设施缺损的更换； 5、清洗沿线交通标志牌； 6、清理沿线排水系统淤积； 7、路面常规维修（路面灌缝、坑槽修补、更换路面板等） 8、应急抢险。 | K38: 杨方凯 | L38: 18576763460 | M38: 赵凤轩 | N38: B | O38: 路桥集团
A39: 37 | B39: 南京晟利路桥建设有限公司 | C39: 南京市江北新区顶山街道吴庄28号 | D39: 黄明 | E39: 2000 | F39: 91320111571553282K | G39: 施工总承包叁级 市政公用工程叁级 | H39: （苏）JZ安许证字[2018]002403 | I39: 312国道龙华立交至张店枢纽段扩建工程XHLY-1标段 | J39: 挖除旧路面、混凝土浇筑 | K39: 狄广成 | L39: 15295734399 | M39: 赵小妹 | N39: B | O39: 路桥集团
A40: 38 | B40: 山东鸿林工程技术有限公司 | C40: 山东省济南市高新区舜风路101号齐鲁文化创意基地15号楼2单元202、203 | D40: 彭广伟 | E40: 1050 | F40: 91370000749885111L | G40: 市政公用工程总承包叁级资质 D337097915 | H40: 鲁）JZ安许证字[2018]012019-01 | I40: 昆明新机场高速路绿化景观提升改造工程 | J40: 绿化工程 | K40: 董敏 | L40: 18615213393 | M40: 邢召悦 | N40: B | O40: 鲁桥建设
A41: 39 | B41: 信邦建设集团有限公司 | C41: 山东省泰安市肥城市仪阳街道办事处仪兴街06号 | D41: 苗庆明 | E41: 15000 | F41: 913709831666085000 | G41: 建筑工程施工总承包贰级D237063652 | H41: （鲁）JZ安许证字（2017）090376-02 | I41: 国高青兰线泰安-东阿界（含黄河大桥）段绿化工程/第一合同段项目绿化工程施工 | J41: 互通区土方工程 | K41: 赵林 | L41: 15953808777 | M41: 任永辉 | N41: B | O41: 养护公司
A42: 40 | B42: 山东旺角建筑装饰工程有限公司 | C42: 山东省济南市天桥区蓝翔路15号时代总部基地一期第二部分六区9号楼6-507室 | D42: 李庆水 | E42: 500 | F42: 913701053068500168 | G42: 建筑业施工劳务不分等级D337214435 | H42: （鲁）JZ安许证字 〔2020〕012803 | I42: 青新高速即墨西收费站改建工程一标段 | J42: 收费站雨棚施工 | K42: 梁建军 | L42: 15628777799 | M42: 王坤 | N42: B | O42: 养护公司
A43: 41 | B43: 泰安市泰山区诚业路桥工程有限公司 | C43: 泰山区洼子小区6号 | D43: 周学林 | E43: 200 | F43: 913709026872088942 | G43: 施工劳务不分等级,证书编号D337181276 | H43: (鲁)JZ安许证字 【2019】090784-02 | I43: 山东高速2019-2020年度小修保养项目KG济晋段、山东高速2019-2020年度养护维修专项工程 | J43: 日常维修保养 | K43: 侯伟民 | L43: 18653849456 | M43: 徐玉冲 | N43: B | O43: 养护公司
A44: 42 | B44: 河南省路嘉路桥股份有限公司 | C44: 郑州高新开发区莲花街11号 | D44: 彭霁云 | E44: 3100 | F44: 91410100769458379A | G44: 公路工程施工总承包二级,证书编号D241037963 | H44: （豫）JZ安许证字 【2010】011671 | I44: 山东高速2019-2020年度养护维修专项工程 | J44: 路面挖补专项施工 | K44: 李盼盼 | L44: 13525386519 | M44: 徐玉冲 | N44: B | O44: 养护公司
A45: 43 | B45: 河南省华建建设（集团）有限公司 | C45: 长垣县南蒲区山海大道南侧国贸中心1幢1单元 | D45: 曹国伟 | E45: 10180 | F45: 91410728798202989 | G45: 防水防腐保温工程专业承包贰级、钢结构工程专业承包贰级、建筑机电安装工程专业承包贰级、建筑工程施工总承包叁级、石油化工工程施工总承包叁级、输变电工程专业承包叁级、模板脚手架专业承包不分等级；资质证书编号： D441032467 | H45: {豫}JZ安许证字（2007）040313 | I45: 曲阜项目部 | J45: 微表处施工 | K45: 李树中 | L45: 13462284669 | M45: 王洋飞 | N45: B | O45: 养护公司
A46: 44 | B46: 深圳市中通公路养护工程有限公司 | C46: 深圳市罗湖区清水河街道泥岗路红岗东村12栋10号 | D46: 张照辉 | E46: 1001 | F46: 91440300689418473X | G46: 施工劳务不分等级 D344271701 | H46: （粤）JZ安许证字[2019]022929 | I46: 南光、盐排、盐坝、龙大高速公路巡查、小修工程 | J46: 南光、盐排、盐坝、龙大四条高速公路的日常保养，巡查小修工程，高速公路的恢复更新、维修、改善和抢修工程 | K46: 曹伟琴 | L46: 18879723066 | M46: 赵凤轩 | N46: B | O46: 路桥集团
A47: 45 | B47: 河南省高远公路养护技术有限公司 | C47: 新乡市开发区高远路6号 | D47: 刘延国 | E47: 5045 | F47: 914107006149156438 | G47: D341003402、D241003405公路工程施工总承包叁级、公路路面工程专业承包贰级 | H47: （豫）JZ安许证字[2020]041841 | I47: 湖北武荆高速公路2018年养护维修工程 | J47: 含砂雾封层 | K47: 张广泉 | L47: 15083124850 | M47: 王红建 | N47: B | O47: 养护公司
A48: 46 | B48: 湖北荆晨建设工程有限公司 | C48: 荆门市东宝区象山大道139号2号门面 | D48: 王培金 | E48: 1000 | F48: 91420800MA493KY93G | G48: D342164732 D242132407 建筑工程施工总承包叁级 市政公用工程施工总承包叁级 钢结构工程专业承包叁级 环保工程专业承包叁级 建筑装修装饰工程专业承包贰级 | H48: （鄂）JZ安许证字[2018]025987 | I48: 荆门国际内陆港麻矿路工程 | J48: 透水砖工程 | K48: 曹军 | L48: 13707263650 | M48: 周炜超 | N48: B | O48: 养护公司
A49: 47 | B49: 湖北金岑建设工程有限公司 | C49: 石首市笔架山办事处东方大道293号 | D49: 郭勇 | E49: 2000 | F49: 91421081309714431T | G49: D242069398D342016849钢结构工程专业承包贰级，建筑幕墙工程专业承包贰级，建筑装修装饰工程专业承包贰级，防水防腐保温工程专业承包贰级，机电工程施工总承包叁级，古建筑工程专业承包叁级，市政公用工程施工总承包叁级，环保工程专业承包叁级，地基基础工程专业承包叁级，建筑工程施工总承包叁级，施工劳务资质不分等级，城市及道路照明工程专业承包叁级，模板脚手架专业承包不分等级 | H49: （鄂）JZ安许证字 【2015】012502 | I49: 武荆高速公路服务区厕所革命改造工程 | J49: 汉川服务区公共厕所改造 | K49: 陈焕义 | L49: 18627288000 | M49: 王红建 | N49: B | O49: 养护公司
A50: 48 | B50: 招远市远泰建筑工程有限公司 | C50: 山东省招远市玲珑路205号 | D50: 徐庆星 | E50: 6800 | F50: 91370685706348260E | G50: 建筑工程施工总承包三级D337063653 | H50: 鲁）JZ安许证字[2012]061071-01 | I50: 龙青项目 | J50: 绿化劳务 | K50: 节雷 | L50: 18668959170 | M50: 节雷 | N50: B | O50: 养护公司
A51: 49 | B51: 招远市圣基工程有限公司 | C51: 山东省烟台市招远市玲珑路158号 | D51: 王书岩 | E51: 2100 | F51: 91370685748977495G | G51: 公路工程三级A3024037210048 | H51: （鲁）JZ安许证字 〔2006〕180440 | I51: 龙青项目 | J51: 绿化劳务 | K51: 节雷 | L51: 18668959170 | M51: 节雷 | N51: B | O51: 养护公司
A52: 50 | B52: 夏津县水利建筑安装有限公司 | C52: 夏津县东关街2号 | D52: 郑德亮 | E52: 908 | F52: 91371427167453386F | G52: 建筑工程施工总承包三级D337024429 | H52: 鲁JZ安许字[2005]130221 | I52: 山东高速2019-2020年度小修保养项目JT禹城 | J52: 专项 | K52: 杜志刚 | L52: 18953498866 | M52: 王烨 | N52: B | O52: 养护公司
A53: 51 | B53: 山东致远公路工程有限公司 | C53: 山东泰安市东平县彭集街道滨河新区通渠街南侧 | D53: 卢静 | E53: 1000 | F53: 91370923577787098L | G53: 公路工程施工总承包叁级，公路路基工程专业承包叁级，公路工程工程专业承包叁级，证书编号D337035387 | H53: （鲁）JZ安许证字 【2015】181192 | I53: 山东高速集团有限公司取消高速公路省界收费站工程 | J53: ETC门架基础、机房机柜基础施工 | K53: 王汉刚 | L53: 15269829101 | M53: 徐玉冲 | N53: B | O53: 养护公司
A54: 52 | B54: 山东泛邦工程有限公司 | C54: 山东省烟台市高新区科技大道69号创业大厦西塔17层 | D54: 崔文海 | E54: 3000 | F54: 913706827433504312 | G54: D237061930公路工程施工总承包贰级，公路路面工程专业承包贰级，公路交通工程（公路安全设施分项）专业承包贰级 | H54: （鲁）JZ安许证字 〔2011〕180466 | I54: 京山市普通公路建养一体化项目 | J54: 路基工程 | K54: 姜云皓 | L54: 15726126666 | M54: 张浩然 | N54: B | O54: 养护公司
A55: 53 | B55: 湖州立华路桥工程有限公司 | C55: 浙江省湖州市南浔区双林镇塘北路 | D55: 秦玉明 | E55: 5000 | F55: 91330503146972216w | G55: D233029704公路工程施工总承包贰级 | H55: （浙）JZ安许证字 【2005】120106 | I55: 京山市普通公路建养一体化项目 | J55: 路基工程 | K55: 施勤峰 | L55: 18969092338 | M55: 张浩然 | N55: B | O55: 养护公司
A56: 54 | B56: 山东泰岳市政工程有限公司 | C56: 山东省泰安市开发区凤天路2707号 | D56: 孙桂红 | E56: 4200 | F56: 913709027628667755 | G56: 市政工程总承包贰级 | H56: (鲁)JZ安许证字[2010]09-0003 | I56: 2018年山东高速养护维修工程-书院桥 | J56: 箱梁钢筋加工（含箱梁及负弯矩、横梁、湿接缝、伸缩缝预埋），钢绞线加工及张拉，箱梁混凝土浇筑，箱梁安装等。 | K56: 关德军 | L56: 18678899001 | M56: 丁兵兵 | N56: B | O56: 养护公司
A57: 55 | B57: 江苏海瑞建设工程有限公司 | C57: 南京市溧水区东屏工业园 | D57: 丁正忠 | E57: 5099 | F57: 91320117598015302R | G57: 公路工程施工总承包叁级 | H57: （苏）JZ安许证字[2014]801001 | I57: 312国道龙华立交至张店枢纽段扩建工程XHLY-1标段 | J57: 拆除结构物 | K57: 申红平 | L57: 17301598006 | M57: 赵小妹 | N57: B | O57: 路桥集团
A58: 56 | B58: 湖南路德建设有限公司 | C58: 湖南省衡阳市高新区长丰大道28号汇景花园二栋二单元902室 | D58: 肖成志 | E58: 3000 | F58: 914304003256423430 | G58: 市政公用工程施工总承包叁级，城市及道路照明工程专业承包叁级D343004518 | H58: （湘）JZ安许证字 【2016】000174 | I58: 山东高速2019-2020年度养护维修专项工程KG衡邵段 | J58: 路面工程 | K58: 何卓坤 | L58: 13786436832 | M58: 曾璐 | N58: B | O58: 养护公司
A59: 57 | B59: 衡水诚科路桥养护有限公司 | C59: 河北省衡水滨湖新区彭杜乡高胡景官村 | D59: 高金庄 | E59: 888 | F59: 91131106095630127L | G59: D213117283特种工程专业承包不分等级（建筑物纠偏和平移，建筑物结构补强） | H59: （冀）JZ安许证字（2018）009767 | I59: 山东高速2019-2020年度养护维修专项工程KG武荆段 | J59: 结构补强加固、桥梁顶升工程 | K59: 郭全义 | L59: 13333180577 | M59: 王红建 | N59: B | O59: 养护公司
A60: 58 | B60: 武汉裕申工程技术有限公司 | C60: 武汉市汉阳区汉阳人信汇第6幢23层27号 | D60: 周立军 | E60: 4000 | F60: 9142010567913731XN | G60: D242029342 D342153630特种工程专业承包不分等级、防水防腐保温工程专业承包贰级、市政公用工程施工总承包叁级、桥梁工程专业承包叁级、隧道工程专业承包叁级、钢结构工程专业承包叁级 | H60: （鄂）JZ安许证字 【2009】005276 | I60: 山东高速2019-2020年度养护维修专项工程KG武荆段 | J60: 钢箱梁涂装工程 | K60: 周立军 | L60: 027-84456011 | M60: 王红建 | N60: B | O60: 养护公司
A61: 59 | B61: 北京路桥方舟交通科技发展有限公司 | C61: 北京市门头沟区妙峰山镇丁家滩村村委会北300米 | D61: 文梦野 | E61: 10005 | F61: 91110109757717548G | G61: 公路交通工程（公路安全设施）专业承包壹级D111041785 | H61: （京）JZ安许证字{2017}013542 | I61: 山东高速2019-2020年度养护维修专项工程标线施工 | J61: 热熔型反光涂料标线施划、标线清除、双组份突起涂料标线施划双组份防滑型标线施划 | K61: 周立龙 | L61: 15275708675 | M61: 王德超 | N61: B | O61: 养护公司
A62: 60 | B62: 荆门九衢路桥工程有限公司 | C62: 荆门市掇刀区虎牙关大道4号 | D62: 杨军 | E62: 3000 | F62: 91420800667679154R | G62: 公路工程施工总承包叁级、公路路面工程专业承包贰级、公路路基工程专业承包贰级、桥梁工程专业承包贰级D242039790 | H62: （鄂）JZ安许证字 【2005】00498-2/2 | I62: 荆门国际内陆港麻矿路工程 | J62: 路基土石方、级配、路缘石工程 | K62: 钟勇 | L62: 13807260407 | M62: 周炜超 | N62: B | O62: 养护公司
A63: 61 | B63: 武汉凯溢建设工程有限公司 | C63: 洪山区青菱都市工业园QL008号 | D63: 饶兴君 | E63: 4000 | F63: 91420113587951648F | G63: D242074246/D342058777建筑工程施工总承包贰级,建筑装修装饰工程专业承包贰级\ 市政公用工程施工总承包叁级,钢结构工程专业承包叁级 | H63: (鄂)JZ安许证字[2013]008054 | I63: 山东高速2019-2020年度养护维修专项工程KG武荆段 | J63: 中分带花砖铺设工程 | K63: 钟凯 | L63: 18507163963 | M63: 王红建 | N63: B | O63: 养护公司
A64: 62 | B64: 武汉市海北天蓝建设工程有限公司 | C64: 武汉东湖新技术开发区关东园路2-2号光谷国际商务大厦1幢29层2913号 | D64: 赵贵银 | E64: 12000 | F64: 91420100MA4KRJPQ31 | G64: D342122468公路工程施工总承包叁级、公路路面工程专业承包叁级、桥梁工程专业承包叁级、施工劳务资质不分等级、公路路基工程专业承包叁级 | H64: （鄂）JZ安许证字 〔2017〕017079 -1/2 | I64: 京山市普通公路建养一体化项目 | J64: 路基工程 | K64: 赵贵海 | L64: 13093202399 | M64: 张浩然 | N64: B | O64: 养护公司
A65: 63 | B65: 荆门市三箭建设有限公司 | C65: 荆门高新区·掇刀区象山大道142号东方国际广场A座11楼 | D65: 陈学平 | E65: 16000 | F65: 914208001801104339 | G65: D142081767公路工程施工总承包贰级 | H65: 鄂JZ安许证字[2005]000037 | I65: 京山市普通公路建养一体化项目 | J65: 桥梁工程 | K65: 李婷婷 | L65: 13971830497 | M65: 张浩然 | N65: B | O65: 养护公司
A66: 64 | B66: 义马市通达实业有限公司 | C66: 义马市千秋西路 | D66: 孙钰蓉 | E66: 5000 | F66: 91411281794252946J | G66: 公路交通工程（公路安全设施分项）专业承包贰级：D241060365;安全生产许可证：（豫）JZ安许证字〔2010〕090137 | H66: （豫）JZ安许证字 〔2010〕090137 | I66: 曲阜项目部 | J66: 施划标线 | K66: 王瑞雪 | L66: 13373938723 | M66: 王洋飞 | N66: B | O66: 养护公司
A67: 65 | B67: 四川金玺建设工程有限公司 | C67: 成都市青羊区正府街172号5层505号 | D67: 周顺家 | E67: 1000 | F67: 91510105MA6CDQMD7A | G67: D351833871施工劳务不分等级 | H67: （川）JZ安许证字[2018]008118 | I67: 山东高速2019-2020年度养护维修专项工程KG武荆段 | J67: 沥青铣刨、摊铺工程 | K67: 周顺家 | L67: 18661508111 | M67: 王红建 | N67: B | O67: 养护公司
A68: 66 | B68: 衡阳润鹏道路工程有限公司 | C68: 湖南省衡阳市雁峰区白沙洲工业大道30号 | D68: 陆魁平 | E68: 4480 | F68: 91430406MA4L92JF1J | G68: 市政公用工程施工总承包叁级D343078950 | H68: （湘）JZ安许证字 【2018】001520 | I68: 山东高速2019-2020年度养护维修专项工程KG衡邵段 | J68: 交安工程 | K68: 徐微 | L68: 15807349222 | M68: 曾璐 | N68: B | O68: 养护公司
A69: 67 | B69: 山东致远市政工程有限公司 | C69: 山东省菏泽市高新区黄河路西段贾坊社区北邻 | D69: 黄荣 | E69: 1050 | F69: 91371700MA3C1QK4XQ | G69: 市政公路工程施工总承包三级D337097053 | H69: （鲁）JZ安许证字[2016]17-0056 | I69: 潍莱项目 | J69: 路面施工 | K69: 孙燕杰 | L69: 13864081507 | M69: 于丰凡 | N69: B | O69: 养护公司
A70: 68 | B70: 京山市路桥建设有限公司 | C70: 京山市新市镇京源大道576号 | D70: 熊晖 | E70: 7576.5 | F70: 91420821706930226G | G70: D242042400公路工程施工总承包贰级 | H70: （鄂）JZ安许证字 〔2005〕001358 | I70: 京山市普通公路建养一体化项目 | J70: 路基工程 | K70: 林先春 | L70: 13339767711 | M70: 张浩然 | N70: B | O70: 养护公司
A71: 69 | B71: 济南钰颖机械化施工有限公司 | C71: 济南市高新区孙村镇白谷堆村西芦煤矿区3号楼2-301 | D71: 赵建平 | E71: 1000 | F71: 91370100061173802E | G71: D337175464建筑业施工劳务不分等级 | H71: （鲁）JZ安许证字 〔2018〕012135 | I71: 湖北武荆高速公路2018年-2020年小修保养工程 | J71: 路基路面保洁、绿化工程 | K71: 隗业 | L71: 13906410555 | M71: 王红建 | N71: B | O71: 养护公司
A72: 70 | B72: 齐河路建公路工程有限公司 | C72: 山东省德州市齐河县齐鲁大街177号 | D72: 杨同保 | E72: 500 | F72: 91371425326147889X | G72: 模板脚手架专业承包不分等级D337176860 | H72: （鲁）JZ安许证字[2019]130806-01 | I72: 潍莱项目 | J72: 桩基防护 | K72: 杨同宝 | L72: 13505344979 | M72: 于丰凡 | N72: B | O72: 养护公司
A73: 71 | B73: 湖南一玖建设有限公司 | C73: 湖南省衡阳市华新开发区白云路34号（金星小区6-7栋） | D73: 谢金钊 | E73: 2019 | F73: 70040101309003995 | G73: 建筑工程施工总承包贰级D243036147 | H73: （湘）JZ安许证字 【2005】000336 | I73: 山东高速2019-2020年度养护维修专项工程KG衡邵段 | J73: 路基砌石工程 | K73: 唐晓娟 | L73: 13975488887 | M73: 曾璐 | N73: B | O73: 养护公司
A74: 72 | B74: 江苏先创交通设施有限公司 | C74: 宿迁经济技术开发区富豪花园发展大道二期2-107 | D74: 谢健 | E74: 1000 | F74: 91321391562934120A | G74: D232167026公路交通工程（公路安全设施分项）专业承包贰级 | H74: （苏）JZ安许证字 【2017】901071 | I74: 山东高速2019-2020年度养护维修专项工程KG武荆段 | J74: 标线工程 | K74: 戴胜美 | L74: 13511797854 | M74: 王红建 | N74: B | O74: 养护公司
A75: 73 | B75: 天津锦润建筑工程有限公司 | C75: 天津市西青经济技术开发区赛达新兴产业园F1座508室A区 | D75: 李忠泽 | E75: 5000 | F75: 91120111569301510Y | G75: 市政公用工程施工总承包叁级D212020989 | H75: （津）JZ安许证字[2014]CS0004204 | I75: 潍莱项目 | J75: 路面施工 | K75: 田建东 | L75: 13820003029 | M75: 于丰凡 | N75: B | O75: 养护公司
A76: 74 | B76: 湖北恒诚建设有限公司 | C76: 枝江市仙女镇老周场集镇新正街 | D76: 佘云波 | E76: 5500 | F76: 9142058369178400XB | G76: D242039896 建筑工程施工总承包贰级；市政公用工程施工总承包贰级；钢结构工程专业承包贰级；地基基础工程专业承包贰级；建筑装修装饰工程专业承包贰级 | H76: （鄂）JZ 安许证字 [2010]005777 | I76: 京山市普通公路建养一体化项目 | J76: 路基工程 | K76: 谢青华 | L76: 13627174603 | M76: 张浩然 | N76: B | O76: 养护公司
A77: 75 | B77: 河南众达路业工程有限公司 | C77: 新乡市卫滨区中同路399号凤凰名都13号楼5层513室 | D77: 白冰 | E77: 2000 | F77: 91410700MA3XJL3A4T | G77: 施工劳务资质不分等级 D341159181 | H77: 豫[2018]041356 | I77: 山东高速2019年养护专项工程 | J77: 鸡石通建高速公路微表摊铺 | K77: 左大强 | L77: 13703728604 | M77: 刘敏 | N77: C | O77: 鲁桥建设
A78: 76 | B78: 山东泉能建筑劳务有限公司 | C78: 山东省济南市市中区英雄山路祥泰广场4号商务公寓109 | D78: 冉付良 | E78: 500 | F78: 91370103307088406K | G78: 建筑业施工劳务不分等级D337158018 | H78: （鲁）JZ安许证字 〔2018〕012046 | I78: 山东高速2019-2020年度养护维修专项工程标线施工 | J78: 钢护栏防腐、喷漆 | K78: 李明 | L78: 13864139990 | M78: 王德超 | N78: C | O78: 养护公司
A79: 77 | B79: 山东鼎盛路桥有限公司 | C79: 山东省济宁市美恒·济宁国际汽车博览城沿街8号楼01单元1层0114号 | D79: 李庆泽 | E79: 1200 | F79: 91370811MA3CCU5U8H | G79: 建筑业市政公用工程施工总承包三级D337207639 | H79: （鲁）JZ安许证字 〔2017〕08-0131 | I79: 遥墙、靳家、齐河东收费站扩建 | J79: 靳家收费站扩建项目路基路面 | K79: 房建建 | L79: 18660803067 | M79: 周海峰 | N79: C | O79: 养护公司
A80: 78 | B80: 蓬莱市金源建筑工程有限公司 | C80: 山东省蓬莱市新港街道中村 | D80: 王吉庆 | E80: 600 | F80: 91370684757463939Y | G80: D337138182建筑工程施工总承包叁级 | H80: （鲁）JZ安 〔2005〕060522 | I80: 烟台项目部 | J80: 管道清淤 | K80: 王吉庆 | L80: 15965155775 | M80: 王志超 | N80: C | O80: 养护公司
A81: 79 | B81: 海光环境建设集团有限公司 | C81: 巴城镇学院路88号1幢 | D81: 曹春 | E81: 5000 | F81: 91320583769887077N | G81: 建筑工程施工总承包贰级D232014271 | H81: （苏）JZ安许证字 【2011】053015 | I81: 国高青兰线泰安-东阿界（含黄河大桥）段绿化工程 | J81: 国高青兰线泰安-东阿界（含黄河大桥）段绿化工程互通区绿化 | K81: 景彬 | L81: 13345136707 | M81: 任永辉 | N81: C | O81: 养护公司
A82: 80 | B82: 高唐县恒通市政工程有限公司 | C82: 山东省聊城市高唐县鱼丘湖街道时风东路107号 | D82: 周广杰 | E82: 1200 | F82: 91371526MA3FFLOEXR | G82: 市政公用工程总承包叁级D337180434 | H82: （鲁）JZ安许证字（2019）150488-02 | I82: 山东高速2019-2020年度小修保养项目GSFZ北环段 | J82: 小修 | K82: 骆明福 | L82: 13375317979 | M82: 孙娟 | N82: C | O82: 养护公司
A83: 81 | B83: 山东兖州建设总公司 | C83: 山东兖州经济开发区创业路15号 | D83: 孙志刚 | E83: 100163 | F83: 913708827544750617 | G83: 地基基础工程专业承包贰级、钢结构工程专业承包贰级、建筑装修装饰工程专业承包贰级、建筑幕墙工程专业承包贰级D237062692 | H83: (鲁)JZ安许证字[2014]080731 | I83: 遥墙、靳家、齐河东收费站扩建 | J83: 靳家收费站扩建项目雨棚 | K83: 房建建 | L83: 18660803068 | M83: 周海峰 | N83: C | O83: 养护公司
A84: 82 | B84: 山东鹏发建设工程有限公司 | C84: 莱城区汶源西大街 | D84: 陈丽贞 | E84: 2100 | F84: 913712007637007XG | G84: 市政公用工程施工总承包叁级D337008235 | H84: （鲁）JZ安许证字{2010}120227 | I84: 遥墙、靳家、齐河东收费站扩建 | J84: 齐河东收费站扩建项目雨棚 | K84: / | L84: / | M84: 周海峰 | N84: C | O84: 养护公司
A85: 83 | B85: 邵阳市丰达建筑劳务有限公司 | C85: 新邵县酿溪镇大坪江南雅苑二期03栋3号门面 | D85: 刘丰民 | E85: 1000 | F85: 91430500MA4L6PH10A | G85: 施工劳务不分等级D343069990 | H85: （湘）JZ安许证字 【2018】000071 | I85: 山东高速2019-2020年度养护维修专项工程KG衡邵段 | J85: 路基砌石工程 | K85: 刘再桥 | L85: 17373975999 | M85: 曾璐 | N85: C | O85: 养护公司
A86: 84 | B86: 云南鋆岦公路工程有限公司 | C86: 云南省昆明市官渡区广福路与昆洛路交叉口百合园D12幢1单元5-6层502号 | D86: 王志程 | E86: 2000 | F86: 91530111346675486F | G86: 公路养护工程施工从业资质证书5301200033 | H86: (云)JZ安许证字[2019]002334 | I86: 山东高速2019年养护专项工程 | J86: 机场高速、鸡石通建高速路面养护 | K86: 赵宏建 | L86: 13987690807 | M86: 刘敏 | N86: C | O86: 鲁桥建设
A87: 85 | B87: 山东勤鑫园林工程有限公司 | C87: 肥城市新城办事处沙沟村 | D87: 戴勤鑫 | E87: 6168 | F87: 91370983764814717N | G87: 市政公用工程施工总承包叁D337189150 | H87: （鲁）JZ安许证字（2017）09-078 | I87: 国高青兰线泰安至东阿界（含黄河大桥）段第一合同段项目绿化工程施工 | J87: 绿化工程中分带、路侧绿化 | K87: 张振华 | L87: 13581192777 | M87: 任永辉 | N87: D | O87: 养护公司
A88: 86 | B88: 湖北久翔劳务有限公司 | C88: 浠水县清泉镇凤栖路6-16号 | D88: 姜伟 | E88: 300 | F88: 914211253165511082 | G88: 施工劳务资质不分等级D342003517 | H88: (鄂)JZ安许证字[2019]032792 | I88: 山东高速2019年养护专项工程 | J88: 线外拦砂坝重建，服务区混凝土路面整修 | K88: 杨秋剑 | L88: 15994221063 | M88: 刘敏 | N88: D | O88: 鲁桥建设

Sheet 交安工程劳务单位名册
A1: 山东高速路桥集团股份有限公司2019~20年劳务单位信用评价统计汇总表
A2: 序号 | B2: 劳务单位名称 | C2: 注册地址 | D2: 法定代表人 | E2: 注册资本（万元） | F2: 营业执照（统一社会信用代码） | G2: 资质类别、等级，编号 | H2: 安全许可证编号 | I2: 所属项目 | J2: 工程分包内容 | K2: 项目联系人 | L2: 联系人电话 | M2: 证件网上核对人 | N2: 信用等级 | O2: 上报单位
A3: 1 | B3: 徐州顺安公路工程养护有限公司 | C3: 江苏省徐州市云龙区长山村大院内 | D3: 李智远 | E3: 200 | F3: 913203037665236228 | G3: 施工劳务 不分等级，D332320509 | H3: （苏）JZ安许证字[2020]002407 | I3: 泰东高速公路项目第一合同段 | J3: 护栏立柱打入、钻孔、护栏板安装、线形调整、护栏材料保管、施工队伍提供打桩机、运输车辆、小型机具、基础开挖、模板、浇筑、混凝土养护；轮廓标材料保管、打孔、安装，基础开挖、浇筑等 | K3: 张以光 | L3: 13905228826 | M3: 杨士锋 | N3: A | O3: 路桥集团
I4: 国道569曼德拉至大通公路克图至大通段KD-JASG1标段 | J4: 波形梁护栏、轮廓标工程的劳务工作。 | K4: 张以光 | L4: 13905228826 | M4: 于幸福 | N4: A | O4: 路桥集团
A5: 2 | B5: 北京汉威达交通运输设备有限公司 | C5: 北京市海淀区清河嘉园东区1号楼1层106 | D5: 陈晶 | E5: 12000 | F5: 91110108600058281J | G5: 公路交通工程（公路安全设施）专业承包壹级DW111004987 | H5: （京）JZ安许证字 【2020】011715 | I5: 大埔至潮州高速公路（含大埔至漳州支线）交通安全设施工程JA1标段施工、汕（头）湛（江）高速公路惠州至清远段项目交通安全设施工程施工JA3标 | J5: 大埔至潮州高速公路JA1标段项目护栏、隔离栅、声屏障安装工程/汕湛高速惠州至清远段项目JA3工程项目护栏、防护网、声屏障、标线、轮廓标等安装工程 | K5: 陈竹华 | L5: 15875315319 | M5: 赵凤轩 | N5: A | O5: 路桥集团
A6: 3 | B6: 四川嘉泰丰建筑工程有限公司 | C6: 成都市简阳市简城红建路南段滨江花园 | D6: 马丽娟 | E6: 1000 | F6: 91510185MA6C6YEX3P | G6: 建筑工程施工总承包叁级 公路工程施工总承包叁级 水利水电工程施工总承包叁级 市政公用工程施工总承包叁级 桥梁工程专业承包叁级 隧道工程专业承包叁级 钢结构工程专业承包叁级 公路路面工程专业承包叁级 公路路基工程专业承包叁级 河湖整治工程专业承包叁级 环保工程专业承包叁级，D351741400 | H6: （川）JZ 安许证字 〔2018〕001858 | I6: 长深高速高青至广饶段交通安全设施项目 | J6: 混凝土护栏等 | K6: 李柏刚 | L6: 15963975789 | M6: 张鸿志 | N6: A | O6: 路桥集团
I7: 泰东高速公路项目第一合同段 | J7: 标志基础开挖，模板支立，钢筋加工，砼浇筑、养护，渣土倒运，标志牌安装、调整、清理等 | K7: 李柏刚 | L7: 15963975789 | M7: 杨士锋 | N7: A | O7: 路桥集团
I8: 岚山至菏泽公路临枣高速至枣木高速段交安施工一标 | J8: 标段范围内标志、现浇混凝土护栏、预制安装混凝土护栏施工 | K8: 秦承福 | L8: 18396788899 | M8: 姜青竹 | N8: A | O8: 路桥集团
A9: 4 | B9: 济南长鑫交通工程有限公司 | C9: 山东省济南市章丘区双山街道绣水如意麦克格尔行政中心2栋312室 | D9: 于爱 | E9: 1000 | F9: 91370181MA3C5TP5XW | G9: 钢结构工程专业承包叁级，D337174488 | H9: （鲁）JZ 安许证字 〔2018〕012133-01 | I9: 岚山至菏泽公路临枣高速至枣木高速段交安施工一标 | J9: 标段范围内声屏障施工 | K9: 郑尔文 | L9: 18660771890 | M9: 姜青竹 | N9: A | O9: 路桥集团
I10: 泰东高速公路项目第一合同段 | J10: 标志基础开挖，模板支立，钢筋加工，砼浇筑、养护，渣土倒运，标志牌安装、调整、清理等 | K10: 郑尔文 | L10: 18660771890 | M10: 杨士锋 | N10: A | O10: 路桥集团
C11: 山东省济南市章丘区 | D11: 于爱 | E11: 1000 | F11: 91370181095291161N | G11: D337174488 | H11: （鲁）JZ安许证字[2018]012133-01 | I11: 济青二标 | J11: 波形护栏立柱打孔、中分带开口活动护栏安装工程 | K11: 郑尔金 | L11: 18615186377 | M11: 张航 | N11: A | O11: 公路桥梁
A12: 5 | B12: 山东玉泰公路设施有限公司 | C12: 淄博市高新区中润大道153号 | D12: 刘晓辉 | E12: 2000 | F12: 91370303706033365P | G12: 公路交通工程（公路安全设施）专业承包壹级，D137075485 | H12: （鲁）JZ 安许证字 〔2016〕180781-01 | I12: 岚山至菏泽公路临枣高速至枣木高速段交安施工一标 | J12: 标段范围内标线施工 | K12: 王然 | L12: 13910817161 | M12: 姜青竹 | N12: B | O12: 路桥集团
A13: 6 | B13: 广东大博金交通工程有限公司 | C13: 佛山市禅城区南庄镇季华西路133号金盈绿岛国际中心3座1005-A（住所申报） | D13: 朱雷光 | E13: 1099 | F13: 914406046730849311 | G13: 公路工程施工总承包叁级D344261379 | H13: （粤）JZ安许证字[2019]051627 | I13: 国道204拓宽改造项目 | J13: 波形护栏 | K13: 陈雷 | L13: 13639472988 | M13: 丛磊 | N13: B | O13: 鲁桥建设
A14: 7 | B14: 济宁博航市政工程有限公司 | C14: 济宁市金宇路47号汇景国际城A座十九层19号房 | D14: 梁圣亮 | E14: 1000 | F14: 91370800MA3N0Y7A2D | G14: 建筑业钢结构工程专业承包三级 、建筑业环保工程专业承包三级 建筑业建筑工程施工总承包三级 、建筑业市政公用工程施工总承包三级D337179996 | H14: (鲁)JZ安许证字[2019]081114-02 | I14: 京台五标二分部 | J14: 拆除交安及附属工程 | K14: 梁圣亮 | L14: 15753870280 | M14: 周丰禄 | N14: B | O14: 鲁桥建设
A15: 8 | B15: 山东众诚建筑劳务有限公司 | C15: 济南市天桥区 | D15: 卢广顺 | E15: 700 | F15: 913701 05697491371N | G15: 模板脚手架专业承包不分等级 D337014151 | H15: 鲁JZ安许证字[2017]010950 | I15: 济青改扩建六标 | J15: 交安工程 | K15: 郑钦建 | L15: 18954065406 | M15: 晁国昕 | N15: B | O15: 鲁桥建设
A16: 9 | B16: 山西长达交通设施有限公司 | C16: 太原市高新技术开发区高新街32号 | D16: 杜利民 | E16: 5000 | F16: 91140000110056494N | G16: 公路交通工程（公路安全设施）专业承包壹级D114058246 | H16: (晋)JZ安许证字 〔2012〕000516 | I16: 德上线巨野至单县（-K1+573-K24+027）段国家高速 | J16: 德上线巨野至单县段标线施工、劳务类 | K16: 任宁 | L16: 15098935055 | M16: 孙伟 | N16: B | O16: 路桥集团
A17: 10 | B17: 井研县除峰建筑工程有限公司 | C17: 四川省乐山市井研县研城镇建设路148号 | D17: 陈小清 | E17: 3000 | F17: 91511124323372917J | G17: D351609299 施工劳务不分等级 D351986772 建筑工程施工总承包三级 公路工程施工总承包三级 水利水电工程施工总承包三级 市政公用工程施工总承包三级 | H17: （川）JZ安许证字 【2017】001857 | I17: 2019年养护专项工程（乐宜高速） | J17: 震荡标线、凸起路标、波形钢护栏、中央分隔带活动护栏、路面标线等 | K17: 张明昌 | L17: 18784590086 | M17: 高超 | N17: B | O17: 鲁桥建设
A18: 11 | B18: 济南京通公路工程有限公司 | C18: 山东省济南市章丘区双山街道山水泉城2号楼505室 | D18: 王东 | E18: 1000 | F18: 91370181353478931N | G18: 施工劳务不分等级D337184570 | H18: （鲁）JZ安许证字{2019}012300-01 | I18: 京台五标三分部 | J18: 护栏拆除、运输工程 | K18: 任聪聪 | L18: 18906325528 | M18: 韩园园 | N18: B | O18: 鲁桥建设
A19: 12 | B19: 德州瑞鑫建筑工程有限公司 | C19: 乐陵市花园镇驻地 | D19: 李秀昌 | E19: 600 | F19: 913714810687370411 | G19: 建筑工程施工总承包叁级D337077933 | H19: （鲁）JZ安许证字[2014]130542-02 | I19: 京台五标一分部 | J19: 小结构物 | K19: 刘道林 | L19: 18953450678 | M19: 邴召建 | N19: B | O19: 鲁桥建设
A20: 13 | B20: 山东清振装饰工程有限公司 | C20: 山东省临沂市沂南县界湖街道 | D20: 王珍庆 | E20: 1000 | F20: 91371321MA3DGE9L9R | G20: 建筑装修装饰工程专业承包贰级D237159547 | H20: （鲁）JZ安许证字 〔2018〕140831 | I20: 济青改扩建六标 | J20: 交安工程 | K20: 王珍庆 | L20: 13953942565 | M20: 赵越 | N20: B | O20: 鲁桥建设
A21: 14 | B21: 山东嵩兴建筑劳务有限公司 | C21: 济南市天桥区 | D21: 尹仕中 | E21: 1000 | F21: 91370105MA3C8W1E5JI | G21: 施工劳务不分等级 D337152090 | H21: 鲁JZ安许证字[2017]011954 | I21: 济青改扩建六标 | J21: 交安工程 | K21: 尹仕中 | L21: 18678890318 | M21: 晁国昕 | N21: B | O21: 鲁桥建设
A22: 15 | B22: 济南索灿建筑工程有限公司 | C22: 济南章丘区曹范街道大驼沟村大街66号 | D22: 李勇 | E22: 1200 | F22: 91370181MA3MWGTB5T | G22: 钢结构工程专业承包叁级 D337216489 | H22: (鲁)JZ安许证字（2019）190604-01 | I22: 长深高速高青至广饶段交安项目 | J22: 隔离栅 | K22: 李勇 | L22: 13156415577 | M22: 张鸿志 | N22: B | O22: 路桥集团
A23: 16 | B23: 济南华通城市建设集团有限公司 | C23: 山东省济南市济阳县曲堤镇曲索路108号办公楼303室 | D23: 韩召刚 | E23: 8018 | F23: 91370102727560981F | G23: 城市及道路照明工程专业承包壹级 | H23: （鲁）JZ安许证字 【2012】01-0017 | I23: 济青改扩建六标 | J23: 交安工程 | K23: 胡家正 | L23: 0531-88629870 | M23: 李和平 | N23: B | O23: 鲁桥建设
A24: 17 | B24: 济宁市兴华建筑安装工程有限公司 | C24: 济宁市兖州区长安南区综合楼3-6层 | D24: 李明元 | E24: 2500 | F24: 913708827465812001 | G24: D237065702 建筑工程施工总承包贰级 | H24: （鲁）JZ安许证字[2005]080267-01 | I24: 德上线巨野至单县（-K1+573-K24+027）段国家高速路 | J24: 德上线巨野至单县段交通标志牌施工、劳务类 | K24: 李宽 | L24: 15805377696 | M24: 孙伟 | N24: B | O24: 路桥集团
A25: 18 | B25: 河间市联谊建筑劳务有限公司 | C25: 河北省沧州市河间市 | D25: 王立强 | E25: 800 | F25: 9113098468139522XE | G25: D313060277 | H25: （冀）JZ安许证字 ﹝2009﹞003918 2/2 | I25: 济青二标/京沪二标 | J25: 硅芯管、过桥管箱安装、隔离栅安装工程、声屏障及隔声窗安装 | K25: 钱江涛 | L25: 13703179650 | M25: 张航 | N25: B | O25: 公路桥梁
A26: 19 | B26: 江苏昊燊建设工程有限公司 | C26: 沛县安国镇沛公路18号 | D26: 杨新河 | E26: 5000 | F26: 91320322MAIUTCQTX7 | G26: D332177867公路工程施工总承包叁级、施工劳务不分等级 | H26: （苏）JZ安许证字{2018}001347 | I26: 德上线巨野至单县（-K1+573-K24+027）段国家高速 | J26: 德上线巨野至单县段交安设施工程波形护栏、隔离栅施工、劳务类 | K26: 吴志坚 | L26: 18913493333 | M26: 孙伟 | N26: B | O26: 路桥集团
A27: 20 | B27: 四川金贸建筑劳务有限公司 | C27: 乐山市市中区清风街243、245号 | D27: 李佐 | E27: 27888 | F27: 91511100077688798Ｍ | G27: 模板脚手架专业承包不分等级D351555370 | H27: （川）JZ安许证字 【2014】000598 | I27: 乐自高速乐山大佛收费站及九峰连接线提升改造工程 | J27: 反光热熔标线、护栏安装、标牌安装、人行道面砖铺设、路缘石安装、收费站翻新、人行道基层浇筑、人行道砂砾石垫层 | K27: 张明昌 | L27: 18784590086 | M27: 高超 | N27: B | O27: 鲁桥建设
A28: 21 | B28: 青岛紫光网络科技发展股份有限公司 | C28: 山东省青岛市胶州市三里河办事处管理村综合市场二层 | D28: 石玉国 | E28: 2000 | F28: 913702817735242289 | G28: / | H28: / | I28: 国道204拓宽改造项目 | J28: 非现执法 | K28: 徐昊 | L28: 15906393687 | M28: 丛磊 | N28: B | O28: 鲁桥建设
A29: 22 | B29: 青岛泰和交通设施有限公司 | C29: 青岛市市北区辽源路279号-13号 | D29: 高云 | E29: 1000 | F29: 913702035611575000 | G29: 市政公用工程施工总承包叁级 公路路面工程专业承包叁级D337034738 | H29: (鲁)JZ安许证字[2016]021829-01 | I29: 大卢河、两河等河道整治工程 | J29: 大卢河河道整治工程景观亮化，亮化包含线缆敷设、灯具安装调试等 | K29: 姜述宁 | L29: 13905327860 | M29: 朱镇东 | N29: B | O29: 路桥集团
A30: 23 | B30: 济南城市照明工程有限公司 | C30: 山东省济南市天桥区药山大魏庄东路5号 | D30: 刘洲 | E30: 2100 | F30: 913701057357539008 | G30: 市政公用工程施工总承包贰级 | H30: （鲁）JZ安许证字〔2019〕012351 | I30: 济青改扩建六标 | J30: 交安工程 | K30: 石树宝 | L30: 18753197157 | M30: 李和平 | N30: B | O30: 鲁桥建设
A31: 24 | B31: 济宁市兖州区亚威通泰公用设施有限公司 | C31: 济宁市兖州区兴隆庄镇大桥村（地质二队办公楼西侧） | D31: 黄建梅 | E31: 1000 | F31: 91370882676839949E | G31: D337176408市政公用工程施工总承包叁级 | H31: (鲁）JZ安许证字[2019]081336-02 | I31: 德上线巨野至单县（-K1+573-K24+027）段国家高速 | J31: 德上线巨野至单县段王官屯枢纽交通安全设施施工程、劳务类 | K31: 韩庆生 | L31: 13805377 206 | M31: 孙伟 | N31: B | O31: 路桥集团
A32: 25 | B32: 青岛中建交通建设股份有限公司 | C32: 山东省青岛市城阳区靖城路6号 | D32: 石建磊 | E32: 3000 | F32: 91370200163575052U | G32: 公路交通工程（公路安全设施）专业承包壹级D137059275 | H32: （鲁）JZ安许证字〔2007〕180634 | I32: 国道204拓宽改造项目 | J32: 标志牌 | K32: 刘正顺 | L32: 18866238560 | M32: 丛磊 | N32: B | O32: 鲁桥建设
A33: 26 | B33: 四川青盛建筑劳务有限责任公司 | C33: 大英县新城区 | D33: 蒋小琳 | E33: 700 | F33: 91510923MA6260N68R | G33: 施工劳务不分等级、D351556688 | H33: （川）JZ安许证字【2016】002069 | I33: 泸黄项目 | J33: 交安工程 | K33: 罗云鹏 | L33: 18290480350 | M33: 李霞 | N33: B | O33: 公路桥梁
A34: 27 | B34: 山东舜龙市政工程有限公司 | C34: 山东省济南市长清区文昌街道办事处经十西路15551号 | D34: 宋文彬 | E34: 10000 | F34: 91370113MA3CC5MK6P | G34: 市政公用工程总承包贰级 D237143517 | H34: （鲁）JZ安许证字[2018]012074-01 | I34: 胶州湾高速营海口周边道路综合提升工程 | J34: 碎石垫层,浆砌片石基础、护底、截水墙,浆砌块石护坡,混凝土压顶 | K34: 胡恩基 | L34: 13869114958 | M34: 王浩 | N34: B | O34: 鲁桥建设
A35: 28 | B35: 山东迅驰交通工程有限公司 | C35: 济南市天桥区 | D35: 房建功 | E35: 3080 | F35: 91370100787405254G | G35: 公路交通工程（公路安全设施分项）专业承包贰级 D237109433 | H35: （鲁）JZ安许证字〔2019〕012484 | I35: 济青改扩建六标 | J35: 交安工程 | K35: 朱传财 | L35: 18560024519 | M35: 晁国昕 | N35: B | O35: 鲁桥建设
A36: 29 | B36: 四川路顺众安建筑工程有限公司 | C36: 四川省攀枝花市仁和区攀枝花大道南段1049号2栋2单元8号 | D36: 刘新秀 | E36: 1200 | F36: 91510400MA64832Y4T | G36: 建筑工程施工总承包叁级、机电工程施工总承包叁级等 D351875179 | H36: （川）JZ安许证字〔2019〕002044 | I36: 胶州湾高速营海口周边道路综合提升工程 | J36: 碎石垫层,浆砌片石基础、护底、截水墙,浆砌块石护坡,混凝土压顶 | K36: 江少场 | L36: 13791751122 | M36: 王浩 | N36: B | O36: 鲁桥建设
A37: 30 | B37: 山东瑞通市政工程有限公司 | C37: 济宁北湖省级旅游度假区新城发展大厦B座19楼1903 | D37: 葛晓东 | E37: 4100 | F37: 913708116705437334 | G37: 市政公用工程施工总承包贰级 D237064138 | H37: （鲁）JZ安许证字〔2019〕081138 | I37: 胶州湾高速营海口周边道路综合提升工程 | J37: 悬臂式挡土墙、桥面铺装、防撞护栏、搭板、铰缝、圆管涵、桥面人行道、人行道铺装、路缘石、平石、界石安装、特制侧石 | K37: 蔡东旭 | L37: 18653122190 | M37: 王浩 | N37: B | O37: 鲁桥建设
A38: 31 | B38: 广东三穗建筑工程有限公司 | C38: 广东省湛江市吴川市糖厂路23号 | D38: 邹滔 | E38: 15138 | F38: 914408831946704746 | G38: 市政公用工程施工总承包壹级D144047957 | H38: (粤）JZ安许证字（2017）150165 | I38: 国道204拓宽改造项目/胶州湾高速营海口周边道路综合提升工程 | J38: 路灯/胶州湾高速营海口周边道路综合提升工程路灯安装 | K38: 刘旭/唐建辉 | L38: 18637164132/17711732558 | M38: 丛磊/王浩 | N38: B | O38: 鲁桥建设
A39: 32 | B39: 河北尚兴建筑劳务分包有限公司 | C39: 河北省保定市莲池区莲池区东关街道办事处五四东路565号金顶宝座2706号 | D39: 石字书 | E39: 1200 | F39: 91130984MAOCE2384D | G39: 不分专业施工劳务不分等级，D313129818 | H39: （冀）JZ安许证字【2018】010695-1/2 | I39: 京沪二标 | J39: 隔离栅安装 | K39: 钱志敏 | L39: 18805319290 | M39: 简晓辉 | N39: C | O39: 公路桥梁
A40: 33 | B40: 云南建投建筑机械有限公司 | C40: 云南省昆明市官渡区东郊路67号 | D40: 朱良 | E40: 16975.44 | F40: 91530000216521382J | G40: 建筑机电安装工程专业承包三级；钢结构工程专业承包二级；模板脚手架专业承包不分等级D253009922 | H40: (云)JZ安许证字[2005]010200 | I40: 山东高速取消省界收费站云南区域 | J40: ETC门架安装 | K40: 张彦鹏 | L40: 13888800125 | M40: 刘敏 | N40: C | O40: 鲁桥建设
A41: 34 | B41: 中林山水（北京）生态科技股份有限公司 | C41: 北京市平谷区双河路2排3号 | D41: 摆亚军 | E41: 2330 | F41: 91110105344368204N | G41: 环保工程专业承包叁级，D311147285 | H41: （京）JZ安许证字【2017】014068-01 | I41: 京沪二标 | J41: 景观工程 | K41: 王恩峰 | L41: 13853743949 | M41: 简晓辉 | N41: C | O41: 公路桥梁
A42: 35 | B42: 烟台民兴置业有限公司 | C42: 芝罘区黄务办事处傅家居委会 | D42: 马云政 | E42: 2000 | F42: 9137060270639606XX | G42: 建筑业钢结构工程专业承包三级 D337038471 | H42: （鲁）JZ安许证字[2005]060333-01 | I42: 胶州湾高速营海口周边道路综合提升工程 | J42: 标志标牌基础、电缆手井、交汇井、挡车石、道口标注、防眩板、单面波形梁钢护栏、机非分隔栏、人行护栏、中央分隔带护栏 | K42: 孙朋言 | L42: 13553128678 | M42: 王浩 | N42: C | O42: 鲁桥建设
A43: 36 | B43: 信邦建设集团有限公司 | C43: 山东省泰安市肥城市仪阳街道办事处仪兴街06号 | D43: 王琦 | E43: 15000 | F43: 913709831666085502 | G43: D337063659 | H43: （鲁）JZ安许证字[2007]090376-02 | I43: 济青二标 | J43: 波形护栏安装工程 | K43: 赖祥炎 | L43: 15891457688 | M43: 张航 | N43: C | O43: 公路桥梁
A44: 37 | B44: 福建杭川水利水电工程有限公司 | C44: 福建省龙岩市上杭县才溪镇中兴村（上杭县才溪镇自来水场内） | D44: 李家清 | E44: 1000 | F44: 91350823MA2XNR384Y | G44: 市政公用工程施工总承包三级D335075413 | H44: (闽)JZ安许证字[2017]LY0085 | I44: 武平PPP项目 | J44: 波形护栏、标志标牌、标线、预埋管线 | K44: 李家清 | L44: 13685998516 | M44: 吴庆龙 | N44: C | O44: 路桥集团
A45: 38 | B45: 北京天地林和建筑工程有限公司 | C45: 北京市门头沟区斋堂大街45号科技楼ZT800室 | D45: 董效林 | E45: 500 | F45: 91110109MAO1KNEC7Y | G45: 模板脚手架专业承包不分等级；劳务分包不分等级；特种工程（结构补强）专业承包不分等级，D311494809 | H45: （京）JZ安许证字【2019】019694 | I45: 京沪二标 | J45: 波形护栏安装 | K45: 董效林 | L45: 18901360638 | M45: 简晓辉 | N45: C | O45: 公路桥梁
A46: 39 | B46: 安徽翰源建设有限公司 | C46: 安徽省芜湖市无为县蜀山镇新街 | D46: 伍金林 | E46: 2306 | F46: 91340225553284592B | G46: 市政公用工程施工总承包贰级 D234017899 | H46: (皖)JZ安许证字[2011]004431 | I46: G205九华南路快速化改造工程大茆立交项目 | J46: 合同段内保通工程（安全设施及照明）。标 识标牌的基础及浇筑，安装，隔离栅和彩钢板的安装，路灯基础开挖及浇筑，架设路灯， 管线铺设，电缆沟开挖等。 | K46: 赵莉 | L46: 18010766706 | M46: 陈帆 | N46: C | O46: 路桥集团

Sheet 建筑工程劳务单位名册
A1: 山东高速路桥集团股份有限公司2019~20年劳务单位信用评价统计汇总表
A2: 序号 | B2: 劳务单位名称 | C2: 注册地址 | D2: 法定代表人 | E2: 注册资本（万元） | F2: 营业执照（统一社会信用代码） | G2: 资质类别、等级，编号 | H2: 安全许可证编号 | I2: 所属项目 | J2: 工程分包内容 | K2: 项目联系人 | L2: 联系人电话 | M2: 证件网上核对人 | N2: 信用等级 | O2: 上报单位
A3: 1 | B3: 山东宇青建筑劳务有限公司 | C3: 济南市市中区建设路85号25、26号楼如意商街二区1-101室 | D3: 刘盼 | E3: 15000 | F3: 91370103664888292M | G3: 模板脚手架专业承包不分等级D337037067 | H3: （鲁）JZ安许证字 【2009】010861-01 | I3: 菏泽中南花城项目 | J3: 菏泽中南花城三期工程施工图纸范围内的土建、安装及纳入总包范围的专项分包劳务工程 | K3: 朱宝岭 | L3: 18615260887 | M3: 王帅 | N3: A | O3: 路桥集团
A4: 2 | B4: 山东善臻建筑工程有限公司 | C4: 山东省济南市天桥区宝华街世茂天城12号楼1904 | D4: 侯彦刚 | E4: 1000 | F4: 91370105MA3P8HUW8T | G4: 施工劳务不分等级 | H4: （鲁）JZ安许证字 【2019】012514-02 | I4: 新泰服务区项目部 | J4: 水电安装 | K4: 侯彦刚 | L4: 13953145557 | M4: 秦宝 | N4: A | O4: 路桥集团
A5: 3 | B5: 潍坊海润消防工程有限公司 | C5: 潍坊经济技术开发区玄武东街15号院内 | D5: 韩长岭 | E5: 2020 | F5: 91370700787169992Q | G5: 建筑业建筑幕墙工程专业承包二级;钢结构工程专业承包三级;钢结构工程专业承包三级 | H5: （鲁）JZ安许证字 【2018】070563-01 | I5: 新泰服务区项目部 | J5: 石材幕墙 | K5: 韩擎 | L5: 13606466467 | M5: 秦宝 | N5: A | O5: 路桥集团
A6: 4 | B6: 济南康业建设工程有限公司 | C6: 济南市市中区六里山路8号楼2-402室 | D6: 侯存会 | E6: 2168 | F6: 91370103684686196W | G6: 模板脚手架专业承包不分等级 | H6: （鲁）JZ安许证字 【2010】010920-01 | I6: 高广项目 | J6: 附属用房工程 | K6: 侯彦峰 | L6: 13465915799 | M6: 房军 | N6: A | O6: 路桥集团
A7: 5 | B7: 攀枝花加湖建筑工程有限公司 | C7: 四川省攀枝花市东区新源路558号附2-4号 | D7: 李家湖 | E7: 1200 | F7: 91510400MA65JK7J02 | G7: 市政公用工程施工总承包叁级D351800785 | H7: （川）JZ安许证字 【2018】007405 | I7: 昆明新机场高速路绿化景观提升改造工程 | J7: 绿化、喷灌工程 | K7: 杨诞生 | L7: 13823090118 | M7: 邢召悦 | N7: A | O7: 鲁桥建设
A8: 6 | B8: 济南长鑫交通设施工程有限公司 | C8: 山东济南章丘双山涧溪工业园 | D8: 郑尔金 | E8: 500 | F8: 91370181095291161X | G8: 钢结构工程专业承包三级D337174488 | H8: （鲁）JZ安许证字〔2018〕012133 | I8: 养护公司曲阜沥青拌合站 | J8: 钢结构基础施工 | K8: 郑尔金 | L8: 18615186377 | M8: 景明义 | N8: A | O8: 路桥集团
A9: 7 | B9: 山东东煌建筑工程有限公司 | C9: 山东省济南市历城区华山街道宋刘庄5号楼2单元40 | D9: 黄兴栋 | E9: 2000 | F9: 91370112307101340J | G9: 施工劳务不分等级 | H9: （鲁）JZ安许证字 【2017】011895 | I9: 新泰服务区项目部 | J9: 高压电、箱变 | K9: 黄兴栋 | L9: 13361036900 | M9: 秦宝 | N9: A | O9: 路桥集团
A10: 8 | B10: 江苏溧阳建设集团有限公司 | C10: 江苏省溧阳经济开发区北山工业园光武路88号 | D10: 吕永武 | E10: 30100 | F10: 913204817910887812 | G10: D132010726 建筑工程施工总承包壹级 | H10: （苏）JZ安许证字（2005）040182 | I10: 东营理想之城 | J10: 劳务分包 | K10: 王满良 | L10: 13815138333 | M10: 刘玉莹 | N10: A | O10: 齐鲁建设
A11: 9 | B11: 青岛展鹏建设有限公司 | C11: 青岛市北区延安一路100号 | D11: 赵廷和 | E11: 3000 | F11: 9137020355081376X7 | G11: D337016663 建筑工程施工总承包叁级 | H11: （鲁）JZ安许证字（2012）021437 | I11: 东营理想之城 | J11: 劳务分包 | K11: 张强 | L11: 18253231290 | M11: 刘玉莹 | N11: A | O11: 齐鲁建设
A12: 10 | B12: 山东省保安器材有限公司 | C12: 济南市泺源大街229号 | D12: 尹进才 | E12: 2018 | F12: 91370103163045078J | G12: 消防设施工程专业承包壹级、电子与智能化专业承包二级 D237067940 | H12: （鲁）JZ安许证字[2006]010692-03 | I12: 济青高速公路改扩建工程房建二期工程消防工程劳务分包合同 | J12: 消防工程 | K12: 徐彬 | L12: 15621531119 | M12: 王立扬 | N12: A | O12: 齐鲁建设
A13: 11 | B13: 山东福源设备安装有限公司 | C13: 济南经济开发区华德路620号 | D13: 张士森 | E13: 26180 | F13: 913701137306666130 | G13: 建筑工程施工总承包贰级、石油化工工程施工总承包贰级、市政公用工程施工总承包贰级，D237012184 | H13: （鲁）JZ安许证字{2014}011401 | I13: 济青高速改扩建房建二期第二标段 | J13: 淄博服务区加油工艺工程 | K13: 曹露 | L13: 13854612978 | M13: 王立扬 | N13: A | O13: 齐鲁建设
A14: 12 | B14: 山东群雄建设工程有限公司 | C14: 济南市历城区 | D14: 刘芳芳 | E14: 10000 | F14: 913700005804028494 | G14: 施工劳务不分等级D237109281 | H14: （鲁）JZ安许证字（2013）011335-02 | I14: 京台北线房建项目 | J14: 土建劳务 | K14: 吕涛 | L14: 13869215677 | M14: 周鹏 | N14: B | O14: 路桥集团
C15: 济南市历城区辛祝路17号好兰朵大厦626室 | D15: 刘芳芳 | E15: 10000 | F15: 913700005804028494 | G15: 防水防腐保温工程及建筑装修装饰工程D237109281 | H15: （鲁）JZ安许证字 【2013】011335-02 | I15: 山东省路桥集团有限公司办公楼提升改造（装饰装修）工程 | J15: 山东省路桥集团有限公司办公楼提升改造（装修装饰）工程（四标段） | K15: 庄庆师 | L15: 18363077007 | M15: 蔡中宽 | N15: B | O15: 齐鲁建设
A16: 13 | B16: 东营中成晟豪建筑工程有限公司 | C16: 山东省东营市垦利区新兴路67-006号B幢23号 | D16: 赵丽丽 | E16: 1000 | F16: 91370521MA3CGJCRX6 | G16: D337144040 市政公用工程施工总承包叁级 | H16: （鲁）JZ安许证字（2017）050132 | I16: 东营理想之城 | J16: 劳务分包 | K16: 赵丽丽 | L16: 18505460080 | M16: 刘玉莹 | N16: B | O16: 齐鲁建设
A17: 14 | B17: 山东昌发路桥工程有限公司 | C17: 山东日照市东港区石臼街道北京路南段黄海一路东方商厦3B17 | D17: 吴兆刚 | E17: 1000 | F17: 91371102MA3NDP2X55 | G17: D337185290建筑业建筑工程施工总承包三级 、钢结构工程专业承包三级 | H17: （鲁）JZ安许证字 〔2018〕180290-01 | I17: 鲁南高铁LQTJ-3标项目 | J17: 雨棚柱基础、站台墙、高速排水槽、泗水南单身宿舍主体、污水处理站2座、围墙、警务区主体、陶瓷地砖、天棚面层、玻璃推拉窗、塑钢平开门、钢质防火门、防火窗、钢质防盗门、二站台连廊、旅客地道干挂石材、旅客站台、自行车棚、地面硬化等施工内容。 | K17: 吴兆刚 | L17: 15853983010 | M17: 何华 | N17: B | O17: 路桥集团
A18: 15 | B18: 山东亚盟建筑安装工程有限公司 | C18: 山东省枣庄市山亭区府前东路翼龙紫锦花园19号 | D18: 杨乃祥 | E18: 5000 | F18: 91370406MA3M6Q1M29 | G18: D337181696 | H18: （鲁）JZ安许证字[2019]040549 | I18: 济青高速公路改扩建工程 | J18: 加油站罩棚加工定做 | K18: 杨乃祥 | L18: 18866699666 | M18: 景明义 | N18: B | O18: 路桥集团
A19: 16 | B19: 宁津县汇鑫建筑安装有限责任公司 | C19: 山东省德州市宁津县宁城街道办事处帽杨村 | D19: 宋秀田 | E19: 1100 | F19: 913714220906682572 | G19: 建筑工程施工总承包叁级 | H19: （鲁）JZ安许证字{2018}130563-01 | I19: 青州项目 | J19: 多层主体、二次结构、安装 | K19: 崔志军 | L19: 15336463228 | M19: 袁广彬 | N19: B | O19: 齐鲁建设
A20: 17 | B20: 山东建丰路桥工程有限公司 | C20: 山东省临沂市兰山区金雀山路与羲之路交汇南200米路西113号沿街 | D20: 顾薇薇 | E20: 2000 | F20: 91371302MA3F31ND8B | G20: C1004037130214可承担各类施工劳务作业 | H20: 鲁）JZ安许证字〔2019〕141096-02 | I20: 鲁南高铁LQTJ-3标项目 | J20: 雨棚柱基础、站台墙、高速排水槽、泗水南单身宿舍、污水处理站2座、围墙、警务区、陶瓷地砖、天棚面层、玻璃推拉窗、塑钢平开门、钢质防火门、防火窗、钢质防盗门、二站台连廊、旅客地道干挂石材、旅客站台、自行车棚、地面硬化等施工内容。 | K20: 王伟 | L20: 13375398759 | M20: 何华 | N20: B | O20: 路桥集团
A21: 18 | B21: 山东龙泰消防工程有限公司 | C21: 山东省威海市经济技术开发区上海路-101号-A1009 | D21: 袁杰 | E21: 1000 | F21: 91371000663504349Y | G21: 消防设施工程专业承包贰级 | H21: （鲁）JZ安许证字 【2014】100612-02 | I21: 济青高速公路改扩建工程 | J21: 防火涂装施工 | K21: 袁杰 | L21: 18678817597 | M21: 景明义 | N21: B | O21: 路桥集团
A22: 19 | B22: 信邦建设集团有限公司 | C22: 山东省泰安市肥城市龙山路甲069号 | D22: 苗庆明 | E22: 15000 | F22: 913709831666085502 | G22: 市政公用工程施工总承包贰级D237063652 | H22: （鲁）JZ安许证字 〔2007〕090376 | I22: 济青高速改扩建二期工程第二标段济南东服务区工程 | J22: 济南东服务区加油站加油工艺工程，完成施工图纸及清单范围内的全部工程内容 | K22: 吴广 | L22: 15254182777 | M22: 李晓群 | N22: B | O22: 齐鲁建设
A23: 21 | B23: 济南英雄山建筑劳务有限公司 | C23: 济南市市中区英雄山路232号 | D23: 郭登峰 | E23: 120 | F23: 913701037628624912 | G23: 模板脚手架专业承包不分等级 | H23: （鲁）JZ安许证字{2015}010313-01 | I23: 青州项目 | J23: 合院主体及二次结构、装饰 | K23: 郝志锋 | L23: 13739157822 | M23: 袁广彬 | N23: B | O23: 齐鲁建设
A24: 22 | B24: 潍坊华居建筑安装有限公司 | C24: 潍坊市奎文区虞河路588号（刘家庄村） | D24: 郑法明 | E24: 2009 | F24: 91370705726691904M | G24: 建筑工程施工总承包贰级/D237048226 | H24: （鲁）JZ安许证字 【2018】071056-01 | I24: 新泰服务区项目部 | J24: 土建 | K24: 王秀昌 | L24: 15725763777 | M24: 秦宝 | N24: B | O24: 路桥集团
C25: 奎文区虞河路588号 | D25: 郑法明 | E25: 2009 | F25: 91370705726691904M | G25: 建筑工程施工总承包二级D237048226 | H25: 鲁JZ安许证（2018）071056 | I25: 济青高速邹平东收费站工程 | J25: 邹平东收费站 | K25: 王秀昌 | L25: 13905362262 | M25: 王立扬 | N25: B | O25: 齐鲁建设
A26: 23 | B26: 江苏友田环保科技有限公司 | C26: 宜兴市宜城街道巷头东路62号 | D26: 程强 | E26: 5000 | F26: 91320282MA1W4P7TX6 | G26: 环保工程专业承包叁级 D332196901 | H26: （苏)JZ安许证字[2018]002990 | I26: 新泰服务区项目部 | J26: 污水处理 | K26: 余萍 | L26: 13301531718 | M26: 秦宝 | N26: B | O26: 路桥集团
A27: 24 | B27: 济宁良桐水利工程有限公司 | C27: 济宁市古槐路45号 | D27: 邵英 | E27: 1018 | F27: 91370811595205194T | G27: 建筑工程施工总承包叁级，水利水电工程施工总承包叁级 D337168482 | H27: （鲁）JZ安许证字 〔2019〕081186 | I27: 新泰服务区项目部 | J27: 水电安装 | K27: 陆文凯 | L27: 18953771990 | M27: 秦宝 | N27: B | O27: 路桥集团
A28: 25 | B28: 济南索灿建筑工程有限公司 | C28: 山东省济南市章丘区曹范街道大驼沟村大街66号 | D28: 李勇 | E28: 300 | F28: 91370181MA3MWGTB5T | G28: 钢结构工程专业承包三级D337216489 | H28: （鲁）JZ安许证字（2019）190604-01 | I28: 济青高速公路改扩建工程 | J28: 钢结构安装 | K28: 李勇 | L28: 13156415577 | M28: 景明义 | N28: B | O28: 路桥集团
A29: 26 | B29: 济宁鑫泰重工工程有限公司 | C29: 山东省济宁高新区王因镇王因村 | D29: 张印珠 | E29: 6000 | F29: 86311134-7 | G29: 钢结构工程专业承包一级D137080673 | H29: （鲁）JZ安许证字 〔2016〕080274 | I29: 长深高速高青至广饶段房建工程 | J29: 广饶收费站、广饶服务区工程钢结构加工 | K29: 张印珠 | L29: 13853742229 | M29: 景明义 | N29: B | O29: 路桥集团
A30: 27 | B30: 山东鑫昊建安工程有限公司 | C30: 东营市东营区济宁路25号 | D30: 赵银亭 | E30: 2000 | F30: 913705006731755427 | G30: 资质证书编号：D337040937 建筑工程施工总承包叁级 | H30: （鲁）JZ安许证字（2019）050223 | I30: 东营理想之城 | J30: 劳务分包 | K30: 赵宁 | L30: 13789836011 | M30: 刘玉莹 | N30: B | O30: 齐鲁建设
A31: 28 | B31: 莒县宏欣建筑工程有限公司 | C31: 山东省日照市莒县城区潍徐路西侧115号(北关社区北关村) | D31: 周恒全 | E31: 4000 | F31: 91371122777447477T | G31: 建筑工程施工总承包叁级 | H31: （鲁）JZ安许证字{2019}110241-02 | I31: 青州项目 | J31: 合院安装、内墙抹灰 多层内墙抹灰 | K31: 周绪升 | L31: 18663376766 | M31: 袁广彬 | N31: B | O31: 齐鲁建设
C32: 山东省日照市莒县城区潍徐路西侧115号 | D32: 周恒全 | E32: 4000 | F32: 913711227774474771 | G32: 建筑工程施工总承包三级D337104770 | H32: 鲁JZ安许证字 （2019）110241-02 | I32: 京台北线房建项目 | J32: 土建劳务 | K32: 周绪升 | L32: 18663376766 | M32: 周鹏 | N32: B | O32: 路桥集团
A33: 29 | B33: 山东汇科工程检测有限公司 | C33: 济南市天桥区蓝翔路15号时代总部基地三区12号 | D33: 刘庆峰 | E33: 1000 | F33: 91370105782327437P | G33: 鲁建检字第01030号 | H33: 辐射安全许可证鲁环辐证【01021】 | I33: 长深高速高青至广饶段房建工程 | J33: 广饶西收费站、广饶服务区加油站检测 | K33: 赵建磊 翟海波 | L33: 15964530520 | M33: 景明义 | N33: B | O33: 路桥集团
A34: 30 | B34: 山东鹏发建设工程有限公司 | C34: 莱城区汶源西大街 | D34: 陈丽贞 | E34: 2100 | F34: 913712007637007XG | G34: D337008235 | H34: （鲁）JZ安许证字{2010}120227 | I34: 山东省路桥集团有限公司黄岛西海岸物流园项目 | J34: D2仓库钢结构安装、围护系统安装等施工 | K34: 任纬峰 | L34: 18963425222 | M34: 景明义 | N34: B | O34: 路桥集团
A35: 31 | B35: 乐山泓胜建筑工程有限公司 | C35: 乐山市市中区碧山路2688号1幢9层 | D35: 汪祺 | E35: 4068 | F35: 9151 11003234179866 | G35: D251655316 建筑工程施工总承包二级 地基基础工程专业承包二级 起重设备安装工程专业承包二级 消防设施工程专业承包二级 防水防腐保温工程专业承包二级 建筑装修装饰工程专业承包二级 古建筑工程专业承包二级 特种工程专业承包不分等级 D351483511 公路工程施工总承包三级 市政公用工程施工总承包三级 钢结构工程专业承包三级 施工劳务不分等级 | H35: （川）JZ安许证字 【2016】OL1020 | I35: 2019年养护专项工程（乐宜高速） | J35: 内墙面处理、外墙面处理、屋面处理、卫生间处理、墙面泛碱处理 | K35: 张明昌 | L35: 18784590086 | M35: 高超 | N35: B | O35: 鲁桥建设
A36: 32 | B36: 山东壹同建设有限公司 | C36: 山东省东营市东营区天目山路万象城商业广场C04 | D36: 陈国友 | E36: 10000 | F36: 91370502MA3CJNWC1Q | G36: 资质证书编号：D337148678 建筑工程施工总承包叁级 | H36: （鲁）JZ安许证字（2017）050490 | I36: 东营理想之城 | J36: 劳务分包 | K36: 赵志勇 | L36: 18354686660 | M36: 刘玉莹 | N36: B | O36: 齐鲁建设
A37: 33 | B37: 四川金贸建筑劳务有限公司 | C37: 乐山市市中区清风街243、245号 | D37: 李佐 | E37: 27888 | F37: 91511100077688798Ｍ | G37: 模板脚手架专业承包不分等级 施工劳务不分等级 D351555370 | H37: （川）JZ安许证字 【2014】000598 | I37: 2019年养护专项工程（乐自高速） | J37: 内墙面处理、外墙面处理、屋面处理、卫生间处理、墙面泛碱处理 | K37: 张明昌 | L37: 18784590086 | M37: 高超 | N37: B | O37: 鲁桥建设
A38: 34 | B38: 山东金达源建工有限公司 | C38: 东营区北一路726号 | D38: 高丽芳 | E38: 15800 | F38: 91370502753507033K | G38: D337017501 地基基础工程专业专业承包叁级 | H38: （鲁）JZ安许证字（2005）050182 | I38: 东营理想之城 | J38: 劳务分包 | K38: 房茂辉 | L38: 18954668789 | M38: 刘玉莹 | N38: B | O38: 齐鲁建设
A39: 35 | B39: 山东亘晟电力工程有限公司 | C39: 菏泽市开发区中华路金鼎凤凰城E栋1109室 | D39: 杨功浩 | E39: 1200 | F39: 91370102MA3CE4YC5T | G39: 电力工程施工总承包叁级证书编号：D337151484 | H39: （鲁）JZ安许证字 【2017】I70520-01 | I39: 31009工程 | J39: 建筑工程施工 | K39: 王会彬 | L39: 18369010112 | M39: 林森林 | N39: B | O39: 路桥集团
A40: 36 | B40: 山东宇青建筑发展有限公司 | C40: 济南市市中区马鞍山路14号 | D40: 冯庆金 | E40: 16700 | F40: 91370103725410189K | G40: 建筑工程施工总承包贰级 | H40: （鲁）JZ安许证字 【2014】010081-01 | I40: 临清市永青小区项目 | J40: 土方工程 | K40: 张士银 | L40: 15662715512 | M40: 高瑞强 | N40: B | O40: 路桥集团
A41: 37 | B41: 济南双箭工业设备安装有限公司 | C41: 济南市长清区双泉乡工业区 | D41: 李昌明 | E41: 1519 | F41: 913701137445251097 | G41: 建筑装修装工程专业承包贰级；建筑机电安装工程专业承包贰级D237014040 | H41: （鲁）JZ安许证字（2015）010333 | I41: 高广项目 | J41: 水电安装 | K41: 王宪波 | L41: 15098715056 | M41: 房军 | N41: B | O41: 路桥集团
A42: 38 | B42: 东营永辉建安有限公司 | C42: 利津县利津镇东王村 | D42: 王志永 | E42: 1000 | F42: 9137052278611210XP | G42: 建筑工程施工总承包叁级、市政公用工程施工总承包叁级D337051379 | H42: （鲁）JZ安许证字（2007）050202-02 | I42: 高广项目 | J42: 绿化工程及室外配套工程 | K42: 张路通 | L42: 13655464222 | M42: 房军 | N42: B | O42: 路桥集团
A43: 39 | B43: 潍坊市第四建筑工程公司 | C43: 坊子区公安街88号 | D43: 刘国柱 | E43: 2016 | F43: 913707041656000713 | G43: 建筑工程施工总承包二级D237073462 | H43: （鲁）JZ安许证字 【2005】070015-01 | I43: 杭州湾跨海大桥绿色养护中心拌合站封装工程 | J43: 封装劳务施工 | K43: 李从文 | L43: 13964698719 | M43: 景明义 | N43: B | O43: 路桥集团
A44: 40 | B44: 东营恒业建设工程有限公司 | C44: 东营市府前大街金融港A座618室 | D44: 王新利 | E44: 5000 | F44: 91370500698057139L | G44: D237090536 地基基础工程专业承包壹级 | H44: （鲁）JZ安许证字（2012）050301 | I44: 东营理想之城 | J44: 劳务分包 | K44: 孙晓庆 | L44: 18754660508 | M44: 刘玉莹 | N44: B | O44: 齐鲁建设
A45: 41 | B45: 山东滨州金建工程建设有限公司 | C45: 滨州市滨州区黄河八路383-8号大祥-金廷公馆10号楼1-2011号 | D45: 徐春建 | E45: 5500 | F45: 91371602663529677C | G45: D237055030 建筑装修装饰工程专业承包贰级 | H45: （鲁）JZ安许证字（2018）160295 | I45: 东营理想之城 | J45: 劳务分包 | K45: 刘爱军 | L45: 13356640000 | M45: 刘玉莹 | N45: B | O45: 齐鲁建设
A46: 42 | B46: 中能华辰(北京）建设工程有限公司 | C46: 北京市门头沟区 | D46: 谢沈阳 | E46: 6000 | F46: 91110109MA00B4WD80 | G46: 施工总承包叁级D311597531钢结构工程专业承包叁级 | H46: (京）JZ安许证字 【2017】D13757-01 | I46: 临沂项目 | J46: 房建、主体安装、钢结构安装 | K46: 张海峰 | L46: 15953155827 | M46: 栾志民 | N46: B | O46: 齐鲁建设
A47: 43 | B47: 山东旭洋建筑科技有限公司 | C47: 临沂是兰山区红旗路59号 | D47: 刘方春 | E47: 1056 | F47: 91371300168257336Y | G47: 消防设施工程专业承包壹级 D237105477 | H47: (鲁）JZ安许证字 【2015】010862-02 | I47: 临沂项目 | J47: 消防安装 | K47: 杨超 | L47: 15192930170 | M47: 栾志民 | N47: B | O47: 齐鲁建设
A48: 44 | B48: 山东华尔泰建筑工程有限公司 | C48: 山东省济南市高新区新泺大街三庆齐盛广场5号楼 | D48: 王庆军 | E48: 4017 | F48: 91370100774176050R | G48: 消防设施工程专业承包壹级 D237067958 | H48: (鲁）JZ安许证字 【2006】140257-02 | I48: 临沂项目 | J48: 消防安装 | K48: 宋来瑞 | L48: 18253106836 | M48: 栾志民 | N48: B | O48: 齐鲁建设
A49: 45 | B49: 山东天成钢结构有限公司 | C49: 临沂经济技术开发区 | D49: 李建明 | E49: 7000 | F49: 91371300559937689J | G49: 钢结构工程专业承包壹级，建筑工程施工总承包叁级D37120276;D337065451 | H49: (鲁）JZ安许证字 【2016】140686-01 | I49: 临沂项目 | J49: 钢结构安装、维护 | K49: 王楠 | L49: 18853917303 | M49: 栾志民 | N49: B | O49: 齐鲁建设
A50: 46 | B50: 山东华泰钢结构工程有限公司 | C50: 临沂高新区 | D50: 侯庆波 | E50: 10560 | F50: 913713007563708539 | G50: 钢结构工程专业承包壹级D137093295 | H50: (鲁）JZ安许证字 【2016】140459-01 | I50: 临沂项目 | J50: 钢结构安装、维护 | K50: 季英文 | L50: 1356392855 | M50: 栾志民 | N50: B | O50: 齐鲁建设
A51: 47 | B51: 北京恒业源建筑工程有限公司 | C51: 北京市密云区鼓楼东大街3号山水大厦4层418室-27 | D51: 陈晓峰 | E51: 2000 | F51: 911102287754732336 | G51: 建筑工程施工总承包贰级，建筑装修装饰工程专业承包贰级 D211280623 | H51: （京）JZ安许证字[2018]133217 | I51: 华硕天韵 | J51: 1#住宅楼主体结构、二次结构、防水等 | K51: 姜旭光 | L51: 18560026273 | M51: 徐康 | N51: B | O51: 齐鲁建设
A52: 48 | B52: 山东山消智能工程有限公司 | C52: 济南市历城区花园路186号龙源居一单元802室 | D52: 李俊岩 | E52: 2000 | F52: 9137011205487968X9 | G52: 消防设施工程专业承包贰级 D237000152 | H52: （鲁）JZ安许证字 〔2015〕011506 | I52: 济青高速改扩建二期工程第二标段济南东服务区工程 | J52: 济南东服务区、济南东服务区加油站内的消防工程，完成施工图纸及清单范围内的全部工程内容，包括相关试剂、检测、资料整理、验收、缺陷修复等服务 | K52: 柏东晖 | L52: 18615608919 | M52: 李晓群 | N52: B | O52: 齐鲁建设
A53: 49 | B53: 雷亿建工集团有限公司 | C53: 菏泽市牡丹区黄罡镇工业园188号 | D53: 池海雷 | E53: 10088 | F53: 913717007871789799 | G53: 资质证书编号：D237059634 防水防腐保温工程专业承包贰级 | H53: （鲁）JZ安许证字（2011）17-0019 | I53: 东营理想之城 | J53: 劳务分包 | K53: 崔以忠 | L53: 15098893997 | M53: 刘玉莹 | N53: B | O53: 齐鲁建设
A54: 50 | B54: 中能华辰（北京）建设工程有限公司 | C54: 北京市门头沟区雁翅镇高芹路1号院YC-0012 | D54: 谢沈阳 | E54: 6000 | F54: 91110109MA00B4WD80 | G54: 模板脚手架专业承包不分等级、钢结构工程专业承包叁级、特种工程（结构补强）专业承包不分等级、施工劳务不分等级、市政公用工程施工总承包叁级、机电工程施工总承包叁级、建筑工程施工总承包叁级、环保工程专业承包叁级、低级基础工程专业承包叁级D311597531、防水防腐保温工程专业承包贰级、建筑装修装饰工程专业承包贰级、建筑幕墙工程专业承包贰级D211596164 | H54: （京）JZ安许证字（2017）013757 | I54: 高广项目 | J54: 消防管道安装 | K54: 朱孝国 | L54: 13701292805 | M54: 房军 | N54: B | O54: 路桥集团
A55: 51 | B55: 山东鼎智汇科新能源有限公司 | C55: 山东省济南市历城区仲宫商业街27-2号楼 | D55: 冯涛 | E55: 6700 | F55: 91370112076150195H | G55: 建筑工程施工总承包叁级 | H55: （鲁）JZ安许证字 【2018】011976-01 | I55: 临清市永青小区项目 | J55: 9#、10#楼土建工程劳务 | K55: 杨仁国 | L55: 18263833886 | M55: 高瑞强 | N55: B | O55: 路桥集团
A56: 52 | B56: 山东千华装饰有限公司 | C56: 山东省济南市历下区经十路15982号第一大道18楼1802室 | D56: 王善学 | E56: 3000 | F56: 9137010086304317xy | G56: 建筑装修装饰工程专业承包壹级 | H56: （鲁）JZ安许证字 【2015】010429-02 | I56: 泰东高速房建项目 | J56: 装修提升 | K56: 高迎昌 | L56: 15665850086 | M56: 秦宝 | N56: B | O56: 路桥集团
C57: 山东省济南市历下区经十路15982号第一大道18楼1802室 | D57: 王善学 | E57: 3000 | F57: 9137010086304317XY | G57: 建筑装修装饰工程专业承包壹级、建筑幕墙工程专业承包贰级D237044446 | H57: （鲁）JZ安许证字（2016）100432-02 | I57: 高广项目 | J57: 装修工程 | K57: 王善学 | L57: 13188878278 | M57: 房军 | N57: B | O57: 路桥集团
A58: 53 | B58: 恒佳远建设发展有限公司 | C58: 山东省东营市东营区黄河路690号东营宝龙广场11号 | D58: 赵永亮 | E58: 5000 | F58: 913705027903859285 | G58: 防水防腐保温工程专业承包贰级、建筑装修装饰工程专业承包贰级D237134217、建筑工程施工总承包叁级、钢结构工程专业承包叁级D337134214 | H58: （鲁）JZ安许证字（2017）050313-01 | I58: 高广项目 | J58: 水稳摊铺 | K58: 齐德元 | L58: 18678679136 | M58: 房军 | N58: B | O58: 路桥集团
A59: 54 | B59: 安徽上华建筑装饰工程有限公司 | C59: 灵璧县灵城镇奇石大市场11#30室 | D59: 李军秀 | E59: 2000 | F59: 91341323MA2MU8RT57 | G59: 施工劳务不分等级D334117993 | H59: （皖）JZ安许证字（2018）008287-2-1 | I59: 高广项目 | J59: 混凝土路面工程 | K59: 程冠峰 | L59: 15853740550 | M59: 房军 | N59: B | O59: 路桥集团
A60: 55 | B60: 兴润建设集团有限公司 | C60: 山东省泰安市肥城市祥山大街216号 | D60: 李云岱 | E60: 30000 | F60: 91370983166601033A | G60: 建筑工程施工总承包壹级，D137056673 | H60: （鲁）JZ安许证字[2005]090002-01 | I60: 物流园 | J60: 装饰装修工程 | K60: 刘剑波 | L60: 13589365611 | M60: 周建国 | N60: B | O60: 路桥集团
C61: 山东省肥城市祥山大街216号 | D61: 李云岱 | E61: 30000 | F61: 91370983166601033A | G61: 消防设施工程专业承包壹级，石油化工工程施工总承包贰级，电力工程施工总承包贰级 D237063610 | H61: (鲁)JZ安许证字[2005]090002-01 | I61: 新泰服务区项目部 | J61: 消防 | K61: 陈自彬 | L61: 13388538119 | M61: 秦宝 | N61: B | O61: 路桥集团
A62: 56 | B62: 山东万泰基础工程有限公司 | C62: 菏泽市开发区长江路999号 | D62: 丁万常 | E62: 1810 | F62: 913717027892827029 | G62: 地基基础工程专业承包壹级 | H62: （鲁）JZ安许证字 【2014】170158-01 | I62: 临清市永青小区项目 | J62: 边坡支护 | K62: 逯丽娜 | L62: 18105402477 | M62: 高瑞强 | N62: B | O62: 路桥集团
A63: 57 | B63: 威海市金象建筑配套工程有限公司 | C63: 山东省威海市文登区西壕街15-1号 | D63: 黄金刚 | E63: 800 | F63: 91371081666704004C | G63: 建筑装饰装修工程专业承包贰级D237007824 | H63: （鲁）JZ安许证字（2015）010429-02 | I63: 高广项目 | J63: 装修工程 | K63: 于军伟 | L63: 13863186720 | M63: 房军 | N63: B | O63: 路桥集团
A64: 58 | B64: 山东军辉建设集团有限公司 | C64: 山东省泰安市肥城市仪阳工业园区 | D64: 李军英 | E64: 50000 | F64: 91370983766663684M | G64: 石油化工工程施工总承包壹级、机电工程施工总承包壹级D137056745 | H64: （鲁）JZ安许证字（2005）090095 | I64: 高广项目 | J64: 通风空调专业工程 | K64: 卢海峰 | L64: 15265673222 | M64: 房军 | N64: B | O64: 路桥集团
A65: 59 | B65: 青岛宏源钢结构集团有限公司 | C65: 青岛即墨市北部工业园龙泉河7路1号 | D65: 王建光 | E65: 1200 | F65: 91370282724044199T | G65: D337079121 | H65: (鲁)JZ安许证字[2013]020759 | I65: 取消省界收费站ETC门架施工项目 | J65: 高速ETC门架钢结构加工 | K65: 王建光 | L65: 18863978999 | M65: 景明义 | N65: B | O65: 路桥集团
A66: 60 | B66: 东营市广建建设工程有限公司 | C66: 山东省东营市广饶县大王镇刘集前村 | D66: 姜峰 | E66: 1000 | F66: 913705230851049249 | G66: D337088211 市政公用工程施工总承包叁级 | H66: （鲁）JZ安许证字（2015）050435 | I66: 东营理想之城 | J66: 劳务分包 | K66: 魏荣超 | L66: 13780750391 | M66: 刘玉莹 | N66: B | O66: 齐鲁建设
A67: 61 | B67: 江苏惠友环保科技有限公司 | C67: 宜兴市宜城街道港头东路62号 | D67: 杜海龙 | E67: 6000 | F67: 913202827186866970 | G67: 环保工程专业承包贰级 | H67: （苏)JZ安许证字[2010]022009 | I67: 泰东高速房建项目 | J67: 污水处理 | K67: 余萍 | L67: 13301531718 | M67: 秦宝 | N67: B | O67: 路桥集团
A68: 62 | B68: 南京消防器材股份有限公司 | C68: 南京市江宁区竹山路 | D68: 王以丹 | E68: 16000 | F68: 91320100742379363Q | G68: 消防设施工程专业承包壹级，电子与智能化工程专业承包贰级，D232070429 | H68: （苏）JZ安许证字[2005]010077-5 | I68: 物流园 | J68: 消防工程 | K68: 曹文明 | L68: 13573835228 | M68: 周建国 | N68: B | O68: 路桥集团
A69: 63 | B69: 青岛益群宏业电力工程有限公司 | C69: 山东省青岛市黄岛区长江路西端王家港村 | D69: 刘荣章 | E69: 6000 | F69: 9137021173725243XU | G69: 输变电工程专业承包叁级，D337100214 | H69: （鲁）JZ安许证字[2011]180885-02 | I69: 物流园 | J69: 配电室安装 | K69: 管辉 | L69: 13210008258 | M69: 周建国 | N69: B | O69: 路桥集团
A70: 64 | B70: 济宁市银瑞建安劳务有限公司 | C70: 山东省济宁市任城区金字路百丰大厦1209室 | D70: 杨存宏 | E70: 1000 | F70: 91370800494074770Q | G70: 砌筑作业分包劳务分包壹级 | H70: （鲁）JZ安许证字 【2016】080810 | I70: 京台料棚工程 | J70: 钢结构工程材料棚安装 | K70: 汪银峰 | L70: 13205377477 | M70: 景明义 | N70: B | O70: 路桥集团
A71: 65 | B71: 山东安盛路桥工程有限公司 | C71: 淄博市高新区四宝山街道向阳一路24-1号 | D71: 徐清红 | E71: 1000 | F71: 9137030305238187XH | G71: 施工劳务不分等级 | H71: （鲁）JZ安许证字 【2018】030739-01 | I71: 潍坊港项目 | J71: 道路堆场建筑、卡口大门建筑、装饰 | K71: 徐清红 | L71: 18805337881 | M71: 庄宇 | N71: B | O71: 齐鲁建设
A72: 66 | B72: 山东奥翔建设工程有限责任公司 | C72: 山东省东营市东营区府前大街55号金融港A座6楼612室 | D72: 盖瑞亭 | E72: 5000 | F72: 91370500660171518 | G72: 建筑装修装饰工程专业承包贰级，环保工程专业承包贰级，建筑工程施工总承包三级，水利水电工程施工总承包三级，市政公用工程施工总承包三级，城市及道路照明工程专业承包三级 | H72: （鲁）JZ安许证字 〔2018〕050585 | I72: 潍坊港项目 | J72: 强夯、实心砖墙、条形基础垫层、模板制作与安装、二次灌浆 | K72: 许玉波 | L72: 13255462777 | M72: 庄宇 | N72: B | O72: 齐鲁建设
A73: 67 | B73: 安丘兴龙建筑安装有限公司 | C73: 安丘市兴安街道商场路东首永盛锦园 | D73: 李卫来 | E73: 10600 | F73: 91370784679217571Y | G73: 建筑工程施工总承包贰级 | H73: （鲁）JZ安许证字 〔2014〕070610 | I73: 鲁中产业园项目 | J73: 1#、2#仓库混凝土、钢筋、模板、混凝土耐磨地坪等相关劳务施工工作 | K73: 于斌 | L73: 18660605782 | M73: 庄宇 | N73: B | O73: 齐鲁建设
A74: 68 | B74: 青岛平建建筑安装股份有限公司 | C74: 青岛市平度市平古路号 | D74: 杜光磊 | E74: 15800 | F74: 91370200780390897Q | G74: 钢结构工程专业承包贰级 | H74: （鲁）JZ安许证字 〔2014〕021630 | I74: 鲁中产业园项目 | J74: 3#仓库施工图纸及清单范围内的全部钢结构工程内容 | K74: 崔永财 | L74: 13969632163 | M74: 庄宇 | N74: B | O74: 齐鲁建设
A75: 69 | B75: 山东安民建工发展集团有限公司 | C75: 山东省菏泽市巨野县青年路1222路 | D75: 王安民 | E75: 10666 | F75: 91371724786111000L | G75: 建筑施工总承包壹级D137107600 | H75: 【鲁】JZ安许证字[2006]170137-01 | I75: 临沂项目 | J75: 房建、主体安装 | K75: 田素民 | L75: 18366077989 | M75: 栾志民 | N75: B | O75: 齐鲁建设
A76: 70 | B76: 山东圣元建筑工程有限公司 | C76: 临沂市兰山区枣园镇 | D76: 范明顺 | E76: 2000 | F76: 9137130078230637X2 | G76: 建筑工程总承包贰级D237119509 | H76: (鲁）JZ安许证字 【2018】140267 | I76: 临沂项目 | J76: 房建、主体安装 | K76: 单洪伟 | L76: 15615516596 | M76: 栾志民 | N76: B | O76: 齐鲁建设
A77: 71 | B77: 深圳市顺洲建设集团有限公司 | C77: 深圳市福田区福田保税区槟榔道3号吉虹研发大楼B栋五楼A座 | D77: 李成 | E77: 8100 | F77: 914403001922256330 | G77: 建筑装修装饰工程专业承包壹级 D244011006 | H77: （粤）JZ安许证字[2019]021995延 | I77: 济青高速改扩建二期工程第二标段济南东服务区工程 | J77: 济南东服务区内装饰、外装饰工程，完成施工图纸及清单范围内的全部工程内容 | K77: 赵胜军 | L77: 15959717777 | M77: 李晓群 | N77: B | O77: 齐鲁建设
A78: 72 | B78: 青岛隆海集团市政工程有限公司 | C78: 山东省青岛市黄岛区世纪大道北珠山路东（世纪大道859号） | D78: 张宗荣 | E78: 520 | F78: 913702117180801268 | G78: 市政公用工程施工总承包叁级，D337112528 | H78: （鲁）JZ安许证字[2010]02-0065 | I78: 物流园 | J78: 水泥稳定碎石摊铺 | K78: 王永彬 | L78: 15908995558 | M78: 周建国 | N78: B | O78: 路桥集团
A79: 73 | B79: 江苏沭阳绿苑花卉景观工程有限公司 | C79: 沭阳县新河镇绿苑路西侧 | D79: 吕兆才 | E79: 10000 | F79: 91321322742458045A | G79: 市政公用工程施工总承包贰级，D232116276 | H79: （苏）JZ安许证字[2014]131001 | I79: 物流园 | J79: 绿化工程 | K79: 宋龙明 | L79: 13156260606 | M79: 周建国 | N79: B | O79: 路桥集团
A80: 74 | B80: 青岛城阳太阳城建筑有限公司 | C80: 山东青岛 | D80: 栾泽连 | E80: 2000 | F80: 91370214713774268U | G80: 建筑工程施工总承包叁级 | H80: 鲁JZ安许证字 （2017）020075-01 | I80: 青岛收费站项目 | J80: 零星改造工程 | K80: 牛传光 | L80: 13605320067 | M80: 宋德信 | N80: B | O80: 路桥集团
A81: 75 | B81: 深圳市中饰南方建设工程有限公司 | C81: 深圳市福田区福保街道福田保税区万利工业大厦三期西厂房三层 | D81: 陈洁新 | E81: 6180 | F81: 91440300279318701F | G81: 建筑幕墙工程专业承包壹级、建筑装饰装修工程专业承包壹级 | H81: （粤）JZ安许证字（2016）000526延 | I81: 山东省路桥集团有限公司办公楼提升改造（装饰装修）工程 | J81: 山东省路桥集团有限公司办公楼提升改造（装修装饰）工程（一标段） | K81: 李兵 | L81: 15964516589 | M81: 蔡中宽 | N81: B | O81: 齐鲁建设
A82: 76 | B82: 嘉林建设集团有限公司 | C82: 济南市历城区 | D82: 滕林行 | E82: 8000 | F82: 9137010026442645IR | G82: 建筑工程施工总承包叁级D337031267 | H82: (鲁）JZ安许证 【2013】010644-02 | I82: 临沂项目 | J82: 房建、主体安装 | K82: 马腾 | L82: 18266273567 | M82: 栾志民 | N82: B | O82: 齐鲁建设
A83: 77 | B83: 山东明远建设工程有限公司 | C83: 东营市东营区曹州路商贸城 | D83: 李国珍 | E83: 5000 | F83: 91370500552237890K | G83: D337070657 市政公用工程施工总承包叁级 | H83: （鲁）JZ安许证字（2015）050393 | I83: 东营理想之城 | J83: 劳务分包 | K83: 张其华 | L83: 13210337778 | M83: 刘玉莹 | N83: C | O83: 齐鲁建设
A84: 78 | B84: 山东省建设高压容器有限公司 | C84: 济南市工业北路东首25号 | D84: 贺志华 | E84: 7407 | F84: 91370112863120841N | G84: D337056127 钢结构工程专业承包叁级 | H84: （鲁）JZ安许证字（2007）010729 | I84: 东营理想之城 | J84: 劳务分包 | K84: 朱历秋 | L84: 15865286797 | M84: 刘玉莹 | N84: C | O84: 齐鲁建设
A85: 79 | B85: 山东云锦成智能科技有限公司 | C85: 山东省东营市东营区黄河路579号 | D85: 张慧 | E85: 5588 | F85: 913705006832104952 | G85: 资质证书编号：D237149181 电子与智能化工程专业承包贰级 | H85: （鲁）JZ安许证字（2018）050570 | I85: 东营理想之城 | J85: 劳务分包 | K85: 黄镇君 | L85: 15205467080 | M85: 刘玉莹 | N85: C | O85: 齐鲁建设
A86: 80 | B86: 东营市昌瑞建设工程有限责任公司 | C86: 山东省东营市东营区港粤路28号 | D86: 赵洪春 | E86: 1020.5 | F86: 91370502050943402E | G86: 资质证书编号：D237073500 地基基础工程专业承包贰级 | H86: （鲁）JZ安许证字（2014）050390 | I86: 东营理想之城 | J86: 劳务分包 | K86: 孙鹏程 | L86: 18764571777 | M86: 刘玉莹 | N86: C | O86: 齐鲁建设
A87: 81 | B87: 济南大明丰业建筑材料有限公司 | C87: 济南市历下区化纤厂路路西4号门头房 | D87: 张永刚 | E87: 1000 | F87: 91370102575554960N | G87: 资质证书编号：D237013992 防水防腐保温工程专业承包贰级 | H87: （鲁）JZ安许证字（2015）011583 | I87: 东营理想之城 | J87: 劳务分包 | K87: 刘虎 | L87: 13954107378 | M87: 刘玉莹 | N87: C | O87: 齐鲁建设
A88: 82 | B88: 东营宏远建安有限公司 | C88: 山东省东营市东营区济宁路25号 | D88: 周迎光 | E88: 2400 | F88: 91370502164809631R | G88: 资质证书编号：D337017699 市政公用工程施工总承包叁级 | H88: （鲁）JZ安许证字（2017）050316-01 | I88: 东营理想之城 | J88: 劳务分包 | K88: 吴垒垒 | L88: 15006527222 | M88: 刘玉莹 | N88: C | O88: 齐鲁建设
A89: 83 | B89: 山东华滨建工有限公司 | C89: 山东省东营市东营区庐山路1188号华泰国际金融中心1幢914室 | D89: 贾明杰 | E89: 18899 | F89: 91371600668085032D | G89: 资质证书编号：D137014279 建筑工程施工总承包壹级 | H89: （鲁）JZ安许证字（2018）050516-01 | I89: 东营理想之城 | J89: 劳务分包 | K89: 杨守党 | L89: 15666722666 | M89: 刘玉莹 | N89: C | O89: 齐鲁建设
A90: 84 | B90: 山东睿涵电力工程有限公司 | C90: 山东省济南市莱芜高新区香山路9号 | D90: 靳其东 | E90: 4600 | F90: 91371200679249944E | G90: 建筑工程施工总承包叁级、施工劳务不分等级、D337009665 | H90: (鲁）JZ安许证字 ﹝2013﹞120255-02 | I90: 京沪改扩建房建一标 | J90: 主体工程、装饰装修工程 | K90: 高杰 | L90: 15666779807 | M90: 陈超 | N90: C | O90: 齐鲁建设
A91: 85 | B91: 山东杰润建筑工程有限公司 | C91: 济南市历下区经十路15982号A座A单元16层03户 | D91: 王锐 | E91: 6000 | F91: 91370100MA3CLMA600 | G91: 1.建筑装修装饰工程专业承包贰级、建筑幕墙工程专业承包贰级，编号：D237207116 ；2.建筑工程施工总承包叁级、钢结构工程专业承包叁级，编号：D337207113 | H91: （鲁）JZ安许证字[2019]012631 | I91: 山东省路桥集团有限公司办公楼提升改造（装饰装修）工程 | J91: 山东省路桥集团有限公司办公楼提升改造（装饰装修）工程（二标段） | K91: 刘先春 | L91: 15315420385 | M91: 蔡中宽 | N91: C | O91: 齐鲁建设
A92: 86 | B92: 日照市第一建筑工程有限公司 | C92: 日照市东港区日照街道昭阳路9号 | D92: 郑培清 | E92: 4000 | F92: 91371100168370603Q | G92: 建筑工程施工总承包贰级D237052794 | H92: (鲁）JZ安许证字 【2005】110044-02 | I92: 临沂项目 | J92: 土建、安装 | K92: 李凤波 | L92: 13505395539 | M92: 栾志民 | N92: C | O92: 齐鲁建设
A93: 87 | B93: 宏福建设集团有限公司 | C93: 山东省济南市高新区舜华路359号联合财富广场1号楼23层2303室 | D93: 许杰敏 | E93: 6600 | F93: 913701000611709008 | G93: 建筑装修装饰工程专业承包贰级 D237134401 | H93: （鲁）JZ安许证字（2017）011779-02 | I93: 山东省路桥集团有限公司办公楼提升改造（装饰装修）工程施工 | J93: 山东省路桥集团有限公司办公楼提升改造（装修装饰）工程（三标段） | K93: 宋辉 | L93: 15965635180 | M93: 蔡中宽 | N93: C | O93: 齐鲁建设
A94: 88 | B94: 山东浦金建筑工程有限公司 | C94: 山东省东营市东营区庐山路1188号华泰国际金融中心1幢803室 | D94: 闫聚敏 | E94: 2000 | F94: 91370502MA3D88DB2M | G94: 资质证书编号：D237162845 建筑装修装饰工程专业承包贰级 | H94: （鲁）JZ安许证字（2019）050649 | I94: 东营理想之城 | J94: 劳务分包 | K94: 刘锋 | L94: 15552753666 | M94: 刘玉莹 | N94: C | O94: 齐鲁建设
A95: 89 | B95: 山东长洋空调工程有限公司 | C95: 山东省济南市市中区伟东新都二区4号楼1-12-2号 | D95: 韩广庆 | E95: 2000 | F95: 913701036648724188 | G95: 资质证书编号：D237102841 建筑机电安装工程专业承包贰级 | H95: （鲁）JZ安许证字（2011）011013 | I95: 东营理想之城 | J95: 劳务分包 | K95: 刘单 | L95: 15098700568 | M95: 刘玉莹 | N95: C | O95: 齐鲁建设
A96: 90 | B96: 山东波鑫建设集团有限公司 | C96: 山东省济南市天桥区无影山中路153号香港国际小区8号楼1-501 | D96: 刘昌波 | E96: 5800 | F96: 91370105582218690R | G96: 资质证书编号：D337024147 建筑工程施工总承包叁级 | H96: （鲁）JZ安许证字（2014）011498 | I96: 东营理想之城 | J96: 劳务分包 | K96: 杨玉叶 | L96: 13356673767 | M96: 刘玉莹 | N96: C | O96: 齐鲁建设
A97: 91 | B97: 山东燎原建设工程有限公司 | C97: 山东省东营市东营区运河路717号鑫雅庄园3号商务楼402室 | D97: 徐功陵 | E97: 10008 | F97: 91370500752655501E | G97: 资质证书编号：D237022784 防水防腐保温工程专业承包壹级 | H97: （鲁）JZ安许证字（2019）050652 | I97: 东营理想之城 | J97: 劳务分包 | K97: 徐铁柱 | L97: 15854605555 | M97: 刘玉莹 | N97: C | O97: 齐鲁建设
A98: 92 | B98: 山东科航建筑工程有限公司 | C98: 济南市历城区工业北路88号东都国际广场1-821 | D98: 缪培贤 | E98: 1000 | F98: 91370112MA3DHY3N92 | G98: 资质证书编号：D337169030 建筑机电安装工程专业承包叁级 | H98: （鲁）JZ安许证字（2018）012244 | I98: 东营理想之城 | J98: 专业分包 | K98: 邵政委 | L98: 15253189580 | M98: 刘玉莹 | N98: C | O98: 齐鲁建设
A99: 93 | B99: 山东冠利达建筑工程有限公司 | C99: 济南市历下区山师东路4号院综合楼4层405 | D99: 王永举 | E99: 5000 | F99: 91370102095290361D | G99: 建筑装修装饰工程专业承包壹级（D237143121) | H99: (鲁）JZ安许证字号[2017]011774-02 | I99: 山东省路桥集团有限公司办公楼提升改造（装饰装修） | J99: 山东省路桥集团有限公司办公楼提升改造（装修装饰）工程（五标段） | K99: 徐来荣 | L99: 15064018399 | M99: 蔡中宽 | N99: C | O99: 齐鲁建设
A100: 94 | B100: 济南佰舜泰建材有限公司 | C100: 山东省济南市市中区二环东路1333号依山郡三区11-2-101 | D100: 孙小雨 | E100: 3000 | F100: 91370103MA3P7CW0XU | G100: 建筑工程施工总承包叁级、机电工程施工总承包叁级、建筑机电安装工程专业承包叁级、建筑装修装饰工程专业承包贰级、D337065042、D337045202 | H100: (鲁）JZ安许证字 ﹝2009﹞090516-02 | I100: 京沪改扩建房建一标 | J100: 装饰装修工程、安装工程 | K100: 高杰 | L100: 15666779807 | M100: 陈超 | N100: C | O100: 齐鲁建设
A101: 95 | B101: 山东美达建工集团股份有限公司 | C101: 山东省济宁市任城区济嘉路北 | D101: 唐延阳 | E101: 10000 | F101: 91370800614093723B | G101: 建筑幕墙工程专业承包壹级、D237138627 | H101: JZ安许证字 （2005）080016-01 | I101: 济青高速改扩建二期工程第二标段济南东服务区工程 | J101: 济南东服务区玻璃幕墙工程，完成施工图及清单范围内的全部玻璃幕墙工程内容 | K101: 于海波 | L101: 18663836693 | M101: 李晓群 | N101: C | O101: 齐鲁建设
A102: 96 | B102: 滨州市昱佳成基础工程有限公司 | C102: 山东省滨州市滨城区黄河八路以北、渤海十二路以东锦绣城西沿街E-5商铺 | D102: 蔺江燕 | E102: 1000 | F102: 91371602MA3D881U1G | G102: 地基基础工程专业承包贰级 | H102: （鲁）JZ安许证字 【2017】160577-01 | I102: 临清市永青小区项目 | J102: 边坡支护 | K102: 王孟 | L102: 13306490567 | M102: 高瑞强 | N102: C | O102: 路桥集团
A103: 97 | B103: 山东正晨科技股份有限公司 | C103: 山东省济南市高新技术产业开发区新泺大街1166号奥盛大厦2号楼5层 | D103: 姚晨 | E103: 7636 | F103: 91370000786104644U | G103: 消防设施工程专业承包壹级、建筑装修装饰工程专业承包贰级、D237025012 | H103: (鲁）JZ安许证字 ﹝2016﹞011746-01 | I103: 京沪改扩建房建一标 | J103: 主体工程 | K103: 高杰 | L103: 15666779807 | M103: 陈超 | N103: C | O103: 齐鲁建设
A104: 98 | B104: 山东天昊工程项目管理有限公司 | C104: 东营区太行山路117号 | D104: 刘云霞 | E104: 5250 | F104: 91370502668055538G | G104: D337017841 市政公用工程施工总承包叁级 | H104: （鲁）JZ安许证字（2012）050289 | I104: 东营理想之城 | J104: 专业分包 | K104: 赵子飞 | L104: 13001561828 | M104: 刘玉莹 | N104: C | O104: 齐鲁建设
A105: 99 | B105: 山东广同基础工程有限公司 | C105: 山东省东营市东营区运河路673号1幢506室 | D105: 李士廷 | E105: 10000 | F105: 913705000730240703 | G105: D237073470 地基基础工程专业承包贰级 | H105: （鲁）JZ安许证字（2018）050372 | I105: 东营理想之城 | J105: 劳务分包 | K105: 朱昌朋 | L105: 15698086253 | M105: 刘玉莹 | N105: C | O105: 齐鲁建设
A106: 100 | B106: 山东申德空调集团有限公司 | C106: 山东省德州市武城县鲁权屯镇开发区 | D106: 张传胜 | E106: 8000 | F106: 91371428493964480C | G106: 资质证书编号：D337023611 建筑机电安装工程专业承包叁级 | H106: （鲁）JZ安许证字（2015）130600 | I106: 东营理想之城 | J106: 专业分包 | K106: 吴玉坤 | L106: 15615465767 | M106: 刘玉莹 | N106: C | O106: 齐鲁建设
A107: 101 | B107: 山东炜煜建筑工程有限公司 | C107: 山东省济南市历城区郭店街道相公庄村吉祥苑30号楼4单元302室 | D107: 马庆峰 | E107: 1000 | F107: 91370112MA3C6EFMX3 | G107: D237069562施工劳务不分等级 | H107: （鲁）JZ安许证字 〔2020〕013185 | I107: 济青高速改扩建二期工程第二标段济南东服务区工程 | J107: 济南东服务区北区工程，完成施工图纸及清单范围内的全部工程内容 | K107: 刘文 | L107: 13065021707 | M107: 李晓群 | N107: D | O107: 齐鲁建设

Sheet 其他劳务单位名册
A1: 山东高速路桥集团股份有限公司2019~20年劳务单位信用评价统计汇总表
A2: 序号 | B2: 劳务单位名称 | C2: 注册地址 | D2: 法定代表人 | E2: 注册资本（万元） | F2: 营业执照（统一社会信用代码） | G2: 资质类别、等级，编号 | H2: 安全许可证编号 | I2: 所属项目 | J2: 工程分包内容 | K2: 项目联系人 | L2: 联系人电话 | M2: 证件网上核对人 | N2: 信用等级 | O2: 上报单位
A3: 1 | B3: 济南市市中区建筑安装工程公司 | C3: 济南市市中区济微路75号 | D3: 程加兴 | E3: 5003 | F3: 91370103163283527C | G3: 建筑工程施工总承包贰级D237109433 | H3: 【鲁】JZ安许证字[2016]011727-01 | I3: 京台五标一分部 | J3: 小结构物 | K3: 赵辽圆 | L3: 13173049555 | M3: 邴召建 | N3: A | O3: 鲁桥建设
A4: 2 | B4: 滕州市硕通劳务有限公司 | C4: 滕州市奎文小区2-1-301 | D4: 张玉清 | E4: 1000 | F4: 91370481076953983F | G4: 钢筋作业分包劳务分包贰级 | H4: （鲁）JZ安许证字 〔2016〕0404321 | I4: 济青改扩建六标 | J4: 中央分隔带改造 | K4: 张玉清 | L4: 15866238066 | M4: 邱继旭 | N4: A | O4: 鲁桥建设
A5: 3 | B5: 山东华野路桥工程有限公司 | C5: 济南市历城区王舍人镇朝山街634号 | D5: 张茂文 | E5: 2018 | F5: 913701127763462447 | G5: 公路路面工程专业承包叁级 D337056361 | H5: （鲁）JZ安许证字 【2006】180537-01 | I5: 济青改扩建六标 | J5: 拌合站 | K5: 湛茂平 | L5: 15588856777 | M5: 邱继旭 | N5: B | O5: 鲁桥建设
A6: 4 | B6: 山东高速工程检测有限公司 | C6: 济南市市中区二环东路12550号 | D6: 王广洋 | E6: 2000 | F6: 913700005533962289 | G6: 交GJC甲073 公路工程综合甲级 | H6: / | I6: 济南至泰安高速公路 | J6: 隧道监控量测超前地质预报 | K6: 徐崇基 | L6: 15666660787 | M6: 苏子龙 | N6: B | O6: 路桥集团
A7: 5 | B7: 济南海源消防工程有限公司 | C7: 济南市历下区山东南路60号 | D7: 王海家 | E7: 1200 | F7: 913701020611797000 | G7: D237098170消防设施工程专业承包贰级 | H7: （鲁）JZ安许证字[2016]011747-02 | I7: 济南至泰安高速公路 | J7: 隧道防火涂料施工 | K7: 夏玲 | L7: 13505312907 | M7: 苏子龙 | N7: B | O7: 路桥集团
A8: 6 | B8: 攀枝花梵熙建筑工程有限公司 | C8: 四川省攀枝花市东区新源路558附2-5 | D8: 吕俸田 | E8: 1200 | F8: 91510400MA675YH45U | G8: 市政公用工程施工总承包叁级 | H8: （川）JZ安许证字[2018]003410 | I8: 省道315线蜂场至尼勒克段公路工程第FN-1标段 | J8: 石料加工 | K8: 张书箐 | L8: 18660938666 | M8: 纪永恒 | N8: B | O8: 路桥集团
A9: 7 | B9: 四川海亿达盛公路工程有限公司 | C9: 四川省攀枝花市仁和区攀枝花大道南段1049号2栋2单元8号 | D9: 苑相同 | E9: 1200 | F9: 91370214713773492G | G9: 建筑工程施工总承包叁级D351847251 | H9: （川）JZ安许证字[2019]001313 | I9: 国道204拓宽改造项目 | J9: 管线 | K9: 苑伟 | L9: 15808101767 | M9: 丛磊 | N9: B | O9: 鲁桥建设
A10: 8 | B10: 山东佰建机电设备配套工程有限公司 | C10: 济南市历下区旅游路与浆水泉路交汇处洄龙小区206号 | D10: 夏天 | E10: 501 | F10: 9137010276000870XX | G10: 建筑机电安装工程专业承包叁级，D337175948 | H10: (鲁)JZ安许证[2019]012432-01 | I10: 山东省路桥集团办公楼提升改造工程 | J10: 空调工程 | K10: 马广 | L10: 13805313982 | M10: 蔡中宽 | N10: B | O10: 齐鲁建设
A11: 9 | B11: 青岛隆海集团市政工程有限公司 | C11: 山东省青岛市黄岛区世纪大道北珠山路东（世纪大道859号） | D11: 张宗荣 | E11: 520 | F11: 913702117180801268 | G11: 市政公用工程施工总承包叁级D337112528 | H11: (鲁)JZ安许证字[2010]02-0065 | I11: 大卢河、两河等河道整治工程 | J11: 灵山卫河河道整治工程截污、清淤、绿化等 | K11: 王永彬 | L11: 15908995558 | M11: 朱镇东 | N11: B | O11: 路桥集团
A12: 10 | B12: 四川海鲁川建设工程有限公司 | C12: 四川省攀枝花市东区机场路118号12-3号 | D12: 于业鹏 | E12: 1200 | F12: 91510400MA67Q6NU4J | G12: 市政公用工程施工总承包叁级 D351787780 | H12: (川)JZ安许证字[2018]007296 | I12: 胶州湾高速营海口周边道路综合提升工程/胶州湾高速公路胶州收费站扩建工程/国道204拓宽改造项目 | J12: 雨水检查井、钢筋混凝土管及雨水口等排水设施施工 | K12: 于业鹏 | L12: 18661866567 | M12: 王浩/丛磊 | N12: B | O12: 鲁桥建设
A13: 11 | B13: 攀枝花仪博建筑工程有限公司 | C13: 四川省攀枝花市东区机场路118号12-2号 | D13: 向芩仪 | E13: 1200 | F13: 91510400MA6774FQ1C | G13: D351810335 市政公用工程施工总承包三级 | H13: （川）JZ安许证字 【2018】007025 | I13: 乐自高速乐山大佛收费站及九峰连接线提升改造工程 | J13: 灌木种植、乔木种植、种植土回填、铁丝网边坡防护 | K13: 张明昌 | L13: 18784590086 | M13: 高超 | N13: B | O13: 鲁桥建设
A14: 12 | B14: =[4]劳务单位汇总表!C35 -> 山东建丰路桥工程有限公司 | C14: =[4]劳务单位汇总表!E35 -> 山东省临沂市兰山区金雀山路与羲之路交汇南200米路西113号沿街 | D14: =[4]劳务单位汇总表!Q35 -> 顾薇薇 | E14: =[4]劳务单位汇总表!M35 -> 2000 | F14: =[4]劳务单位汇总表!D35 -> 91371302MA3F31ND8B 1-1 | G14: 公路工程施工总承包壹级、市政公用工程施工壹级、桥梁工程专业承包贰级，D143057204 | H14: =[4]劳务单位汇总表!O35 -> （鲁）JZ安许证字〔2019〕141096-02 | I14: =[4]劳务单位汇总表!Z35 -> 鲁南高铁LQTJ-3标项目 | J14: =[4]劳务单位汇总表!AA35 -> 房建工程 | K14: =[4]劳务单位汇总表!W35 -> 刘元珍 | L14: =[4]劳务单位汇总表!Y35 -> 15275972333 | M14: =[4]劳务单位汇总表!AC35 -> 何华 | N14: B | O14: 路桥集团
A15: 13 | B15: 新泰市星光建筑安装工程有限公司 | C15: 山东省泰安市新泰市刘杜镇 | D15: 张磊 | E15: 2000 | F15: 913709827456958398 | G15: D337086161 | H15: （鲁）JZ安许证字[2005}090155-01 | I15: 京沪改扩建 | J15: 桥梁拆除 | K15: 赵强德 | L15: 18253086669 | M15: 董新星 | N15: B | O15: 路桥集团
A16: 14 | B16: 山东畅通集团股份有限公司 | C16: 山东省济青高速公路高密北出口对面 | D16: 王成琪 | E16: 100000 | F16: 91370700720739364A | G16: 公司具有公路工程施工总承包壹级、市政施工总承包贰级、房屋建筑施工总承包叁级资质，同时具有四个专业承包壹级资质（路基、路面、桥梁、地基与基础工程）和公路交通工程（公路安全设施分项）专业承包贰级资质。D137043237，D237047006 | H16: （鲁）JZ安许证字 〔2006〕180438 | I16: 高密2017-2018年城建工程PPP项目 | J16: 市政工程道路、排水、绿化等施工劳务 | K16: 许国林 | L16: 15953617120 | M16: 陈志鹏 | N16: B | O16: 路桥集团
A17: 15 | B17: 四川中吉瑞工程管理有限责任公司 | C17: 成都市金牛区金丰路6号10栋13层3号 | D17: 梁培强 | E17: 100 | F17: 91510106MA6CHACT2D | G17: / | H17: / | I17: 资阳项目 | J17: 概预算技术服务 | K17: 梁培强 | L17: 15828381119 | M17: 熊桓 | N17: B | O17: 鲁桥建设
A18: 16 | B18: 江苏宝建建设工程有限公司 | C18: 盐城市盐都区盐渎街道中远世纪城C幢1008室（C） | D18: 王爱余 | E18: 1008 | F18: 913209033138444826 | G18: 建筑工程施工总承包叁级 市政公用工程施工总承包叁级 地基基础工程专业承包叁级D332121495 | H18: （苏）JZ安许证字 〔2017〕900039 | I18: 国道204拓宽改造项目 | J18: 通信 | K18: 姚爱民 | L18: 15366575777 | M18: 丛磊 | N18: B | O18: 鲁桥建设
A19: 17 | B19: 河南省交院工程检测科技有限公司 | C19: 郑州市二七区陇海中路70号 | D19: 杨磊 | E19: 4000 | F19: 914101007919391873 | G19: 桥隧专项交GJC桥068 | H19: / | I19: 河南焦作黄河大桥 | J19: 桥梁监控 | K19: 梁晓棚 | L19: 18638567526 | M19: 吴文波 | N19: B | O19: 路桥集团
A20: 18 | B20: 青岛九恒工程有限公司 | C20: 山东省青岛市市南区山东路33号1501 | D20: 杨志强 | E20: 1000 | F20: 9137020239605926XQ | G20: 城市及道路照明专业承包二级资质，D237112409 | H20: （鲁）JZ安许证字 〔2019〕022277 | I20: 青岛海湾大桥胶州连接线工程 | J20: 护栏灯安装工程 | K20: 陈为好 | L20: 13953253929 | M20: 王媛 | N20: B | O20: 路桥集团
A21: 19 | B21: 山东省灏图信息科技有限公司 | C21: 济南市历下区花园路213号历下软件园A座B303室 | D21: 曾红艳 | E21: 300 | F21: 9137010230693579XB | G21: 丁测资字3731830 | H21: / | I21: 巨单项目 | J21: 测量 | K21: 金晓 | L21: 18769386302 | M21: 裴天宇 | N21: B | O21: 路桥集团
A22: 20 | B22: 四川富集建设工程有限公司 | C22: 成都市武侯区 | D22: 黄泽峰 | E22: 5066 | F22: 91510100MA61W6EA07 | G22: 模板脚手架专业承包不分等级 | H22: (川)JZ安许证字[2016]002252 | I22: 省道315线蜂场至尼勒克段公路工程第FN-1标段 | J22: 小型预制块工程 | K22: 黄体正 | L22: 18816039000 | M22: 纪永恒 | N22: B | O22: 路桥集团
A23: 21 | B23: 新疆磐岳工程建设有限公司 | C23: 新疆昌吉州奇台县 | D23: 聂翠珍 | E23: 5000 | F23: 91652325MA77GP6P4Q | G23: 市政公用工程施工总承包三级D365045098 | H23: （新）JZ安许证字[2018]003915 | I23: 济青绿化二标 | J23: 绿化工程 | K23: 吕宝庆 | L23: 18264156877 | M23: 陈文欣 | N23: B | O23: 公路桥梁
A24: 22 | B24: 山东笑语三维设计有限公司 | C24: 济南市历下区后坡东街北首 | D24: 周忠峰 | E24: 300 | F24: 91370102589906752D | G24: / | H24: / | I24: 河南焦作黄河大桥 | J24: 三维动画制作服务 | K24: 周忠峰 | L24: 18953132109 | M24: 吴文波 | N24: B | O24: 路桥集团
A25: 23 | B25: 青岛海信网络科技股份有限公司 | C25: 山东省青岛市高科技工业园宁夏路308号 | D25: 陈维强 | E25: 12103 | F25: 913702007278082031 | G25: 公路交通工程专业承包一级，D137024097 | H25: （鲁）JZ安许证字 〔2009〕180780-02 | I25: 青岛海湾大桥胶州连接线工程 | J25: 弱电工程 | K25: 高健 | L25: 13963912356 | M25: 王媛 | N25: B | O25: 路桥集团
A26: 24 | B26: 山东国顺工程建设有限公司 | C26: 山东省淄博市高新区万杰路125号 | D26: 蔡巍 | E26: 10000 | F26: 9137030375747024XE | G26: 建筑工程施工总承包叁级、钢结构工程专业承包叁级、输变电工程专业承包叁级、 电子与智能化工程专业承包贰级、建筑装修装饰工程专业承包贰级、通信工程施工总承包叁级、承装类三级、承修类三级、承试类四级，D337091279、D237091272 | H26: （鲁）JZ安许证字 〔2015〕030529 | I26: 青岛海湾大桥胶州连接线工程 | J26: 强电工程 | K26: 林礼民 | L26: 18561316820 | M26: 王媛 | N26: B | O26: 路桥集团
A27: 25 | B27: 青岛市胶州水利工程有限公司 | C27: 山东省青岛胶州市常州路2号 | D27: 韩文瑞 | E27: 4500 | F27: 91370281169654851H | G27: 市政公用工程施工总承包贰级D237032552 | H27: （鲁）JZ安许证字（2015）180291 | I27: 国道204拓宽改造项目 | J27: 绿化 | K27: 解德聚 | L27: 18678908666 | M27: 丛磊 | N27: B | O27: 鲁桥建设
A28: 26 | B28: 潍坊三水市政工程有限公司 | C28: 潍坊市寒亭区 | D28: 朱效华 | E28: 4260 | F28: 91370703082962640B | G28: 市政公用工程施工总承包贰级D237097304 | H28: （鲁）JZ安许证字[2018]07-0106 | I28: 济青绿化二标 | J28: 绿化工程 | K28: 王明东 | L28: 13780828856 | M28: 陈文欣 | N28: B | O28: 公路桥梁
A29: 27 | B29: 淄博中铁建筑安装公司 | C29: 山东省淄博市张店区中埠镇 | D29: 张永光 | E29: 2039.56 | F29: 913703037317309044 | G29: 钢结构工程专业承包叁级，D337069677 | H29: （鲁）JZ安许证字 〔2005〕030056-01 | I29: 京沪二标 | J29: 跨线桥拆除，老桥拆除 | K29: 牛和亮 | L29: 13156988222 | M29: 简晓辉 | N29: B | O29: 公路桥梁
A30: 28 | B30: 山东双利电子工程有限公司 | C30: 山东省济南市高新区新泺大街1166号奥盛大厦3号楼502-A | D30: 许德明 | E30: 5088 | F30: 913700001630953235 | G30: 电子于智能化工程专业承包壹级、消防设施工程专业承包贰级，编号：D237133055 | H30: （鲁）JZ安许证字 【2005】010339 | I30: 山东省路桥集团办公楼提升改造工程 | J30: 消防工程 | K30: 吴许华 | L30: 18366148119 | M30: 蔡中宽 | N30: B | O30: 齐鲁建设
A31: 29 | B31: 巨野鼎筑路桥工程有限公司 | C31: 菏泽市巨野县麒麟大道 | D31: 陈鹏飞 | E31: 1000 | F31: 91371724326217947M | G31: 建筑业施工劳务不分等级D337197520 | H31: （鲁）JZ安许证字（2019）170890-02 | I31: 京台五标一分部 | J31: 小结构物 | K31: 陈彭飞 | L31: 18253086669 | M31: 邴召建 | N31: B
A32: 30 | B32: 山东鲁任市政园林工程有限公司 | C32: 济宁北湖省级旅游度假区新城发展大厦 | D32: 李腾华 | E32: 1000 | F32: 91370800MA3CEQ2C17 | G32: D337147038 | H32: （鲁）JZ安许证字[2017}08-0112 | I32: 京沪改扩建 | J32: 桥梁拆除 | K32: 李腾华 | L32: 13355160055 | M32: 董新星 | N32: B | O32: 路桥集团
A33: 31 | B33: 山东四方建设工程有限公司 | C33: 济宁市红星西路38号 | D33: 李昌信 | E33: 5009 | F33: 91370811706354678U | G33: D237062378 | H33: （鲁）JZ安许证字[2012}080619-01 | I33: 京沪改扩建 | J33: 拆桥工程 | K33: 李昌信 | L33: 13355160055 | M33: 董新星 | N33: B | O33: 路桥集团
A34: 32 | B34: 山东亚轮建筑工程有限公司 | C34: 山东省济南市历下区历山路47-8号203室 | D34: 张光虎 | E34: 2000 | F34: 91370102MA3C88JE44 | G34: 施工劳务不分等级D337205749 | H34: （鲁）JZ安许证字 〔2020〕012850 | I34: 潍日高速公路潍坊连接线 | J34: 小型构件预制 | K34: 张光虎 | L34: 18765868555 | M34: 赵永杰 | N34: B | O34: 路桥集团
A35: 33 | B35: 山东省振华建筑基础工程有限公司 | C35: 济南市经五路小纬四路46号 | D35: 徐振民 | E35: 875 | F35: 91370000724808670Q | G35: 地基基础工程专业承包贰级 D237031042 | H35: 鲁JZ安许证字[2012]010659 | I35: 潍日高速公路潍坊连接线 | J35: 坡面绿化工程 | K35: 贾赟 | L35: 18660105982 | M35: 赵永杰 | N35: B | O35: 路桥集团
A36: 34 | B36: 济南汇聚路桥工程有限公司 | C36: 山东省济南市高新区凤凰国际广场1号楼720室-2、13793161666 | D36: 范镇镇 | E36: 1000 | F36: 91370100084021772Y | G36: 施工劳务不分等级D337177258 | H36: （鲁）JZ安许证字[2018]012181-01 | I36: 省道241 | J36: 涵洞、急流槽 | K36: 范镇镇 | L36: 13793161666 | M36: 刘远明 | N36: B | O36: 鲁桥建设
A37: 35 | B37: 常州常林园林建设工程有限公司 | C37: 江苏省常州市武进区 | D37: 吴燕元 | E37: 1000 | F37: 91320412554637898M | G37: 市政公用工程施工总承包叁级D332052368 | H37: （苏）JZ安许证字 【2014】040007-1 | I37: 330项目 | J37: 绿化环保工程 | K37: 宁馨 | L37: 15996781388 | M37: 苏栋 | N37: B | O37: 公路桥梁
A38: 36 | B38: 四川匹克生态景观工程有限公司 | C38: 成都高新区 | D38: 杨秉义 | E38: 2050 | F38: 91510000713094553T | G38: 市政公用工程施工总承包二级，D251601682 | H38: （川）JZ安许证字[2014]000494 | I38: 济青绿化二标/京沪二标 | J38: 绿化工程 | K38: 周咏志 | L38: 13806472102 | M38: 陈文欣 | N38: B | O38: 公路桥梁
A39: 37 | B39: 临沂经发路桥工程有限公司 | C39: 临沂经济技术开发区 | D39: 沈庆志 | E39: 4000 | F39: 9137130055890843XR | G39: 公路工程施工总承包贰级，D237073728 | H39: （鲁）JZ安许证字 〔2013〕180999 | I39: 京沪二标 | J39: 预制构件 | K39: 张勇杰 | L39: 15053999241 | M39: 简晓辉 | N39: B | O39: 公路桥梁
A40: 38 | B40: 山东泰立园林建设工程有限公司 | C40: 济宁市任城区 | D40: 梁汉章 | E40: 2016 | F40: 913708113346839480 | G40: 市政公用工程施工总承包叁级，D337155924 | H40: （鲁）JZ安许证字 〔2018〕08-0148 | I40: 京沪二标 | J40: 预制构件，环保设施（声屏障基础） | K40: 闫芳 | L40: 13562754687 | M40: 简晓辉 | N40: B | O40: 公路桥梁
A41: 39 | B41: 铁正检测科技有限公司 | C41: 山东省临沂市兰山区银雀山路205号 | D41: 崔洪阳 | E41: 120 | F41: 91371302MA3CBWXD79 | G41: 检验检测机构资质认定证书 | H41: / | I41: 临沂项目 | J41: 检测合同 | K41: 崔洪阳 | L41: 13685491185 | M41: 栾志民 | N41: B | O41: 齐鲁建设
A42: 40 | B42: 山东固特邦土木科技有限公司 | C42: 山东省济南市历城区唐冶西路868号山东设计创意产业园北区7号楼3-1306室 | D42: 孙锐 | E42: 1800 | F42: 91370112553727824U | G42: 特种工程（结构补强）专业承包不分等级，D237088974 | H42: (鲁)JZ安许证[2012]011243-01 | I42: 山东省路桥集团办公楼提升改造工程 | J42: 加固工程 | K42: 郑修义 | L42: 13805445111 | M42: 蔡中宽 | N42: B | O42: 齐鲁建设
A43: 41 | B43: 枣庄市金星爆破有限公司 | C43: 山东省枣庄市市中区永安乡蔡庄村北 | D43: 武连明 | E43: 6000 | F43: 91370400706345318K | G43: 建筑业地基基础工程专业承包三级;建筑业建筑工程施工总承包三级D337070181 | H43: (鲁）FM安许证字[2017]04-0004 | I43: 京台五标一分部 | J43: 桥涵拆除 | K43: 史孝庆 | L43: 13210780777 | M43: 邴召建 | N43: B | O43: 鲁桥建设
A44: 42 | B44: 四川荣昌茂业建设工程有限公司 | C44: 四川成都市锦江区一环路东五段108号1栋2单元9层909号 | D44: 关勇 | E44: 1000 | F44: 91510104MA6AEQ9J7F | G44: 劳务施工不分等级 D351942252 | H44: （川）JZ安许证字[2019]007424 | I44: 京台五标一分部 | J44: 小结构物 | K44: 王树俊 | L44: 13869979217 | M44: 邴召建 | N44: B
A45: 43 | B45: 齐河龙亭路业有限公司 | C45: 齐河县经济开发区金石大街 | D45: 黄传亭 | E45: 1000 | F45: 91371425771019180P | G45: 建筑业市政公用工程施工总承包三级A201437142504 | H45: （鲁）JZ安许证字 〔2018〕130747 | I45: 巨单项目 | J45: 水泥混凝土拌和 | K45: 黄传亭 | L45: 15489692111 | M45: 裴天宇 | N45: B | O45: 路桥集团
A46: 44 | B46: 济南民华建筑劳务有限公司 | C46: 济南市高新区孙村镇埠东村 | D46: 隗茂芝 | E46: 860 | F46: 9137010059704649XL | G46: D337088463 、模板脚手架专业承包不分等级 | H46: （鲁）JZ安许证字（2016）011256 | I46: 泰安港东平港区老湖作业区项目部 | J46: 面层、墙身、堆场结构物 | K46: 孟庆兰 | L46: 13791050771 | M46: 王作丰 | N46: B | O46: 路桥集团
A47: 45 | B47: 山东广昌建筑工程有限公司 | C47: 山东省临沂市沂水县高桥镇桥舜路1号 | D47: 顾冬霞 | E47: 1000 | F47: 913713233130014189 | G47: 建筑工程施工总承包叁级D337140550 | H47: （鲁）JZ安许证字 〔2018〕140812-02 | I47: 国道204拓宽改造项目 | J47: 水稳生产 | K47: 孙吉松 | L47: 18254428588 | M47: 丛磊 | N47: B | O47: 鲁桥建设
A48: 46 | B48: 山东华恩建工有限责任公司 | C48: 山东省日照市东港区 | D48: 张迎海 | E48: 3000 | F48: 913711007986997611 | G48: 建筑工程施工总承包叁级；证书编号：D337094993 | H48: (鲁）JZ安许证字[2017]110497 | I48: 京台三标 | J48: K365+100-K376+000钢筋加工 | K48: 狄明生 | L48: 13906363542 | M48: 张新伟 | N48: B | O48: 公路桥梁
A49: 47 | B49: 莱芜方圆建设集团有限公司 | C49: 济南市莱芜区高庄街道办事处驻地 | D49: 任启山 | E49: 5016 | F49: 913712007061968000 | G49: 市政公用工程施工总承包三级，编号：D337009157 | H49: （鲁）JZ安许证字 【2005】120004-01 | I49: 京台五标一分部 | J49: 小结构物 | K49: 杨瑞涛 | L49: 13863405066 | M49: 邴召建 | N49: B
A50: 48 | B50: 江苏帝邦建设工程有限公司 | C50: 沛县经济开发区沛公路科创园一号楼 | D50: 姬传领 | E50: 10600 | F50: 91320322086977524U | G50: 防水防腐保温工程专业承包壹级 D232025743 | H50: （苏）JZ安许证字(2005）030127 | I50: 胶州湾高速营海口周边道路综合提升工程 | J50: 涂刷防腐漆 | K50: 贾海涛 | L50: 13708968629 | M50: 王浩 | N50: B | O50: 鲁桥建设
A51: 49 | B51: 山东嘉晟建设工程有限公司 | C51: 济南市历下区千佛山东路45号3-302室 | D51: 庞治国 | E51: 2060 | F51: 91370102760962675F | G51: 建筑业建筑工程施工总承包三级D337013800 | H51: （鲁）JZ安许证字 〔2016〕010744-02 | I51: 京沪二标/京台三标 | J51: 旧波形护栏拆除/移动钢护栏 | K51: 徐锋 | L51: 13064012626 | M51: 简晓辉 | N51: B | O51: 公路桥梁/路桥集团
A52: 50 | B52: 井研县仁和劳务有限公司 | C52: 井研县研城镇顺河街128号 | D52: 范魏利 | E52: 1000 | F52: 915111245927753436 | G52: D351623211 模板脚手架专业承包不分等级 施工劳务不分等级 | H52: （川）JZ安许证字 【2013】000966 | I52: 山东高速集团取消高速公路省界收费站省外四川区域项目 | J52: ETC门架基础 | K52: 张明昌 | L52: 18784590086 | M52: 高超 | N52: B | O52: 鲁桥建设
A53: 51 | B53: 山东凯文路桥有限公司 | C53: 山东省济宁市光河花园小区18号楼1单元6层西户 | D53: 谭宁 | E53: 1200 | F53: 91370811MA3CFM2T52 | G53: 市政公用工程施工总承包三级D337207639 | H53: （鲁）JZ安许证字 〔2020〕081531 | I53: 巨单项目 | J53: 运输 | K53: 冯森 | L53: 18660727449 | M53: 裴天宇 | N53: B | O53: 路桥集团
A54: 52 | B54: 山东鲁昱路桥工程有限公司 | C54: 山东省济南市高新区新宇路西侧世纪财富中心AB座607-D1室 | D54: 周长林 | E54: 1000 | F54: 1370100MA3PG80T1E | G54: 建筑业施工劳务不分等级D337202201 | H54: （鲁）JZ安许证字 〔2020〕012737 | I54: 京台五标一分部 | J54: 小结构物 | K54: 周长林 | L54: 15953505678 | M54: 邴召建 | N54: B | O54: 鲁桥建设
A55: 53 | B55: 济宁市兖州区亚威通泰公用设施有限公司 | C55: =VLOOKUP($B55,[2]劳务单位汇总表!$C$4:$AD$58,3,0) -> 济宁市兖州区市场监督管理局 | D55: =VLOOKUP($B55,[2]劳务单位汇总表!$C$4:$AD$58,15,0) -> 黄建梅 | E55: =VLOOKUP($B55,[2]劳务单位汇总表!$C$4:$AD$58,11,0) -> 1000 | F55: =VLOOKUP($B55,[2]劳务单位汇总表!$C$4:$AD$58,2,0) -> 91370882676839949E | G55: =VLOOKUP($B55,[2]劳务单位汇总表!$C$4:$AD$58,8,0)&VLOOKUP($B55,[2]劳务单位汇总表!$C$4:$AD$58,7,0) -> D337176408建筑业市政公用工程施工总承包三级 | H55: =VLOOKUP($B55,[2]劳务单位汇总表!$C$4:$AD$58,13,0) -> （鲁）JZ安许证字〔2019〕081336 | I55: 京台四标 | J55: 临时交通标志标线 | K55: =VLOOKUP($B55,[2]劳务单位汇总表!$C$4:$AD$58,21,0) -> 韩庆生 | L55: =VLOOKUP($B55,[2]劳务单位汇总表!$C$4:$AD$58,23,0) -> 13639417188 | M55: 屈庆勋 | N55: B | O55: 路桥集团
A56: 54 | B56: 山东省邮电工程有限公司 | C56: 济南市经四路小纬四路一号 | D56: 吕建祥 | E56: 5115.44 | F56: 91370000163043996J | G56: 通信工程总承包叁级，D0137098463 | H56: （鲁）JZ安许证字 〔2006〕010721-02 | I56: 京沪二标/济青改扩建六标 | J56: 管道改迁/中分带打桩光缆迁改保通 | K56: 谢德超/张亮 | L56: 18660626062/13153161234 | M56: 简晓辉/邱继旭 | N56: B | O56: 公路桥梁/鲁桥建设
A57: 55 | B57: 青岛一鸣建设工程有限公司 | C57: 山东省青岛市黄岛区长江东路313号1栋2单元1001 | D57: 宋桂林 | E57: 5378 | F57: 913702115508195714 | G57: 市政公用工程施工总承包叁级D337154406 | H57: (鲁)JZ安许证字[2018]02-0242 | I57: 大卢河、两河等河道整治工程 | J57: 大卢河河道整治工程景观桥基础及下部构造 | K57: 孙培福 | L57: 15965585527 | M57: 朱镇东 | N57: B | O57: 路桥集团
A58: 56 | B58: 青岛吉安工程有限公司 | C58: 莱西市经济开发区苏州路37号 | D58: 郭长江 | E58: 2009 | F58: 913702857602903720 | G58: 市政公用工程施工总承包贰级；水利水电工程施工总承包二级，D237102665 | H58: （鲁）JZ安许证字 【2005】180280-01 | I58: 京沪二标 | J58: 预制构件 | K58: 秦光 | L58: 13285422233 | M58: 简晓辉 | N58: B | O58: 公路桥梁
A59: 57 | B59: 山东玉泰公路设施有限公司 | C59: 山东省淄博市高新区中润大道153 | D59: 刘晓辉 | E59: 2000 | F59: 91370303706033365P | G59: 公路交通工程（公路安全设施）专业承包壹级；证书编号：D137075485 | H59: (鲁）JZ安许证字[2016]180781 | I59: 京台三标/京沪二标 | J59: K365+100-K376+000桥梁拆除/交通标线 | K59: 牛和亮/伊帅 | L59: 13156988222/13355275351 | M59: 张新伟/简晓辉 | N59: B | O59: 公路桥梁
A60: 5 | C60: 山东省淄博市高新区中润大道153 | D60: 刘晓辉 | E60: 2000 | F60: 91370303706033365P | G60: D137075485 | H60: （鲁）JZ安许证字[2016}180781-01 | I60: 京沪改扩建 | J60: 桥梁拆除 | K60: 牛和亮 | L60: 13156988222 | M60: 董新星 | N60: B | O60: 路桥集团
C61: 淄博市高新区中润大道153号 | D61: 刘晓辉 | E61: 2000 | F61: 91370303706033365P | G61: 公路交通工程（公路安全设施）专业承包壹级：D137075485 | H61: （鲁）JZ安许证字[2016]180781-01 | I61: 京台五标一分部 | J61: 桥涵拆除 | K61: 牛和亮 | L61: 13156988222 | M61: 邴召建 | N61: B | O61: 鲁桥建设
A62: 58 | B62: 山东安盛路桥工程有限公司 | C62: 山东省淄博市高新区四宝山街道向阳一路24-1号 | D62: 徐清红 | E62: 1000 | F62: 9137030305238187XH | G62: 施工劳务不分等级D337158840 | H62: （鲁）JZ安许证字 〔2018〕030739-01 | I62: 国道204拓宽改造项目 | J62: 沥青生产 | K62: 姜亦明 | L62: 18653627127 | M62: 丛磊 | N62: B | O62: 鲁桥建设
A63: 59 | B63: 青岛森林园艺有限公司 | C63: 青岛经济技术开发区齐长城路1208号内50号楼210-3室 | D63: 吴文礼 | E63: 2000 | F63: 9137021173060800XM | G63: 绿化贰级资质 CYLZ·37·532·2·0109·0035 | H63: （鲁）JZ安许证字 〔2020〕022672 | I63: 胶州湾高速营海口周边道路综合提升工程 | J63: 营海口及周边项目全部的绿化景观及其附属设施等相关工作内容 | K63: 张新梓 | L63: 15064215667 | M63: 王浩 | N63: B | O63: 鲁桥建设
A64: 60 | B64: 辽宁良信建筑安装工程有限公司 | C64: 辽宁省抚顺市新宾满族自治县旺清门镇旺鲜村 | D64: 杨绍军 | E64: 5000 | F64: 91210106313281034H | G64: 市政公用工程施工总承包叁级，模板脚手架专业承包不分等级；证书编号：D321000626 | H64: (辽）JZ安许证字[2017]010490 | I64: 京台三标 | J64: K365+110-K376+000段桥梁附属工程 | K64: 朱常军 | L64: 13803180244 | M64: 张新伟 | N64: B | O64: 公路桥梁
A65: 61 | B65: 山东大地公路工程有限公司 | C65: 沂水县道托镇后官庄村 | D65: 李青蓉 | E65: 4000 | F65: 91371323590323570N | G65: 公路工程施工总承包贰级；证书编号：D237073614 | H65: (鲁）JZ安许证字[2015]180974 | I65: 京台三标/京台四标 | J65: K365+100-K376+000旧路波形护栏拆除工程/交通组织 | K65: 刘德忠 | L65: 15168919590 | M65: 张新伟/屈庆勋 | N65: B | O65: 公路桥梁/路桥集团
A66: 62 | B66: 济宁博航市政工程有限公司 | C66: 济宁市金宇路47号汇景国际城A座十九层19号房 | D66: 梁圣亮 | E66: 1000 | F66: 91370800MA3N0Y7A2D | G66: 建筑业钢结构工程专业承包三级 、建筑业环保工程专业承包三级 建筑业建筑工程施工总承包三级 、建筑业市政公用工程施工总承包三级D337179996 | H66: (鲁)JZ安许证字[2019]081114-02 | I66: 京台五标一分部 | J66: 波形护栏拆除 | K66: 张银 | L66: 17863232222 | M66: 邴召建 | N66: B | O66: 鲁桥建设
A67: 63 | B67: 山东舜资建筑工程有限公司 | C67: 山东省济南市历城区柳埠镇小黄巢村 | D67: 肖永振 | E67: 7800 | F67: 91370128MA3ELHWMXA | G67: 建筑工程施工总承包叁级；市政公用工程施工总承包叁级， | H67: (鲁)JZ安许证 【2020】012745-01 | I67: 山东省路桥集团办公楼提升改造工程 | J67: 室外工程 | K67: 张德涛 | L67: 15165151571 | M67: 蔡中宽 | N67: B | O67: 齐鲁建设
A68: 64 | B68: 山东尚德建安有限公司 | C68: 山东省济宁市嘉祥县呈祥街路北新辉花园小区1号楼2单元13D号 | D68: 陈永磊 | E68: 4900 | F68: 91370829798653958F | G68: 市政公用工程施工总承包叁级，D337017552 | H68: （鲁）JZ安许证字 ﹝2008﹞080442-01 | I68: 济青二标/京沪二标 | J68: 预制构件、防护排水、多孔隙水稳碎石盲沟、路肩培土及路缘石（外侧）安装、中分带路缘石安装、路肩块安装工程、人（手）孔、交通标志牌基础/路基防护（拼宽段）、路面附属 | K68: 杜维灿 | L68: 15263761999 | M68: 张航/简晓辉 | N68: B | O68: 公路桥梁
A69: 65 | B69: 山东省公路检测中心 | C69: 山东省济宁市常情路39号 | D69: 李继峰 | E69: 3848 | F69: 12370800F49850400F | G69: 交GJC甲028 公路工程综合甲级 | H69: / | I69: 新台项目/京沪改扩建/巨单项目 | J69: 隧道监控量测/桩基检测 | K69: 高建国/贾栋 | L69: 18595220622/18595220628 | M69: 刘杰/董新星/裴天宇 | N69: B | O69: 路桥集团
A70: 66 | B70: 青岛皓源基础工程有限公司 | C70: 青岛胶州市铺集镇铺上一村 | D70: 王永华 | E70: 500 | F70: 91370281069066585B | G70: 地基基础工程专业承包叁级D337165242 | H70: (鲁)JZ安许证字〔2018〕021967-01 | I70: 京台二标/京台五标一分部 | J70: 管桩工程施工/高压旋喷桩施工/被交路 | K70: 王晓鹏/路吉伟 | L70: 15092095585/13665432345 | M70: 刘铭磬/邴召建 | N70: B | O70: 路桥集团/鲁桥建设
A71: 67 | B71: 山东筑峰建筑工程有限公司 | C71: 山东省济南市市中区 | D71: 王超 | E71: 1600 | F71: 9137010369747909XU | G71: 建筑工程施工总承包叁级：D337051483 | H71: （鲁）JZ安许证字 ﹝2013﹞011269 | I71: 成宜项目/济微高速济宁段 | J71: 路基防护排水工程/桩基工程（摩擦桩） | K71: 武征/王超 | L71: 15866770779/15154157922 | M71: 杨超越 | N71: B | O71: 公路桥梁
A72: 68 | B72: 湖北省建勘基础工程有限公司 | C72: 武汉市东西湖区 | D72: 文飞 | E72: 1100 | F72: 91420112333496753L | G72: 施工劳务不分等级，D337207041 | H72: (鄂)JZ安许证字[2017]016638 | I72: 潍日高速公路潍坊连接线 | J72: 桥涵工程 | K72: 申政武 | L72: 13808935938 | M72: 赵永杰 | N72: B | O72: 路桥集团
A73: 69 | B73: 重庆渝畅建筑劳务有限公司 | C73: 重庆市南岸区回龙湾文渊居C栋5-4 | D73: 漆风华 | E73: 800 | F73: 91500108054841593T | G73: 施工劳务资质不分等级 | H73: （渝）JZ安许证字[2019]012636 | I73: 宜宾快速路 | J73: 锚索（锚杆）工程 | K73: 刘建军 | L73: 18223125785 | M73: 王巍 | N73: B | O73: 公路桥梁
A74: 70 | B74: 山东省宏发化工工程有限公司 | C74: 山东省济南市历城区烈士山北路15号4幢101办公楼一楼楼梯南侧2间办公室 | D74: 方明 | E74: 800 | F74: 91370000267154869Q | G74: 地基基础工程专业承台貳级 D237089208 | H74: (鲁)JZ安许证字 〔2018〕010256 | I74: 京台二标 | J74: 管桩工程施工 | K74: 王涛 | L74: 13953845553 | M74: 刘铭磬 | N74: B | O74: 路桥集团
A75: 71 | B75: 安徽享道建筑工程有限公司 | C75: 蒙城县望月社区北蒙大道38号 | D75: 张晓海 | E75: 1000 | F75: 9134162205842946U | G75: D334162292 | H75: （皖）JZ安许证字 ﹝2015﹞004636-2-1 | I75: 济青二标 | J75: 预制构件、挡土墙、多孔隙水稳碎石盲沟、路肩培土及路缘石（外侧）安装、中分带路缘石安装 | K75: 张峰 | L75: 17756797179 | M75: 张航 | N75: B | O75: 公路桥梁
A76: 72 | B76: 临沂鸿旻建设工程质量检测有限公司 | C76: 临沂高新区留学人员创业园内 | D76: 主昊 | E76: 220 | F76: 371300200015532 | G76: 建设工程质量检测机构 | H76: / | I76: 临沂项目 | J76: 检测合同 | K76: 主昊 | L76: 0539-7109317 | M76: 栾志民 | N76: B | O76: 齐鲁建设
A77: 73 | B77: 山东泰山资源勘查有限公司 | C77: 山东省济南市经十东路 | D77: 李军 | E77: 10000 | F77: 91370000163081675 | G77: 地基基础工程专业承包壹级D237126775 | H77: （鲁）JZ安证许字 【2019】012395-02 | I77: 临沂项目 | J77: 强夯合同 | K77: 魏同征 | L77: 18315782369 | M77: 栾志民 | N77: B | O77: 齐鲁建设
A78: 74 | B78: 乐山兴昇建筑工程有限公司 | C78: 四川省乐山市井研县研城镇和平街88号 | D78: 王瑞军 | E78: 36000 | F78: 91511124MA691GQR1K | G78: D351820805 施工劳务不分等级 | H78: （川）JZ安许证字 【2019】002424 | I78: 乐自高速乐山大佛收费站及九峰连接线提升改造工程 | J78: 收费站LOGO更换、投光灯、高压灯带、路灯、配电箱及基础、路灯接线手孔井、镀锌钢管及电缆线敷设、PVC穿线管、热镀锌角钢接地带等与此有关的劳务工作 | K78: 张明昌 | L78: 18784590086 | M78: 高超 | N78: C
A79: 75 | B79: 济南孚安建筑劳务有限公司 | C79: 济南市高新区正丰路554号3号科研楼405室 | D79: 王春 | E79: 1500 | F79: 91370100697473931B | G79: 建筑业模板脚手架专业承包不分等级D337025359 | H79: （鲁）JZ安许证字 〔2014〕010984 | I79: 京台五标一分部 | J79: 小结构物 | K79: 谢维 | L79: 15688864788 | M79: 邴召建 | N79: C
A80: 76 | B80: 山东中通市政园林工程有限公司 | C80: 济南市历城区七里河小区1号楼 | D80: 乔祥红 | E80: 3000 | F80: 913701003072034000 | G80: D337138384市政公用工程施工总承包叁级 | H80: （鲁）JZ安许证字 【2017】01-0169 | I80: 济南至泰安高速公路/京台四标 | J80: 隧道瓷砖 | K80: 于少彭 | L80: 17505410623 | M80: 苏子龙 | N80: C | O80: 路桥集团
A81: 77 | B81: 青岛嘉恒建设集团有限公司 | C81: 山东省青岛市市南区宁夏路288号 | D81: 张金涛 | E81: 5000 | F81: 913702007636202246 | G81: D337066227 | H81: （鲁）JZ安许证字 〔2017〕020849 | I81: 青岛新机场周边市政配套工程项目 | J81: 北三路种植土回填、地形整理、乔木种植、灌木种植、色带种植、洒水施肥、修剪、一年养护期等 | K81: 滕鹤 | L81: 15662362552 | M81: 刘亚楠 | N81: C | O81: 路桥集团
A82: 78 | B82: 四川嘉合兴建筑劳务有限公司 | C82: 成都市青羊区 | D82: 蒋剑英 | E82: 5880 | F82: 9151010539525010XM | G82: 砌筑、钢筋、脚手架、模板作业劳务分包壹级：C5074051010500-1027 | H82: 〔川〕JZ安许证字 〔2015〕OA0772 | I82: 成宜项目 | J82: 路基防护排水工程、桥面系及附属工程、绿化工程等 | K82: 余文贤 | L82: 13708217762 | M82: 杨超越 | N82: C | O82: 公路桥梁
A83: 79 | B83: 四川省川普建筑劳务有限公司 | C83: 成都市武侯区簇桥中街41号附70号 | D83: 吴世兵 | E83: 2018 | F83: 91510000689934179R | G83: 砌筑作业劳务分包壹级、钢筋作业劳务分包壹级；C1024051000000-0596 | H83: (川)JZ安许证字[2010]000009 | I83: 成宜项目 | J83: 路基、桥梁桩基、梁板安装工程 | K83: 胡久成 | L83: 13881973000 | M83: 杨超越 | N83: C | O83: 公路桥梁
A84: 80 | B84: 梁山县安装公司 | C84: 山东省济宁市梁山县水泊西路2号 | D84: 杨景学 | E84: 330 | F84: 913708827266887216 | G84: D337007645建筑机电安装工程专业承包三级 | H84: （鲁）JZ安许证字[005]080351-02 | I84: 京台五标一分部 | J84: 小结构物 | K84: 张效武 | L84: 18562368333 | M84: 邴召建 | N84: C
A85: 81 | B85: 河南晨浩园林有限公司 | C85: 鹤壁市淇滨区淇水大道地恩地镁大厦1607室 | D85: 侯国富 | E85: 6818 | F85: 91410602767839805F | G85: D341115283市政公用工程施工总承包叁级 | H85: （豫）JZ安许证[2016]110235-01 | I85: 济泰项目 | J85: 附属工程 | K85: 庞志涛 | L85: 18906460166 | M85: 苏子龙 | N85: C | O85: 路桥集团
A86: 82 | B86: 成都市永兴鸿发劳务有限公司 | C86: 成都高新区石板镇石板东路183号一层 | D86: 钟传明 | E86: 10208 | F86: 915120816823991266 | G86: 模板脚手架专业承包不分等级：D451408372 | H86: （川）JZ安许证字 ﹝2009﹞000502 | I86: 成宜项目 | J86: 线外改路改沟工程 | K86: 付超 | L86: 13982929101 | M86: 杨超越 | N86: C | O86: 公路桥梁
A87: 83 | B87: 四川中和茂建筑工程有限公司 | C87: 成都市锦江区静康路399号附1号 | D87: 张东强 | E87: 1000 | F87: 91510104MA6CCN2421 | G87: 施工劳务不分等级：D351798172 | H87: （川)JZ安许证字 ﹝2018﹞009244 | I87: 成宜项目/内江项目 | J87: 路基防护排水工程/桥梁工程 | K87: 刘深德/易英 | L87: 15265453808/13540540820 | M87: 杨超越 | N87: C | O87: 公路桥梁
A88: 84 | B88: 四川敏智建筑工程有限公司 | C88: 成都市金牛区交大路口210号6栋1单元2楼G号 | D88: 谢英 | E88: 1500 | F88: 915100003270259556 | G88: 施工劳务不分等级；D351139720 | H88: (川)JZ安许证字[2016]0A0183 | I88: 成宜项目 | J88: 路基、桥梁桩基、梁板安装、路基防护排水、桥面系及附属、绿化等工程 | K88: 雍俊松 | L88: 13981839688 | M88: 杨超越 | N88: C | O88: 公路桥梁
A89: 85 | B89: 山东省建设建工集团劳务管理有限公司 | C89: 济南市历下区济王路164号（西门） | D89: 刘红伟 | E89: 300 | F89: 91370102723267323F | G89: D337056101 | H89: （鲁）JZ安许证字 ﹝2014﹞010093-02 | I89: 济青二标 | J89: 预制构件工程 | K89: 张典征 | L89: 13573055799 | M89: 张航 | N89: C | O89: 公路桥梁
C90: 济南市历下区济王路164号（西门） | D90: 刘红伟 | E90: 300 | F90: 91370102723267323F | G90: 模板脚手架专业承包不分等级 D337056101 | H90: （鲁）JZ安许证字 〔2018〕010093 | I90: 京台五标一分部 | J90: 小结构物 | K90: 郑钦建 | L90: 18954065406 | M90: 邴召建 | N90: C | O90: 鲁桥建设
A91: 86 | B91: 信邦建设集团有限公司 | C91: 泰安市肥城市龙山路甲069号 | D91: 王琦 | E91: 15000 | F91: 913709831666085502 | G91: D237063652消防设施专业承包贰级 | H91: （鲁）JZ安许证字 【2007】090376 | I91: 济南至泰安高速公路/京沪改扩建 | J91: 隧道防火涂料施工 | K91: 吴广 | L91: 15254182777 | M91: 苏子龙 | N91: C | O91: 路桥集团
A92: 87 | B92: 四川堃德建设工程有限公司 | C92: 成都市新都区泰兴镇泰北街209号 | D92: 曾和元 | E92: 10024 | F92: 915101145875659908 | G92: 建筑工程施工总承包贰级、公路工程施工总承包叁级；D351586954 | H92: (川)JZ安许证字[2012]000975 | I92: 成宜项目 | J92: 路基土石方工程 | K92: 王强 | L92: 13540033333 | M92: 杨超越 | N92: C | O92: 公路桥梁
A93: 88 | B93: 成都龙阳建设工程有限公司 | C93: 成都市青羊区清江西路51号1栋1单元12层1203号 | D93: 何在国 | E93: 1000 | F93: 91510100MA62MRH369 | G93: D351633693 | H93: （川）JZ安许证字[2017]003580 | I93: 济青二标 | J93: 盖板涵、挡土墙护栏、服务区面板及路面附属工程 | K93: 刘民俭 | L93: 18681642518 | M93: 张航 | N93: C | O93: 公路桥梁
A94: 89 | B94: 山东嘉涵建筑工程有限公司 | C94: 山东省泰安市东平县大羊镇政府驻地 | D94: 李树林 | E94: 2000 | F94: 91370923MA3MG18TOL | G94: 模板脚手架专业承包不分等级，编号D337174148 | H94: （鲁）JZ 安许证字{2018}090712-01 | I94: 济微高速济宁段 | J94: 软基工程 | K94: 邢大伟 | L94: 13792057876 | M94: 刘继文 | N94: C | O94: 公路桥梁
A95: 90 | B95: 青岛开元科润电子有限公司 | C95: 山东省青岛市胶州市阜安工业园中环路118号 | D95: 王文庆 | E95: 2008 | F95: 9137028166453841X2 | G95: / | H95: / | I95: 营旧路监控及信号灯工程、温州路南延监控及信号灯工程、营匡路与营海支路监控及信号灯工程、营海口（海尔大道、南外环、尚德大道）监控及信号灯工程等相关工作内容 | J95: 胶州湾高速营海口周边10KV电力迁改工程、35kV南龙线电缆工程、36kV南龙线线路工程 | K95: 栾涛 | L95: 15288981629 | M95: 王浩 | N95: C | O95: 鲁桥建设
A96: 91 | B96: 山东拓泽建筑工程有限公司 | C96: 山东省德州市经济技术开发区 | D96: 李炜 | E96: 1166 | F96: 91371400MA3MJMEC3R | G96: 建筑工程施工总承包叁级，市政公用工程施工总承包叁级，建筑机电安装工程专业承包叁级；证书编号：D337188930 | H96: (鲁）JZ安许证字[2019]130767 | I96: 京台三标 | J96: K365+110-K376+000段声屏障基础工程 | K96: 郭金凯 | L96: 15253466789 | M96: 张新伟 | N96: C | O96: 公路桥梁
A97: 92 | B97: 山东屹能市政工程有限公司 | C97: 山东省威海临港区黄岚办事处初张路西兴岚路南 | D97: 董文复 | E97: 5000 | F97: 91371000310482383E | G97: 市政公用工程总承包叁级D337064177 | H97: （鲁）JZ安许证字（2015）10-0060 | I97: 乳山市2019年度县级土地整治项目 | J97: 土地平整、灌溉与排水、田间道路等 | K97: 李晓东 | L97: 18561263234 | M97: 张宗汉 | N97: C | O97: 齐鲁建设
A98: 93 | B98: 山东万安建设有限公司 | C98: 山东省东营市东营区黄河路660－113号 | D98: 周帅 | E98: 10066 | F98: 91370500556717787Q | G98: D237022742 市政公用工程施工总承包二级 | H98: (鲁)JZ安许证字[2011]05-0054 | I98: 京台五标一分部 | J98: 小结构物 | K98: 朱丙超 | L98: 13011773088 | M98: 邴召建 | N98: C
A99: 94 | B99: 海阳市金海建筑有限责任公司 | C99: 海阳市区龙山街88号 | D99: 于宗谦 | E99: 2000 | F99: 91370687776306373C | G99: 水利水电施工总承包贰级D237096668 | H99: （鲁）JZ安许证字（2005）180319-01 | I99: 乳山市2020年度县级土地整治项目 | J99: 土地平整、灌溉与排水、田间道路等 | K99: 周磊 | L99: 18561117332 | M99: 彭磊 | N99: C | O99: 齐鲁建设
A100: 95 | B100: 福建省安丰建设发展有限公司 | C100: 福建省龙岩市新罗区北城工业西路115号11层1109室 | D100: 罗秋清 | E100: 5000 | F100: 9135080006038996XU | G100: 市政公用工程施工总承包三级D335021999 | H100: （闽）JZ安许证字[2014]00069-1 | I100: 福建安溪项目 | J100: 绿化工程 | K100: 叶剑发 | L100: 18759401666 | M100: 周胜福 | N100: C | O100: 路桥集团
A101: 96 | B101: 滕州市中远建设工程公司 | C101: 山东省枣庄市滕州市善国北路16号 | D101: 张宗昌 | E101: 5000 | F101: 91370481169904670G | G101: D337035273 公路工程施工总承包叁级、地基基础工程专业承包叁级 | H101: （鲁）JZ安许证字[2005]040011-02 | I101: 泰安港东平港区老湖作业区项目部 | J101: 现浇廊道 | K101: 徐茂琪 | L101: 17854807628 | M101: 王作丰 | N101: C | O101: 路桥集团
A102: 97 | B102: 济宁市群力建筑劳务有限公司 | C102: 济宁市邹城市太平东路129号1号楼3单元502室 | D102: 汪普 | E102: 1000 | F102: 913708830619723722 | G102: D337071747 | H102: （鲁）JZ安许证字[2015]080760-01 | I102: 济青二标 | J102: 预制构件、防护排水及附属工程 | K102: 褚宏旭 | L102: 13589109333 | M102: 张航 | N102: C | O102: 公路桥梁
A103: 98 | B103: 四川嘉泰丰建筑工程有限公司 | C103: 简阳市简城红建路南段滨江花园 | D103: 马丽娟 | E103: 1000 | F103: 91510185MA6C6YEX3P | G103: 建筑工程施工总承包叁级；公路工程施工总承包叁级，D351741400 | H103: （川）JZ安许证字 〔2018〕001858 | I103: 京沪二标 | J103: 分流诱导标志，环保设施（声屏障基础），拆除旧标志及设置临时标牌 | K103: 刘阳 | L103: 15963336665 | M103: 简晓辉 | N103: C | O103: 公路桥梁
A104: 99 | B104: 泰安市创新城市建设有限公司 | C104: 泰安市南关街中段路西 | D104: 刘治亮 | E104: 2000 | F104: 913709001664190392 | G104: 建筑工程施工总承包贰级，D237064928 | H104: （鲁）JZ安许证字 〔2005〕090116 | I104: 京沪二标 | J104: 拼宽段临边安全防护（被动防护） | K104: 刘治亮 | L104: 13583866129 | M104: 简晓辉 | N104: C | O104: 公路桥梁
A105: 100 | B105: 智性纤维复合加固南通有限公司 | C105: 南通市开发区景兴路300号 | D105: 白石 | E105: 555.6 | F105: 913206913020762380 | G105: 特种工程（结构补强）专业承包不分等级，D232131160 | H105: （苏）JZ安许证字 【2018】001998 | I105: 京沪二标 | J105: 桥梁加固 | K105: 马晓飞 | L105: 15151369366 | M105: 简晓辉 | N105: C | O105: 公路桥梁
A106: 101 | B106: 河南豫永建筑科技有限公司 | C106: 永城市商务中心区招商大厦17楼 | D106: 胡书岭 | E106: 6001 | F106: 91410100MA40F68J9Y | G106: 特种工程（结构补强）专业承包不分等级，D341145357 | H106: （豫）JZ安许证字 〔2017〕014235 | I106: 京沪二标 | J106: 滑模施工 | K106: 母新见 | L106: 13402063997 | M106: 简晓辉 | N106: C | O106: 公路桥梁
A107: 102 | B107: 山东宝赋劳务服务有限公司 | C107: 山东省临沂市河东区九曲街道贵和花园4号楼1-202室 | D107: 庞树龙 | E107: 618 | F107: 91371312MA3FBC8935 | G107: 资质已审批尚未公示， | H107: （鲁）JZ安许证字 〔2019〕141075 | I107: 京沪二标 | J107: 光缆改迁及安装 | K107: 马宗良 | L107: 15662739639 | M107: 简晓辉 | N107: C | O107: 公路桥梁
A108: 103 | B108: 山东仁恒建筑工程有限公司 | C108: 山东省济南市历城区柳埠镇柳埠二区58号 | D108: 郑强 | E108: 5128 | F108: 91370100MA3C7L1210 | G108: 建筑业市政公用工程施工总承包三级，D337144058 | H108: （鲁）JZ安许证字 〔2018〕012267 | I108: 京沪二标 | J108: 移动钢护栏安装 | K108: 赵新华 | L108: 18192333215 | M108: 简晓辉 | N108: C | O108: 公路桥梁
A109: 104 | B109: 四川光大建筑劳务有限公司 | C109: 成都市青羊区 | D109: 付才刚 | E109: 3000 | F109: 91510000762341338C | G109: 模板脚手架专业承包不分等级；施工劳务施工劳务不分级别 | H109: （川）JZ安许证字[2006] 000789 | I109: 宜宾快速路 | J109: 碎石桩工程 | K109: 朱曦 | L109: 13880184071 | M109: 王巍 | N109: C | O109: 公路桥梁
A110: 105 | B110: 四川源凯成建筑工程有限公司 | C110: 成都市青羊区 | D110: 谭江涛 | E110: 500 | F110: 91510105MA6C5H3J7Q | G110: 施工劳务施工劳务不分级别 | H110: （川）JZ安许证字[2018] 001342 | I110: 宜宾快速路 | J110: 碎石桩工程 | K110: 张建忠 | L110: 13608094473 | M110: 王巍 | N110: C | O110: 公路桥梁
A111: 106 | B111: 山东省引黄济青青岛建筑安装有限公司 | C111: 山东省青岛市胶州市九龙街道办事处西庄西村村南 | D111: 闫明星 | E111: 2018 | F111: 91370281169657008A | G111: D237101701 | H111: （鲁）JZ安许证字 〔2017〕020132 | I111: 青岛新机场周边市政配套工程项目 | J111: 潍蓝路透水混凝土人行道、路缘石安装、界石安装、防撞墩浇筑及安装、路灯基础浇筑、电缆穿束、电缆管埋设等 | K111: 刘祖阁 | L111: 0532-82263688 | M111: 刘亚楠 | N111: C | O111: 路桥集团
A112: 107 | B112: 胶州市华林电力实业公司 | C112: 青岛市胶州市苏州路3号 | D112: 刘加明 | E112: 5650 | F112: 91370281169660979W | G112: 电力工程施工总承包叁级；输变电工程专业承包叁级 D3371001 92 | H112: (鲁)JZ安许证字 【2012】180965-01 | I112: 胶州湾高速营海口周边道路综合提升工程/青岛新机场周边市政配套工程项目 | J112: 胶州湾高速营海口周边10KV电力迁改工程、35kV南龙线电缆工程、35kV南龙线线路工程/潍蓝路拆除线杆及设备、导线拆除、重新立杆、线路整修、导线架设、电缆井砌筑、机械顶管等 | K112: 赵世国/匡萌 | L112: 15853241319/18953298655 | M112: 王浩/刘亚楠 | N112: C | O112: 鲁桥建设/路桥集团
A113: 108 | B113: 烟台市政建设集团有限公司 | C113: 烟台市开发区金沙江路163号 | D113: 谭成策 | E113: 36000 | F113: 91370600265655272Q | G113: 市政公用工程施工总承包壹级D137083137 | H113: （鲁）JZ安许证字（2020）061664-02 | I113: 乳山市2018年度县级土地整治项目 | J113: 土地平整、灌溉与排水、田间道路等 | K113: 刘甫龙 | L113: 13791257925 | M113: 张宗汉 | N113: C | O113: 齐鲁建设
A114: 109 | B114: 山东金亿劳务有限公司 | C114: 山东省济南市历城区飞跃大道与凤岐路交叉口东南侧200米 | D114: 刘杰 | E114: 3000 | F114: 91370112MA3C14RJ7M | G114: 建筑业施工劳务不分等级D337153500 | H114: （鲁）JZ安许证字 〔2017〕011879 | I114: 京台五标一分部 | J114: 小结构物 | K114: 席念辉 | L114: 18653751911 | M114: 邴召建 | N114: C
A115: 110 | B115: 山东建峰工程项目管理有限公司 | C115: 山东省烟台市莱山区观海路267号观海大厦1901号 | D115: 周子铭 | E115: 2500 | F115: 91370613572852305C | G115: 市政公用工程施工总承包贰级D237042056 | H115: （鲁）JZ安许证字 〔2018〕061550 | I115: 乳山市2021年度县级土地整治项目 | J115: 土地平整、灌溉与排水、田间道路等 | K115: 张建强 | L115: 13863196966 | M115: 彭磊 | N115: C | O115: 齐鲁建设
A116: 111 | B116: 山东润昌生态科技有限公司 | C116: 山东省济南市历下区 | D116: 高麦玲 | E116: 12800 | F116: 9137010274337277X6 | G116: 市政公用工程施工总承包叁级，D337077273 | H116: （鲁）JZ安许证字 【2019】012400-01 | I116: 京沪二标 | J116: 植草工程 | K116: 吕玉才 | L116: 18953615021 | M116: 简晓辉 | N116: C | O116: 公路桥梁
A117: 112 | B117: 山东德铭工程建设有限公司 | C117: 济南市历下区 | D117: 陈之伟 | E117: 6000 | F117: 913701026898171839 | G117: 钢结构工程专业承包叁级，建筑机电安装工程专业承包叁级，输变电工程专业承包叁级，施工劳务不分等级；证书编号：D337033211 | H117: (鲁）JZ安许证字[2012]011142 | I117: 京台三标 | J117: 禹城东互通K373+700右幅10KV高压配电箱工程 | K117: 张磊 | L117: 15753411701 | M117: 张新伟 | N117: C | O117: 公路桥梁
A118: 113 | B118: 山东天成建设工程有限公司 | C118: 山东省淄博市桓台县索镇镇王徐路东首 | D118: 魏严磊 | E118: 7188 | F118: 91370321785006217X | G118: 建筑工程施工总承包壹级，D137024879 | H118: （鲁）JZ安许证字 〔2006〕030338 | I118: 京沪二标 | J118: 路基防护（拼宽段） | K118: 耿佃发 | L118: 13176411681 | M118: 简晓辉 | N118: C | O118: 公路桥梁
A119: 114 | B119: 新泰市聚恒建筑安装工程有限公司 | C119: 新泰市青云街道榆山路 | D119: 曹震 | E119: 2000 | F119: 91370982073029752G | G119: 建筑工程施工总承包叁级，D337131200 | H119: （鲁）JZ安许证字 【2018】090533-02 | I119: 京沪二标 | J119: 路基防护（新建、改造段） | K119: 刘丙路 | L119: 15621343699 | M119: 简晓辉 | N119: C | O119: 公路桥梁
A120: 115 | B120: 禹城市方正建筑安装工程有限公司 | C120: 山东省德州市禹城市禹石商贸街 | D120: 张俊勇 | E120: 2020 | F120: 913714821675724815 | G120: 建筑工程施工总承包贰级，防水防腐保温工程专业承包贰级，建筑装修装饰工程专业承包贰级；证书编号：D237023648 | H120: (鲁）JZ安许证字[2005]130043 | I120: 京台三标 | J120: 禹城服务区K369+984污水管道迁改工程 | K120: 纪风友 | L120: 15315838879 | M120: 张新伟 | N120: C | O120: 公路桥梁
A121: 116 | B121: 临沂锦华建设有限公司 | C121: 费县蒙台路东侧 | D121: 张培彩 | E121: 16700 | F121: 91371325796198111T | G121: 市政公用工程施工总承包叁级 钢结构工程专业承包叁级 D337104414 | H121: (鲁)JZ安许证字 〔2018〕180918-01 | I121: 京台二标 | J121: 冲击碾压施工 | K121: 于崇安 | M121: 刘铭磬 | N121: C | O121: 路桥集团
A122: 117 | B122: 山东天涯建筑工程有限公司 | C122: 山东省德州市经济技术开发区宋官屯镇太阳湖路458号3-5室 | D122: 梁立武 | E122: 5000 | F122: 91371400MA3DQB4W33 | G122: 建筑工程施工总承包叁级D337184836 | H122: (鲁)JZ安许证字 〔2018〕130808-01 | I122: 京台二标 | J122: 强夯施工 | K122: 张俊华 | M122: 刘铭磬 | N122: C | O122: 路桥集团
A123: 118 | B123: 广元市宏瑞昌建设有限公司 | C123: 广元市利州区万达广场晶座A栋2322号 | D123: 秦刚 | E123: 3000 | F123: 91510823MA6258P32N | G123: 地基基础工程专业承包叁级D251660004 | H123: (川)JZ安许证字 〔2017〕003433 | I123: 京台二标 | J123: 管桩工程施工/高压旋喷桩施工 | K123: 李洪秀 | L123: 18403174444 | M123: 刘铭磬 | N123: C | O123: 路桥集团
A124: 119 | B124: 天津恒泰利川建筑工程有限公司 | C124: 天津滨海民营经济成长示范基地创意中心A座1806室010号 | D124: 陈忠辉 | E124: 1500 | F124: 91120112300405659P | G124: 地基基础工程专业承包叁级D212006887 | H124: (津)JZ安许证字 〔2016〕ZS0004872 | I124: 京台二标 | J124: 管桩工程施工 | K124: 彭明强 | L124: 13356276771 | M124: 刘铭磬 | N124: C | O124: 路桥集团

Sheet 中铁隆劳务单位名称
A1: 中铁隆工程集团有限公司外部劳务、专业作业队伍综合评价库
A2: 编 号 | B2: 外部劳务名称 | C2: 资质等级 | D2: 合同签订人 | E2: 乙方现场 负责人 | F2: 本公司主要施工 项目 | G2: 施工内容 | H2: 承包方式 | I2: 公司综合评价 | J2: 备注
I3: 2019年底
A4: 一 | B4: 土石方工程
A5: 1 | B5: 四川宏达爆破有限公司第三项目部 | C5: 爆破与拆除工程专业承包贰级 | D5: 胡军 | E5: 胡军 | F5: 连界项目部 | G5: 石方爆破 | H5: 专业分包 | I5: A
A6: 2 | B6: 四川荣慧建筑工程有限公司 | C6: 房屋建筑施工总承包壹级，公路工程施工总承包叁级，土石方工程专业承包贰级，市政公用工程总承包贰级 | D6: 刘立学 | E6: 刘立学 | F6: 连界项目部 | G6: 船石湖大道土石方工程，水稳层铺设 | H6: 专业分包 | I6: A
A7: 3 | B7: 北京利达金路腾土方工程有限公司 | D7: 张井喜 | E7: 张井喜 | F7: 北京地铁14号线 | G7: 蒲方区间土方运输 | H7: 专业分包 | I7: A
A8: 4 | B8: 重庆华夏建工（集团）有限公司 | C8: 工民建施工（二级），装饰、市政、土石方公路（二级） | D8: 张勇 | F8: 重庆地铁环线7标 | G8: 民安大道站至重庆北站区间隧道工程渣土外运及弃置 | H8: 专业分包 | I8: A
F9: 重庆地铁九号线 | G9: 渣土外运，明槽岩石开挖
A10: 5 | B10: 陕西宏力建筑基础有限公司 | D10: 张群星 | E10: 高红武 | F10: 南门广场综合提升改造项目施工一标段 | G10: 施工范围内全部挖土石方工程 | H10: 专业分包 | I10: A
A11: 6 | B11: 贵州省铭豪爆破监理有限公司 | F11: 贵阳地铁3号线 | G11: 爆破工程（材料、管理、方案等） | H11: 专业分包 | I11: A
A12: 7 | B12: 广西金田建设工程有限公司 | C12: 水利水电工程总承包、房屋建筑总承包，土石方工程，市政工程 | D12: 农经严 | E12: 农经严 | F12: 南宁地铁1标项目部 | G12: 石埠车站土方运输 | H12: 专业分包 | I12: B
A13: 8 | B13: 青岛川海工程有限公司 | C13: 无 | D13: 崔先学 | E13: 崔先学 | F13: 青岛地铁12标项目部 | G13: 换乘大厅及站后区间土方外运 | H13: 专业分包 | I13: B
A14: 9 | B14: 青岛大昌建筑工程有限公司 | C14: 房屋建筑工程施工总承包贰级，建筑装修工程专业承包贰级，土石方工程专业承包叁级，房地产开发 | G14: 站后区间土石方外运
A15: 10 | B15: 青岛海联建筑工程有限公司 | C15: 房屋建筑工程 | D15: 宫相明 | E15: 宫相明 | F15: 青岛地铁12标项目部 | G15: 3#线基坑土石方运输 | H15: 专业分包 | I15: B
A16: 11 | B16: 青岛华方开建筑工程有限公司 | C16: 一般岩石爆破 | D16: 尹华 | E16: 尹华 | F16: 青岛地铁12标项目部 | G16: 站后区间爆破 | H16: 专业分包 | I16: B
D17: 尹华 | E17: 尹华、郑静奇 | F17: 青岛地铁1号线 | G17: 太行山路站暗挖站及其风道暗挖石方爆破 | H17: 专业分包 | I17: B
A18: 12 | B18: 青岛君兴阳大件运输有限公司 | C18: 道路运输 | D18: 汪明星 | E18: 汪明星 | F18: 青岛地铁12标项目部 | G18: 换乘大厅二期土石方开挖，站后区间土石方回填 | H18: 专业分包 | I18: B
A19: 13 | B19: 乌鲁木齐荣福筑路有限公司 | C19: 市政公用工程施工总承包壹级 | D19: 罗勇 | E19: 罗勇 | F19: 乌鲁木齐地铁1号线13标 | G19: 前期土方外运及消纳 | H19: 专业分包 | I19: B
A20: 14 | B20: 重庆珑根建筑劳务有限公司 | C20: 混凝土作业、水暖电安装作业不分等级，砌筑、模板作业贰级 | D20: 王广根 | E20: 王广根 | F20: 重庆地铁环线8标 | G20: 重庆北站至渝鲁站区间隧道工程施工通道土石方运输 | H20: 专业分包 | I20: B
A21: 15 | B21: 重庆市渝中区第二建筑工程公司 | D21: 王坤 | E21: 杨杰 | F21: 重庆地铁九号线 | G21: 临建场平土石方 | H21: 专业分包 | I21: B
A22: 16 | B22: 山东博安建筑安装有限公司北京分公司 | C22: 市政公用工程施工总承包二级、水利水电工程施工总承包三级 | D22: 朱长彬 | E22: 朱长彬 | F22: 北京奥体三标 | G22: 土方回填 | H22: 专业分包 | I22: B
A23: 17 | B23: 北京长刚土石方挖运有限公司 | C23: 土石方工程专业承包叁级 | D23: 李勇 | E23: 李勇 | F23: 北京奥体三标 | G23: 土方清底 | H23: 专业分包 | I23: B
A24: 18 | B24: 青岛庄威爆破有限公司 | D24: 臧跃 | F24: 青岛北客站 | G24: 土石方 | H24: 专业分包 | I24: B
A25: 19 | B25: 浙江海滨建设集团有限公司 | D25: 徐燕 | F25: 青岛北客站 | G25: 土石方运输 | H25: 专业分包 | I25: B
A26: 20 | B26: 四川省鑫富胜建筑工程有限公司 | C26: 土石方工程专业承包叁级 | D26: 熊发文 | E26: 熊发文 | F26: 武侯新城 | G26: 土方开挖、外运 | H26: 专业分包 | I26: B
A27: 21 | B27: 贵州雷鑫建筑工程有限公司 | D27: 罗艺 | F27: 贵阳地铁2号线 | G27: 七云区间土方外运 | H27: 劳务分包 | I27: B
A28: 22 | B28: 成都市龙泉驿区驿东市政工程有限公司 | C28: 市政公用工程施工总承包三级（不含桥梁、燃气） | D28: 刘少见 | E28: 刘少见 | F28: 龙泉驿站附属工程 | G28: 车库、附属通道、主体结构土方开挖 | H28: 专业分包 | I28: C
F29: 成都30号线 | G29: 金融城北站、府城桥站土石方工程 | H29: 专业分包 | I29: C
A30: 23 | B30: 李旺森 | C30: 无 | D30: 李旺森 | E30: 李旺森 | F30: 南宁地铁1标项目部 | G30: 石埠车站及附属、明挖区间、暗挖隧道土方运输 | H30: 专业分包 | I30: C
A31: 24 | B31: 来延永 | D31: 来延永 | F31: 青岛北客站 | G31: 土石方 | H31: 专业分包 | I31: C
A32: 25 | B32: 贵阳白云艳山红建筑安装有限公司 | C32: 建筑工程施工总承包贰级；市政公用工程施工总承包叁级；建筑机电安装工程专业承包叁级 | D32: 李明新 | E32: 姚权峪 | F32: 贵阳地铁2号线 | G32: 七机路口站土方外运 | H32: 劳务分包 | I32: B
A33: 26 | B33: 重庆蜀欣劳务有限公司 | C33: 砌筑、木工、钢筋作业分包壹级 | D33: 张涛 | F33: 重庆地铁环线7标 | G33: 民安大道站及洪湖东路至民安大道站区间渣土外运及弃置 | H33: 专业分包 | I33: D
A34: 27 | B34: 北京利达金路腾土方工程有限公司 | D34: 宋明孝 | E34: 宋明孝 | F34: 北京地铁14号线 | G34: 安蒲区间渣土外运 | H34: 专业分包 | I34: B
A35: 28 | B35: 贵州省爆破工程有限公司 | E35: 张良 | F35: 贵阳地铁2号线 | G35: 爆破工程 | H35: 劳务分包 | I35: D
A36: 29 | B36: 贵阳白云曹关村林祥工程安装有限公司 | C36: 无资质证书 | D36: 周优喜 | E36: 周优喜 | F36: 贵阳地铁2号线 | G36: 云峰路站及云白区间土方外运 | H36: 劳务分包 | I36: D
A37: 30 | B37: 四川和正建筑工程有限责任公司 | C37: 建筑工程施工总承包贰级，建筑装修装饰工程专业承包贰级 | D37: 杨乐 | E37: 杨乐 | F37: 易隆装备基地项目 | G37: 场地内土方开挖、场内转运、推平碾压、砂石换填、围墙砌筑 | H37: 专业分包
A38: 31 | B38: 湖北富海建筑劳务有限公司 | C38: 木工作业分包贰级 | D38: 孙超 | E38: 杨国 | F38: 贵阳地铁2号线 | G38: 基坑土方爆破 | H38: 劳务分包 | I38: B
A39: 32 | B39: 贵州鼎盛兴辉建筑工程有限公司 | C39: 公路工程施工总承包壹级 | D39: 赵越 | E39: 赵越 | F39: 贵阳地铁2号线 | G39: 土石方外运 | H39: 劳务分包 | I39: C
A40: 33 | B40: 新疆隆合昌泰建筑工程有限公司 | C40: 建筑工程施工总承包叁级 | D40: 罗勇 | E40: 罗勇 | F40: 乌鲁木齐地铁2号线B-02标 | G40: 土方开挖及外运 | H40: 专业分包 | I40: A
A41: 34 | D41: 左天勇 | E41: 刘家林 | F41: 乌鲁木齐地铁2号线B-02标 | G41: 主体结构 | H41: 劳务分包 | I41: A
A42: 35 | B42: 青岛奉运建峰建筑工程有限公司 | C42: 土石方工程专业叁级 | D42: 牟建锋 | E42: 牟建锋 | F42: 青岛地铁1号线 | G42: 太行山路、石太区间渣土运输及处理 | H42: 劳务分包
A43: 36 | B43: 青岛越泽公铁建筑工程有限公司 | D43: 邓小燕 | E43: 邓小燕 | F43: 青岛地铁1号线 | G43: 太行山路站（含出入口）暗挖及石太区间洞内土石方运输到项目部指定弃点（提升机料斗内）及安全防护、文明施工等相关工作。 | H43: 劳务分包
A44: 37 | B44: 北京军达机械施工有限公司 | C44: 土石方工程专业承包贰级 | D44: 肖齐国 | E44: 肖齐国 | F44: 北京地铁12号线 | G44: 区间工区渣土外运及弃置工程 | H44: 专业分包 | I44: B
A45: 38 | B45: 北京兴业昊达建筑工程有限公司 | C45: 地基基础工程专业承包叁级、市政公用泳池施工总承包叁级、环保工程专业承包叁级、钢结构工程专业承包叁级、建筑工程施工总承包叁级 | D45: 蔡红雨 | E45: 蔡红雨 | F45: 北京地铁12号线 | G45: 车站工区渣土外运及弃置工程 | H45: 专业分包 | I45: A
D46: 蔡红雨 | E46: 蔡红雨 | F46: 北京昌南线 | G46: 渣土外运，泥浆外运 | H46: 劳务分包 | I46: B
A47: 39 | B47: 杭州宝益明基础工程有限公司 | C47: 建筑工程施工总承包叁级 | D47: 葛宝明 | E47: 孙康 | F47: 杭富城际铁路 | G47: 土石方工程 | H47: 劳务分包 | I47: B
A48: 40 | B48: 新疆大明顺通建筑工程有限公司 | C48: 市政公用工程施工总承包叄级 | D48: 陈新民 | E48: 苏金锋 | F48: 乌鲁木齐机场线 | G48: 土方外弃 | H48: 专业分包 | I48: A
A49: 41 | B49: 安徽恒瑞工程劳务有限公司 | D49: 余丙伟 | G49: 中铁工和中铁建还有中交下面二级局的劳务工程，主要是隧道工程，还有土石方和市政道路
A50: 42 | B50: 北京京河顺建筑工程有限公司 | D50: 宋明孝 | F50: 北京昌南线 | G50: 盾构泥浆外运 | H50: 劳务分包 | I50: A
A51: 43 | B51: 北京强兴宏伟建设工程有限公司 | D51: 刘伟 | F51: 济南大西环 | G51: 土石方 | H51: 专业分包 | I51: C
A52: 44 | B52: 山东罗麦市政工程有限公司 | D52: 李启彬 | F52: 济南大西环 | G52: 土石方 | H52: 专业分包 | I52: C
A53: 45 | B53: 山东亿邦建设工程有限公司 | D53: 李恒 | F53: 济南大西环 | G53: 土石方 | H53: 专业分包 | I53: C
A54: 46 | B54: 四川祥和明盛建筑工程有限公司 | F54: 西江河 | G54: 土石方开挖、内转、外运等 | H54: 专业分包 | I54: C
A55: 47 | B55: 四川鸥鹏建筑工程公司 | D55: 刘少见 | F55: 宜居水岸 | G55: 土石方 | H55: 专业分包
A56: 48 | B56: 成都晟仲建筑工程有限公司 | F56: 成都30号线 | G56: 土石方 | H56: 专业分包 | I56: C
A57: 49 | B57: 北京强兴宏伟建设工程有限公司 | C57: 劳务分包不分等级、地基基础工程专业承包叁级 | D57: 刘伟 | G57: 土石方 | H57: 劳务分包 | I57: C
A58: 二 | B58: 主体结构
A59: 1 | B59: 泰安市思创建筑劳务有限公司 | C59: 钢筋作业分包贰级；模板作业分包贰级； | D59: 罗均 | E59: 罗均 | F59: 青岛地铁12标项目部 | G59: 换乘大厅及剩余主体结构 | H59: 劳务分包 | I59: A
C60: 脚手架作业分包贰级；混凝土作业分包贰级；砌筑作业分包贰级。 | D60: 罗均 | E60: 罗均 | F60: 青岛地铁1号线 | G60: 石油大学站围护结构的凿桩头、钢筋加工、安装、垫层、冠梁、挡墙、砼支撑工程 | H60: 劳务分包 | I60: A
C61: 施工劳务不分等级 | D61: 罗均 | E61: 罗均 | F61: 杭富城际铁路 | G61: 明挖区间结构 | H61: 劳务分包 | I61: B
A62: 2 | B62: 乌鲁木齐众建信劳务有限公司 | C62: 模板作业贰级、砌筑作业贰级、钢筋作业贰级、脚手架搭设作业贰级、水暖电安装作业不分等级、混凝土作业资质 | D62: 左天勇 | E62: 黄德银 | F62: 乌鲁木齐地铁1号线13标 | G62: 植物园站临建、BRT车站土建施工、部分交通导改路土建施工、植物园站围护桩钢筋笼施工、植物园站及迎宾路口站冠梁挡土墙施工 | H62: 劳务分包 | I62: A
E63: 刘家林 | F63: 乌鲁木齐地铁2号线B-02标 | G63: 钢筋笼、临建、冠梁挡墙、钢支撑、网喷、主体施工 | H63: 劳务分包 | I63: A
A64: 3 | B64: 北京杰远建筑工程有限公司 | C64: 钢筋作业劳务分包二级；脚手架搭设作业劳务分包二级；模板作业劳务分包；混凝土作业劳务分包不分风机； | D64: 陈迪 | E64: 夏建军 | F64: 北京地铁8号线 | G64: 车站主体1-6仓段及范围内附属风亭、风道、安全出口；A\B出入口明挖结构 | H64: 劳务分包 | I64: A
A65: 4 | B65: 四川金石力达建筑劳务有限公司 | C65: 施工劳务不分等级 | D65: 岑波 | F65: 贵阳地铁2号线 | G65: 云峰路站主体及附属结构的土建工程 | H65: 劳务分包 | I65: A
A66: 5 | B66: 黄红彬 | C66: 个人 | D66: 黄红彬 | F66: 隆昌项目模板劳务 | G66: 主体模板安拆 | H66: 劳务分包 | I66: B
A67: 6 | B67: 吴嗣亮 | C67: 个人 | D67: 吴嗣亮 | F67: 隆昌项目脚手架劳务 | G67: 外架和高支架搭拆 | H67: 劳务分包 | I67: B
A68: 7 | B68: 杨育忠队 | C68: 无 | D68: 杨育忠 | E68: 杨育忠 | F68: 新津厂房项目 | G68: 车间一至车间五以及质检楼和综合楼土建工程（除防水、保温、栏杆、门窗、消防、石材干挂、玻璃幕墙、油漆涂料、散水及水沟、厂房基础预埋螺栓以外的所有土建及装饰工程） | H68: 劳务分包 | I68: B
A69: 8 | B69: 重庆凯文建筑工程有限公司 | C69: 模板作业劳务分包壹级、脚手架作业劳务分包壹级、钢筋作业劳务分包壹级 | D69: 周正强 | E69: 孙文亮 | F69: 龙泉驿站附属工程 | G69: 车库、附属通道结构钢筋、混凝土、模板、架子等工程 | H69: 劳务分包 | I69: B
E70: 曾洪 | F70: 重庆地铁九号线 | G70: 临建，明槽边坡支护，主体结构
A71: 9 | B71: 成都诚挚劳务有限公司 | C71: 模板作业劳务分包壹级、脚手架作业劳务分包壹级、钢筋作业劳务分包壹级、混凝土作业劳务分包壹级 | D71: 邹远成 | E71: 邹远成 | F71: 龙泉驿站附属工程 | G71: 主体工程钢筋、混凝土、模板、架子等工程 | H71: 劳务分包 | I71: B
A72: 10 | B72: 绵阳市博得建筑劳务有限责任公司 | C72: 钢筋作业劳务分包壹级 | F72: 青岛地铁12标项目部 | G72: 李君区间主体结构
A73: 11 | B73: 广西天力工程劳务有限公司 | C73: 砼作业分包、砌筑作业分包一级、脚手架作业分包一级 | D73: 齐明亮 | E73: 李代兵 | F73: 南宁地铁1标项目部 | G73: 石埠车站、明挖区间脚手架搭设、拆除 | H73: 劳务分包 | I73: B
A74: 12 | B74: 母和平 | C74: 无 | D74: 母和平 | E74: 母和平 | F74: 南宁地铁1标项目部 | G74: 石埠车站、附属模板、砼施工 | H74: 劳务分包 | I74: B
A75: 13 | B75: 四川金隆劳务有限公司 | F75: 南门广场综合提升改造项目施工一标段 | G75: 围护结构冠梁、挡土墙、肥槽砌筑及抹面、主体结构工程
A76: 14 | B76: 王明晓 | C76: 无 | D76: 王明晓 | E76: 王明晓 | F76: 南宁地铁1标项目部 | G76: 明挖区间模板、砼施工 | H76: 劳务分包 | I76: B
A77: 15 | B77: 刘万春 | C77: 无 | D77: 刘万春 | E77: 刘万春 | F77: 青岛地铁12标项目部 | G77: 二号出入口主体结构及站台板 | H77: 劳务分包 | I77: B
F78: 青岛北客站 | G78: 主体结构
A79: 16 | B79: 青岛龙溪劳务作业有限公司 | C79: 砌筑作业劳务分包壹级 | D79: 张江 | E79: 张江 | F79: 青岛地铁12标项目部 | G79: 内部结构砌筑 | H79: 劳务分包 | I79: B
A80: 17 | B80: 青岛兴德劳务作业有限公司 | C80: 砌筑作业分包 | G80: 李村站3#线围护结构冠梁及挡土墙钢筋制作安装、混凝土浇筑、预埋件加工安装
A81: 18 | B81: 易县天龙建筑劳务有限公司 | C81: 砌筑作业分包壹级、木工作业分包壹级、抹灰作业分包资质、石制作分包资质、油漆作业分包资质、钢筋作业分包壹级、混凝土作业分包资质、脚手架搭设作业分包壹级、模板作业分包壹级、焊接作业分包壹级、钣金工程作业分包资质、架线工程作业分包资质、水暖电安装作业分包资质 | D81: 张永军 | E81: 李文利 | F81: 北京奥体三标 | G81: 主体结构 | H81: 劳务分包 | I81: B
A82: 19 | B82: 保定市天地建筑工程有限公司 | C82: 砌筑作业分包壹级、木工作业分包壹级、钢筋作业分包壹级、脚手架搭设作业分包壹级、模板作业分包壹级、水暖电安装作业分包壹级、焊接作业分包壹级、抹灰作业分包壹级、油漆作业分包壹级、混凝土作业分包资质 | D82: 刘绍信 | E82: 刘绍信 | F82: 北京地铁8号线 | G82: 车站主体围护结构范围内冠梁、挡土墙、构造柱、圈梁、防水保护墙、桩间喷射混凝土工程 | H82: 劳务分包 | I82: B
A83: 20 | B83: 北京中顺安辰建筑工程有限公司 | C83: 砌筑作业分包贰级、木工作业分包贰级、钢筋作业分包贰级、混凝土作业分包不分等级、水暖电安装作业分包不分等级 | D83: 靳华 | E83: 王旭东 | F83: 北京奥体三标 | G83: 主体结构 | H83: 劳务分包 | I83: B
A84: 21 | B84: 靳华 | C84: 无 | E84: 靳华 | F84: 青岛北客站 | G84: 机械租赁，主体结构
A85: 22 | B85: 北京砼鑫淦水利水电工程公司 | D85: 张福军 | E85: 张福军 | F85: 北京奥体三标 | G85: 砌筑 | H85: 劳务分包 | I85: B
A86: 23 | B86: 北京鑫旺平安建筑工程有限公司 | G86: 路缘石铺砌
A87: 24 | B87: 保定市天地建筑工程有限公司 | C87: 砌筑作业分包壹级、木工作业分包壹级、钢筋作业分包壹级、脚手架搭设作业分包壹级、模板作业分包壹级、水暖电安装作业分包壹级、焊接作业分包壹级、抹灰作业分包壹级、油漆作业分包壹级、混凝土作业分包资质 | D87: 刘绍信 | E87: 刘绍信 | F87: 北京奥体三标 | G87: 主体结构 | H87: 劳务分包 | I87: B
A88: 25 | B88: 张福祥 | C88: 无 | D88: 张福祥 | F88: 青岛北客站 | G88: 冠梁支撑班 | H88: 劳务分包 | I88: B
A89: 26 | B89: 北京市天征伟业建筑工程有限公司 | C89: 砌筑作业分包二级；木工作业分包二级；钢筋作业分包二级；脚手架搭设作业分包二级；模板作业分包二级；焊接作业分包二级；抹灰作业分包不分等级；混凝土作业劳务分包不分等级；油漆作业分包不分等级；水暖电安装作业不分等级 | D89: 刘绍信 | E89: 刘绍信 | F89: 北京地铁8号线 | G89: 主体结构的混凝土浇筑、钢筋加工、安装、支架模版加工、安装拆除、变形缝施工处理、止水带安装 | H89: 劳务分包 | I89: B
A90: 27 | D90: 梅明德 | E90: 梅明德 | F90: 北京昌南线 | G90: 竖井开挖初支 | H90: 劳务分包 | I90: B
A91: 28 | B91: 成都三磊劳务有限公司 | C91: 钢筋作业劳务分包壹级、混凝土作业劳务分包不分等级、模版作业劳务分包壹级、脚手架作业劳务分包壹级 | D91: 李建 | E91: 李建 | F91: 武侯新城 | G91: 桥梁下部结构、附属结构、下穿隧道主体结构 | H91: 劳务分包 | I91: B
D92: 李建 | E92: 王刚 | F92: 杭富城际铁路 | G92: 明挖区间结构、桥结构 | H92: 劳务分包 | I92: B
D93: 李建 | E93: 王刚 | F93: 北京昌南线 | G93: 西清区间高架段及U型槽 | H93: 劳务分包
A94: 29 | B94: 四川省第七建筑工程公司 | C94: 混凝土预制构件专业承包贰级 | D94: 郭锐 | E94: 郭锐 | F94: 武侯新城 | G94: 桥梁小箱梁加工、安装 | H94: 专业分包 | I94: B
A95: 31 | B95: 徐建 | C95: 无 | D95: 徐建 | F95: 隆昌影视文化中心 | G95: 隆昌影视文化中心二次结构 | H95: 劳务分包 | I95: B
A96: 31 | B96: 四川金隆劳务有限公司 | D96: 姜国平 | E96: 姜国平 | F96: 南门广场综合提升改造项目施工一标段 | G96: 围护结构冠梁、挡土墙、肥槽砌筑及抹面、主体结构工程，装饰装修工程施工 | H96: 劳务分包 | I96: C
A97: 32 | B97: 保定市天地建筑工程有限公司 | C97: 砌筑作业分包壹级、木工作业分包壹级、钢筋作业分包壹级、脚手架搭设作业分包壹级、模板作业分包壹级、水暖电安装作业分包壹级、焊接作业分包壹级、抹灰作业分包壹级、油漆作业分包壹级、混凝土作业分包资质 | D97: 刘伯阳 | E97: 刘伯阳 | F97: 北京奥体三标 | G97: 明挖结构 | H97: 劳务分包 | I97: C
A98: 33 | B98: 周模军 | C98: 个人 | D98: 周模军 | F98: 隆昌项目混凝土劳务 | G98: 主体混凝土浇筑 | H98: 劳务分包 | I98: C
A99: 34 | B99: 四川仁寿全顺劳务开发有限公司 | C99: 劳务作业分包一级，脚手架搭设作业分包一级，钢筋作业分包一级，砌筑作业分包一级，混凝土作业分包一级，抹灰作业分包一级 | D99: 黄忠诚 | E99: 黄忠诚 | F99: 连界项目部 | G99: 地下室结构工程 | H99: 劳务分包 | I99: D
A100: 35 | B100: 四川省彭山县鸿伟劳务派遣有限公司 | C100: 国内劳务派遣、建筑劳务分包 | D100: 张莉 | E100: 张莉 | F100: 龙泉驿站附属工程 | G100: 车库、附属通道结构钢筋、混凝土、模板、架子等工程 | H100: 劳务分包 | I100: D
A101: 36 | B101: 薛东金 | C101: 无 | D101: 薛东金 | E101: 薛东金 | F101: 南宁地铁1标项目部 | G101: 明挖区间主体钢筋制作、石埠车站及箱涵模板施工 | H101: 劳务分包 | I101: D
A102: 37 | B102: 广西慧泰大力神工程劳务有限公司 | C102: 砼作业分包、砌筑作业分包一级、脚手架作业分包一级 | D102: 吴克峰 | E102: 王汉波 | F102: 南宁地铁1标项目部 | G102: 石埠车站、明挖区间脚手架搭设、拆除 | H102: 劳务分包 | I102: D
A103: 38 | B103: 四川三泰劳务有限公司 | D103: 李刚 | E103: 冉茂哲 | F103: 成都地铁4号线 | G103: 盾构井二衬施工 | H103: 劳务分包 | I103: D
A104: 39 | B104: 重庆民润建筑劳务有限责任公司 | C104: 混凝土作业劳务分包不分等级、脚手架作业劳务分包壹级、模版作业劳务分包壹级、钢筋作业劳务分包壹级 | D104: 朱兴华 | E104: 陈兴川 | F104: 武侯新城 | G104: 桥梁下部结构 | H104: 劳务分包 | I104: D
A105: 40 | B105: 四川新元劳务派遣有限公司 | D105: 汪定益 | F105: 成都轨道交通18号线3标 | G105: 风井及明挖区间主体结构砼浇筑工程 | H105: 扩大分包
A106: 41 | B106: 四川省长久劳务有限公司 | C106: 模板脚手架专业承包部分等级、施工劳务不分等级 | D106: 唐家敏 | E106: 唐家敏 | F106: 易隆装备基地项目 | G106: 场内地坪混凝土、承台混凝土、模板、钢筋、临建工程 | H106: 劳务分包
A107: 42 | B107: 河南三益建工有限公司 | C107: 建筑工程施工总承包贰级，市政公用工程施工总承包叁级，钢结构工程专业承包叁级 | D107: 刘昆峰 | E107: 刘昆峰 | F107: 贵阳地铁2号线 | G107: 云峰路站主体及附属结构的土建工程及云白区间二衬结构工程 | H107: 劳务分包 | I107: B
A108: 43 | B108: 泾阳县建筑公司 | C108: 建筑工程施工总承包二级 | D108: 陈剑 | E108: 陈剑 | F108: 贵阳地铁2号线 | G108: 七机路口站及云峰路站主体及附属桩间网喷支护工程 | H108: 劳务分包
A109: 44 | B109: 四川冠利建筑劳务有限公司 | C109: 施工劳务不分等级 | D109: 李袁德 | E109: 李袁德 | F109: 贵阳地铁2号线 | G109: 七云区间隧道内二衬主体结构混凝土浇筑、仰拱混凝土填充施工、附属结构等 | H109: 劳务分包 | I109: B
A110: 45 | B110: 四川李袁德劳务有限公司 | C110: 施工劳务不分等级 | D110: 李袁德 | E110: 李袁德 | F110: 贵阳地铁2号线 | G110: 七云区间隧道内二衬主体结构混凝土浇筑、仰拱混凝土填充施工、附属结构等 | H110: 劳务分包
A111: 46 | B111: 长治市大千建筑劳务公司 | C111: 施工劳务不分等级 | D111: 姜国平 | E111: 姜国平 | F111: 贵阳地铁2号线 | G111: 七机路站主体及附属工程、七云隧道内二衬结构等钢筋制安 | H111: 劳务分包 | I111: B
A112: 47 | B112: 陕西勤勉建筑劳务工程有限公司 | C112: 施工劳务不分等级 | D112: 姜国平 | E112: 姜国平 | F112: 贵阳地铁2号线 | G112: 二衬结构等钢筋制安 | H112: 劳务分包
A113: 48 | B113: 三门峡第八建筑安装工程有限公司 | C113: 建筑装饰装修工程专业承包贰级、建筑工程施工总承包贰级 | D113: 孔维焘 | E113: 孔维焘 | F113: 蒙华铁路预制场 | G113: 卢氏预制场钢结构厂房基础工程 | H113: 专业分包
A114: 49 | B114: 富顺县合力建筑劳务有限公司 | C114: 模板脚手架专业承包不分等级 | D114: 向道彬 | E114: 向道彬 | F114: 成都轨道交通18号线盾构 | G114: 主体结构混凝土浇筑 | H114: 劳务分包
A115: 50 | B115: 重庆国泰嘉业建筑劳务有限公司 | C115: 模板脚手架专业承包不分等级 | D115: 邱文刚 | E115: 邱文刚 | F115: 成都轨道交通18号线盾构 | G115: 主体结构混凝土浇筑 | H115: 劳务分包
A116: 51 | B116: 北京市国泰鑫盛建筑工程有限公司 | C116: 主项：水暖电安装作业分包；增值：木工作业分包贰级，砌筑作业分包贰级，油漆作业分包不分等级，钢筋作业分包贰级，混凝土作业分包不分等级 | D116: 刘柏阳 | E116: 刘柏阳 | F116: 北京地铁12号线04标 | G116: 远大路车站3号地工区施工竖井开挖及初期支护 | H116: 劳务分包 | I116: A
A117: 52 | D117: 程奇洲 | E117: 程奇洲 | F117: 北京昌南线 | G117: 区间隧道开挖及初期支护 | H117: 劳务分包 | I117: B
A118: 53 | B118: 北京东阳德信建筑劳务有限公司 | C118: 模板脚手架专业承包不分等级（可承担各类模板、脚手架工程的设计、制作、安装、施工） | D118: 方伟 | E118: 梅明德 | F118: 北京地铁12号线04标 | G118: 远~长区间施工竖井开挖及初期支护工程 | H118: 劳务分包
A119: 54 | B119: 四川建都建筑劳务有限公司 | C119: 施工劳务不分等级 | D119: 李兵 | E119: 张龙贵 | F119: 杭富城际铁路 | G119: 明挖车站、区间结构 | H119: 劳务分包 | I119: B
D120: 李兵 | E120: 周永满 | F120: 青岛地铁1号线 | G120: 车站主体及附属工程 | H120: 劳务分包 | I120: B
A121: 55 | D121: 张龙贵 | E121: 张龙贵 | F121: 万象城 | G121: 主体劳务分包 | H121: 劳务分包
A122: 56 | B122: 北京天隆建筑劳务有限公司 | D122: 刘绍信 | E122: 刘绍信 | F122: 北京昌南线 | G122: 盾构始发井主体结构 | H122: 劳务分包 | I122: C
A123: 57 | B123: 北京望华兴茂建筑工程有限公司 | C123: 劳务分包贰级 | D123: 汪洋 | E123: 汪洋 | F123: 太原地铁2号线14标 | G123: 附属主体结构 | H123: 劳务分包 | I123: C
F124: 北京昌南线 | G124: 西清主体结构 | H124: 劳务分包 | I124: C
